Workbook

Sheet Notes
A1: NHS England - CCG allocations 2019/20 to 2023/24
A2: Technical Guidance Documentation
A3: Minimum allocation for CCG core services
A6: O - Minimum growth (CCG core services)
A7: Description of worksheets in this document
A9: This workbook performs the calculations necessary to set the
A10: minimum recurrent revenue allocation for CCG core services.
A11: This calculation feeds in to the total place based pace of change in workbook Q
A13: Please refer to the Technical Guide published alongside this spreadsheet for further information
A15: Pace of change parameters | H15: inputs
A16: A series of parameters and switches to tune pace of change policy
A18: Rows 8-13 provide basic information on national population growth and GDP
A19: deflators to inform setting growth limits.
A21: Rows 15-23 set the parameters for per capita growth rates. The minimum growth
A22: is set to the reference growth. The recommended earliest point for the end of
A23: transition ensures that pace of change preserves the order of the initial DfTs.
A25: Row 25 set the minimum programme growth.
A27: Rows 27 and 28 provide switches for turning on and off different parts of the pace of
A28: change policy.
A30: Rows 30-36 give a summary of the performance of the pace of change choices
A31: to support the process of choosing these parameters.
A33: Row 37 sets the minimum target closing DfT.
A35: VBA code | H35: calculations
A36: User defined Visual Basic functions used to set per capita growth
A37: Calculations are performed using this VBA code (comments describe process)
A39: Core 2019-20 | H39: outputs
A40: Shows the calculation of the minimum allocation for 2019-20
A41: Baselines, target values and populations are brought in from workbook M.
A43: Columns Q-W applies per capita growth based on opening DfT per capita,
A44: higher for CCGs that are furthest below target, and lower for CCGs that
A45: are furthest above target.
A47: Columns X-Z apply a minimum programme [total allocation] growth.
A49: The minimum allocation is in column AA, and target allocation in column AF.
A50: The minimum allocation Closing DfT is in column AH.
A52: Core 2020-21 | H52: outputs
A53: Shows the calculation of the minimum allocation for 2020-21
A54: Baselines, target values and populations are brought in from workbook M.
A56: Core 2021-22 | H56: outputs
A57: Shows the calculation of the minimum allocation for 2021-22
A58: Baselines, target values and populations are brought in from workbook M.
A60: Core 2022-23 | H60: outputs
A61: Shows the calculation of the minimum allocation for 2022-23
A62: Baselines, target values and populations are brought in from workbook M.
A64: Core 2023-24 | H64: outputs
A65: Shows the calculation of the minimum allocation for 2023-24
A66: Baselines, target values and populations are brought in from workbook M.
A70: See also Technical Guidance Documentation
A71: www.england.nhs.uk/allocations
A73: For queries please contact
A74: england.revenue-allocations@nhs.net

Sheet Pace of Change parameters
A1: NHS England - 2019-20 to 2023-24 Allocations
A2: Minimum allocations for CCG core services
A3: Pace of change parameters
B5: Core
B7: GDP deflator and Population Growth | D7: 2018-19 | E7: 2019-20 | F7: 2020-21 | G7: 2021-22 | H7: 2022-23 | I7: 2023-24
B8: GDP deflator | C8: % | E8: 0.0157 | F8: 0.01942659196 | G8: 0.01925030241 | H8: 0.01940538178 | I8: 0.01895821993
B9: Population growth | C9: % | E9: 0.006220598103 | F9: 0.005977095412 | G9: 0.005599747363 | H9: 0.005346112538 | I9: 0.005056217038
B10: Reference growth | C10: % | E10: 0.009420798893 | F10: 0.01336958526 | G10: 0.01357454105 | H10: 0.01398450649 | I10: 0.01383206497
B11: Quanta
B12: Quanta | C12: £'000 | D12: 74185184.23 | E12: 78382155.2 | F12: 81692393.81 | G12: 84956787.18 | H12: 88164881.1 | I12: 91282374.87
B13: Quantum growth % | C13: % | E13: 0.05657424737 | F13: 0.04223204389 | G13: 0.03995957536 | H13: 0.03776147885 | I13: 0.03535981362
B14: Per Capita
B15: Maximum per capita growth | C15: % | E15: 0.2 | F15: 0.0459 | G15: 0.0407 | H15: 0.0361 | I15: 0.0344
A16: per capita growth based on opening DfT per capita | B16: Start of first transition | C16: % | E16: -0.1194181376 | F16: -0.05050491591 | G16: -0.04710325187 | H16: -0.04345195514 | I16: -0.03994755434
B17: End of first transition | C17: % | E17: -0.025 | F17: 0 | G17: 0 | H17: 0 | I17: 0
B18: Start of second transition | C18: % | E18: 0.05 | F18: 0.05 | G18: 0.05 | H18: 0.05 | I18: 0.05
B19: End of second transition | C19: % | E19: 0.1 | F19: 0.1 | G19: 0.1 | H19: 0.1 | I19: 0.1
B20: Default per cap growth | C20: % | E20: 0.0485 | F20: 0.033 | G20: 0.032 | H20: 0.0299 | I20: 0.0277
B21: Average per cap growth | C21: % | E21: 0.05004235588 | F21: 0.03603953673 | G21: 0.03416849306 | H21: 0.03224299165 | I21: 0.03015114584
B22: Gap from floor to avg per cap growth | C22: % | E22: 0.015 | F22: 0.015 | G22: 0.015 | H22: 0.015 | I22: 0.015
B23: Floor per cap growth | C23: % | E23: 0.03504235588 | F23: 0.02103953673 | G23: 0.01916849306 | H23: 0.01724299165 | I23: 0.01515114584
B24: Programme
B25: Minimum programme growth % | E25: 0.0157 | F25: 0.01942659196 | G25: 0.01925030241 | H25: 0.01940538178 | I25: 0.01895821993
B26: Switches
B27: Per capita switch | E27: 1 | F27: 1 | G27: 1 | H27: 1 | I27: 1
B28: PoC switch | E28: 1 | F28: 1 | G28: 1 | H28: 1 | I28: 1
B29: Performance
B30: Balance | C30: £'000 | E30: 75061.19614 | F30: 84382.81439 | G30: 87767.18095 | H30: 92350.10318 | I30: 92157.86678
B31: Balance / Quanta | C31: % | E31: 0.0009576311847 | F31: 0.001032933551 | G31: 0.001033080274 | H31: 0.001047470399 | I31: 0.001009591029
B32: Minimum opening DfT | C32: % | E32: -0.1194181376 | F32: -0.05050491591 | G32: -0.04710325187 | H32: -0.04345195514 | I32: -0.03994755434
B33: Minimum closing DfT | C33: % | E33: -0.04990100913 | F33: -0.04617657019 | G33: -0.04245050887 | H33: -0.03872667512 | I33: -0.03500136225
B34: Maximum closing DfT | C34: % | E34: 0.1961207583 | F34: 0.1832937615 | G34: 0.1699814299 | H34: 0.1604437389 | I34: 0.1532097582
B35: No. of CCGs < -5% closing DfT | E35: 0 | F35: 0 | G35: 0 | H35: 0 | I35: 0
B36: No. of CCGs < -2.5% closing DfT | E36: 43 | F36: 41 | G36: 37 | H36: 30 | I36: 26
B37: Target min DfT | C37: % | E37: -0.0499 | F37: -0.046175 | G37: -0.04245 | H37: -0.038725 | I37: -0.035

Sheet VBA Code
A1: NHS England - 2019-20 to 2023-24 Allocations
A2: Minimum allocations for CCG core services
A3: User defined Visual Basic functions used to set per capita growth
A5: # These functions are shown in the order they are used in the minimum allocation calculations
A7: # Function MinGrowthPerhead sets minimum per capita growth
A8: # Inputs are taken from the minimum allocation worksheet and the pace of change parameters
A9: # X is the opening DfT per capita, taken from the minimum allocation worksheet
A10: # minval is 0
A11: # maxval is 1
A12: # RampStart is start of the second transition ( 5% over opening target)
A13: # RampEnd is the end of the second transition (10% over opening target)
A14: # HigherRate is the default per cap growth taken from the pace of change parameters
A15: # LowerRate is the floor per cap growth taken from the pace of change parameters
B17: Function MinGrowthPerHead(X, minval, maxval, RampStart, RampEnd, HigherRate, LowerRate)
C18: Dim a, b As Double
A19: # a is the transition ranging from minval = 0 (where opening DfT per capita >= 10%) to maxval = 1 (where opening DfT per capita <= 5%)
C20: a = MinMaxRamp(X, minval, maxval, RampStart, RampEnd)
C21: b = 1 - a
A22: # minimum growth per head is weighted average of the growth rates
C23: MinGrowthPerHead = a * HigherRate + b * LowerRate
B24: End Function
A26: # Function MinMaxRamp sets transition
A27: # X is opening DfT per capita, from the minimum allocation worksheet
A28: # minval is 0
A29: # maxval is 1
A30: # RampStart is start of the second transition ( 5% over opening target)
A31: # RampEnd is the end of the second transition (10% over opening target)
B33: Function MinMaxRamp(X, minval, maxval, RampStart, RampEnd)
C34: If X < RampStart Then
C35: MinMaxRamp = maxval
C36: ElseIf X > RampEnd Then
C37: MinMaxRamp = minval
C38: Else
C39: MinMaxRamp = (X - RampEnd) / (RampStart - RampEnd)
C40: End If
B41: End Function
A43: # Function NewMinGrowthPerHead sets higher per capita growth to ensure CCGs are within target minimum closing DfT
A44: # Inputs are taken from the minimum allocation sheet and the pace of change parameters
A45: # X is opening DfT per capita, from the minimum allocation worksheet
A46: # minDfT is the Target minimum closing DfT (increasing from -4.99% in 2019-20 to -3.50% in 2023/24), taken from the pace of change parameters worksheet
A47: # QuantumGrowth is quantum growth taken from the pace of change parameters worksheet
A48: # DefaultGrowth is the default per cap growth taken from pace of change parameters worksheet
A49: # RampEnd is end of first transition (-2.5% in 2019-20 and 0% thereafter)
A50: # ClosingTargetPerHead is closing target per capita
A51: # BaselinePerHead is baseline allocation per capita
A52: # Transition (in range 0 to 1) relates to first transition
A53: # lowestOpenDfT is the minimum CCG opening DfT per capita
B55: Function NewMinGrowthPerHead(X As Double, minDfT As Double, QuantumGrowth As Double, DefaultGrowth As Double, RampEnd As Double, ClosingTargetPerHead As Double, BaselinePerHead As Double, Transition As Double, lowestOpenDfT As Double) As Double
C56: Dim GrowthDiff As Double
C57: Dim gmax As Double
C58: Dim adjlowestopenDfT As Double
C60: GrowthDiff = DefaultGrowth - QuantumGrowth
A61: # where opening DfT per capita is below minimum closing DfT, apply sufficient per capita growth to move closing DfT to minimum closing DfT
C62: If X < minDfT Then
C63: NewMinGrowthPerHead = (ClosingTargetPerHead * (1 + minDfT) / BaselinePerHead) - 1
A64: # where opening DfT per capita is between minimum closing DfT and end of first transition
A65: # apply per capita growth based on opening DfT per capita position on first transition
C66: ElseIf X < RampEnd Then
A67: # set adjusted lowest opening DfT as start of first transition
C68: If lowestOpenDfT < minDfT Then
C69: adjlowestopenDfT = minDfT
C70: Else
C71: adjlowestopenDfT = lowestOpenDfT
C72: End If
A73: # per capita growth rate to apply to start of first transition
A74: # default per cap growth applied to end of first transition
A75: # per capita growth rate weighted average of two rates based on transition position
C76: gmax = ((1 + minDfT) * (1 + QuantumGrowth) / (1 + adjlowestopenDfT)) - 1
C77: NewMinGrowthPerHead = (1 - Transition) * DefaultGrowth + Transition * gmax
C78: Else
C79: NewMinGrowthPerHead = 0
C80: End If
B82: End Function

Sheet Core 2019-20
A1: NHS England - 2019-20 to 2023-24 Allocations | E1: 2018-19 | J1: 2019-20 | L1: 0.05657424737 | P1: -0.1194181376 | Q1: 0.05 | R1: 0.0485 | T1: -0.1194181376 | U1: 0.0485 | X1: 0.0157 | AA1: 1.0157 | AI1: -0.04990100913
A2: Minimum allocations for CCG core services | P2: -0.0499 | Q2: 0.1 | R2: 0.03504235588 | S2: 1 | T2: -0.025 | U2: 0.2 | Z2: 1 | AI2: 0.1961207583
A3: Pace of change calculations 2019-20 | U3: 0.1515 | AI3: 0
L4: 1318.512381 | AA4: 75061.19614 | AI4: 43
B5: England | E5: 74185184.23 | F5: 59079904.56 | G5: 1255.675424 | J5: 74185184.23 | K5: 59447416.9 | L5: 1247.912661 | M5: 0.006220598103 | AA5: 78307094 | AF5: 78382155.2 | AH5: -0.0009576311847
E6: Baseline | J6: Opening Target | O6: Distance from Target | Q6: Minimum per capita growth | T6: Per capita pace of change | X6: Minimum programme | AF6: Closing target
A7: CCG | B7: CCG name | E7: Baseline £000 | F7: Estimated Population | G7: Allocation per capita £ | H7: Closing DfT | J7: Opening Target £000 | K7: Estimated Population | L7: Opening Target per capita £ | M7: population growth rate % | O7: DFT (total allocation) | P7: DFT (per capita) | Q7: Apply minimum per capita growth [programme] | R7: Apply minimum per capita growth [per capita] | S7: Allocation after min per capita growth £000 | T7: First Transition position | U7: Growth on per capita parameters [programme] | V7: Growth on per capita parameters [per capita] | W7: Allocation after per capita p-o-c | X7: Apply minimum programme growth [programme] | Y7: Apply minimum programme growth [per capita] | Z7: Allocation after minimum programme growth | AA7: Minimum allocation £000 | AB7: Minimum allocation per head £ | AC7: Growth after rounding | AD7: Per capita growth after rounding | AF7: Target allocations from the fair shares formula £000 | AG7: Target per head | AH7: DFT (total allocation) | AI7: DFT (per capita)
A9: 00C | B9: NHS Darlington CCG | E9: 150656 | F9: 108354.6675 | G9: =E9/F9*1000 -> 1390.396958 | H9: 0.02155507384 | J9: 147614.6593 | K9: 108392.1875 | L9: =J9/K9*1000 -> 1361.857 | M9: =K9/F9-1 -> 0.0003462704506 | O9: =E9/J9-1 -> 0.02060324332 | P9: =G9/L9-1 -> 0.02095664807 | Q9: =(1+M9)*(1+R9)-1 -> 0.04886306457 | R9: =MinGrowthPerHead(P9,0,1,$Q$1,$Q$2,$R$1,$R$2) -> 0.0485 | S9: =(1+IF($S$2=1,Q9,0))*$E9 -> 158017.5139 | T9: =MinMaxRamp(P9,0,1,$P$2,$T$2) -> 0 | U9: =(1+M9)*(1+V9)-1 -> 0.04886306457 | V9: =MAX(R9,NewMinGrowthPerHead(P9,$P$2,$L$1,$U$1,$T$2,AG9,G9,T9, $P$1)) -> 0.0485 | W9: =(1+IF($S$2=1,U9,0))*$E9 -> 158017.5139 | X9: =MAX(U9,$X$1) -> 0.04886306457 | Y9: =(1+X9)/(1+M9) - 1 -> 0.0485 | Z9: =(1+IF($Z$2=1,X9,0))*$E9 -> 158017.5139 | AA9: =IF(ROUND(Z9,0)/E9>$AA$1,ROUND(Z9,0),ROUNDUP(Z9,0)) -> 158018 | AB9: =AA9/K9*1000 -> 1457.835695 | AC9: =AA9/E9-1 -> 0.04886629142 | AD9: =AB9/G9-1 -> 0.04850322573 | AF9: 155965.8475 | AG9: =AF9/K9*1000 -> 1438.903034 | AH9: =AA9/AF9-1 -> 0.01315770425 | AI9: =AB9/AG9-1 -> 0.01315770425
A10: 00D | B10: NHS Durham Dales, Easington and Sedgefield CCG | E10: 458160 | F10: 292189.8361 | G10: =E10/F10*1000 -> 1568.021688 | H10: 0.04251465239 | J10: 440207.0531 | K10: 293122.5 | L10: =J10/K10*1000 -> 1501.785271 | M10: =K10/F10-1 -> 0.00319197941 | O10: =E10/J10-1 -> 0.0407829607 | P10: =G10/L10-1 -> 0.04410511848 | Q10: =(1+M10)*(1+R10)-1 -> 0.05184679041 | R10: =MinGrowthPerHead(P10,0,1,$Q$1,$Q$2,$R$1,$R$2) -> 0.0485 | S10: =(1+IF($S$2=1,Q10,0))*$E10 -> 481914.1255 | T10: =MinMaxRamp(P10,0,1,$P$2,$T$2) -> 0 | U10: =(1+M10)*(1+V10)-1 -> 0.05184679041 | V10: 0.0485 | W10: =(1+IF($S$2=1,U10,0))*$E10 -> 481914.1255 | X10: =MAX(U10,$X$1) -> 0.05184679041 | Y10: =(1+X10)/(1+M10) - 1 -> 0.0485 | Z10: =(1+IF($Z$2=1,X10,0))*$E10 -> 481914.1255 | AA10: 481914 | AB10: 1644.070312 | AC10: 0.0518465165 | AD10: 0.04849972696 | AF10: 465111.4358 | AG10: 1586.747642 | AH10: =AA10/AF10-1 -> 0.03612588927 | AI10: 0.03612588927
A11: 00J | B11: NHS North Durham CCG | E11: 353910 | F11: 259367.9209 | G11: 1364.509531 | H11: 0.04673062029 | J11: 338815.4853 | K11: 260056.4375 | L11: 1302.853675 | M11: 0.002654594289 | O11: 0.04455084058 | P11: 0.04732369927 | Q11: 0.05128334211 | R11: 0.0485 | S11: 372059.6876 | T11: 0 | U11: 0.05128334211 | V11: 0.0485 | W11: 372059.6876 | X11: 0.05128334211 | Y11: 0.0485 | Z11: 372059.6876 | AA11: 372060 | AB11: 1430.689444 | AC11: 0.0512842248 | AD11: 0.04850088035 | AF11: 357983.7164 | AG11: 1376.561641 | AH11: 0.03932101642 | AI11: 0.03932101642
A12: 00K | B12: NHS Hartlepool and Stockton-on-Tees CCG | E12: 412170 | F12: 297298.9188 | G12: 1386.382438 | H12: -0.02163030484 | J12: 421008.8926 | K12: 298132.2188 | L12: 1412.154964 | M12: 0.002802902699 | O12: -0.02099455086 | P12: -0.01825049384 | Q12: 0.05143884348 | R12: 0.0485 | S12: 433371.5481 | T12: 0 | U12: 0.05143884348 | V12: 0.0485 | W12: 433371.5481 | X12: 0.05143884348 | Y12: 0.0485 | Z12: 433371.5481 | AA12: 433372 | AB12: 1453.623502 | AC12: 0.05143993983 | AD12: 0.04850109329 | AF12: 444827.1538 | AG12: 1492.046568 | AH12: -0.02575192127 | AI12: -0.02575192127
A13: 00L | B13: NHS Northumberland CCG | E13: 467627 | F13: 325418 | G13: 1437.004099 | H13: 0.008208975284 | J13: 464422.2742 | K13: 325474.5938 | L13: 1426.907916 | M13: 0.0001739109392 | O13: 0.006900456726 | P13: 0.00707556773 | Q13: 0.04868234562 | R13: 0.0485 | S13: 490392.1792 | T13: 0 | U13: 0.04868234562 | V13: 0.0485 | W13: 490392.1792 | X13: 0.04868234562 | Y13: 0.0485 | Z13: 490392.1792 | AA13: 490392 | AB13: 1506.698247 | AC13: 0.04868196233 | AD13: 0.04849961678 | AF13: 490696.6148 | AG13: 1507.634157 | AH13: -0.000620780356 | AI13: -0.000620780356
A14: 00M | B14: NHS South Tees CCG | E14: 429655 | F14: 296987.7526 | G14: 1446.70949 | H14: -0.01566159667 | J14: 435091.326 | K14: 297279.8125 | L14: 1463.575082 | M14: 0.0009834071497 | O14: -0.01249467805 | P14: -0.01152355825 | Q14: 0.0495311024 | R14: 0.0485 | S14: 450936.2858 | T14: 0 | U14: 0.0495311024 | V14: 0.0485 | W14: 450936.2858 | X14: 0.0495311024 | Y14: 0.0485 | Z14: 450936.2858 | AA14: 450936 | AB14: 1516.873938 | AC14: 0.04953043721 | AD14: 0.04849933547 | AF14: 459706.2903 | AG14: 1546.375741 | AH14: -0.01907802989 | AI14: -0.01907802989
A15: 00N | B15: NHS South Tyneside CCG | E15: 250598 | F15: 157204.2485 | G15: 1594.091778 | H15: 0.04228336621 | J15: 239952.7268 | K15: 157356.1406 | L15: 1524.902211 | M15: 0.0009662085552 | O15: 0.04436404346 | P15: 0.04537311694 | Q15: 0.04951306967 | R15: 0.0485 | S15: 263005.8762 | T15: 0 | U15: 0.04951306967 | V15: 0.0485 | W15: 263005.8762 | X15: 0.04951306967 | Y15: 0.0485 | Z15: 263005.8762 | AA15: 263006 | AB15: 1671.406015 | AC15: 0.04951356356 | AD15: 0.04850049341 | AF15: 253527.8717 | AG15: 1611.172406 | AH15: 0.0373849558 | AI15: 0.0373849558
A16: 00P | B16: NHS Sunderland CCG | E16: 447968 | F16: 284072.0813 | G16: 1576.951871 | H16: 0.07346633159 | J16: 416577.2159 | K16: 284309.3125 | L16: 1465.225364 | M16: 0.0008351092479 | O16: 0.07535405891 | P16: 0.07625209703 | Q16: 0.04230388373 | R16: 0.04143417242 | S16: 466918.7862 | T16: 0 | U16: 0.04230388373 | V16: 0.04143417242 | W16: 466918.7862 | X16: 0.04230388373 | Y16: 0.04143417242 | Z16: 466918.7862 | AA16: 466919 | AB16: 1642.292319 | AC16: 0.04230436103 | AD16: 0.04143464932 | AF16: 440144.7584 | AG16: 1548.119386 | AH16: 0.06083053608 | AI16: 0.06083053608
A17: 00Q | B17: NHS Blackburn with Darwen CCG | E17: 228427 | F17: 175120.7517 | G17: 1304.397096 | H17: -0.04514401017 | J17: 238167.0402 | K17: 175157.5156 | L17: 1359.730637 | M17: 0.0002099346631 | O17: -0.04089583607 | P17: -0.04069448686 | Q17: 0.04872011649 | R17: 0.0485 | S17: 239555.9901 | T17: 0.6303006771 | U17: 0.05381038848 | V17: 0.05358920359 | W17: 240718.7456 | X17: 0.05381038848 | Y17: 0.05358920359 | Z17: 240718.7456 | AA17: 240719 | AB17: 1374.30015 | AC17: 0.05381150214 | AD17: 0.05359031701 | AF17: 251641.1613 | AG17: 1436.656374 | AH17: -0.04340371515 | AI17: -0.04340371515
A18: 00R | B18: NHS Blackpool CCG | E18: 264993 | F18: 173468.5012 | G18: 1527.614513 | H18: -0.107844305 | J18: 294549.8988 | K18: 173096.5469 | L18: 1701.650923 | M18: -0.002144218094 | O18: -0.1003459818 | P18: -0.1022750362 | Q18: 0.04625178733 | R18: 0.0485 | S18: 277249.3999 | T18: 1 | U18: 0.1158191617 | V18: 0.1182168626 | W18: 295684.2671 | X18: 0.1158191617 | Y18: 0.1182168626 | Z18: 295684.2671 | AA18: 295684 | AB18: 1708.202765 | AC18: 0.1158181537 | AD18: 0.1182158524 | AF18: 311213.8376 | AG18: 1797.920543 | AH18: -0.04990085835 | AI18: -0.04990085835
A19: 00T | B19: NHS Bolton CCG | E19: 412662 | F19: 309358.2469 | G19: 1333.929204 | H19: -0.008169581407 | J19: 415447.393 | K19: 310601.6875 | L19: 1337.55678 | M19: 0.00401941944 | O19: -0.006704562437 | P19: -0.002712091445 | Q19: 0.05271436128 | R19: 0.0485 | S19: 434415.2138 | T19: 0 | U19: 0.05271436128 | V19: 0.0485 | W19: 434415.2138 | X19: 0.05271436128 | Y19: 0.0485 | Z19: 434415.2138 | AA19: 434415 | AB19: 1398.624082 | AC19: 0.05271384329 | AD19: 0.04849948408 | AF19: 438951.0166 | AG19: 1413.228048 | AH19: -0.0103337648 | AI19: -0.0103337648
A20: 00V | B20: NHS Bury CCG | E20: 262905 | F20: 204179.5007 | G20: 1287.617019 | H20: -0.02298980382 | J20: 268796.6357 | K20: 204868.2812 | L20: 1312.046131 | M20: 0.003373406807 | O20: -0.02191856209 | P20: -0.01861909551 | Q20: 0.05203701704 | R20: 0.0485 | S20: 276585.792 | T20: 0 | U20: 0.05203701704 | V20: 0.0485 | W20: 276585.792 | X20: 0.05203701704 | Y20: 0.0485 | Z20: 276585.792 | AA20: 276586 | AB20: 1350.06746 | AC20: 0.05203780833 | AD20: 0.04850078864 | AF20: 284003.6031 | AG20: 1386.274153 | AH20: -0.02611798946 | AI20: -0.02611798946
A21: 00X | B21: NHS Chorley and South Ribble CCG | E21: 242465 | F21: 183604.5844 | G21: 1320.582494 | H21: 0.02184039523 | J21: 238457.836 | K21: 184909.5625 | L21: 1289.591695 | M21: 0.007107546655 | O21: 0.01680449686 | P21: 0.02403148226 | Q21: 0.05595226267 | R21: 0.0485 | S21: 256031.4654 | T21: 0 | U21: 0.05595226267 | V21: 0.0485 | W21: 256031.4654 | X21: 0.05595226267 | Y21: 0.0485 | Z21: 256031.4654 | AA21: 256031 | AB21: 1384.628229 | AC21: 0.05595034335 | AD21: 0.04849809423 | AF21: 251948.4086 | AG21: 1362.549374 | AH21: 0.01620407676 | AI21: 0.01620407676
A22: 00Y | B22: NHS Oldham CCG | E22: 341655 | F22: 255302.415 | G22: 1338.236459 | H22: 0.01238808319 | J22: 337364.9366 | K22: 256758.2344 | L22: 1313.940086 | M22: 0.005702332803 | O22: 0.01271638777 | P22: 0.01849123364 | Q22: 0.05447889594 | R22: 0.0485 | S22: 360267.9872 | T22: 0 | U22: 0.05447889594 | V22: 0.0485 | W22: 360267.9872 | X22: 0.05447889594 | Y22: 0.0485 | Z22: 360267.9872 | AA22: 360268 | AB22: 1403.140978 | AC22: 0.05447893343 | AD22: 0.04850003727 | AF22: 356451.104 | AG22: 1388.275258 | AH22: 0.01070804924 | AI22: 0.01070804924
A23: 01A | B23: NHS East Lancashire CCG | E23: 551877 | F23: 382164.0862 | G23: 1444.083889 | H23: 0.03261200541 | J23: 533123.6318 | K23: 382499.5625 | L23: 1393.788867 | M23: 0.0008778330288 | O23: 0.03517639635 | P23: 0.03608510838 | Q23: 0.04942040793 | R23: 0.0485 | S23: 579150.9865 | T23: 0 | U23: 0.04942040793 | V23: 0.0485 | W23: 579150.9865 | X23: 0.04942040793 | Y23: 0.0485 | Z23: 579150.9865 | AA23: 579151 | AB23: 1514.121993 | AC23: 0.04942043245 | AD23: 0.0485000245 | AF23: 563284.7001 | AG23: 1472.641423 | AH23: 0.02816746123 | AI23: 0.02816746123
A24: 01C | B24: NHS Eastern Cheshire CCG | E24: 256593 | F24: 208597.4119 | G24: 1230.087169 | H24: 0.002230320457 | J24: 256486.8136 | K24: 209256.7656 | L24: 1225.703804 | M24: 0.003160890982 | O24: 0.0004140033937 | P24: 0.003576202995 | Q24: 0.05181419419 | R24: 0.0485 | S24: 269888.1595 | T24: 0 | U24: 0.05181419419 | V24: 0.0485 | W24: 269888.1595 | X24: 0.05181419419 | Y24: 0.0485 | Z24: 269888.1595 | AA24: 269888 | AB24: 1289.745635 | AC24: 0.05181357247 | AD24: 0.04849938023 | AF24: 270997.362 | AG24: 1295.047074 | AH24: -0.004093626668 | AI24: -0.004093626668
A25: 01D | B25: NHS Heywood, Middleton and Rochdale CCG | E25: 324426 | F25: 233537.334 | G25: 1389.182596 | H25: -0.01843880859 | J25: 330085.9952 | K25: 234477.7031 | L25: 1407.750037 | M25: 0.004026633021 | O25: -0.01714703238 | P25: -0.01318944417 | Q25: 0.05272192472 | R25: 0.0485 | S25: 341530.3631 | T25: 0 | U25: 0.05272192472 | V25: 0.0485 | W25: 341530.3631 | X25: 0.05272192472 | Y25: 0.0485 | Z25: 341530.3631 | AA25: 341530 | AB25: 1456.556404 | AC25: 0.05272080536 | AD25: 0.04849888513 | AF25: 348760.362 | AG25: 1487.392436 | AH25: -0.02073160481 | AI25: -0.02073160481
A26: 01E | B26: NHS Greater Preston CCG | E26: 266262 | F26: 209211.5839 | G26: 1272.692434 | H26: -0.004635373928 | J26: 266455.5658 | K26: 209249.0156 | L26: 1273.389818 | M26: 0.0001789179211 | O26: -0.0007264469093 | P26: -0.0005476589626 | Q26: 0.04868759544 | R26: 0.0485 | S26: 279225.6565 | T26: 0 | U26: 0.04868759544 | V26: 0.0485 | W26: 279225.6565 | X26: 0.04868759544 | Y26: 0.0485 | Z26: 279225.6565 | AA26: 279226 | AB26: 1334.419659 | AC26: 0.04868888538 | AD26: 0.04850128971 | AF26: 281530.0889 | AG26: 1345.430888 | AH26: -0.008184165768 | AI26: -0.008184165768
A27: 01F | B27: NHS Halton CCG | E27: 201891 | F27: 131379.166 | G27: 1536.704838 | H27: 0.04085471675 | J27: 193703.609 | K27: 131605.6875 | L27: 1471.848312 | M27: 0.001724181172 | O27: 0.04226762222 | P27: 0.04406468043 | Q27: 0.05030780396 | R27: 0.0485 | S27: 212047.6928 | T27: 0 | U27: 0.05030780396 | V27: 0.0485 | W27: 212047.6928 | X27: 0.05030780396 | Y27: 0.0485 | Z27: 212047.6928 | AA27: 212048 | AB27: 1611.237356 | AC27: 0.05030932533 | AD27: 0.04850151875 | AF27: 204662.2449 | AG27: 1555.117023 | AH27: 0.03608753084 | AI27: 0.03608753084
A28: 01G | B28: NHS Salford CCG | E28: 395606 | F28: 272953.1648 | G28: 1449.354875 | H28: 0.02212493557 | J28: 387266.7877 | K28: 275610.5 | L28: 1405.12349 | M28: 0.009735498788 | O28: 0.02153350751 | P28: 0.03147864573 | Q28: 0.05870767048 | R28: 0.0485 | S28: 418831.1067 | T28: 0 | U28: 0.05870767048 | V28: 0.0485 | W28: 418831.1067 | X28: 0.05870767048 | Y28: 0.0485 | Z28: 418831.1067 | AA28: 418831 | AB28: 1519.648199 | AC28: 0.0587074008 | AD28: 0.04849973292 | AF28: 409176.1148 | AG28: 1484.617294 | AH28: 0.023595916 | AI28: 0.023595916
A29: 01H | B29: NHS Cumbria CCG | E29: 457978 | F29: 324183.1635 | G29: 1412.713711 | H29: 0.01510592761 | J29: 451024.0835 | K29: 323764.0625 | L29: 1393.064073 | M29: -0.001292790618 | O29: 0.0154180602 | P29: 0.01410533726 | Q29: 0.04714450904 | R29: 0.0485 | S29: 479569.148 | T29: 0 | U29: 0.04714450904 | V29: 0.0485 | W29: 479569.148 | X29: 0.04714450904 | Y29: 0.0485 | Z29: 479569.148 | AA29: 479569 | AB29: 1481.229869 | AC29: 0.04714418597 | AD29: 0.04849967651 | AF29: 476540.4316 | AG29: 1471.875624 | AH29: 0.006355323074 | AI29: 0.006355323074
A30: 01J | B30: NHS Knowsley CCG | E30: 274946 | F30: 165151.5828 | G30: 1664.809961 | H30: 0.05184888063 | J30: 260529.9535 | K30: 165618.9688 | L30: 1573.068324 | M30: 0.002830042428 | O30: 0.05533354721 | P30: 0.05832018592 | Q30: 0.04922155986 | R30: 0.04626059798 | S30: 288479.271 | T30: 0 | U30: 0.04922155986 | V30: 0.04626059798 | W30: 288479.271 | X30: 0.04922155986 | Y30: 0.04626059798 | Z30: 288479.271 | AA30: 288479 | AB30: 1741.823429 | AC30: 0.04922057422 | AD30: 0.04625961512 | AF30: 275269.2396 | AG30: 1662.06348 | AH30: 0.04798850923 | AI30: 0.04798850923
A31: 01K | B31: NHS Morecambe Bay CCG | E31: 487503 | F31: 345955.6711 | G31: 1409.148746 | H31: -0.004157210392 | J31: 488420.6014 | K31: 346843 | L31: 1408.1893 | M31: 0.002564862875 | O31: -0.001878711479 | P31: 0.0006813327589 | Q31: 0.05118925872 | R31: 0.0485 | S31: 512457.9172 | T31: 0 | U31: 0.05118925872 | V31: 0.0485 | W31: 512457.9172 | X31: 0.05118925872 | Y31: 0.0485 | Z31: 512457.9172 | AA31: 512458 | AB31: 1477.492698 | AC31: 0.05118942858 | AD31: 0.04850016942 | AF31: 516052.6293 | AG31: 1487.85655 | AH31: -0.006965625424 | AI31: -0.006965625424
A32: 01R | B32: NHS South Cheshire CCG | E32: 230644 | F32: 185925.4155 | G32: 1240.518943 | H32: -0.03536475879 | J32: 239083.2633 | K32: 186311.0625 | L32: 1283.247812 | M32: 0.002074202559 | O32: -0.03529842784 | P32: -0.03329744137 | Q32: 0.05067480138 | R32: 0.0485 | S32: 242331.8389 | T32: 0.3332305772 | U32: 0.05337096832 | V32: 0.05119058611 | W32: 242953.6936 | X32: 0.05337096832 | Y32: 0.05119058611 | Z32: 242953.6936 | AA32: 242954 | AB32: 1304.02348 | AC32: 0.0533722967 | AD32: 0.05119191175 | AF32: 252609.219 | AG32: 1355.846591 | AH32: -0.03822195816 | AI32: -0.03822195816
A33: 01T | B33: NHS South Sefton CCG | E33: 243970 | F33: 155093.0837 | G33: 1573.055317 | H33: 0.04854199933 | J33: 231805.455 | K33: 155182.25 | L33: 1493.762688 | M33: 0.0005749209289 | O33: 0.05247738906 | P33: 0.05308248034 | Q33: 0.04827266914 | R33: 0.04767034153 | S33: 255747.0831 | T33: 0 | U33: 0.04827266914 | V33: 0.04767034153 | W33: 255747.0831 | X33: 0.04827266914 | Y33: 0.04767034153 | Z33: 255747.0831 | AA33: 255747 | AB33: 1648.042866 | AC33: 0.04827232856 | AD33: 0.04767000115 | AF33: 244919.6741 | AG33: 1578.271188 | AH33: 0.04420766088 | AI33: 0.04420766088
A34: 01V | B34: NHS Southport and Formby CCG | E34: 183939 | F34: 125038.3317 | G34: 1471.060894 | H34: 0.01481237273 | J34: 180967.5888 | K34: 125268.4766 | L34: 1444.637899 | M34: 0.001840594755 | O34: 0.01641957665 | P34: 0.01829039319 | Q34: 0.0504298636 | R34: 0.0485 | S34: 193215.0187 | T34: 0 | U34: 0.0504298636 | V34: 0.0485 | W34: 193215.0187 | X34: 0.0504298636 | Y34: 0.0485 | Z34: 193215.0187 | AA34: 193215 | AB34: 1542.407199 | AC34: 0.05042976204 | AD34: 0.04849989863 | AF34: 191205.6939 | AG34: 1526.367201 | AH34: 0.01050860996 | AI34: 0.01050860996
A35: 01W | B35: NHS Stockport CCG | E35: 412941 | F35: 312021.7475 | G35: 1323.436598 | H35: -0.01977988019 | J35: 420266.7657 | K35: 313465.75 | L35: 1340.710319 | M35: 0.004627890507 | O35: -0.01743122778 | P35: -0.01288400709 | Q35: 0.0533523432 | R35: 0.0485 | S35: 434972.37 | T35: 0 | U35: 0.0533523432 | V35: 0.0485 | W35: 434972.37 | X35: 0.0533523432 | Y35: 0.0485 | Z35: 434972.37 | AA35: 434972 | AB35: 1387.622093 | AC35: 0.0533514473 | AD35: 0.04849910823 | AF35: 444043.0417 | AG35: 1416.559996 | AH35: -0.02042829374 | AI35: -0.02042829374
A36: 01X | B36: NHS St Helens CCG | E36: 301460 | F36: 197589.5005 | G36: 1525.688355 | H36: 0.01030110244 | J36: 298007.4109 | K36: 198154.4375 | L36: 1503.914899 | M36: 0.002859144895 | O36: 0.01158558125 | P36: 0.014477851 | Q36: 0.05149781342 | R36: 0.0485 | S36: 316984.5308 | T36: 0 | U36: 0.05149781342 | V36: 0.0485 | W36: 316984.5308 | X36: 0.05149781342 | Y36: 0.0485 | Z36: 316984.5308 | AA36: 316985 | AB36: 1599.686608 | AC36: 0.05149936973 | AD36: 0.04850155187 | AF36: 314866.9559 | AG36: 1588.997753 | AH36: 0.006726790631 | AI36: 0.006726790631
A37: 01Y | B37: NHS Tameside and Glossop CCG | E37: 355296 | F37: 247904.7488 | G37: 1433.195619 | H37: 0.007473420703 | J37: 351854.1879 | K37: 248556.2812 | L37: 1415.591616 | M37: 0.002628156475 | O37: 0.00978192735 | P37: 0.01243579226 | Q37: 0.05125562206 | R37: 0.0485 | S37: 373506.9175 | T37: 0 | U37: 0.05125562206 | V37: 0.0485 | W37: 373506.9175 | X37: 0.05125562206 | Y37: 0.0485 | Z37: 373506.9175 | AA37: 373507 | AB37: 1502.705939 | AC37: 0.05125585427 | AD37: 0.0485002316 | AF37: 371760.0738 | AG37: 1495.677646 | AH37: 0.004699069003 | AI37: 0.004699069003
A38: 02A | B38: NHS Trafford CCG | E38: 308553 | F38: 242027.0015 | G38: 1274.870151 | H38: 0.03302649391 | J38: 298634.3302 | K38: 243556.875 | L38: 1226.137962 | M38: 0.006321086184 | O38: 0.03321342778 | P38: 0.0397444589 | Q38: 0.05512765886 | R38: 0.0485 | S38: 325562.8045 | T38: 0 | U38: 0.05512765886 | V38: 0.0485 | W38: 325562.8045 | X38: 0.05512765886 | Y38: 0.0485 | Z38: 325562.8045 | AA38: 325563 | AB38: 1336.702156 | AC38: 0.05512829238 | AD38: 0.04850062954 | AF38: 315529.3427 | AG38: 1295.505794 | AH38: 0.03179944281 | AI38: 0.03179944281
A39: 02D | B39: NHS Vale Royal CCG | E39: 134245 | F39: 107018.25 | G39: 1254.412215 | H39: -0.02822339571 | J39: 137881.8506 | K39: 107292.4375 | L39: 1285.103161 | M39: 0.002562063013 | O39: -0.02637657196 | P39: -0.02388208738 | Q39: 0.05118632307 | R39: 0.0485 | S39: 141116.5079 | T39: 0 | U39: 0.05118632307 | V39: 0.0485 | W39: 141116.5079 | X39: 0.05118632307 | Y39: 0.0485 | Z39: 141116.5079 | AA39: 141117 | AB39: 1315.255793 | AC39: 0.05118998845 | AD39: 0.04850365602 | AF39: 145682.4125 | AG39: 1357.806905 | AH39: -0.03133811691 | AI39: -0.03133811691
A40: 02E | B40: NHS Warrington CCG | E40: 282840 | F40: 218209.0056 | G40: 1296.188483 | H40: -0.009017801668 | J40: 286006.5533 | K40: 219281.6562 | L40: 1304.288549 | M40: 0.004915702868 | O40: -0.01107161099 | P40: -0.006210332871 | Q40: 0.05365411446 | R40: 0.0485 | S40: 298015.5297 | T40: 0 | U40: 0.05365411446 | V40: 0.0485 | W40: 298015.5297 | X40: 0.05365411446 | Y40: 0.0485 | Z40: 298015.5297 | AA40: 298016 | AB40: 1359.055769 | AC40: 0.05365577712 | AD40: 0.04850165453 | AF40: 302187.1588 | AG40: 1378.077692 | AH40: -0.0138032298 | AI40: -0.0138032298
A41: 02F | B41: NHS West Cheshire CCG | E41: 346473 | F41: 263907.4162 | G41: 1312.858142 | H41: 0.01298245511 | J41: 342369.6263 | K41: 264776.8438 | L41: 1293.04973 | M41: 0.003294441527 | O41: 0.01198521521 | P41: 0.01531914133 | Q41: 0.05195422194 | R41: 0.0485 | S41: 364473.7351 | T41: 0 | U41: 0.05195422194 | V41: =MAX(R41,NewMinGrowthPerHead(P41,$P$2,$L$1,$U$1,$T$2,AG41,G41,T41, $P$1)) -> 0.0485 | W41: 364473.7351 | X41: 0.05195422194 | Y41: 0.0485 | Z41: 364473.7351 | AA41: =IF(ROUND(Z41,0)/E41>$AA$1,ROUND(Z41,0),ROUNDUP(Z41,0)) -> 364474 | AB41: =AA41/K41*1000 -> 1376.532762 | AC41: =AA41/E41-1 -> 0.05195498639 | AD41: =AB41/G41-1 -> 0.04850076194 | AF41: 361738.9303 | AG41: =AF41/K41*1000 -> 1366.203045 | AH41: 0.007560894035 | AI41: 0.007560894035
A42: 02G | B42: NHS West Lancashire CCG | E42: 152486 | F42: 113598.5002 | G42: 1342.324059 | H42: -0.002428131765 | J42: 152778.3092 | K42: 113720.625 | L42: 1343.452951 | M42: 0.001075056058 | O42: -0.001913290181 | P42: -0.0008402910171 | Q42: 0.04962719628 | R42: 0.0485 | S42: 160053.4527 | T42: 0 | U42: 0.04962719628 | V42: 0.0485 | W42: 160053.4527 | X42: 0.04962719628 | Y42: 0.0485 | Z42: 160053.4527 | AA42: 160053 | AB42: 1407.422796 | AC42: 0.0496242278 | AD42: 0.04849703471 | AF42: 161421.6271 | AG42: 1419.457791 | AH42: -0.008478585697 | AI42: -0.008478585697
A43: 02H | B43: NHS Wigan Borough CCG | E43: 465116 | F43: 327903.6691 | G43: 1418.453174 | H43: -0.00466034774 | J43: 467679.442 | K43: 328789.4375 | L43: 1422.428426 | M43: 0.002701306866 | O43: -0.005481194562 | P43: -0.002794694085 | Q43: 0.05133232025 | R43: 0.0485 | S43: 488991.4835 | T43: 0 | U43: 0.05133232025 | V43: 0.0485 | W43: 488991.4835 | X43: 0.05133232025 | Y43: 0.0485 | Z43: 488991.4835 | AA43: 488991 | AB43: 1487.246682 | AC43: 0.0513312808 | AD43: 0.04849896335 | AF43: 494138.0545 | AG43: 1502.901243 | AH43: -0.01041622763 | AI43: -0.01041622763
A44: 02M | B44: NHS Fylde & Wyre CCG | E44: 262418 | F44: 177596.6686 | G44: 1477.606545 | H44: 0.02025062104 | J44: 257299.4202 | K44: 178249.3125 | L44: 1443.480576 | M44: 0.003674865553 | O44: 0.01989347587 | P44: 0.02364144727 | Q44: 0.05235309653 | R44: 0.0485 | S44: 276156.3949 | T44: 0 | U44: 0.05235309653 | V44: 0.0485 | W44: 276156.3949 | X44: 0.05235309653 | Y44: 0.0485 | Z44: 276156.3949 | AA44: 276156 | AB44: 1549.268248 | AC44: 0.05235159174 | AD44: 0.04849850071 | AF44: 271855.9412 | AG44: 1525.144403 | AH44: 0.0158174169 | AI44: 0.0158174169
A45: 02N | B45: NHS Airedale, Wharfedale and Craven CCG | E45: 210393 | F45: 159178.1672 | G45: 1321.745335 | H45: -0.002235184174 | J45: 210566.4758 | K45: 159702.5 | L45: 1318.492045 | M45: 0.003293999251 | O45: -0.0008238527907 | P45: 0.00246743269 | Q45: 0.05195375821 | R45: 0.0485 | S45: 221323.7071 | T45: 0 | U45: 0.05195375821 | V45: 0.0485 | W45: 221323.7071 | X45: 0.05195375821 | Y45: 0.0485 | Z45: 221323.7071 | AA45: 221324 | AB45: 1385.851818 | AC45: 0.0519551506 | AD45: 0.04850138781 | AF45: 222479.1157 | AG45: 1393.08474 | AH45: -0.005192018424 | AI45: -0.005192018424
A46: 02P | B46: NHS Barnsley CCG | E46: 377400 | F46: 260349.6661 | G46: 1449.588954 | H46: 0.04356999294 | J46: 362546.0132 | K46: 262230.9375 | L46: 1382.544778 | M46: 0.007225941372 | O46: 0.04097131476 | P46: 0.04849331245 | Q46: 0.05607639953 | R46: 0.0485 | S46: 398563.2332 | T46: 0 | U46: 0.05607639953 | V46: 0.0485 | W46: 398563.2332 | X46: 0.05607639953 | Y46: 0.0485 | Z46: 398563.2332 | AA46: 398563 | AB46: 1519.893129 | AC46: 0.05607578166 | AD46: 0.04849938657 | AF46: 383056.781 | AG46: 1460.761208 | AH46: 0.04048021013 | AI46: 0.04048021013
A47: 02Q | B47: NHS Bassetlaw CCG | E47: 159734 | F47: 117382.667 | G47: 1360.797161 | H47: 0.005252535759 | J47: 159300.7508 | K47: 117732.3672 | L47: 1353.075239 | M47: 0.002979146788 | O47: 0.002719693126 | P47: 0.005706942279 | Q47: 0.05162363541 | R47: 0.0485 | S47: 167980.0498 | T47: 0 | U47: 0.05162363541 | V47: 0.0485 | W47: 167980.0498 | X47: 0.05162363541 | Y47: 0.0485 | Z47: 167980.0498 | AA47: 167980 | AB47: 1426.795401 | AC47: 0.05162332378 | AD47: 0.04849968929 | AF47: 168313.0709 | AG47: 1429.624452 | AH47: -0.001978877372 | AI47: -0.001978877372
A48: 02R | B48: NHS Bradford Districts CCG | E48: 440257 | F48: 333179.2496 | G48: 1321.38181 | H48: 0.001686702777 | J48: 438142.5507 | K48: 334130.3125 | L48: 1311.292434 | M48: 0.002854508098 | O48: 0.004825939222 | P48: 0.007694223003 | Q48: 0.05149295174 | R48: 0.0485 | S48: 462927.1325 | T48: 0 | U48: 0.05149295174 | V48: 0.0485 | W48: 462927.1325 | X48: 0.05149295174 | Y48: 0.0485 | Z48: 462927.1325 | AA48: 462927 | AB48: 1385.468432 | AC48: 0.05149265088 | AD48: 0.0484997 | AF48: 462930.1357 | AG48: 1385.477816 | AH48: -6.773647806e-06 | AI48: -6.773647806e-06
A49: 02T | B49: NHS Calderdale CCG | E49: 285433 | F49: 220614.665 | G49: 1293.807916 | H49: 0.03711062527 | J49: 274899.2814 | K49: 221396.0625 | L49: 1241.66292 | M49: 0.003541910781 | O49: 0.03831846525 | P49: 0.04199609661 | Q49: 0.05221369345 | R49: 0.0485 | S49: 300336.5112 | T49: 0 | U49: 0.05221369345 | V49: 0.0485 | W49: 300336.5112 | X49: 0.05221369345 | Y49: 0.0485 | Z49: 300336.5112 | AA49: 300337 | AB49: 1356.559808 | AC49: 0.05221540607 | AD49: 0.04850170657 | AF49: 290451.5014 | AG49: 1311.909065 | AH49: 0.03403493721 | AI49: 0.03403493721
A50: 02W | B50: NHS Bradford City CCG | E50: 146694 | F50: 140422.67 | G50: 1044.660381 | H50: -0.124917894 | J50: 166504.4262 | K50: 140352.5781 | L50: 1186.32966 | M50: -0.000499149514 | O50: -0.1189783761 | P50: -0.1194181376 | Q50: 0.04797664173 | R50: 0.0485 | S50: 153731.8855 | T50: 1 | U50: 0.1394172007 | V50: 0.1399862242 | W50: 167145.6668 | X50: 0.1394172007 | Y50: 0.1399862242 | Z50: 167145.6668 | AA50: 167146 | AB50: 1190.900817 | AC50: 0.1394194718 | AD50: 0.1399884965 | AF50: 175924.2888 | AG50: 1253.445367 | AH50: -0.0498981062 | AI50: -0.0498981062
A51: 02X | B51: NHS Doncaster CCG | E51: 451568 | F51: 320731.4169 | G51: 1407.931921 | H51: 0.02978886677 | J51: 438036.6013 | K51: 321430.5625 | L51: 1362.772096 | M51: 0.002179847664 | O51: 0.03089102287 | P51: 0.03313820826 | Q51: 0.05078557028 | R51: 0.0485 | S51: 474501.1384 | T51: 0 | U51: 0.05078557028 | V51: 0.0485 | W51: 474501.1384 | X51: 0.05078557028 | Y51: 0.0485 | Z51: 474501.1384 | AA51: 474501 | AB51: 1476.216189 | AC51: 0.05078526379 | AD51: 0.04849969418 | AF51: 462818.1924 | AG51: 1439.869902 | AH51: 0.025242758 | AI51: 0.025242758
A52: 02Y | B52: NHS East Riding of Yorkshire CCG | E52: 391829 | F52: 304284.9979 | G52: 1287.703971 | H52: -0.01942016809 | J52: 400304.9779 | K52: 304863.6562 | L52: 1313.062314 | M52: 0.001901698504 | O52: -0.021173801 | P52: -0.01931236868 | Q52: 0.05049393088 | R52: 0.0485 | S52: 411613.9864 | T52: 0 | U52: 0.05049393088 | V52: 0.0485 | W52: 411613.9864 | X52: 0.05049393088 | Y52: 0.0485 | Z52: 411613.9864 | AA52: 411614 | AB52: 1350.157658 | AC52: 0.05049396548 | AD52: 0.04850003453 | AF52: 422951.9308 | AG52: 1387.347826 | AH52: -0.02680666516 | AI52: -0.02680666516
A53: 03A | B53: NHS Greater Huddersfield CCG | E53: 302580 | F53: 248802.7496 | G53: 1216.144116 | H53: 0.02138882336 | J53: 296026.7441 | K53: 249965.9375 | L53: 1184.268333 | M53: 0.004675140721 | O53: 0.02213737781 | P53: 0.02691601389 | Q53: 0.05340188505 | R53: 0.0485 | S53: 318738.3424 | T53: 0 | U53: 0.05340188505 | V53: 0.0485 | W53: 318738.3424 | X53: 0.05340188505 | Y53: 0.0485 | Z53: 318738.3424 | AA53: 318738 | AB53: 1275.125736 | AC53: 0.05340075352 | AD53: 0.04849887374 | AF53: 312774.2344 | AG53: 1251.267423 | AH53: 0.01906731748 | AI53: 0.01906731748
A54: 03D | B54: NHS Hambleton, Richmondshire and Whitby CCG | E54: 188560 | F54: 144071.9993 | G54: 1308.790056 | H54: 0.04348749132 | J54: 180917.6571 | K54: 144023.375 | L54: 1256.168709 | M54: -0.0003374997767 | O54: 0.04224210623 | P54: 0.04189034975 | Q54: 0.04814613148 | R54: 0.0485 | S54: 197638.4346 | T54: 0 | U54: 0.04814613148 | V54: 0.0485 | W54: 197638.4346 | X54: 0.04814613148 | Y54: 0.0485 | Z54: 197638.4346 | AA54: 197638 | AB54: 1372.263357 | AC54: 0.0481438269 | AD54: 0.04849769464 | AF54: 191152.9374 | AG54: 1327.235509 | AH54: 0.03392604211 | AI54: 0.03392604211
A55: 03E | B55: NHS Harrogate and Rural District CCG | E55: 197242 | F55: 163132.0811 | G55: 1209.093875 | H55: 0.02932237472 | J55: 191910.6157 | K55: 163245.0625 | L55: 1175.598286 | M55: 0.0006925764974 | O55: 0.02778055952 | P55: 0.02849237618 | Q55: 0.04922616646 | R55: 0.0485 | S55: 206951.4675 | T55: 0 | U55: 0.04922616646 | V55: 0.0485 | W55: 206951.4675 | X55: 0.04922616646 | Y55: 0.0485 | Z55: 206951.4675 | AA55: 206951 | AB55: 1267.732064 | AC55: 0.04922379615 | AD55: 0.04849763133 | AF55: 202767.8144 | AG55: 1242.106875 | AH55: 0.02063042228 | AI55: 0.02063042228
A56: 03F | B56: NHS Hull CCG | E56: 401011 | F56: 299081.3347 | G56: 1340.809183 | H56: -0.01007356061 | J56: 403523.1786 | K56: 299668.0312 | L56: 1346.567323 | M56: 0.001961662249 | O56: -0.006225611748 | P56: -0.004276162047 | Q56: 0.05055680287 | R56: 0.0485 | S56: 421284.8341 | T56: 0 | U56: 0.05055680287 | V56: 0.0485 | W56: 421284.8341 | X56: 0.05055680287 | Y56: 0.0485 | Z56: 421284.8341 | AA56: 421285 | AB56: 1405.838982 | AC56: 0.05055721663 | AD56: 0.04850041296 | AF56: 426352.1988 | AG56: 1422.748356 | AH56: -0.01188500677 | AI56: -0.01188500677
A57: 03H | B57: NHS North East Lincolnshire CCG | E57: 229990 | F57: 169648.7517 | G57: 1355.68342 | H57: 0.003752434782 | J57: 228499.9241 | K57: 169562.0781 | L57: 1347.588603 | M57: -0.0005109002165 | O57: 0.006521122225 | P57: 0.006006890366 | Q57: 0.04796432112 | R57: 0.0485 | S57: 241021.3142 | T57: 0 | U57: 0.04796432112 | V57: 0.0485 | W57: 241021.3142 | X57: 0.04796432112 | Y57: 0.0485 | Z57: 241021.3142 | AA57: 241021 | AB57: 1421.432213 | AC57: 0.04796295491 | AD57: 0.04849863309 | AF57: 241427.1353 | AG57: 1423.827415 | AH57: -0.001682227206 | AI57: -0.001682227206
A58: 03J | B58: NHS North Kirklees CCG | E58: 247568 | F58: 193733.751 | G58: 1277.877493 | H58: 0.02887240867 | J58: 240547.7975 | K58: 194611.9688 | L58: 1236.038046 | M58: 0.004533116838 | O58: 0.02918423091 | P58: 0.03384964328 | Q58: 0.053252973 | R58: 0.0485 | S58: 260751.732 | T58: 0 | U58: 0.053252973 | V58: 0.0485 | W58: 260751.732 | X58: 0.053252973 | Y58: 0.0485 | Z58: 260751.732 | AA58: 260752 | AB58: 1339.855928 | AC58: 0.05325405545 | AD58: 0.04850107756 | AF58: 254156.6081 | AG58: 1305.965968 | AH58: 0.02595010972 | AI58: 0.02595010972
A59: 03K | B59: NHS North Lincolnshire CCG | E59: 230808 | F59: 177178.165 | G59: 1302.688737 | H59: 0.005980998877 | J59: 229740.9229 | K59: 177652.9844 | L59: 1293.20047 | M59: 0.002679897581 | O59: 0.004644697518 | P59: 0.007337042413 | Q59: 0.05130987261 | R59: 0.0485 | S59: 242650.7291 | T59: 0 | U59: 0.05130987261 | V59: 0.0485 | W59: 242650.7291 | X59: 0.05130987261 | Y59: 0.0485 | Z59: 242650.7291 | AA59: 242651 | AB59: 1365.870666 | AC59: 0.05131104641 | AD59: 0.04850117066 | AF59: 242738.3427 | AG59: 1366.362313 | AH59: -0.0003598224672 | AI59: -0.0003598224672
A60: 03L | B60: NHS Rotherham CCG | E60: 363751 | F60: 263162.8309 | G60: 1382.227873 | H60: 0.03395958641 | J60: 351736.9628 | K60: 263993.0938 | L60: 1332.371835 | M60: 0.003154939527 | O60: 0.03415631142 | P60: 0.03741901205 | Q60: 0.05180795409 | R60: 0.0485 | S60: 382596.1951 | T60: 0 | U60: 0.05180795409 | V60: 0.0485 | W60: 382596.1951 | X60: 0.05180795409 | Y60: 0.0485 | Z60: 382596.1951 | AA60: 382596 | AB60: 1449.265186 | AC60: 0.05180741771 | AD60: 0.0484994653 | AF60: 371636.2167 | AG60: 1407.749769 | AH60: 0.02949062229 | AI60: 0.02949062229
A61: 03M | B61: NHS Scarborough and Ryedale CCG | E61: 163900 | F61: 120479.5811 | G61: 1360.396497 | H61: -0.01640759763 | J61: 166276.5121 | K61: 120626.7188 | L61: 1378.438491 | M61: 0.001221266658 | O61: -0.01429253067 | P61: -0.013088719 | Q61: 0.04978049809 | R61: 0.0485 | S61: 172059.0236 | T61: 0 | U61: 0.04978049809 | V61: 0.0485 | W61: 172059.0236 | X61: 0.04978049809 | Y61: 0.0485 | Z61: 172059.0236 | AA61: 172059 | AB61: 1426.375531 | AC61: 0.04978035387 | AD61: 0.04849985596 | AF61: 175683.4807 | AG61: 1456.422611 | AH61: -0.02063074266 | AI61: -0.02063074266
A62: 03N | B62: NHS Sheffield CCG | E62: 765498 | F62: 601173.1586 | G62: 1273.340283 | H62: 0.05318277981 | J62: 727009.4527 | K62: 604647.125 | L62: 1202.369816 | M62: 0.005778645272 | O62: 0.05294091731 | P62: 0.05902548936 | Q62: 0.0521156354 | R62: 0.04607076352 | S62: 805392.4147 | T62: 0 | U62: 0.0521156354 | V62: 0.04607076352 | W62: 805392.4147 | X62: 0.0521156354 | Y62: 0.04607076352 | Z62: 805392.4147 | AA62: 805392 | AB62: 1332.003357 | AC62: 0.0521150937 | AD62: 0.04607022494 | AF62: 768139.4653 | AG62: 1270.392984 | AH62: 0.0484970977 | AI62: 0.0484970977
A63: 03Q | B63: NHS Vale of York CCG | E63: 412306 | F63: 357151.7429 | G63: 1154.428078 | H63: 0.0251556498 | J63: 402287.7797 | K63: 358916.4375 | L63: 1120.839665 | M63: 0.004941021891 | O63: 0.02490311869 | P63: 0.02996718743 | Q63: 0.05368066145 | R63: 0.0485 | S63: 434438.8588 | T63: 0 | U63: 0.05368066145 | V63: 0.0485 | W63: 434438.8588 | X63: 0.05368066145 | Y63: 0.0485 | Z63: 434438.8588 | AA63: 434439 | AB63: 1210.418233 | AC63: 0.05368100391 | AD63: 0.04850034078 | AF63: 425046.908 | AG63: 1184.250326 | AH63: 0.02209660107 | AI63: 0.02209660107
A64: 03R | B64: NHS Wakefield CCG | E64: 511130 | F64: 373747.3367 | G64: 1367.581652 | H64: 0.00153976489 | J64: 510868.2739 | K64: 375745.5312 | L64: 1359.612374 | M64: 0.005346378112 | O64: 0.0005123162176 | P64: 0.005861433366 | Q64: 0.05410567745 | R64: 0.0485 | S64: 538785.0349 | T64: 0 | U64: 0.05410567745 | V64: 0.0485 | W64: 538785.0349 | X64: 0.05410567745 | Y64: 0.0485 | Z64: 538785.0349 | AA64: 538785 | AB64: 1433.909269 | AC64: 0.05410560914 | AD64: 0.04849993205 | AF64: 539770.262 | AG64: 1436.531421 | AH64: -0.001825335831 | AI64: -0.001825335831
A65: 03T | B65: NHS Lincolnshire East CCG | E65: 349546 | F65: 250451.3348 | G65: 1395.664352 | H65: -0.02546919757 | J65: 359217.5747 | K65: 251486.8125 | L65: 1428.375393 | M65: 0.004134446565 | O65: -0.02692400209 | P65: -0.02290087137 | Q65: 0.05283496722 | R65: 0.0485 | S65: 368014.2515 | T65: 0 | U65: 0.05283496722 | V65: 0.0485 | W65: 368014.2515 | X65: 0.05283496722 | Y65: 0.0485 | Z65: 368014.2515 | AA65: 368014 | AB65: 1463.353073 | AC65: 0.05283424785 | AD65: 0.04849928359 | AF65: 379540.0387 | AG65: 1509.184656 | AH65: -0.03036843941 | AI65: -0.03036843941
A66: 03V | B66: NHS Corby CCG | E66: 99744 | F66: 78638.08618 | G66: 1268.393025 | H66: 0.003836227192 | J66: 100349.3969 | K66: 79913.375 | L66: 1255.727178 | M66: 0.01621719043 | O66: -0.006032890036 | P66: 0.01008646386 | Q66: 0.06550372416 | R66: 0.0485 | S66: 106277.6035 | T66: 0 | U66: 0.06550372416 | V66: 0.0485 | W66: 106277.6035 | X66: 0.06550372416 | Y66: 0.0485 | Z66: 106277.6035 | AA66: 106278 | AB66: 1329.915049 | AC66: 0.06550769971 | AD66: 0.04850391211 | AF66: 106026.5885 | AG66: 1326.768998 | AH66: 0.00237121202 | AI66: 0.00237121202
A67: 03W | B67: NHS East Leicestershire and Rutland CCG | E67: 373495 | F67: 331537.5828 | G67: 1126.55403 | H67: -0.01190792176 | J67: 379273.6693 | K67: 333199 | L67: 1138.279735 | M67: 0.005011248335 | O67: -0.01523614686 | P67: -0.01030125064 | Q67: 0.05375429388 | R67: 0.0485 | S67: 393571.96 | T67: 0 | U67: 0.05375429388 | V67: 0.0485 | W67: 393571.96 | X67: 0.05375429388 | Y67: 0.0485 | Z67: 393571.96 | AA67: 393572 | AB67: 1181.19202 | AC67: 0.053754401 | AD67: 0.04850010658 | AF67: 400730.7917 | AG67: 1202.677054 | AH67: -0.0178643415 | AI67: -0.0178643415
A68: 04C | B68: NHS Leicester City CCG | E68: 448784 | F68: 406178.9177 | G68: 1104.892402 | H68: -0.00902838301 | J68: 453360.4428 | K68: 409607.5625 | L68: 1106.816583 | M68: 0.008441217998 | O68: -0.01009449085 | P68: -0.001738482651 | Q68: 0.05735061707 | R68: 0.0485 | S68: 474522.0393 | T68: 0 | U68: 0.05735061707 | V68: 0.0485 | W68: 474522.0393 | X68: 0.05735061707 | Y68: 0.0485 | Z68: 474522.0393 | AA68: 474522 | AB68: 1158.479587 | AC68: 0.05735052943 | AD68: 0.04849991309 | AF68: 479008.9687 | AG68: 1169.433899 | AH68: -0.009367191384 | AI68: -0.009367191384
A69: 04D | B69: NHS Lincolnshire West CCG | E69: 284590 | F69: 237516.3375 | G69: 1198.191261 | H69: -0.005718866074 | J69: 287099.7835 | K69: 238697.6562 | L69: 1202.77588 | M69: 0.004973631447 | O69: -0.008741850814 | P69: -0.003811698111 | Q69: 0.05371485257 | R69: 0.0485 | S69: 299876.7099 | T69: 0 | U69: 0.05371485257 | V69: 0.0485 | W69: 299876.7099 | X69: 0.05371485257 | Y69: 0.0485 | Z69: 299876.7099 | AA69: 299877 | AB69: 1256.304753 | AC69: 0.05371587196 | AD69: 0.04850101434 | AF69: 303342.2376 | AG69: 1270.82202 | AH69: -0.01142352504 | AI69: -0.01142352504
A70: 04E | B70: NHS Mansfield and Ashfield CCG | E70: 266873 | F70: 193960.417 | G70: 1375.914757 | H70: -0.003720848055 | J70: 268552.2071 | K70: 195172.625 | L70: 1375.972717 | M70: 0.006249770064 | O70: -0.006252814286 | P70: -4.212287263e-05 | Q70: 0.05505288391 | R70: 0.0485 | S70: 281565.1283 | T70: 0 | U70: 0.05505288391 | V70: 0.0485 | W70: 281565.1283 | X70: 0.05505288391 | Y70: 0.0485 | Z70: 281565.1283 | AA70: 281565 | AB70: 1442.645965 | AC70: 0.0550524032 | AD70: 0.04849952228 | AF70: 283745.3461 | AG70: 1453.817338 | AH70: -0.007684165052 | AI70: -0.007684165052
A71: 04F | B71: NHS Milton Keynes CCG | E71: 318035 | F71: 294316.6709 | G71: 1080.587787 | H71: -0.03441657559 | J71: 331169.0782 | K71: 297252.1875 | L71: 1114.1014 | M71: 0.009974007224 | O71: -0.03965973598 | P71: -0.03008129525 | Q71: 0.05895774657 | R71: 0.0485 | S71: 336785.6269 | T71: 0.2040680823 | U71: 0.06062187688 | V71: 0.05014769618 | W71: 337314.8786 | X71: 0.06062187688 | Y71: 0.05014769618 | Z71: 337314.8786 | AA71: 337315 | AB71: 1134.777183 | AC71: 0.06062225856 | AD71: 0.05014807408 | AF71: 349904.7196 | AG71: 1177.130848 | AH71: -0.03598042225 | AI71: -0.03598042225
A72: 04G | B72: NHS Nene CCG | E72: 800777 | F72: 685994.9172 | G72: 1167.32206 | H72: -0.004511214918 | J72: 808052.8376 | K72: 691032.875 | L72: 1169.340659 | M72: 0.007344016168 | O72: -0.009004160747 | P72: -0.00172627128 | Q72: 0.05620020095 | R72: 0.0485 | S72: 845780.8283 | T72: 0 | U72: 0.05620020095 | V72: 0.0485 | W72: 845780.8283 | X72: 0.05620020095 | Y72: 0.0485 | Z72: 845780.8283 | AA72: 845781 | AB72: 1223.937428 | AC72: 0.05620041535 | AD72: 0.04850021283 | AF72: 853767.8188 | AG72: 1235.495227 | AH72: -0.009354790134 | AI72: -0.009354790134
A73: 04H | B73: NHS Newark & Sherwood CCG | E73: 174059 | F73: 135028.0862 | G73: 1289.057743 | H73: -0.004637470361 | J73: 175719.5945 | K73: 136000.9688 | L73: 1292.046638 | M73: 0.007205038565 | O73: -0.009450252122 | P73: -0.002313302987 | Q73: 0.05605448294 | R73: 0.0485 | S73: 183815.7872 | T73: 0 | U73: 0.05605448294 | V73: =MAX(R73,NewMinGrowthPerHead(P73,$P$2,$L$1,$U$1,$T$2,AG73,G73,T73, $P$1)) -> 0.0485 | W73: 183815.7872 | X73: 0.05605448294 | Y73: 0.0485 | Z73: 183815.7872 | AA73: =IF(ROUND(Z73,0)/E73>$AA$1,ROUND(Z73,0),ROUNDUP(Z73,0)) -> 183816 | AB73: =AA73/K73*1000 -> 1351.578608 | AC73: =AA73/E73-1 -> 0.05605570525 | AD73: =AB73/G73-1 -> 0.04850121357 | AF73: 185660.7983 | AG73: =AF73/K73*1000 -> 1365.143204 | AH73: -0.009936390951 | AI73: -0.009936390951
A74: 04K | B74: NHS Nottingham City CCG | E74: 440153 | F74: 379334.0833 | G74: =E74/F74*1000 -> 1160.330746 | H74: -0.03371735358 | J74: 455062.709 | K74: 381504.375 | L74: =J74/K74*1000 -> 1192.811246 | M74: =K74/F74-1 -> 0.005721319974 | O74: =E74/J74-1 -> -0.0327640757 | P74: =G74/L74-1 -> -0.02723020948 | Q74: =(1+M74)*(1+R74)-1 -> 0.05449880399 | R74: =MinGrowthPerHead(P74,0,1,$Q$1,$Q$2,$R$1,$R$2) -> 0.0485 | S74: =(1+IF($S$2=1,Q74,0))*$E74 -> 464140.8121 | T74: =MinMaxRamp(P74,0,1,$P$2,$T$2) -> 0.08956664584 | U74: =(1+M74)*(1+V74)-1 -> 0.05522612481 | V74: 0.04922318325 | W74: =(1+IF($S$2=1,U74,0))*$E74 -> 464460.9445 | X74: =MAX(U74,$X$1) -> 0.05522612481 | Y74: =(1+X74)/(1+M74) - 1 -> 0.04922318325 | Z74: =(1+IF($Z$2=1,X74,0))*$E74 -> 464460.9445 | AA74: 464461 | AB74: 1217.446065 | AC74: 0.05522625087 | AD74: 0.0492233086 | AF74: 480807.5393 | AG74: 1260.293645 | AH74: =AA74/AF74-1 -> -0.03399809275 | AI74: -0.03399809275
A75: 04L | B75: NHS Nottingham North and East CCG | E75: 188912 | F75: 152471.7529 | G75: 1238.996708 | H75: -0.02694087302 | J75: 194703.4104 | K75: 153479.5469 | L75: 1268.59516 | M75: 0.006609709182 | O75: -0.02974478136 | P75: -0.02333167653 | Q75: 0.05543028008 | R75: 0.0485 | S75: 199383.4451 | T75: 0 | U75: 0.05543028008 | V75: 0.0485 | W75: 199383.4451 | X75: 0.05543028008 | Y75: 0.0485 | Z75: 199383.4451 | AA75: 199383 | AB75: 1299.085149 | AC75: 0.05542792411 | AD75: 0.04849765951 | AF75: 205718.6093 | AG75: 1340.364977 | AH75: -0.03079745335 | AI75: -0.03079745335
A76: 04M | B76: NHS Nottingham West CCG | E76: 119646 | F76: 94123.33276 | G76: 1271.161958 | H76: 0.02338773089 | J76: 117035.2733 | K76: 94623.32812 | L76: 1236.854332 | M76: 0.005312129805 | O76: 0.02230717805 | P76: 0.02773780648 | Q76: 0.0540697681 | R76: 0.0485 | S76: 126115.2315 | T76: 0 | U76: 0.0540697681 | V76: 0.0485 | W76: 126115.2315 | X76: 0.0540697681 | Y76: 0.0485 | Z76: 126115.2315 | AA76: 126115 | AB76: 1332.810867 | AC76: 0.05406783344 | AD76: 0.04849807556 | AF76: 123656.4558 | AG76: 1306.828435 | AH76: 0.01988205274 | AI76: 0.01988205274
A77: 04N | B77: NHS Rushcliffe CCG | E77: 146007 | F77: 127118.4194 | G77: 1148.59043 | H77: 0.02739526318 | J77: 142837.3625 | K77: 128001.9531 | L77: 1115.899867 | M77: 0.006950477321 | O77: 0.02219053515 | P77: 0.02929524728 | Q77: 0.05578757547 | R77: 0.0485 | S77: 154152.3765 | T77: 0 | U77: 0.05578757547 | V77: 0.0485 | W77: 154152.3765 | X77: 0.05578757547 | Y77: 0.0485 | Z77: 154152.3765 | AA77: 154152 | AB77: 1204.294124 | AC77: 0.05578499661 | AD77: 0.04849743894 | AF77: 150918.2788 | AG77: 1179.031062 | AH77: 0.02142696869 | AI77: 0.02142696869
A78: 04Q | B78: NHS South West Lincolnshire CCG | E78: 162736 | F78: 133650.3335 | G78: 1217.625095 | H78: 0.005129819048 | J78: 163052.9551 | K78: 134597.2812 | L78: 1211.413437 | M78: 0.007085262933 | O78: -0.001943878521 | P78: 0.005127611521 | Q78: 0.05592889819 | R78: 0.0485 | S78: 171837.6452 | T78: 0 | U78: 0.05592889819 | V78: 0.0485 | W78: 171837.6452 | X78: 0.05592889819 | Y78: 0.0485 | Z78: 171837.6452 | AA78: 171838 | AB78: 1276.682548 | AC78: 0.05593107856 | AD78: 0.04850216503 | AF78: 172277.5534 | AG78: 1279.948241 | AH78: -0.002551425576 | AI78: -0.002551425576
A79: 04V | B79: NHS West Leicestershire CCG | E79: 432082 | F79: 392938.0018 | G79: 1099.618764 | H79: -0.01702111529 | J79: 441758.2515 | K79: 396364.25 | L79: 1114.525973 | M79: 0.00871956429 | O79: -0.0219039519 | P79: -0.01337538053 | Q79: 0.05764246316 | R79: 0.0485 | S79: 456988.2708 | T79: 0 | U79: 0.05764246316 | V79: 0.0485 | W79: 456988.2708 | X79: 0.05764246316 | Y79: 0.0485 | Z79: 456988.2708 | AA79: 456988 | AB79: 1152.949591 | AC79: 0.0576418365 | AD79: 0.04849937876 | AF79: 466750.3921 | AG79: 1177.579441 | AH79: -0.02091565911 | AI79: -0.02091565911
A80: 04Y | B80: NHS Cannock Chase CCG | E80: 171331 | F80: 133195.4146 | G80: 1286.31305 | H80: -0.01917709788 | J80: 174887.9375 | K80: 133391.125 | L80: 1311.091255 | M80: 0.00146934825 | O80: -0.02033838107 | P80: -0.01889891698 | Q80: 0.05004061164 | R80: 0.0485 | S80: 179904.508 | T80: 0 | U80: 0.05004061164 | V80: 0.0485 | W80: 179904.508 | X80: 0.05004061164 | Y80: 0.0485 | Z80: 179904.508 | AA80: 179905 | AB80: 1348.702922 | AC80: 0.05004348308 | AD80: 0.04850286723 | AF80: 184782.091 | AG80: 1385.265256 | AH80: -0.02639374266 | AI80: -0.02639374266
A81: 05A | B81: NHS Coventry and Rugby CCG | E81: 603637 | F81: 514597.9202 | G81: 1173.026505 | H81: -0.01675144842 | J81: 616374.7005 | K81: 521674.4062 | L81: 1181.531417 | M81: 0.01375148586 | O81: -0.02066551488 | P81: -0.00719821056 | Q81: 0.06291843292 | R81: 0.0485 | S81: 641616.8941 | T81: 0 | U81: 0.06291843292 | V81: 0.0485 | W81: 641616.8941 | X81: 0.06291843292 | Y81: 0.0485 | Z81: 641616.8941 | AA81: 641617 | AB81: 1229.918494 | AC81: 0.06291860837 | AD81: 0.04850017307 | AF81: 651245.6353 | AG81: 1248.375668 | AH81: -0.0147849518 | AI81: -0.0147849518
A82: 05C | B82: NHS Dudley CCG | E82: 426906 | F82: 319480.2455 | G82: 1336.251634 | H82: -0.01256656288 | J82: 431123.9281 | K82: 320331.8125 | L82: 1345.866727 | M82: 0.002665476377 | O82: -0.009783562866 | P82: -0.007144164345 | Q82: 0.05129475198 | R82: 0.0485 | S82: 448804.0374 | T82: 0 | U82: 0.05129475198 | V82: 0.0485 | W82: 448804.0374 | X82: 0.05129475198 | Y82: 0.0485 | Z82: 448804.0374 | AA82: 448804 | AB82: 1401.059721 | AC82: 0.0512946644 | AD82: 0.04849991265 | AF82: 455514.4398 | AG82: 1422.008124 | AH82: -0.01473156331 | AI82: -0.01473156331
A83: 05D | B83: NHS East Staffordshire CCG | E83: 163143 | F83: 142069.916 | G83: 1148.328968 | H83: -0.04619328795 | J83: 171506.9146 | K83: 142623.875 | L83: 1202.511954 | M83: 0.003899199774 | O83: -0.04876721514 | P83: -0.04505816848 | Q83: 0.05258831096 | R83: 0.0485 | S83: 171722.4148 | T83: 0.805548935 | U83: 0.05911787351 | V83: 0.05500420137 | W83: 172787.6672 | X83: 0.05911787351 | Y83: 0.05500420137 | Z83: 172787.6672 | AA83: 172788 | AB83: 1211.494219 | AC83: 0.0591199132 | AD83: 0.05500623314 | AF83: 181209.7892 | AG83: 1270.543163 | AH83: -0.04647535462 | AI83: -0.04647535462
A84: 05F | B84: NHS Herefordshire CCG | E84: 239441 | F84: 187473.5002 | G84: 1277.199176 | H84: 0.006829469173 | J84: 238123.9648 | K84: 188340.4375 | L84: 1264.327342 | M84: 0.004624318929 | O84: 0.005530880475 | P84: 0.01018077596 | Q84: 0.0533485984 | R84: 0.0485 | S84: 252214.8417 | T84: 0 | U84: 0.0533485984 | V84: 0.0485 | W84: 252214.8417 | X84: 0.0533485984 | Y84: 0.0485 | Z84: 252214.8417 | AA84: 252215 | AB84: 1339.144176 | AC84: 0.05334925932 | AD84: 0.04850065788 | AF84: 251595.6489 | AG84: 1335.85571 | AH84: 0.002461692402 | AI84: 0.002461692402
A85: 05G | B85: NHS North Staffordshire CCG | E85: 289281 | F85: 218066.2522 | G85: 1326.573906 | H85: 0.03298280673 | J85: 280212.7272 | K85: 218799.0938 | L85: 1280.685045 | M85: 0.00336063717 | O85: 0.03236210183 | P85: 0.03583149628 | Q85: 0.05202362807 | R85: 0.0485 | S85: 304330.4472 | T85: 0 | U85: 0.05202362807 | V85: 0.0485 | W85: 304330.4472 | X85: 0.05202362807 | Y85: 0.0485 | Z85: 304330.4472 | AA85: 304330 | AB85: 1390.910697 | AC85: 0.05202208234 | AD85: 0.04849845944 | AF85: 296065.5513 | AG85: 1353.138837 | AH85: 0.02791425287 | AI85: 0.02791425287
A86: 05H | B86: NHS Warwickshire North CCG | E86: 238787 | F86: 191658.7515 | G86: 1245.896669 | H86: -0.01515823892 | J86: 242679.0282 | K86: 192349.4375 | L86: 1261.657072 | M86: 0.003603728136 | O86: -0.01603776081 | P86: -0.01249182841 | Q86: 0.05227850895 | R86: 0.0485 | S86: 251270.4283 | T86: 0 | U86: 0.05227850895 | V86: 0.0485 | W86: 251270.4283 | X86: 0.05227850895 | Y86: 0.0485 | Z86: 251270.4283 | AA86: 251270 | AB86: 1306.32043 | AC86: 0.05227671523 | AD86: 0.04849821272 | AF86: 256408.4116 | AG86: 1333.034372 | AH86: -0.02003994935 | AI86: -0.02003994935
A87: 05J | B87: NHS Redditch and Bromsgrove CCG | E87: 206246 | F87: 177842.7515 | G87: 1159.709903 | H87: -0.03944740652 | J87: 215299.6644 | K87: 178487.7656 | L87: 1206.243261 | M87: 0.00362687911 | O87: -0.04205145604 | P87: -0.03857709248 | Q87: 0.05230278275 | R87: 0.0485 | S87: 217033.2397 | T87: 0.5452647582 | U87: 0.05672135299 | V87: 0.05290260254 | W87: 217944.5522 | X87: 0.05672135299 | Y87: 0.05290260254 | Z87: 217944.5522 | AA87: 217945 | AB87: 1221.064084 | AC87: 0.05672352434 | AD87: 0.05290476603 | AF87: 227480.0808 | AG87: 1274.485565 | AH87: -0.04191611331 | AI87: -0.04191611331
A88: 05L | B88: NHS Sandwell and West Birmingham CCG | E88: 686134 | F88: 571256.6579 | G88: 1201.095848 | H88: -0.06102648492 | J88: 731602.4655 | K88: 575628.9375 | L88: 1270.96193 | M88: 0.007653791937 | O88: -0.06214914193 | P88: -0.05497102659 | Q88: 0.05652500085 | R88: 0.0485 | S88: 724917.7249 | T88: 1 | U88: 0.07037401927 | V88: 0.06224382604 | W88: 734420.0073 | X88: 0.07037401927 | Y88: 0.06224382604 | Z88: 734420.0073 | AA88: 734420 | AB88: 1275.856636 | AC88: 0.07037400858 | AD88: 0.06224381543 | AF88: 772992.3243 | AG88: 1342.865645 | AH88: -0.04990000949 | AI88: -0.04990000949
A89: 05N | B89: NHS Shropshire CCG | E89: 393547 | F89: 310001.5817 | G89: 1269.499974 | H89: -0.02387524 | J89: 405213.8714 | K89: 311223.875 | L89: 1302.001241 | M89: 0.003942861609 | O89: -0.02879188552 | P89: -0.02496254633 | Q89: 0.0526340904 | R89: 0.0485 | S89: 414260.9884 | T89: 0 | U89: 0.0526340904 | V89: 0.0485 | W89: 414260.9884 | X89: 0.0526340904 | Y89: 0.0485 | Z89: 414260.9884 | AA89: 414261 | AB89: 1331.070761 | AC89: 0.05263411994 | AD89: 0.04850002943 | AF89: 428138.5412 | AG89: 1375.660981 | AH89: -0.03241366955 | AI89: -0.03241366955
A90: 05Q | B90: NHS South East Staffordshire and Seisdon Peninsula CCG | E90: 258926 | F90: 217891.4995 | G90: 1188.325385 | H90: -0.05125298627 | J90: 273656.8706 | K90: 218123.3281 | L90: 1254.596988 | M90: 0.00106396376 | O90: -0.05382971217 | P90: -0.05282302127 | Q90: 0.049615566 | R90: 0.0485 | S90: 271772.76 | T90: 1 | U90: 0.06096249834 | V90: 0.05983487244 | W90: 274710.7758 | X90: 0.06096249834 | Y90: 0.05983487244 | Z90: 274710.7758 | AA90: 274711 | AB90: 1259.429711 | AC90: 0.06096336405 | AD90: 0.05983573723 | AF90: 289138.8021 | AG90: 1325.574869 | AH90: -0.04989922475 | AI90: -0.04989922475
A91: 05R | B91: NHS South Warwickshire CCG | E91: 335817 | F91: 287548.6646 | G91: 1167.861449 | H91: -0.01622427044 | J91: 341909.897 | K91: 288329.125 | L91: 1185.831979 | M91: 0.002714185403 | O91: -0.0178201832 | P91: -0.01515436507 | Q91: 0.0513458234 | R91: 0.0485 | S91: 353059.8004 | T91: 0 | U91: 0.0513458234 | V91: 0.0485 | W91: 353059.8004 | X91: 0.0513458234 | Y91: 0.0485 | Z91: 353059.8004 | AA91: 353060 | AB91: 1224.503421 | AC91: 0.05134641784 | AD91: 0.04850059284 | AF91: 361253.1921 | AG91: 1252.919531 | AH91: -0.02267991611 | AI91: -0.02267991611
A92: 05T | B92: NHS South Worcestershire CCG | E92: 354592 | F92: 311742.3354 | G92: 1137.452183 | H92: -0.06739067798 | J92: 382096.8788 | K92: 313593.1875 | L92: 1218.447639 | M92: 0.005937121271 | O92: -0.07198404467 | P92: -0.0664743014 | Q92: 0.05472507165 | R92: 0.0485 | S92: 373997.0726 | T92: 1 | U92: 0.0817176005 | V92: 0.07533321679 | W92: 383568.4074 | X92: 0.0817176005 | Y92: 0.07533321679 | Z92: 383568.4074 | AA92: 383568 | AB92: 1223.138816 | AC92: 0.08171645158 | AD92: 0.07533207465 | AF92: 403713.7221 | AG92: 1287.380397 | AH92: -0.04990100913 | AI92: -0.04990100913
A93: 05V | B93: NHS Stafford and Surrounds CCG | E93: 176506 | F93: 149033.4121 | G93: 1184.338448 | H93: -0.04212146189 | J93: 184603.367 | K93: 149500.5 | L93: 1234.801 | M93: 0.003134115257 | O93: -0.0438635931 | P93: -0.0408669514 | Q93: 0.05178611985 | R93: 0.0485 | S93: 185646.5609 | T93: 0.6372269638 | U93: 0.05694737341 | V93: 0.05364512814 | W93: 186557.5531 | X93: 0.05694737341 | Y93: 0.05364512814 | Z93: 186557.5531 | AA93: 186558 | AB93: 1247.875425 | AC93: 0.05694990539 | AD93: 0.0536476522 | AF93: 195047.1635 | AG93: 1304.658938 | AH93: -0.0435236451 | AI93: -0.0435236451
A94: 05W | B94: NHS Stoke on Trent CCG | E94: 397691 | F94: 291168.8324 | G94: 1365.843304 | H94: -0.003132343168 | J94: 398079.4777 | K94: 292240 | L94: 1362.166294 | M94: 0.003678853927 | O94: -0.0009758796397 | P94: 0.002699384169 | Q94: 0.05235727834 | R94: 0.0485 | S94: 418513.0184 | T94: 0 | U94: 0.05235727834 | V94: 0.0485 | W94: 418513.0184 | X94: 0.05235727834 | Y94: 0.0485 | Z94: 418513.0184 | AA94: 418513 | AB94: 1432.086641 | AC94: 0.05235723212 | AD94: 0.04849995395 | AF94: 420600.5245 | AG94: 1439.229827 | AH94: -0.004963199944 | AI94: -0.004963199944
A95: 05X | B95: NHS Telford and Wrekin CCG | E95: 216365 | F95: 186593.4155 | G95: 1159.553242 | H95: -0.04376434711 | J95: 227562.7863 | K95: 187726.6094 | L95: 1212.203145 | M95: 0.006073064499 | O95: -0.04920745826 | P95: -0.04343323383 | Q95: 0.05486760813 | R95: 0.0485 | S95: 228236.43 | T95: 0.7402905153 | U95: 0.06088119733 | V95: 0.05447728875 | W95: 229537.5603 | X95: 0.06088119733 | Y95: 0.05447728875 | Z95: 229537.5603 | AA95: 229538 | AB95: 1222.724902 | AC95: 0.06088322973 | AD95: 0.05447930887 | AF95: 240436.9797 | AG95: 1280.782626 | AH95: -0.04532988099 | AI95: -0.04532988099
A96: 05Y | B96: NHS Walsall CCG | E96: 389152 | F96: 285891.3344 | G96: 1361.188512 | H96: 0.02134968421 | J96: 380890.9997 | K96: 287643.6875 | L96: 1324.176459 | M96: 0.006129437793 | O96: 0.02168862039 | P96: 0.02795099723 | Q96: 0.05492671553 | R96: 0.0485 | S96: 410526.8412 | T96: 0 | U96: 0.05492671553 | V96: 0.0485 | W96: 410526.8412 | X96: 0.05492671553 | Y96: 0.0485 | Z96: 410526.8412 | AA96: 410527 | AB96: 1427.206707 | AC96: 0.05492712359 | AD96: 0.04850040558 | AF96: 402439.6213 | AG96: 1399.090746 | AH96: 0.02009588081 | AI96: 0.02009588081
A97: 06A | B97: NHS Wolverhampton CCG | E97: 360146 | F97: 280643.164 | G97: 1283.287983 | H97: -0.05093593837 | J97: 378885.3712 | K97: 282238.0625 | L97: 1342.431874 | M97: 0.005683012106 | O97: -0.04945921013 | P97: -0.04405727532 | Q97: 0.05445863819 | R97: 0.0485 | S97: 379759.0607 | T97: 0.7653524223 | U97: 0.06067340197 | V97: 0.05467964478 | W97: 381997.283 | X97: 0.06067340197 | Y97: 0.05467964478 | Z97: 381997.283 | AA97: 381997 | AB97: 1353.456712 | AC97: 0.06067261611 | AD97: 0.05467886336 | AF97: 400320.5259 | AG97: 1418.378947 | AH97: -0.04577213687 | AI97: -0.04577213687
A98: 06D | B98: NHS Wyre Forest CCG | E98: 143159 | F98: 116333.3347 | G98: 1230.593109 | H98: -0.06796402602 | J98: 154107.6197 | K98: 116725.7969 | L98: 1320.25331 | M98: 0.003373600174 | O98: -0.07104528439 | P98: -0.0679113626 | Q98: 0.05203721978 | R98: 0.0485 | S98: 150608.5963 | T98: 1 | U98: 0.08062446486 | V98: 0.0769911274 | W98: 154701.1178 | X98: 0.08062446486 | Y98: 0.0769911274 | Z98: 154701.1178 | AA98: 154701 | AB98: 1325.33685 | AC98: 0.08062364224 | AD98: 0.07699030756 | AF98: 162826.1423 | AG98: 1394.945647 | AH98: -0.04990072325 | AI98: -0.04990072325
A99: 06F | B99: NHS Bedfordshire CCG | E99: 568914 | F99: 480292.0828 | G99: 1184.516715 | H99: -0.001277124554 | J99: 572131.7477 | K99: 486320.9688 | L99: 1176.448857 | M99: 0.01255254084 | O99: -0.005624137697 | P99: 0.00685780593 | Q99: 0.06166133908 | R99: 0.0485 | S99: 603993.9991 | T99: 0 | U99: 0.06166133908 | V99: 0.0485 | W99: 603993.9991 | X99: 0.06166133908 | Y99: 0.0485 | Z99: 603993.9991 | AA99: 603994 | AB99: 1241.965777 | AC99: 0.06166134073 | AD99: 0.04850000163 | AF99: 604499.6708 | AG99: 1243.005565 | AH99: -0.0008365112165 | AI99: -0.0008365112165
A100: 06H | B100: NHS Cambridgeshire and Peterborough CCG | E100: 1033938 | F100: 967901.8398 | G100: 1068.226092 | H100: -0.03582070417 | J100: 1073863.868 | K100: 973472.4375 | L100: 1103.127143 | M100: 0.005755333329 | O100: -0.03717963661 | P100: -0.03163828448 | Q100: 0.054534467 | R100: 0.0485 | S100: 1090323.258 | T100: 0.2665977705 | U100: 0.05669943214 | V100: 0.05065257635 | W100: 1092561.697 | X100: 0.05669943214 | Y100: 0.05065257635 | Z100: 1092561.697 | AA100: 1092562 | AB100: 1122.334807 | AC100: 0.05669972474 | AD100: 0.05065286728 | AF100: 1134616.909 | AG100: 1165.53573 | AH100: -0.03706529333 | AI100: -0.03706529333
A101: 06K | B101: NHS East and North Hertfordshire CCG | E101: 734308 | F101: 598378.249 | G101: 1227.16359 | H101: 0.02414294233 | J101: 715335.0674 | K101: 603318.875 | L101: 1185.666647 | M101: 0.008256693758 | O101: 0.02652314059 | P101: 0.0349988278 | Q101: 0.05715714341 | R101: 0.0485 | S101: 776278.9477 | T101: 0 | U101: 0.05715714341 | V101: 0.0485 | W101: 776278.9477 | X101: 0.05715714341 | Y101: 0.0485 | Z101: 776278.9477 | AA101: 776279 | AB101: 1286.68111 | AC101: 0.05715721468 | AD101: 0.0485000707 | AF101: 755804.6105 | AG101: 1252.744845 | AH101: 0.02708952713 | AI101: 0.02708952713
A102: 06L | B102: NHS Ipswich and East Suffolk CCG | E102: 483608 | F102: 407773.1641 | G102: 1185.973091 | H102: -0.0278925859 | J102: 498903.4901 | K102: 409731.9062 | L102: 1217.633976 | M102: 0.004803509304 | O102: -0.0306582143 | P102: -0.02600197202 | Q102: 0.05353647951 | R102: 0.0485 | S102: 509498.6698 | T102: 0.04023983998 | U102: 0.05386294662 | V102: 0.04882490642 | W102: 509656.5519 | X102: 0.05386294662 | Y102: 0.04882490642 | Z102: 509656.5519 | AA102: 509657 | AB102: 1243.87921 | AC102: 0.05386387322 | AD102: 0.04882582859 | AF102: 527128.5796 | AG102: 1286.520702 | AH102: -0.03314481562 | AI102: -0.03314481562
A103: 06M | B103: NHS Great Yarmouth and Waveney CCG | E103: 331135 | F103: 239834.4198 | G103: 1380.681723 | H103: -0.01599212488 | J103: 336997.488 | K103: 240583.375 | L103: 1400.751353 | M103: 0.003122801318 | O103: -0.01739623635 | P103: -0.01432776002 | Q103: 0.05177425718 | R103: 0.0485 | S103: 348279.2687 | T103: 0 | U103: 0.05177425718 | V103: 0.0485 | W103: 348279.2687 | X103: 0.05177425718 | Y103: 0.0485 | Z103: 348279.2687 | AA103: 348279 | AB103: 1447.64367 | AC103: 0.05177344588 | AD103: 0.04849919122 | AF103: 356062.8672 | AG103: 1479.997806 | AH103: -0.021860935 | AI103: -0.021860935
A104: 06N | B104: NHS Herts Valleys CCG | E104: 778749 | F104: 646355.7542 | G104: 1204.830304 | H104: 0.02114386882 | J104: 759102.5545 | K104: 651355.75 | L104: 1165.419288 | M104: 0.007735671503 | O104: 0.0258811479 | P104: 0.03381702746 | Q104: 0.05661085157 | R104: 0.0485 | S104: 822834.644 | T104: 0 | U104: 0.05661085157 | V104: 0.0485 | W104: 822834.644 | X104: 0.05661085157 | Y104: 0.0485 | Z104: 822834.644 | AA104: 822835 | AB104: 1263.26512 | AC104: 0.05661130865 | AD104: 0.04850045357 | AF104: 802048.2102 | AG104: 1231.352007 | AH104: 0.02591713256 | AI104: 0.02591713256
A105: 06P | B105: NHS Luton CCG | E105: 278705 | F105: 234034.252 | G105: 1190.872694 | H105: -0.02917620899 | J105: 286556.9413 | K105: 236174.5938 | L105: 1213.326704 | M105: 0.009145421147 | O105: -0.02740098108 | P105: -0.01850615344 | Q105: 0.05808897407 | R105: 0.0485 | S105: 294894.6875 | T105: 0 | U105: 0.05808897407 | V105: =MAX(R105,NewMinGrowthPerHead(P105,$P$2,$L$1,$U$1,$T$2,AG105,G105,T105, $P$1)) -> 0.0485 | W105: 294894.6875 | X105: 0.05808897407 | Y105: 0.0485 | Z105: 294894.6875 | AA105: =IF(ROUND(Z105,0)/E105>$AA$1,ROUND(Z105,0),ROUNDUP(Z105,0)) -> 294895 | AB105: =AA105/K105*1000 -> 1248.631342 | AC105: =AA105/E105-1 -> 0.05809009526 | AD105: =AB105/G105-1 -> 0.04850111103 | AF105: 302768.6846 | AG105: =AF105/K105*1000 -> 1281.969749 | AH105: -0.02600561092 | AI105: -0.02600561092
A106: 06Q | B106: NHS Mid Essex CCG | E106: 462633 | F106: 391510.002 | G106: 1181.663298 | H106: 0.0008341218952 | J106: 461577.5529 | K106: 393605.25 | L106: 1172.691555 | M106: 0.005351710139 | O106: 0.002286608441 | P106: 0.007650555845 | Q106: 0.05411126808 | R106: 0.0485 | S106: 487666.6583 | T106: 0 | U106: 0.05411126808 | V106: 0.0485 | W106: 487666.6583 | X106: 0.05411126808 | Y106: 0.0485 | Z106: 487666.6583 | AA106: 487667 | AB106: 1238.974836 | AC106: 0.05411200671 | AD106: 0.0485007347 | AF106: 487690.9555 | AG106: 1239.035698 | AH106: -4.912030502e-05 | AI106: -4.912030502e-05
A107: 06T | B107: NHS North East Essex CCG | E107: 468503 | F107: 351813.5821 | G107: 1331.679684 | H107: -0.007875245465 | J107: 474073.7789 | K107: 355431.3125 | L107: 1333.798577 | M107: 0.01028308903 | O107: -0.01175086911 | P107: -0.001588615317 | Q107: 0.05928181885 | R107: 0.0485 | S107: 496276.71 | T107: 0 | U107: 0.05928181885 | V107: 0.0485 | W107: 496276.71 | X107: 0.05928181885 | Y107: 0.0485 | Z107: 496276.71 | AA107: 496277 | AB107: 1396.266965 | AC107: 0.05928243789 | AD107: 0.04850061274 | AF107: 500894.1462 | AG107: 1409.257228 | AH107: -0.009217808199 | AI107: -0.009217808199
A108: 06V | B108: NHS North Norfolk CCG | E108: 234054 | F108: 173764.1685 | G108: 1346.963543 | H108: -0.007458409139 | J108: 236613.5414 | K108: 174474.5469 | L108: 1356.149339 | M108: 0.00408817551 | O108: -0.01081739198 | P108: -0.006773439865 | Q108: 0.05278645202 | R108: 0.0485 | S108: 246408.8802 | T108: 0 | U108: 0.05278645202 | V108: 0.0485 | W108: 246408.8802 | X108: 0.05278645202 | Y108: 0.0485 | Z108: 246408.8802 | AA108: 246409 | AB108: 1412.291961 | AC108: 0.05278696369 | AD108: 0.04850050959 | AF108: 249999.7744 | AG108: 1432.872467 | AH108: -0.01436311075 | AI108: -0.01436311075
A109: 06W | B109: NHS Norwich CCG | E109: 264780 | F109: 235861.9206 | G109: 1122.605969 | H109: -0.007811765222 | J109: 267182.5169 | K109: 237093.5156 | L109: 1126.907736 | M109: 0.005221678224 | O109: -0.008992043888 | P109: -0.003817319223 | Q109: 0.05397492962 | R109: 0.0485 | S109: 279071.4819 | T109: 0 | U109: 0.05397492962 | V109: 0.0485 | W109: 279071.4819 | X109: 0.05397492962 | Y109: 0.0485 | Z109: 279071.4819 | AA109: 279071 | AB109: 1177.050327 | AC109: 0.05397310975 | AD109: 0.04849818959 | AF109: 282298.1667 | AG109: 1190.661693 | AH109: -0.01143176649 | AI109: -0.01143176649
A110: 06Y | B110: NHS South Norfolk CCG | E110: 262273 | F110: 228211.083 | G110: 1149.256191 | H110: -0.0323192546 | J110: 273264.516 | K110: 230298.2812 | L110: 1186.567761 | M110: 0.009145910946 | O110: -0.04022299042 | P110: -0.03144495536 | Q110: 0.05808948763 | R110: 0.0485 | S110: 277508.3042 | T110: 0.2588335486 | U110: 0.06019848764 | V110: 0.0505898861 | W110: 278061.4379 | X110: 0.06019848764 | Y110: 0.0505898861 | Z110: 278061.4379 | AA110: 278061 | AB110: 1207.395029 | AC110: 0.06019681782 | AD110: 0.05058823141 | AF110: 288724.2503 | AG110: 1253.696939 | AH110: -0.03693229898 | AI110: -0.03693229898
A111: 07G | B111: NHS Thurrock CCG | E111: 211670 | F111: 176522.333 | G111: 1199.111729 | H111: 0.01812893 | J111: 207645.7117 | K111: 178554.9375 | L111: 1162.923382 | M111: 0.01151471577 | O111: 0.01938055076 | P111: 0.03111842806 | Q111: 0.06057317949 | R111: 0.0485 | S111: 224491.5249 | T111: 0 | U111: 0.06057317949 | V111: 0.0485 | W111: 224491.5249 | X111: 0.06057317949 | Y111: 0.0485 | Z111: 224491.5249 | AA111: 224492 | AB111: 1257.271309 | AC111: 0.06057542401 | AD111: 0.04850221897 | AF111: 219393.1116 | AG111: 1228.714897 | AH111: 0.02324087733 | AI111: 0.02324087733
A112: 07H | B112: NHS West Essex CCG | E112: 393307 | F112: 313283.4155 | G112: 1255.435112 | H112: 0.006791635859 | J112: 389868.6507 | K112: 316014.2812 | L112: 1233.705797 | M112: 0.008716917613 | O112: 0.008819250512 | P112: 0.01761304481 | Q112: 0.05763968812 | R112: 0.0485 | S112: 415977.0928 | T112: 0 | U112: 0.05763968812 | V112: 0.0485 | W112: 415977.0928 | X112: 0.05763968812 | Y112: 0.0485 | Z112: 415977.0928 | AA112: 415977 | AB112: 1316.323422 | AC112: 0.05763945213 | AD112: 0.04849976605 | AF112: 411925.1762 | AG112: 1303.501774 | AH112: 0.009836310196 | AI112: 0.009836310196
A113: 07J | B113: NHS West Norfolk CCG | E113: 244323 | F113: 175842.082 | G113: 1389.445559 | H113: -0.03018078763 | J113: 252611.3111 | K113: 176762.8125 | L113: 1429.0976 | M113: 0.005236121286 | O113: -0.03281053022 | P113: -0.02774620885 | Q113: 0.05399007317 | R113: 0.0485 | S113: 257514.0166 | T113: 0.1102895119 | U113: 0.05488524076 | V113: 0.0493905048 | W113: 257732.7267 | X113: 0.05488524076 | Y113: 0.0493905048 | Z113: 257732.7267 | AA113: 257733 | AB113: 1458.072523 | AC113: 0.05488635945 | AD113: 0.04939161766 | AF113: 266902.6059 | AG113: 1509.947721 | AH113: -0.03435562506 | AI113: -0.03435562506
A114: 07K | B114: NHS West Suffolk CCG | E114: 307742 | F114: 250879.6626 | G114: 1226.651841 | H114: -0.01705536375 | J114: 314528.9658 | K114: 252258.1562 | L114: 1246.853503 | M114: 0.005494640889 | O114: -0.0215781899 | P114: -0.01620211342 | Q114: 0.05426113097 | R114: 0.0485 | S114: 324440.429 | T114: 0 | U114: 0.05426113097 | V114: 0.0485 | W114: 324440.429 | X114: 0.05426113097 | Y114: 0.0485 | Z114: 324440.429 | AA114: 324440 | AB114: 1286.142755 | AC114: 0.05425973705 | AD114: 0.0484986137 | AF114: 332323.2053 | AG114: 1317.393301 | AH114: -0.02372150106 | AI114: -0.02372150106
A115: 07L | B115: NHS Barking and Dagenham CCG | E115: 282613 | F115: 224031.6644 | G115: 1261.486856 | H115: 0.04185044585 | J115: 271906.5708 | K115: 227890.2969 | L115: 1193.146766 | M115: 0.01722360293 | O115: 0.03937539714 | P115: 0.05727718627 | Q115: 0.06456653656 | R115: 0.04654132434 | S115: 300860.3426 | T115: 0 | U115: 0.06456653656 | V115: 0.04654132434 | W115: 300860.3426 | X115: 0.06456653656 | Y115: 0.04654132434 | Z115: 300860.3426 | AA115: 300860 | AB115: 1320.196621 | AC115: 0.06456532431 | AD115: 0.04654013262 | AF115: 287289.4804 | AG115: 1260.648147 | AH115: 0.04723639583 | AI115: 0.04723639583
A116: 07M | B116: NHS Barnet CCG | E116: 495248 | F116: 423732.5726 | G116: 1168.774911 | H116: 0.01878074076 | J116: 485569.2614 | K116: 428645.75 | L116: 1132.798497 | M116: 0.01159499577 | O116: 0.0199327662 | P116: 0.03175888231 | Q116: 0.06065735307 | R116: 0.0485 | S116: 525288.4328 | T116: 0 | U116: 0.06065735307 | V116: 0.0485 | W116: 525288.4328 | X116: 0.06065735307 | Y116: 0.0485 | Z116: 525288.4328 | AA116: 525288 | AB116: 1225.459485 | AC116: 0.06065647918 | AD116: 0.04849913613 | AF116: 513039.977 | AG116: 1196.88572 | AH116: 0.02387342819 | AI116: 0.02387342819
A117: 07N | B117: NHS Bexley CCG | E117: 309132 | F117: 241442.5046 | G117: 1280.354511 | H117: 0.001270880319 | J117: 307629.762 | K117: 243943.6875 | L117: 1261.068754 | M117: 0.01035933116 | O117: 0.004883266275 | P117: 0.01529318481 | Q117: 0.05936175872 | R117: 0.0485 | S117: 327482.6192 | T117: 0 | U117: 0.05936175872 | V117: 0.0485 | W117: 327482.6192 | X117: 0.05936175872 | Y117: 0.0485 | Z117: 327482.6192 | AA117: 327483 | AB117: 1342.453266 | AC117: 0.05936299057 | AD117: 0.04850121922 | AF117: 325033.6842 | AG117: 1332.412769 | AH117: 0.007535575262 | AI117: 0.007535575262
A118: 07P | B118: NHS Brent CCG | E118: 427162 | F118: 381905.0813 | G118: 1118.503055 | H118: -0.0533884489 | J118: 449221.215 | K118: 383764.3438 | L118: 1170.565276 | M118: 0.00486838888 | O118: -0.04910546142 | P118: -0.04447613702 | Q118: 0.05360450574 | R118: 0.0485 | S118: 450059.8079 | T118: 0.7821741777 | U118: 0.05995071969 | V118: 0.0548154678 | W118: 452770.6693 | X118: 0.05995071969 | Y118: 0.0548154678 | Z118: 452770.6693 | AA118: 452771 | AB118: 1179.815184 | AC118: 0.05995149381 | AD118: 0.05481623817 | AF118: 474635.5672 | AG118: 1236.789126 | AH118: -0.04606601085 | AI118: -0.04606601085
A119: 07Q | B119: NHS Bromley CCG | E119: 440553 | F119: 349360.7507 | G119: 1261.026028 | H119: 0.01368058649 | J119: 432487.5958 | K119: 353043.375 | L119: 1225.0268 | M119: 0.01054103605 | O119: 0.01864886824 | P119: 0.02938648268 | Q119: 0.0595522763 | R119: 0.0485 | S119: 466788.934 | T119: 0 | U119: 0.0595522763 | V119: 0.0485 | W119: 466788.934 | X119: 0.0595522763 | Y119: 0.0485 | Z119: 466788.934 | AA119: 466789 | AB119: 1322.185978 | AC119: 0.05955242616 | AD119: 0.04850014829 | AF119: 456955.256 | AG119: 1294.331769 | AH119: 0.02152014629 | AI119: 0.02152014629
A120: 07R | B120: NHS Camden CCG | E120: 364048 | F120: 284025.7501 | G120: 1281.74294 | H120: 0.1185141469 | J120: 325528.942 | K120: 287746.6562 | L120: 1131.303996 | M120: 0.01310059439 | O120: 0.1183275987 | P120: 0.132978355 | Q120: 0.04860202596 | R120: 0.03504235588 | S120: 381741.4703 | T120: 0 | U120: 0.04860202596 | V120: 0.03504235588 | W120: 381741.4703 | X120: 0.04860202596 | Y120: 0.03504235588 | Z120: 381741.4703 | AA120: 381741 | AB120: 1326.656598 | AC120: 0.04860073397 | AD120: 0.0350410806 | AF120: 343945.4969 | AG120: 1195.306668 | AH120: 0.1098880592 | AI120: 0.1098880592
A121: 07T | B121: NHS City and Hackney CCG | E121: 395030 | F121: 319028.9971 | G121: 1238.226003 | H121: 0.03882286787 | J121: 381011.2328 | K121: 323519.0625 | L121: 1177.708757 | M121: 0.01407416064 | O121: 0.03679357971 | P121: 0.0513855791 | Q121: 0.06287857611 | R121: 0.04812706739 | S121: 419868.9239 | T121: 0 | U121: 0.06287857611 | V121: 0.04812706739 | W121: 419868.9239 | X121: 0.06287857611 | Y121: 0.04812706739 | Z121: 419868.9239 | AA121: 419869 | AB121: 1297.818425 | AC121: 0.0628787687 | AD121: 0.04812725731 | AF121: 402566.6566 | AG121: 1244.336743 | AH121: 0.04298007087 | AI121: 0.04298007087
A122: 07V | B122: NHS Croydon CCG | E122: 500697 | F122: 412238.4162 | G122: 1214.581127 | H122: -0.04008211506 | J122: 520367.6016 | K122: 415648.125 | L122: 1251.942617 | M122: 0.008271205854 | O122: -0.03780135714 | P122: -0.02984281409 | Q122: 0.05717235934 | R122: 0.0485 | S122: 529323.0288 | T122: 0.1944905258 | U122: 0.05875571276 | V122: 0.05007036462 | W122: 530115.8091 | X122: 0.05875571276 | Y122: 0.05007036462 | Z122: 530115.8091 | AA122: 530116 | AB122: 1275.396106 | AC122: 0.058756094 | AD122: 0.05007074273 | AF122: 549807.007 | AG122: 1322.770329 | AH122: -0.03581439799 | AI122: -0.03581439799
A123: 07W | B123: NHS Ealing CCG | E123: 497132 | F123: 437491.4159 | G123: 1136.32401 | H123: -0.02635452008 | J123: 507075.2804 | K123: 438184.875 | L123: 1157.217671 | M123: 0.001585080557 | O123: -0.01960908123 | P123: -0.01805508264 | Q123: 0.05016195696 | R123: 0.0485 | S123: 522069.114 | T123: 0 | U123: 0.05016195696 | V123: 0.0485 | W123: 522069.114 | X123: 0.05016195696 | Y123: 0.0485 | Z123: 522069.114 | AA123: 522069 | AB123: 1191.435464 | AC123: 0.05016172767 | AD123: 0.04849977107 | AF123: 535762.6827 | AG123: 1222.686389 | AH123: -0.02555923201 | AI123: -0.02555923201
A124: 07X | B124: NHS Enfield CCG | E124: 412335 | F124: 339923.5801 | G124: 1213.022644 | H124: -0.01659659453 | J124: 418245.6809 | K124: 343347.5625 | L124: 1218.140819 | M124: 0.01007280054 | O124: -0.01413207872 | P124: -0.004201627785 | Q124: 0.05906133137 | R124: 0.0485 | S124: 436688.0541 | T124: 0 | U124: 0.05906133137 | V124: 0.0485 | W124: 436688.0541 | X124: 0.05906133137 | Y124: 0.0485 | Z124: 436688.0541 | AA124: 436688 | AB124: 1271.854085 | AC124: 0.05906120024 | AD124: 0.04849987018 | AF124: 441907.6155 | AG124: 1287.056219 | AH124: -0.01181155363 | AI124: -0.01181155363
A125: 07Y | B125: NHS Hounslow CCG | E125: 350994 | F125: 316827.4174 | G125: 1107.839728 | H125: -0.02185812012 | J125: 357031.374 | K125: 318917.875 | L125: 1119.50882 | M125: 0.006598095574 | O125: -0.01690992582 | P125: -0.01042340355 | Q125: 0.05541810321 | R125: 0.0485 | S125: 370445.4217 | T125: 0 | U125: 0.05541810321 | V125: 0.0485 | W125: 370445.4217 | X125: 0.05541810321 | Y125: 0.0485 | Z125: 370445.4217 | AA125: 370445 | AB125: 1161.568633 | AC125: 0.05541690171 | AD125: 0.04849880638 | AF125: 377230.1553 | AG125: 1182.844189 | AH125: -0.0179867787 | AI125: -0.0179867787
A126: 08A | B126: NHS Greenwich CCG | E126: 378420 | F126: 296353.2482 | G126: 1276.92206 | H126: 0.02843418429 | J126: 368181.0871 | K126: 300540.5 | L126: 1225.063135 | M126: 0.01412925913 | O126: 0.02780944829 | P126: 0.04233163433 | Q126: 0.0633145282 | R126: 0.0485 | S126: 402379.4838 | T126: 0 | U126: 0.0633145282 | V126: 0.0485 | W126: 402379.4838 | X126: 0.0633145282 | Y126: 0.0485 | Z126: 402379.4838 | AA126: 402379 | AB126: 1338.85117 | AC126: 0.06331324983 | AD126: 0.04849873944 | AF126: 389010.655 | AG126: 1294.37016 | AH126: 0.03436498418 | AI126: 0.03436498418
A127: 08C | B127: NHS Hammersmith and Fulham CCG | E127: 265753 | F127: 239940.2433 | G127: 1107.579939 | H127: -0.03730412609 | J127: 272843.2266 | K127: 239545.8438 | L127: 1139.002132 | M127: -0.001643740669 | O127: -0.02598644911 | P127: -0.0275874748 | Q127: 0.04677653791 | R127: 0.0485 | S127: 278184.0053 | T127: 0.1039146505 | U127: 0.04761419135 | V127: 0.04933903259 | W127: 278406.6142 | X127: 0.04761419135 | Y127: 0.04933903259 | Z127: 278406.6142 | AA127: 278407 | AB127: 1162.228472 | AC127: 0.0476156431 | AD127: 0.04934048673 | AF127: 288279.1268 | AG127: 1203.44032 | AH127: -0.03424502818 | AI127: -0.03424502818
A128: 08D | B128: NHS Haringey CCG | E128: 364654 | F128: 318493.8382 | G128: 1144.932668 | H128: -0.04657810435 | J128: 382171.6032 | K128: 321680.5625 | L128: 1188.046925 | M128: 0.01000560733 | O128: -0.04583700886 | P128: -0.03629002864 | Q128: 0.05899087929 | R128: 0.0485 | S128: 386165.2601 | T128: 0.4534148048 | U128: 0.06268849294 | V128: 0.0521609833 | W128: 387513.6097 | X128: 0.06268849294 | Y128: 0.0521609833 | Z128: 387513.6097 | AA128: 387514 | AB128: 1204.654695 | AC128: 0.06268956326 | AD128: 0.05216204301 | AF128: 403792.674 | AG128: 1255.259786 | AH128: -0.04031443616 | AI128: -0.04031443616
A129: 08E | B129: NHS Harrow CCG | E129: 299899 | F129: 267267.6649 | G129: 1122.092342 | H129: -0.01349490335 | J129: 302246.9011 | K129: 268365.625 | L129: 1126.250432 | M129: 0.004108091727 | O129: -0.007768156211 | P129: -0.003691976783 | Q129: 0.05280733418 | R129: 0.0485 | S129: 315735.8667 | T129: 0 | U129: 0.05280733418 | V129: 0.0485 | W129: 315735.8667 | X129: 0.05280733418 | Y129: 0.0485 | Z129: 315735.8667 | AA129: 315736 | AB129: 1176.514317 | AC129: 0.05280777862 | AD129: 0.04850044263 | AF129: 319346.2921 | AG129: 1189.967203 | AH129: -0.0113052576 | AI129: -0.0113052576
A130: 08F | B130: NHS Havering CCG | E130: 368916 | F130: 278062.1665 | G130: 1326.739285 | H130: 0.007088261419 | J130: 365728.1621 | K130: 281514.6562 | L130: 1299.144304 | M130: 0.01241625134 | O130: 0.008716413487 | P130: 0.02124089 | Q130: 0.06151843952 | R130: 0.0485 | S130: 391611.1366 | T130: 0 | U130: 0.06151843952 | V130: 0.0485 | W130: 391611.1366 | X130: 0.06151843952 | Y130: 0.0485 | Z130: 391611.1366 | AA130: 391611 | AB130: 1391.085655 | AC130: 0.06151806915 | AD130: 0.04849963417 | AF130: 386418.9576 | AG130: 1372.642415 | AH130: 0.01343630344 | AI130: 0.01343630344
A131: 08G | B131: NHS Hillingdon CCG | E131: 366969 | F131: 312904.0027 | G131: 1172.784614 | H131: -0.02283745456 | J131: 375336.8258 | K131: 316898.25 | L131: 1184.408011 | M131: 0.01276508859 | O131: -0.02229417751 | P131: -0.009813676069 | Q131: 0.06188419539 | R131: 0.0485 | S131: 389678.5813 | T131: 0 | U131: 0.06188419539 | V131: 0.0485 | W131: 389678.5813 | X131: 0.06188419539 | Y131: 0.0485 | Z131: 389678.5813 | AA131: 389679 | AB131: 1229.665989 | AC131: 0.06188533636 | AD131: 0.0485011266 | AF131: 396571.2243 | AG131: 1251.415002 | AH131: -0.01737953697 | AI131: -0.01737953697
A132: 08H | B132: NHS Islington CCG | E132: 352245 | F132: 252448.0015 | G132: 1395.317047 | H132: 0.07385079041 | J132: 327567.9936 | K132: 255947.1875 | L132: 1279.826502 | M132: 0.01386101698 | O132: 0.07533399733 | P132: 0.09023922013 | Q132: 0.05205265245 | R132: 0.03766949792 | S132: 370580.2866 | T132: 0 | U132: 0.05205265245 | V132: 0.03766949792 | W132: 370580.2866 | X132: 0.05205265245 | Y132: 0.03766949792 | Z132: 370580.2866 | AA132: 370580 | AB132: 1447.87682 | AC132: 0.05205183892 | AD132: 0.03766869551 | AF132: 346099.9063 | AG132: 1352.231723 | AH132: 0.07073129234 | AI132: 0.07073129234
A133: 08J | B133: NHS Kingston CCG | E133: 234305 | F133: 209554.5002 | G133: 1118.110085 | H133: 0.08184641718 | J133: 216610.3107 | K133: 212189.8125 | L133: 1020.832754 | M133: 0.01257578493 | O133: 0.08168904469 | P133: 0.09529213347 | Q133: 0.04934189701 | R133: 0.03630949173 | S133: 245866.0532 | T133: 0 | U133: 0.04934189701 | V133: 0.03630949173 | W133: 245866.0532 | X133: 0.04934189701 | Y133: 0.03630949173 | Z133: 245866.0532 | AA133: 245866 | AB133: 1158.707843 | AC133: 0.04934167005 | AD133: 0.03630926758 | AF133: 228864.876 | AG133: 1078.585599 | AH133: 0.07428454881 | AI133: 0.07428454881
A134: 08K | B134: NHS Lambeth CCG | E134: 473154 | F134: 413713.3293 | G134: 1143.675986 | H134: -0.04166052675 | J134: 490459.7367 | K134: 416706.75 | L134: 1176.990142 | M134: 0.007235494827 | O134: -0.0352847246 | P134: -0.02830453221 | Q134: 0.05608641633 | R134: 0.0485 | S134: 499691.5122 | T134: 0.1327121371 | U134: 0.05716572015 | V134: 0.04957155062 | W134: 500202.1892 | X134: 0.05716572015 | Y134: 0.04957155062 | Z134: 500202.1892 | AA134: 500202 | AB134: 1200.369324 | AC134: 0.05716532038 | AD134: 0.04957115373 | AF134: 518207.1272 | AG134: 1243.577473 | AH134: -0.0347450397 | AI134: -0.0347450397
A135: 08L | B135: NHS Lewisham CCG | E135: 425399 | F135: 330341.7554 | G135: 1287.754252 | H135: 0.02091835899 | J135: 415915.1413 | K135: 334478.8438 | L135: 1243.472193 | M135: 0.01252366167 | O135: 0.02280238869 | P135: 0.03561161975 | Q135: 0.06163105926 | R135: 0.0485 | S135: 451616.791 | T135: 0 | U135: 0.06163105926 | V135: 0.0485 | W135: 451616.791 | X135: 0.06163105926 | Y135: 0.0485 | Z135: 451616.791 | AA135: 451617 | AB135: 1350.210958 | AC135: 0.06163155061 | AD135: 0.04850048528 | AF135: 439445.2274 | AG135: 1313.820696 | AH135: 0.02769804259 | AI135: 0.02769804259
A136: 08M | B136: NHS Newham CCG | E136: 442369 | F136: 400514.6649 | G136: 1104.50138 | H136: 0.001049819097 | J136: 443372.4543 | K136: 405949.8125 | L136: 1092.18539 | M136: 0.01357040837 | O136: -0.002263231109 | P136: 0.01127646429 | Q136: 0.06272857317 | R136: 0.0485 | S136: 470118.1762 | T136: 0 | U136: 0.06272857317 | V136: 0.0485 | W136: 470118.1762 | X136: 0.06272857317 | Y136: 0.0485 | Z136: 470118.1762 | AA136: 470118 | AB136: 1158.069263 | AC136: 0.06272817489 | AD136: 0.04849960705 | AF136: 468455.9172 | AG136: 1153.974957 | AH136: 0.003548002488 | AI136: 0.003548002488
A137: 08N | B137: NHS Redbridge CCG | E137: 358441 | F137: 320670.8375 | G137: 1117.784837 | H137: 0.001038675366 | J137: 358134.3161 | K137: 324502.875 | L137: 1103.639886 | M137: 0.01195006539 | O137: 0.000856337611 | P137: 0.01281663629 | Q137: 0.06102964356 | R137: 0.0485 | S137: 380316.5265 | T137: 0 | U137: 0.06102964356 | V137: =MAX(R137,NewMinGrowthPerHead(P137,$P$2,$L$1,$U$1,$T$2,AG137,G137,T137, $P$1)) -> 0.0485 | W137: 380316.5265 | X137: 0.06102964356 | Y137: 0.0485 | Z137: 380316.5265 | AA137: =IF(ROUND(Z137,0)/E137>$AA$1,ROUND(Z137,0),ROUNDUP(Z137,0)) -> 380317 | AB137: =AA137/K137*1000 -> 1171.998861 | AC137: =AA137/E137-1 -> 0.06103096465 | AD137: =AB137/G137-1 -> 0.04850130549 | AF137: 378395.4955 | AG137: =AF137/K137*1000 -> 1166.077482 | AH137: 0.005078032153 | AI137: 0.005078032153
A138: 08P | B138: NHS Richmond CCG | E138: 239039 | F138: 217734.1711 | G138: =E138/F138*1000 -> 1097.847888 | H138: 0.05339985733 | J138: 226313.4942 | K138: 219498.4375 | L138: =J138/K138*1000 -> 1031.048315 | M138: =K138/F138-1 -> 0.008102845539 | O138: =E138/J138-1 -> 0.05622954947 | P138: =G138/L138-1 -> 0.06478801437 | Q138: =(1+M138)*(1+R138)-1 -> 0.05298334561 | R138: =MinGrowthPerHead(P138,0,1,$Q$1,$Q$2,$R$1,$R$2) -> 0.04451976331 | S138: =(1+IF($S$2=1,Q138,0))*$E138 -> 251704.086 | T138: =MinMaxRamp(P138,0,1,$P$2,$T$2) -> 0 | U138: =(1+M138)*(1+V138)-1 -> 0.05298334561 | V138: 0.04451976331 | W138: =(1+IF($S$2=1,U138,0))*$E138 -> 251704.086 | X138: =MAX(U138,$X$1) -> 0.05298334561 | Y138: =(1+X138)/(1+M138) - 1 -> 0.04451976331 | Z138: =(1+IF($Z$2=1,X138,0))*$E138 -> 251704.086 | AA138: 251704 | AB138: 1146.723425 | AC138: 0.05298298604 | AD138: 0.04451940663 | AF138: 239117.0098 | AG138: 1089.379098 | AH138: =AA138/AF138-1 -> 0.05263945976 | AI138: 0.05263945976
A139: 08Q | B139: NHS Southwark CCG | E139: 414964 | F139: 330855.1648 | G139: 1254.216479 | H139: 0.01038205876 | J139: 409075.5608 | K139: 334416.6875 | L139: 1223.25104 | M139: 0.01076459756 | O139: 0.01439450255 | P139: 0.02531405114 | Q139: 0.05978668055 | R139: 0.0485 | S139: 439773.3201 | T139: 0 | U139: 0.05978668055 | V139: 0.0485 | W139: 439773.3201 | X139: 0.05978668055 | Y139: 0.0485 | Z139: 439773.3201 | AA139: 439773 | AB139: 1315.045021 | AC139: 0.05978590914 | AD139: 0.04849923681 | AF139: 432218.7028 | AG139: 1292.455547 | AH139: 0.01747795082 | AI139: 0.01747795082
A140: 08R | B140: NHS Merton CCG | E140: 256464 | F140: 225435.2542 | G140: 1137.639279 | H140: 0.04820134713 | J140: 243216.8046 | K140: 226818.9688 | L140: 1072.294817 | M140: 0.006137968992 | O140: 0.05446661219 | P140: 0.06093889556 | Q140: 0.05197335359 | R140: 0.04555576473 | S140: 269793.2942 | T140: 0 | U140: 0.05197335359 | V140: 0.04555576473 | W140: 269793.2942 | X140: 0.05197335359 | Y140: 0.04555576473 | Z140: 269793.2942 | AA140: 269793 | AB140: 1189.464009 | AC140: 0.05197220663 | AD140: 0.04555462476 | AF140: 256976.6123 | AG140: 1132.959089 | AH140: 0.04987375151 | AI140: 0.04987375151
A141: 08T | B141: NHS Sutton CCG | E141: 250855 | F141: 196403.9951 | G141: 1277.239803 | H141: 0.04407859259 | J141: 239522.3436 | K141: 198247.3125 | L141: 1208.1997 | M141: 0.009385335475 | O141: 0.04731356696 | P141: 0.05714295614 | Q141: 0.05639993326 | R141: 0.04657745277 | S141: 265003.2053 | T141: 0 | U141: 0.05639993326 | V141: 0.04657745277 | W141: 265003.2053 | X141: 0.05639993326 | Y141: 0.04657745277 | Z141: 265003.2053 | AA141: 265003 | AB141: 1336.729344 | AC141: 0.05639911503 | AD141: 0.04657664214 | AF141: 253073.1399 | AG141: 1276.552689 | AH141: 0.04713996962 | AI141: 0.04713996962
A142: 08V | B142: NHS Tower Hamlets CCG | E142: 377999 | F142: 324833.7494 | G142: 1163.66911 | H142: 0.06990604722 | J142: 356069.4509 | K142: 331104.6875 | L142: 1075.398399 | M142: 0.01930506951 | O142: 0.06158784213 | P142: 0.08208186921 | Q142: 0.05993973993 | R142: 0.03986507243 | S142: 400656.1618 | T142: 0 | U142: 0.05993973993 | V142: 0.03986507243 | W142: 400656.1618 | X142: 0.05993973993 | Y142: 0.03986507243 | Z142: 400656.1618 | AA142: 400656 | AB142: 1210.058375 | AC142: 0.05993931201 | AD142: 0.03986465261 | AF142: 376213.8121 | AG142: 1136.238254 | AH142: 0.06496887448 | AI142: 0.06496887448
A143: 08W | B143: NHS Waltham Forest CCG | E143: 355329 | F143: 311576.3333 | G143: 1140.423588 | H143: -0.05925697166 | J143: 376808.4564 | K143: 314321.0938 | L143: 1198.801047 | M143: 0.008809271256 | O143: -0.05700364745 | P143: -0.04869653679 | Q143: 0.05773652091 | R143: 0.0485 | S143: 375844.4602 | T143: 0.9516681442 | U143: 0.0654882154 | V143: 0.05618400401 | W143: 378598.8621 | X143: 0.0654882154 | Y143: 0.05618400401 | Z143: 378598.8621 | AA143: 378599 | AB143: 1204.49759 | AC143: 0.06548860352 | AD143: 0.05618438874 | AF143: 398126.1112 | AG143: 1266.622314 | AH143: -0.04904755222 | AI143: -0.04904755222
A144: 08X | B144: NHS Wandsworth CCG | E144: 432366 | F144: 403858.7606 | G144: 1070.587151 | H144: 0.04356176674 | J144: 411937.1042 | K144: 406574.1875 | L144: 1013.1905 | M144: 0.006723704343 | O144: 0.04959226937 | P144: 0.05664941747 | Q144: 0.05374806065 | R144: 0.04671029012 | S144: 455604.834 | T144: 0 | U144: 0.05374806065 | V144: 0.04671029012 | W144: 455604.834 | X144: 0.05374806065 | Y144: 0.04671029012 | Z144: 455604.834 | AA144: 455605 | AB144: 1120.594996 | AC144: 0.0537484446 | AD144: 0.04671067152 | AF144: 435242.1358 | AG144: 1070.51099 | AH144: 0.04678513987 | AI144: 0.04678513987
A145: 08Y | B145: NHS West London CCG | E145: 361958 | F145: 250220.5861 | G145: 1446.55564 | H145: 0.2098867418 | J145: 296710.5961 | K145: 250446.0938 | L145: 1184.728385 | M145: 0.0009012355617 | O145: 0.2199025068 | P145: 0.2210019263 | Q145: 0.03597517286 | R145: 0.03504235588 | S145: 374979.5016 | T145: 0 | U145: 0.03597517286 | V145: 0.03504235588 | W145: 374979.5016 | X145: 0.03597517286 | Y145: 0.03504235588 | Z145: 374979.5016 | AA145: 374980 | AB145: 1497.248347 | AC145: 0.03597654977 | AD145: 0.03504373155 | AF145: 313496.7748 | AG145: 1251.753502 | AH145: 0.1961207583 | AI145: 0.1961207583
A146: 09A | B146: NHS Central London (Westminster) CCG | E146: 271718 | F146: 229468.5806 | G146: 1184.118537 | H146: 0.07600002164 | J146: 251532.3351 | K146: 231308.875 | L146: 1087.430541 | M146: 0.008019810139 | O146: 0.08025077508 | P146: 0.0889141812 | Q146: 0.0463509085 | R146: 0.03802613597 | S146: 284312.3762 | T146: 0 | U146: 0.0463509085 | V146: 0.03802613597 | W146: 284312.3762 | X146: 0.0463509085 | Y146: 0.03802613597 | Z146: 284312.3762 | AA146: 284312 | AB146: 1229.144364 | AC146: 0.04634952414 | AD146: 0.03802476262 | AF146: 265762.5877 | AG146: 1148.951106 | AH146: 0.0697969284 | AI146: 0.0697969284
A147: 09C | B147: NHS Ashford CCG | E147: 149981 | F147: 133545.9155 | G147: 1123.06692 | H147: 0.002747786976 | J147: 150450.2843 | K147: 134913.2812 | L147: 1115.162888 | M147: 0.01023891879 | O147: -0.003119198519 | P147: 0.007087783055 | Q147: 0.05923550636 | R147: 0.0485 | S147: 158865.2005 | T147: 0 | U147: 0.05923550636 | V147: 0.0485 | W147: 158865.2005 | X147: 0.05923550636 | Y147: 0.0485 | Z147: 158865.2005 | AA147: 158865 | AB147: 1177.53418 | AC147: 0.05923416966 | AD147: 0.04849867685 | AF147: 158961.8959 | AG147: 1178.252389 | AH147: -0.0006095542875 | AI147: -0.0006095542875
A148: 09D | B148: NHS Brighton and Hove CCG | E148: 376110 | F148: 317709.1667 | G148: 1183.818534 | H148: 0.05297268385 | J148: 356599.6247 | K148: 319712.5625 | L148: 1115.375705 | M148: 0.006305753888 | O148: 0.05471227084 | P148: 0.06136302685 | Q148: 0.05203390606 | R148: 0.04544160857 | S148: 395680.4724 | T148: 0 | U148: 0.05203390606 | V148: 0.04544160857 | W148: 395680.4724 | X148: 0.05203390606 | Y148: 0.04544160857 | Z148: 395680.4724 | AA148: 395680 | AB148: 1237.611675 | AC148: 0.05203265002 | AD148: 0.04544036041 | AF148: 376773.9801 | AG148: 1178.477246 | AH148: 0.05017867705 | AI148: 0.05017867705
A149: 09E | B149: NHS Canterbury and Coastal CCG | E149: 269782 | F149: 225725.2512 | G149: 1195.178645 | H149: -0.0003945808175 | J149: 270859.709 | K149: 227708.875 | L149: 1189.50001 | M149: 0.008787779695 | O149: -0.003978845795 | P149: 0.00477396868 | Q149: 0.05771398701 | R149: 0.0485 | S149: 285352.1948 | T149: 0 | U149: 0.05771398701 | V149: 0.0485 | W149: 285352.1948 | X149: 0.05771398701 | Y149: 0.0485 | Z149: 285352.1948 | AA149: 285352 | AB149: 1253.143954 | AC149: 0.05771326478 | AD149: 0.04849928407 | AF149: 286183.3932 | AG149: 1256.795077 | AH149: -0.002905106357 | AI149: -0.002905106357
A150: 09F | B150: NHS Eastbourne, Hailsham and Seaford CCG | E150: 272746 | F150: 196420.0802 | G150: 1388.585116 | H150: 0.003210088417 | J150: 272931.5355 | K150: 198129.1094 | L150: 1377.543847 | M150: 0.008700888075 | O150: -0.0006797876875 | P150: 0.008015185631 | Q150: 0.05762288115 | R150: 0.0485 | S150: 288462.4103 | T150: 0 | U150: 0.05762288115 | V150: 0.0485 | W150: 288462.4103 | X150: 0.05762288115 | Y150: 0.0485 | Z150: 288462.4103 | AA150: 288462 | AB150: 1455.929424 | AC150: 0.05762137667 | AD150: 0.0484985085 | AF150: 288372.4317 | AG150: 1455.477353 | AH150: 0.0003105993785 | AI150: 0.0003105993785
A151: 09G | B151: NHS Coastal West Sussex CCG | E151: 711459 | F151: 515159.1699 | G151: 1381.046949 | H151: -0.009329185396 | J151: 716697.5658 | K151: 519346.125 | L151: 1379.999833 | M151: 0.008127497912 | O151: -0.007309311497 | P151: 0.0007587800016 | Q151: 0.05702168156 | R151: 0.0485 | S151: 752027.5885 | T151: 0 | U151: 0.05702168156 | V151: 0.0485 | W151: 752027.5885 | X151: 0.05702168156 | Y151: 0.0485 | Z151: 752027.5885 | AA151: 752028 | AB151: 1448.028519 | AC151: 0.05702225989 | AD151: 0.04850057367 | AF151: 757244.1911 | AG151: 1458.072285 | AH151: -0.00688838712 | AI151: -0.00688838712
A152: 09H | B152: NHS Crawley CCG | E152: 167432 | F152: 133480.7476 | G152: 1254.353179 | H152: 0.0541738428 | J152: 157920.6614 | K152: 134315.8281 | L152: 1175.741263 | M152: 0.006256187365 | O152: 0.06022858924 | P152: 0.06686157794 | Q152: 0.05049287743 | R152: 0.0439616577 | S152: 175886.1235 | T152: 0 | U152: 0.05049287743 | V152: 0.0439616577 | W152: 175886.1235 | X152: 0.05049287743 | Y152: 0.0439616577 | Z152: 175886.1235 | AA152: 175886 | AB152: 1309.495705 | AC152: 0.05049214009 | AD152: 0.04396092494 | AF152: 166854.9039 | AG152: 1242.25794 | AH152: 0.05412544596 | AI152: 0.05412544596
A153: 09J | B153: NHS Dartford, Gravesham and Swanley CCG | E153: 324530 | F153: 269110.2473 | G153: 1205.936984 | H153: -0.04368963401 | J153: 339744.9189 | K153: 271700.1875 | L153: 1250.440502 | M153: 0.009624086081 | O153: -0.04478335977 | P153: -0.03559027259 | Q153: 0.05859085426 | R153: 0.0485 | S153: 343544.4899 | T153: 0.4253121523 | U153: 0.06205797962 | V153: 0.05193407553 | W153: 344669.6761 | X153: 0.06205797962 | Y153: 0.05193407553 | Z153: 344669.6761 | AA153: 344670 | AB153: 1268.567398 | AC153: 0.0620589776 | AD153: 0.05193506399 | AF153: 358965.732 | AG153: 1321.183233 | AH153: -0.03982478199 | AI153: -0.03982478199
A154: 09L | B154: NHS East Surrey CCG | E154: 228123 | F154: 182620.4157 | G154: 1249.164827 | H154: 0.0207541072 | J154: 222867.8123 | K154: 183940.0312 | L154: 1211.633002 | M154: 0.007226002276 | O154: 0.02357984154 | P154: 0.03097623181 | Q154: 0.05607646339 | R154: 0.0485 | S154: 240915.3311 | T154: 0 | U154: 0.05607646339 | V154: 0.0485 | W154: 240915.3311 | X154: 0.05607646339 | Y154: 0.0485 | Z154: 240915.3311 | AA154: 240915 | AB154: 1309.747521 | AC154: 0.05607501216 | AD154: 0.04849855919 | AF154: 235476.391 | AG154: 1280.180227 | AH154: 0.02309619631 | AI154: 0.02309619631
A155: 09N | B155: NHS Guildford and Waverley CCG | E155: 255776 | F155: 225634.0859 | G155: 1133.587591 | H155: 0.01433588039 | J155: 250905.3279 | K155: 226834.0312 | L155: 1106.118542 | M155: 0.005318103014 | O155: 0.01941239008 | P155: 0.02483373019 | Q155: 0.05407603101 | R155: 0.0485 | S155: 269607.3509 | T155: 0 | U155: 0.05407603101 | V155: 0.0485 | W155: 269607.3509 | X155: 0.05407603101 | Y155: 0.0485 | Z155: 269607.3509 | AA155: 269607 | AB155: 1188.565043 | AC155: 0.05407465908 | AD155: 0.04849863532 | AF155: 265100.108 | AG155: 1168.696366 | AH155: 0.01700071738 | AI155: 0.01700071738
A156: 09P | B156: NHS Hastings and Rother CCG | E156: 279175 | F156: 188683.9995 | G156: 1479.590218 | H156: 0.0394967799 | J156: 268900.9654 | K156: 189923.25 | L156: 1415.840164 | M156: 0.00656786209 | O156: 0.03820750351 | P156: 0.04502630721 | Q156: 0.0553864034 | R156: 0.0485 | S156: 294637.4992 | T156: 0 | U156: 0.0553864034 | V156: 0.0485 | W156: 294637.4992 | X156: 0.0553864034 | Y156: 0.0485 | Z156: 294637.4992 | AA156: 294637 | AB156: 1551.347715 | AC156: 0.05538461538 | AD156: 0.04849822365 | AF156: 284113.8352 | AG156: 1495.940256 | AH156: 0.03703855125 | AI156: 0.03703855125
A157: 09W | B157: NHS Medway CCG | E157: 372883 | F157: 299528.0034 | G157: 1244.901965 | H157: 0.003021666395 | J157: 371197.6989 | K157: 302095.9375 | L157: 1228.741114 | M157: 0.008573268785 | O157: 0.004540171222 | P157: 0.01315236412 | Q157: 0.05748907232 | R157: 0.0485 | S157: 394319.6978 | T157: 0 | U157: 0.05748907232 | V157: 0.0485 | W157: 394319.6978 | X157: 0.05748907232 | Y157: 0.0485 | Z157: 394319.6978 | AA157: 394320 | AB157: 1305.280711 | AC157: 0.05748988289 | AD157: 0.04850080367 | AF157: 392197.9293 | AG157: 1298.256218 | AH157: 0.005410713599 | AI157: 0.005410713599
A158: 09X | B158: NHS Horsham and Mid Sussex CCG | E158: 273290 | F158: 240990.5884 | G158: 1134.027689 | H158: -0.01215341457 | J158: 277042.7709 | K158: 242897.75 | L158: 1140.57364 | M158: 0.007913842752 | O158: -0.01354581797 | P158: -0.005739174688 | Q158: 0.05679766413 | R158: 0.0485 | S158: 288812.2336 | T158: 0 | U158: 0.05679766413 | V158: 0.0485 | W158: 288812.2336 | X158: 0.05679766413 | Y158: 0.0485 | Z158: 288812.2336 | AA158: 288812 | AB158: 1189.02707 | AC158: 0.05679680925 | AD158: 0.04849915184 | AF158: 292716.2572 | AG158: 1205.100736 | AH158: -0.01333802651 | AI158: -0.01333802651
A159: 09Y | B159: NHS North West Surrey CCG | E159: 444077 | F159: 372157.2458 | G159: 1193.250985 | H159: 0.007511191661 | J159: 438951.3156 | K159: 374092.875 | L159: 1173.375236 | M159: 0.005201105805 | O159: 0.01167711368 | P159: 0.01693895339 | Q159: 0.05395335944 | R159: 0.0485 | S159: 468036.446 | T159: 0 | U159: 0.05395335944 | V159: 0.0485 | W159: 468036.446 | X159: 0.05395335944 | Y159: 0.0485 | Z159: 468036.446 | AA159: 468036 | AB159: 1251.122465 | AC159: 0.05395235511 | AD159: 0.04849900087 | AF159: 463784.6559 | AG159: 1239.758057 | AH159: 0.009166633796 | AI159: 0.009166633796
A160: 10A | B160: NHS South Kent Coast CCG | E160: 288100 | F160: 206477.2515 | G160: 1395.311096 | H160: 0.03048410233 | J160: 280189.2718 | K160: 207538.2344 | L160: 1350.060978 | M160: 0.005138497838 | O160: 0.0282335158 | P160: 0.0335170915 | Q160: 0.05388771498 | R160: 0.0485 | S160: 303625.0507 | T160: 0 | U160: 0.05388771498 | V160: 0.0485 | W160: 303625.0507 | X160: 0.05388771498 | Y160: 0.0485 | Z160: 303625.0507 | AA160: 303625 | AB160: 1462.98344 | AC160: 0.05388753905 | AD160: 0.04849982497 | AF160: 296040.7689 | AG160: 1426.439662 | AH160: 0.02561887367 | AI160: 0.02561887367
A161: 10C | B161: NHS Surrey Heath CCG | E161: 119357 | F161: 96804.16748 | G161: 1232.973777 | H161: 0.02769145333 | J161: 115832.854 | K161: 97135.19531 | L161: 1192.49108 | M161: 0.003419561788 | O161: 0.03042440817 | P161: 0.0339480081 | Q161: 0.05208541053 | R161: 0.0485 | S161: 125573.7583 | T161: 0 | U161: 0.05208541053 | V161: 0.0485 | W161: 125573.7583 | X161: 0.05208541053 | Y161: 0.0485 | Z161: 125573.7583 | AA161: 125574 | AB161: 1292.775493 | AC161: 0.05208743517 | AD161: 0.04850201774 | AF161: 122386.0105 | AG161: 1259.955365 | AH161: 0.02604864299 | AI161: 0.02604864299
A162: 10D | B162: NHS Swale CCG | E162: 148269 | F162: 113167.082 | G162: 1310.177813 | H162: 0.00148336983 | J162: 148358.6416 | K162: 114335.75 | L162: 1297.570022 | M162: 0.010326925 | O162: -0.0006042225766 | P162: 0.009716462663 | Q162: 0.05932778086 | R162: 0.0485 | S162: 157065.4707 | T162: 0 | U162: 0.05932778086 | V162: 0.0485 | W162: 157065.4707 | X162: 0.05932778086 | Y162: 0.0485 | Z162: 157065.4707 | AA162: 157065 | AB162: 1373.717319 | AC162: 0.05932460595 | AD162: 0.04849685754 | AF162: 156751.9201 | AG162: 1370.979069 | AH162: 0.001997295262 | AI162: 0.001997295262
A163: 10E | B163: NHS Thanet CCG | E163: 216154 | F163: 145493.915 | G163: 1485.656633 | H163: 0.01333732597 | J163: 213983.8601 | K163: 146794.5625 | L163: 1457.709716 | M163: 0.008939531668 | O163: 0.01014160569 | P163: 0.01917179856 | Q163: 0.05787309895 | R163: 0.0485 | S163: 228663.5018 | T163: 0 | U163: 0.05787309895 | V163: 0.0485 | W163: 228663.5018 | X163: 0.05787309895 | Y163: 0.0485 | Z163: 228663.5018 | AA163: 228664 | AB163: 1557.714374 | AC163: 0.05787540365 | AD163: 0.04850228427 | AF163: 226089.8359 | AG163: 1540.178546 | AH163: 0.01138558082 | AI163: 0.01138558082
A164: 10J | B164: NHS North Hampshire CCG | E164: 261334 | F164: 226201.3323 | G164: 1155.315919 | H164: -0.002739846999 | J164: 262785.2781 | K164: 227382.6875 | L164: 1155.696069 | M164: 0.005222582965 | O164: -0.005522676698 | P164: -0.0003289363701 | Q164: 0.05397587824 | R164: 0.0485 | S164: 275439.7322 | T164: 0 | U164: 0.05397587824 | V164: 0.0485 | W164: 275439.7322 | X164: 0.05397587824 | Y164: 0.0485 | Z164: 275439.7322 | AA164: 275440 | AB164: 1211.349919 | AC164: 0.05397690312 | AD164: 0.04850101956 | AF164: 277652.1575 | AG164: 1221.078704 | AH164: -0.007967369974 | AI164: -0.007967369974
A165: 10K | B165: NHS Fareham and Gosport CCG | E165: 246046 | F165: 204854.0034 | G165: 1201.079773 | H165: -0.04028261423 | J165: 256115.5919 | K165: 205878.6875 | L165: 1244.012166 | M165: 0.005002021268 | O165: -0.03931659059 | P165: -0.03451123175 | Q165: 0.0537446193 | R165: 0.0485 | S165: 259269.6486 | T165: 0.3819771787 | U165: 0.05684422466 | V165: 0.05158417823 | W165: 260032.2941 | X165: 0.05684422466 | Y165: 0.05158417823 | Z165: 260032.2941 | AA165: 260032 | AB165: 1263.035058 | AC165: 0.05684302935 | AD165: 0.05158298888 | AF165: 270605.1387 | AG165: 1314.391218 | AH165: -0.03907220229 | AI165: -0.03907220229
A166: 10L | B166: NHS Isle of Wight CCG | E166: 210537 | F166: 144499.1648 | G166: 1457.011882 | H166: 0.02851714758 | J166: 204550.4234 | K166: 145043.375 | L166: 1410.270709 | M166: 0.003766182357 | O166: 0.0292669971 | P166: 0.03314340431 | Q166: 0.0524488422 | R166: 0.0485 | S166: 221579.4219 | T166: 0 | U166: 0.0524488422 | V166: 0.0485 | W166: 221579.4219 | X166: 0.0524488422 | Y166: 0.0485 | Z166: 221579.4219 | AA166: 221579 | AB166: 1527.674049 | AC166: 0.05244683832 | AD166: 0.04849800364 | AF166: 216122.7096 | AG166: 1490.055713 | AH166: 0.02524626129 | AI166: 0.02524626129
A167: 10Q | B167: NHS Oxfordshire CCG | E167: 772949 | F167: 745291.4208 | G167: 1037.109751 | H167: -0.03889798043 | J167: 804740.9861 | K167: 747848.3125 | L167: 1076.075151 | M167: 0.003430727372 | O167: -0.03950586173 | P167: -0.0362106682 | Q167: 0.05209711765 | R167: 0.0485 | S167: 813217.415 | T167: 0.4502276385 | U167: 0.05574483853 | V167: 0.05213524933 | W167: 816036.9172 | X167: 0.05574483853 | Y167: 0.05213524933 | Z167: 816036.9172 | AA167: 816037 | AB167: 1091.179837 | AC167: 0.05574494566 | AD167: 0.05213535609 | AF167: 850268.6017 | AG167: 1136.953293 | AH167: -0.04025975048 | AI167: -0.04025975048
A168: 10R | B168: NHS Portsmouth CCG | E168: 280949 | F168: 230173.1748 | G168: 1220.598361 | H168: 0.002746677457 | J168: 278699.0937 | K168: 231311.25 | L168: 1204.866144 | M168: 0.004944430185 | O168: 0.008072886899 | P168: 0.01305723291 | Q168: 0.05368423505 | R168: 0.0485 | S168: 296031.5322 | T168: 0 | U168: 0.05368423505 | V168: 0.0485 | W168: 296031.5322 | X168: 0.05368423505 | Y168: 0.0485 | Z168: 296031.5322 | AA168: 296032 | AB168: 1279.799404 | AC168: 0.05368590029 | AD168: 0.04850165705 | AF168: 294466.2852 | AG168: 1273.030539 | AH168: 0.005317127529 | AI168: 0.005317127529
A169: 10V | B169: NHS South Eastern Hampshire CCG | E169: 268401 | F169: 215319.8374 | G169: 1246.522398 | H169: -0.02799437243 | J169: 275572.0605 | K169: 216374.5938 | L169: 1273.587882 | M169: 0.004898556308 | O169: -0.0260224511 | P169: -0.02125136723 | Q169: 0.05363613629 | R169: 0.0485 | S169: 282796.9926 | T169: 0 | U169: 0.05363613629 | V169: =MAX(R169,NewMinGrowthPerHead(P169,$P$2,$L$1,$U$1,$T$2,AG169,G169,T169, $P$1)) -> 0.0485 | W169: 282796.9926 | X169: 0.05363613629 | Y169: 0.0485 | Z169: 282796.9926 | AA169: =IF(ROUND(Z169,0)/E169>$AA$1,ROUND(Z169,0),ROUNDUP(Z169,0)) -> 282797 | AB169: =AA169/K169*1000 -> 1306.978768 | AC169: =AA169/E169-1 -> 0.0536361638 | AD169: =AB169/G169-1 -> 0.04850002738 | AF169: 291162.3424 | AG169: =AF169/K169*1000 -> 1345.640157 | AH169: -0.02873085275 | AI169: -0.02873085275
A170: 10X | B170: NHS Southampton CCG | E170: 338338 | F170: 286630.2473 | G170: 1180.3988 | H170: -0.03004570457 | J170: 348244.2884 | K170: 288342.1875 | L170: 1207.746572 | M170: 0.005972643372 | O170: -0.02844637721 | P170: -0.0226436339 | Q170: 0.05476231658 | R170: 0.0485 | S170: 356866.1727 | T170: 0 | U170: 0.05476231658 | V170: 0.0485 | W170: 356866.1727 | X170: 0.05476231658 | Y170: 0.0485 | Z170: 356866.1727 | AA170: 356866 | AB170: 1237.647543 | AC170: 0.05476180624 | AD170: 0.0484994927 | AF170: 367945.9469 | AG170: 1276.073925 | AH170: -0.03011297447 | AI170: -0.03011297447
A171: 11A | B171: NHS West Hampshire CCG | E171: 682173 | F171: 563241.3382 | G171: 1211.155776 | H171: -0.0244066584 | J171: 700609.0012 | K171: 566415.25 | L171: 1236.917617 | M171: 0.005635083203 | O171: -0.02631425109 | P171: -0.02082745088 | Q171: 0.05440838474 | R171: 0.0485 | S171: 719288.931 | T171: 0 | U171: 0.05440838474 | V171: 0.0485 | W171: 719288.931 | X171: 0.05440838474 | Y171: 0.0485 | Z171: 719288.931 | AA171: 719289 | AB171: 1269.896953 | AC171: 0.05440848582 | AD171: 0.04850010052 | AF171: 740245.4281 | AG171: 1306.8953 | AH171: -0.02831010814 | AI171: -0.02831010814
A172: 11E | B172: NHS Bath and North East Somerset CCG | E172: 236306 | F172: 207664.9996 | G172: 1137.919247 | H172: -0.001551738943 | J172: 236280.2163 | K172: 209078.4688 | L172: 1130.103055 | M172: 0.006806487183 | O172: 0.0001091233524 | P172: 0.006916353283 | Q172: 0.05563660181 | R172: 0.0485 | S172: 249453.2628 | T172: 0 | U172: 0.05563660181 | V172: 0.0485 | W172: 249453.2628 | X172: 0.05563660181 | Y172: 0.0485 | Z172: 249453.2628 | AA172: 249453 | AB172: 1193.107074 | AC172: 0.05563548958 | AD172: 0.04849889528 | AF172: 249647.5917 | AG172: 1194.037785 | AH172: -0.0007794656292 | AI172: -0.0007794656292
A173: 11J | B173: NHS Dorset CCG | E173: 1053465 | F173: 801319.5815 | G173: 1314.662744 | H173: -0.003347170373 | J173: 1055268.521 | K173: 804863.5625 | L173: 1311.114791 | M173: 0.004422681086 | O173: -0.001709063905 | P173: 0.002706058536 | Q173: 0.05313718112 | R173: 0.0485 | S173: 1109443.161 | T173: 0 | U173: 0.05313718112 | V173: 0.0485 | W173: 1109443.161 | X173: 0.05313718112 | Y173: 0.0485 | Z173: 1109443.161 | AA173: 1109443 | AB173: 1378.423688 | AC173: 0.05313702876 | AD173: 0.04849984831 | AF173: 1114969.544 | AG173: 1385.290123 | AH173: -0.004956676835 | AI173: -0.004956676835
A174: 11M | B174: NHS Gloucestershire CCG | E174: 761560 | F174: 647166.6637 | G174: 1176.760242 | H174: -0.01891198924 | J174: 779473.6433 | K174: 651781.125 | L174: 1195.913188 | M174: 0.007130251925 | O174: -0.02298171779 | P174: -0.0160153313 | Q174: 0.05597606914 | R174: 0.0485 | S174: 804189.1352 | T174: 0 | U174: 0.05597606914 | V174: 0.0485 | W174: 804189.1352 | X174: 0.05597606914 | Y174: 0.0485 | Z174: 804189.1352 | AA174: 804189 | AB174: 1233.832907 | AC174: 0.05597589159 | AD174: 0.0484998237 | AF174: 823571.778 | AG174: 1263.571077 | AH174: -0.02353501969 | AI174: -0.02353501969
A175: 11N | B175: NHS Kernow CCG | E175: 772548 | F175: 575386.8376 | G175: 1342.658451 | H175: -0.009911325157 | J175: 785042.0195 | K175: 579195.75 | L175: 1355.400173 | M175: 0.006619742053 | O175: -0.01591509646 | P175: -0.00940070824 | Q175: 0.05544079954 | R175: 0.0485 | S175: 815378.6788 | T175: 0 | U175: 0.05544079954 | V175: 0.0485 | W175: 815378.6788 | X175: 0.05544079954 | Y175: 0.0485 | Z175: 815378.6788 | AA175: 815379 | AB175: 1407.77794 | AC175: 0.0554412153 | AD175: 0.04850041303 | AF175: 829455.1809 | AG175: 1432.080917 | AH175: -0.01697039357 | AI175: -0.01697039357
A176: 11X | B176: NHS Somerset CCG | E176: 730369 | F176: 575240.8369 | G176: 1269.675157 | H176: -0.02546343911 | J176: 754076.9582 | K176: 578764.8125 | L176: 1302.907402 | M176: 0.006126087301 | O176: -0.03143970641 | P176: -0.02550622149 | Q176: 0.05492320253 | R176: 0.0485 | S176: 770483.2045 | T176: 0.02033018045 | U176: 0.05508835904 | V176: 0.04866415091 | W176: 770603.8297 | X176: 0.05508835904 | Y176: 0.04866415091 | Z176: 770603.8297 | AA176: 770604 | AB176: 1331.463115 | AC176: 0.0550885922 | AD176: 0.04866438265 | AF176: 796738.2945 | AG176: 1376.618408 | AH176: -0.03280160464 | AI176: -0.03280160464
A177: 12D | B177: NHS Swindon CCG | E177: 275264 | F177: 237659.9145 | G177: 1158.226454 | H177: 0.00261001182 | J177: 274666.1322 | K177: 239149.6562 | L177: 1148.511507 | M177: 0.006268376171 | O177: 0.002176707544 | P177: 0.008458728137 | Q177: 0.05507239242 | R177: 0.0485 | S177: 290423.447 | T177: 0 | U177: 0.05507239242 | V177: 0.0485 | W177: 290423.447 | X177: 0.05507239242 | Y177: 0.0485 | Z177: 290423.447 | AA177: 290423 | AB177: 1214.398568 | AC177: 0.05507076843 | AD177: 0.04849838613 | AF177: 290205.1619 | AG177: 1213.487681 | AH177: 0.0007506349483 | AI177: 0.0007506349483
A178: 12F | B178: NHS Wirral CCG | E178: 515300 | F178: 336408.4187 | G178: 1531.769038 | H178: 0.01132481183 | J178: 507854.5815 | K178: 336757.8125 | L178: 1508.070675 | M178: 0.001038600045 | O178: 0.01466053225 | P178: 0.01571435872 | Q178: 0.04958897215 | R178: 0.0485 | S178: 540853.1973 | T178: 0 | U178: 0.04958897215 | V178: 0.0485 | W178: 540853.1973 | X178: 0.04958897215 | Y178: 0.0485 | Z178: 540853.1973 | AA178: 540853 | AB178: 1606.059251 | AC178: 0.04958858917 | AD178: 0.04849961742 | AF178: 536586.0723 | AG178: 1593.388638 | AH178: 0.007951991239 | AI178: 0.007951991239
A179: 13T | B179: NHS Newcastle Gateshead CCG | E179: 730791 | F179: 525567.0029 | G179: 1390.48113 | H179: 0.02706621835 | J179: 711051.2554 | K179: 527745.75 | L179: 1347.336772 | M179: 0.004145517238 | O179: 0.02776135263 | P179: 0.03202195503 | Q179: 0.05284657482 | R179: 0.0485 | S179: 769410.8013 | T179: 0 | U179: 0.05284657482 | V179: 0.0485 | W179: 769410.8013 | X179: 0.05284657482 | Y179: 0.0485 | Z179: 769410.8013 | AA179: 769411 | AB179: 1457.919841 | AC179: 0.05284684677 | AD179: 0.04850027083 | AF179: 751278.445 | AG179: 1423.561336 | AH179: 0.02413559865 | AI179: 0.02413559865
A180: 14L | B180: NHS Manchester CCG | E180: 817679 | F180: 641324.168 | G180: 1274.985477 | H180: -0.01488553769 | J180: 831006.296 | K180: 647873.9375 | L180: 1282.666655 | M180: 0.01021288431 | O180: -0.01603753918 | P180: -0.005988444409 | Q180: 0.0592082092 | R180: 0.0485 | S180: 866092.3093 | T180: 0 | U180: 0.0592082092 | V180: 0.0485 | W180: 866092.3093 | X180: 0.0592082092 | Y180: 0.0485 | Z180: 866092.3093 | AA180: 866092 | AB180: 1336.821795 | AC180: 0.05920783095 | AD180: 0.04849962557 | AF180: 878019.8518 | AG180: 1355.232555 | AH180: -0.01358494545 | AI180: -0.01358494545
A181: 14Y | B181: NHS Buckinghamshire CCG | E181: 612892.8061 | F181: 559494.6709 | G181: 1095.439935 | H181: -0.0269472983 | J181: 629649.5698 | K181: 563792.625 | L181: 1116.810582 | M181: 0.007681849936 | O181: -0.02661284075 | P181: -0.01913542667 | Q181: 0.05655441966 | R181: 0.0485 | S181: 647554.603 | T181: 0 | U181: 0.05655441966 | V181: 0.0485 | W181: 647554.603 | X181: 0.05655441966 | Y181: 0.0485 | Z181: 647554.603 | AA181: 647555 | AB181: 1148.569476 | AC181: 0.05655506737 | AD181: 0.04850064278 | AF181: 665271.5203 | AG181: 1179.9933 | AH181: -0.02663051066 | AI181: -0.02663051066
A182: 15A | B182: NHS Berkshire West CCG | E182: 578367.0005 | F182: 544245.2573 | G182: 1062.695527 | H182: 0.01102365852 | J182: 572652.93 | K182: 547396.375 | L182: 1046.139427 | M182: 0.005789885412 | O182: 0.009978243769 | P182: 0.01582590207 | Q182: 0.05457069485 | R182: 0.0485 | S182: 609928.8896 | T182: 0 | U182: 0.05457069485 | V182: 0.0485 | W182: 609928.8896 | X182: 0.05457069485 | Y182: 0.0485 | Z182: 609928.8896 | AA182: 609929 | AB182: 1114.236462 | AC182: 0.05457088574 | AD182: 0.04850018979 | AF182: 605050.3385 | AG182: 1105.323978 | AH182: 0.008063232434 | AI182: 0.008063232434
A183: 15C | B183: NHS Bristol, North Somerset and South Gloucestershire CCG | E183: 1172015.355 | F183: 1008377.16 | G183: 1162.27876 | H183: -0.02075056938 | J183: 1198497.595 | K183: 1017741.5 | L183: 1177.605114 | M183: 0.009286545214 | O183: -0.02209619836 | P183: -0.0130148505 | Q183: 0.05823694266 | R183: 0.0485 | S183: 1240269.946 | T183: 0 | U183: 0.05823694266 | V183: 0.0485 | W183: 1240269.946 | X183: 0.05823694266 | Y183: 0.0485 | Z183: 1240269.946 | AA183: 1240270 | AB183: 1218.649333 | AC183: 0.05823698885 | AD183: 0.04850004577 | AF183: 1266301.695 | AG183: 1244.227237 | AH183: -0.02055726135 | AI183: -0.02055726135
A184: 15D | B184: NHS East Berkshire CCG | E184: 519172.8831 | F184: 460081.7478 | G184: 1128.436165 | H184: 0.0313188652 | J184: 502095.6288 | K184: 462630.3438 | L184: 1085.306305 | M184: 0.005539441544 | O184: 0.03401195565 | P184: 0.03973980443 | Q184: 0.05430810446 | R184: 0.0485 | S184: 547368.1782 | T184: 0 | U184: 0.05430810446 | V184: 0.0485 | W184: 547368.1782 | X184: 0.05430810446 | Y184: 0.0485 | Z184: 547368.1782 | AA184: 547368 | AB184: 1183.164934 | AC184: 0.05430776117 | AD184: 0.0484996586 | AF184: 530501.3111 | AG184: 1146.706692 | AH184: 0.03179386843 | AI184: 0.03179386843
A185: 15E | B185: NHS Birmingham and Solihull CCG | E185: 1615779.53 | F185: 1310470.411 | G185: 1232.976736 | H185: -0.02038196539 | J185: 1652224.243 | K185: 1320167.625 | L185: 1251.526103 | M185: 0.00739979646 | O185: -0.02205796989 | P185: -0.01482139792 | Q185: 0.05625868659 | R185: 0.0485 | S185: 1706681.164 | T185: 0 | U185: 0.05625868659 | V185: 0.0485 | W185: 1706681.164 | X185: 0.05625868659 | Y185: 0.0485 | Z185: 1706681.164 | AA185: 1706681 | AB185: 1292.775984 | AC185: 0.05625858499 | AD185: 0.04849989915 | AF185: 1745697.586 | AG185: 1322.33025 | AH185: -0.02235014009 | AI185: -0.02235014009
A186: 15F | B186: NHS Leeds CCG | E186: 1086709.658 | F186: 879777.0082 | G186: 1235.21034 | H186: 0.0001693088172 | J186: 1084777.629 | K186: 884667.0625 | L186: 1226.19873 | M186: 0.005558288373 | O186: 0.001781036692 | P186: 0.00734922458 | Q186: 0.05432786536 | R186: 0.0485 | S186: 1145748.274 | T186: 0 | U186: 0.05432786536 | V186: 0.0485 | W186: 1145748.274 | X186: 0.05432786536 | Y186: 0.0485 | Z186: 1145748.274 | AA186: 1145748 | AB186: 1295.117732 | AC186: 0.05432761356 | AD186: 0.04849974959 | AF186: 1146148.107 | AG186: 1295.570001 | AH186: -0.0003490882419 | AI186: -0.0003490882419
A187: 15M | B187: NHS Derby and Derbyshire CCG | E187: 1377877 | F187: 1049689.499 | G187: 1312.65198 | H187: 0.03184171041 | J187: 1338032.781 | K187: 1053807.5 | L187: 1269.712714 | M187: 0.003923065569 | O187: 0.02977820826 | P187: 0.0338180957 | Q187: 0.05261333425 | R187: 0.0485 | S187: 1450371.703 | T187: 0 | U187: 0.05261333425 | V187: 0.0485 | W187: 1450371.703 | X187: 0.05261333425 | Y187: 0.0485 | Z187: 1450371.703 | AA187: 1450372 | AB187: 1376.315883 | AC187: 0.05261354969 | AD187: 0.04850021459 | AF187: 1413730.979 | AG187: 1341.545755 | AH187: 0.02591795881 | AI187: 0.02591795881
A188: 99A | B188: NHS Liverpool CCG | E188: 801997 | F188: 532851.0004 | G188: 1505.105554 | H188: 0.01812208541 | J188: 787243.5471 | K188: 536622.875 | L188: 1467.033151 | M188: 0.007078666703 | O188: 0.01874064635 | P188: 0.02595197184 | Q188: 0.05592198204 | R188: 0.0485 | S188: 846846.2618 | T188: 0 | U188: 0.05592198204 | V188: 0.0485 | W188: 846846.2618 | X188: 0.05592198204 | Y188: 0.0485 | Z188: 846846.2618 | AA188: 846846 | AB188: 1578.102685 | AC188: 0.05592165557 | AD188: 0.04849967582 | AF188: 831781.2583 | AG188: 1550.029447 | AH188: 0.01811142243 | AI188: 0.01811142243
A189: 99C | B189: NHS North Tyneside CCG | E189: 322026 | F189: 219095.5853 | G189: 1469.796845 | H189: 0.04179642663 | J189: 309030.371 | K189: 219720.4375 | L189: 1406.470761 | M189: 0.002851961494 | O189: 0.04205291852 | P189: 0.04502481332 | Q189: 0.05149028163 | R189: 0.0485 | S189: 338607.2094 | T189: 0 | U189: 0.05149028163 | V189: 0.0485 | W189: 338607.2094 | X189: 0.05149028163 | Y189: 0.0485 | Z189: 338607.2094 | AA189: 338607 | AB189: 1541.081038 | AC189: 0.05148963127 | AD189: 0.0484993515 | AF189: 326513.5316 | AG189: 1486.040786 | AH189: 0.03703818429 | AI189: 0.03703818429
A190: 99D | B190: NHS South Lincolnshire CCG | E190: 206403 | F190: 167158.003 | G190: 1234.777853 | H190: -0.01823312174 | J190: 210588.8091 | K190: 168384.8125 | L190: 1250.640162 | M190: 0.007339220901 | O190: -0.01987669307 | P190: -0.01268335161 | Q190: 0.05619517311 | R190: 0.0485 | S190: 218001.8523 | T190: 0 | U190: 0.05619517311 | V190: 0.0485 | W190: 218001.8523 | X190: 0.05619517311 | Y190: 0.0485 | Z190: 218001.8523 | AA190: 218002 | AB190: 1294.665456 | AC190: 0.05619588863 | AD190: 0.0485007103 | AF190: 222502.7125 | AG190: 1321.394188 | AH190: -0.02022767477 | AI190: -0.02022767477
A191: 99E | B191: NHS Basildon and Brentwood CCG | E191: 348898 | F191: 279038.8335 | G191: 1250.356431 | H191: 0.01181635766 | J191: 343371.4904 | K191: 281462.125 | L191: 1219.956292 | M191: 0.008684423862 | O191: 0.0160948411 | P191: 0.02491903938 | Q191: 0.05760561842 | R191: 0.0485 | S191: 368996.4851 | T191: 0 | U191: 0.05760561842 | V191: 0.0485 | W191: 368996.4851 | X191: 0.05760561842 | Y191: 0.0485 | Z191: 368996.4851 | AA191: 368996 | AB191: 1310.996995 | AC191: 0.05760422817 | AD191: 0.04849862172 | AF191: 362797.4741 | AG191: 1288.974401 | AH191: 0.01708536134 | AI191: 0.01708536134
A192: 99F | B192: NHS Castle Point and Rochford CCG | E192: 233559 | F192: 185222.1655 | G192: 1260.966793 | H192: 0.008525487926 | J192: 231285.0878 | K192: 186162.3125 | L192: 1242.38405 | M192: 0.00507578005 | O192: 0.009831642203 | P192: 0.01495732551 | Q192: 0.05382195538 | R192: 0.0485 | S192: 246129.6021 | T192: 0 | U192: 0.05382195538 | V192: 0.0485 | W192: 246129.6021 | X192: 0.05382195538 | Y192: 0.0485 | Z192: 246129.6021 | AA192: 246130 | AB192: 1322.12582 | AC192: 0.05382365912 | AD192: 0.04850169513 | AF192: 244369.8675 | AG192: 1312.670993 | AH192: 0.007202739351 | AI192: 0.007202739351
A193: 99G | B193: NHS Southend CCG | E193: 245960 | F193: 188323.4146 | G193: 1306.051085 | H193: -0.01461947202 | J193: 249263.087 | K193: 189659.2812 | L193: 1314.267804 | M193: 0.007093470777 | O193: -0.01325140866 | P193: -0.006251936364 | Q193: 0.05593750411 | R193: 0.0485 | S193: 259718.3885 | T193: 0 | U193: 0.05593750411 | V193: 0.0485 | W193: 259718.3885 | X193: 0.05593750411 | Y193: 0.0485 | Z193: 259718.3885 | AA193: 259718 | AB193: 1369.392514 | AC193: 0.05593592454 | AD193: 0.04849843156 | AF193: 263364.9586 | AG193: 1388.621516 | AH193: -0.01384754675 | AI193: -0.01384754675
A194: 99H | B194: NHS Surrey Downs CCG | E194: 369633 | F194: 307646.083 | G194: 1201.48775 | H194: 0.00859237643 | J194: 365045.3538 | K194: 309493.5 | L194: 1179.492797 | M194: 0.006005007358 | O194: 0.01256733204 | P194: 0.01864780632 | Q194: 0.05479625022 | R194: 0.0485 | S194: 389887.5024 | T194: 0 | U194: 0.05479625022 | V194: 0.0485 | W194: 389887.5024 | X194: 0.05479625022 | Y194: 0.0485 | Z194: 389887.5024 | AA194: 389888 | AB194: 1259.761514 | AC194: 0.05479759653 | AD194: 0.04850133828 | AF194: 385697.52 | AG194: 1246.221714 | AH194: 0.01086467972 | AI194: 0.01086467972
A195: 99J | B195: NHS West Kent CCG | E195: 575106 | F195: 492969.2539 | G195: 1166.616367 | H195: 0.0003214879265 | J195: 574036.1571 | K195: 496486.1875 | L195: 1156.197638 | M195: 0.007134184467 | O195: 0.001863720324 | P195: 0.009011200915 | Q195: 0.05598019241 | R195: 0.0485 | S195: 607300.5445 | T195: 0 | U195: 0.05598019241 | V195: 0.0485 | W195: 607300.5445 | X195: 0.05598019241 | Y195: 0.0485 | Z195: 607300.5445 | AA195: 607301 | AB195: 1223.198178 | AC195: 0.05598098438 | AD195: 0.04850078635 | AF195: 606511.8207 | AG195: 1221.608649 | AH195: 0.001301177111 | AI195: 0.001301177111
A196: 99K | B196: NHS High Weald Lewes Havens CCG | E196: 209984 | F196: 170506.7529 | G196: 1231.528936 | H196: 0.002095471249 | J196: 210015.3061 | K196: 171932.0312 | L196: 1221.501919 | M196: 0.008359072564 | O196: -0.0001490659018 | P196: 0.008208760609 | Q196: 0.05726448758 | R196: 0.0485 | S196: 222008.6262 | T196: 0 | U196: 0.05726448758 | V196: 0.0485 | W196: 222008.6262 | X196: 0.05726448758 | Y196: 0.0485 | Z196: 222008.6262 | AA196: 222009 | AB196: 1291.260264 | AC196: 0.05726626791 | AD196: 0.04850176556 | AF196: 221896.764 | AG196: 1290.607471 | AH196: 0.0005058027741 | AI196: 0.0005058027741
A197: 99M | B197: NHS North East Hampshire and Farnham CCG | E197: 272162 | F197: 227496.5793 | G197: 1196.334471 | H197: -0.0009214682657 | J197: 271549.9478 | K197: 227991 | L197: 1191.055558 | M197: 0.002173310279 | O197: 0.002253921255 | P197: 0.004432130004 | Q197: 0.05077871583 | R197: 0.0485 | S197: 285982.0369 | T197: 0 | U197: 0.05077871583 | V197: 0.0485 | W197: 285982.0369 | X197: 0.05077871583 | Y197: 0.0485 | Z197: 285982.0369 | AA197: 285982 | AB197: 1254.356532 | AC197: 0.0507785804 | AD197: 0.04849986487 | AF197: 286912.6817 | AG197: 1258.43863 | AH197: -0.003243780358 | AI197: -0.003243780358
A198: 99N | B198: NHS Wiltshire CCG | E198: 601903 | F198: 490466.5025 | G198: 1227.205114 | H198: -0.02161730336 | J198: 617651.2689 | K198: 495483.4688 | L198: 1246.562818 | M198: 0.01022896822 | O198: -0.02549702347 | P198: -0.01552886349 | Q198: 0.05922507318 | R198: 0.0485 | S198: 637550.7492 | T198: 0 | U198: 0.05922507318 | V198: 0.0485 | W198: 637550.7492 | X198: 0.05922507318 | Y198: 0.0485 | Z198: 637550.7492 | AA198: 637551 | AB198: 1286.725068 | AC198: 0.05922548982 | AD198: 0.04850041242 | AF198: 652594.4246 | AG198: 1317.086171 | AH198: -0.02305172096 | AI198: -0.02305172096
A199: 99P | B199: NHS Northern, Eastern and Western Devon CCG | E199: 1192921 | F199: 931441.8411 | G199: 1280.725159 | H199: -0.0007179334242 | J199: 1196107.169 | K199: 936391.5 | L199: 1277.357995 | M199: 0.005313975233 | O199: -0.002663782168 | P199: 0.002636037792 | Q199: 0.05407170303 | R199: 0.0485 | S199: 1257424.27 | T199: 0 | U199: 0.05407170303 | V199: 0.0485 | W199: 1257424.27 | X199: 0.05407170303 | Y199: 0.0485 | Z199: 1257424.27 | AA199: 1257424 | AB199: 1342.840041 | AC199: 0.05407147665 | AD199: 0.04849977482 | AF199: 1263776.032 | AG199: 1349.623562 | AH199: -0.005026232217 | AI199: -0.005026232217
A200: 99Q | B200: NHS South Devon and Torbay CCG | E200: 410551 | F200: 293831.3333 | G200: 1397.233561 | H200: 0.02100356594 | J200: 402594.437 | K200: 295595.9375 | L200: 1361.975541 | M200: 0.0060055006 | O200: 0.01976322147 | P200: 0.02588741011 | Q200: 0.05479676738 | R200: 0.0485 | S200: 433047.8676 | T200: 0 | U200: 0.05479676738 | V200: 0.0485 | W200: 433047.8676 | X200: 0.05479676738 | Y200: 0.0485 | Z200: 433047.8676 | AA200: 433048 | AB200: 1464.999836 | AC200: 0.05479708976 | AD200: 0.04850032046 | AF200: 425370.9142 | AG200: 1439.028282 | AH200: 0.01804798 | AI200: 0.01804798

Sheet Core 2020-21
A1: NHS England - 2019-20 to 2023-24 Allocations | C1: 2019-20 | D1: 2019-20 | E1: 2019-20 | J1: 2020-21 | L1: 0.04223204389 | P1: -0.05050491591 | Q1: 0.05 | R1: 0.033 | T1: -0.05050491591 | U1: 0.033 | X1: 0.01942659196 | AA1: 1.019426592 | AI1: -0.04617657019
A2: Minimum allocations for CCG core services | P2: -0.046175 | Q2: 0.1 | R2: 0.02103953673 | S2: 1 | T2: 0 | U2: 0.0459 | Z2: 1 | AI2: 0.1832937615
A3: Pace of change calculations 2020-21 | U3: 0.0129 | AI3: 0
L4: 1366.030956 | AA4: 84382.81439 | AI4: 41
B5: England | C5: 78372981 | D5: 63390.74192 | E5: 78436371.74 | F5: 59447416.9 | G5: 1319.424389 | J5: 78382155.2 | K5: 59802739.78 | L5: 1310.678332 | M5: 0.005977095412 | AA5: 81608011 | AF5: 81692393.81 | AH5: -0.001032933551
E6: Baseline | J6: Opening Target | O6: Distance from Target | Q6: Minimum per capita growth | T6: Per capita pace of change | X6: Minimum programme | AF6: Closing target
A7: CCG | B7: CCG name | C7: Final Allocation £000 | D7: Ambulance Funding £000 | E7: Baseline £000 | F7: Estimated Population | G7: Allocation per capita £ | H7: Closing DfT | J7: Opening Target £000 | K7: Estimated Population | L7: Opening Target per capita £ | M7: population growth rate % | O7: DFT (total allocation) | P7: DFT (per capita) | Q7: Apply minimum per capita growth [programme] | R7: Apply minimum per capita growth [per capita] | S7: Allocation after min per capita growth £000 | T7: First Transition position | U7: Growth on per capita parameters [programme] | V7: Growth on per capita parameters [per capita] | W7: Allocation after per capita p-o-c | X7: Apply minimum programme growth [programme] | Y7: Apply minimum programme growth [per capita] | Z7: Allocation after minimum programme growth | AA7: Minimum allocation £000 | AB7: Minimum allocation per head £ | AC7: Growth after rounding | AD7: Per capita growth after rounding | AF7: Target allocations from the fair shares formula £000 | AG7: Target per head | AH7: DFT (total allocation) | AI7: DFT (per capita)
A9: 00C | B9: NHS Darlington CCG | C9: 158262 | D9: 85.4628076 | E9: =C9+D9 -> 158347.4628 | F9: 108392.1875 | G9: =E9/F9*1000 -> 1460.875239 | H9: 0.01472214931 | J9: 156158.0856 | K9: 108449.6406 | L9: =J9/K9*1000 -> 1439.913353 | M9: =K9/F9-1 -> 0.0005300485794 | O9: =E9/J9-1 -> 0.0140202614 | P9: =G9/L9-1 -> 0.0145577414 | Q9: =(1+M9)*(1+R9)-1 -> 0.03354754018 | R9: =MinGrowthPerHead(P9,0,1,$Q$1,$Q$2,$R$1,$R$2) -> 0.033 | S9: =(1+IF($S$2=1,Q9,0))*$E9 -> 163659.6307 | T9: =MinMaxRamp(P9,0,1,$P$2,$T$2) -> 0 | U9: =(1+M9)*(1+V9)-1 -> 0.03354754018 | V9: =MAX(R9,NewMinGrowthPerHead(P9,$P$2,$L$1,$U$1,$T$2,AG9,G9,T9, $P$1)) -> 0.033 | W9: =(1+IF($S$2=1,U9,0))*$E9 -> 163659.6307 | X9: =MAX(U9,$X$1) -> 0.03354754018 | Y9: =(1+X9)/(1+M9) - 1 -> 0.033 | Z9: =(1+IF($Z$2=1,X9,0))*$E9 -> 163659.6307 | AA9: =IF(ROUND(Z9,0)/E9>$AA$1,ROUND(Z9,0),ROUNDUP(Z9,0)) -> 163660 | AB9: =AA9/K9*1000 -> 1509.087527 | AC9: =AA9/E9-1 -> 0.03354987253 | AD9: =AB9/G9-1 -> 0.03300233111 | AF9: 162752.9608 | AG9: =AF9/K9*1000 -> 1500.723837 | AH9: =AA9/AF9-1 -> 0.005573104431 | AI9: =AB9/AG9-1 -> 0.005573104431
A10: 00D | B10: NHS Durham Dales, Easington and Sedgefield CCG | C10: 483146 | D10: 313.3636279 | E10: =C10+D10 -> 483459.3636 | F10: 293122.5 | G10: =E10/F10*1000 -> 1649.342386 | H10: 0.03877471686 | J10: 466086.1014 | K10: 294087.8125 | L10: =J10/K10*1000 -> 1584.853508 | M10: =K10/F10-1 -> 0.003293205059 | O10: =E10/J10-1 -> 0.0372747914 | P10: =G10/L10-1 -> 0.04069074999 | Q10: =(1+M10)*(1+R10)-1 -> 0.03640188083 | R10: =MinGrowthPerHead(P10,0,1,$Q$1,$Q$2,$R$1,$R$2) -> 0.033 | S10: =(1+IF($S$2=1,Q10,0))*$E10 -> 501058.1938 | T10: =MinMaxRamp(P10,0,1,$P$2,$T$2) -> 0 | U10: =(1+M10)*(1+V10)-1 -> 0.03640188083 | V10: 0.033 | W10: =(1+IF($S$2=1,U10,0))*$E10 -> 501058.1938 | X10: =MAX(U10,$X$1) -> 0.03640188083 | Y10: =(1+X10)/(1+M10) - 1 -> 0.033 | Z10: =(1+IF($Z$2=1,X10,0))*$E10 -> 501058.1938 | AA10: =IF(ROUND(Z10,0)/E10>$AA$1,ROUND(Z10,0),ROUNDUP(Z10,0)) -> 501058 | AB10: 1703.770026 | AC10: 0.03640148003 | AD10: 0.03299960052 | AF10: 485769.8701 | AG10: 1651.785111 | AH10: =AA10/AF10-1 -> 0.03147195993 | AI10: 0.03147195993
A11: 00J | B11: NHS North Durham CCG | C11: 372716 | D11: 239.2958613 | E11: 372955.2959 | F11: 260056.4375 | G11: 1434.132142 | H11: 0.04115350201 | J11: 358832.5141 | K11: 260704.7812 | L11: 1376.394067 | M11: 0.00249308864 | O11: 0.03935758666 | P11: 0.04194879725 | Q11: 0.03557536056 | R11: 0.033 | S11: 386223.315 | T11: 0 | U11: 0.03557536056 | V11: 0.033 | W11: 386223.315 | X11: 0.03557536056 | Y11: 0.033 | Z11: 386223.315 | AA11: 386223 | AB11: 1481.457295 | AC11: 0.035574516 | AD11: 0.03299915753 | AF11: 373986.7446 | AG11: 1434.522001 | AH11: 0.03271842011 | AI11: 0.03271842011
A12: 00K | B12: NHS Hartlepool and Stockton-on-Tees CCG | C12: 434076 | D12: 279.1785048 | E12: 434355.1785 | F12: 298132.2188 | G12: 1456.921296 | H12: -0.02416928407 | J12: 444517.4316 | K12: 298891.875 | L12: 1487.218184 | M12: 0.002548051509 | O12: -0.0228613151 | P12: -0.0203715154 | Q12: 0.03563213721 | R12: 0.033 | S12: 449832.1818 | T12: 0.4411806259 | U12: 0.03971551432 | V12: 0.0370729989 | W12: 451605.8178 | X12: 0.03971551432 | Y12: 0.0370729989 | Z12: 451605.8178 | AA12: 451606 | AB12: 1510.934347 | AC12: 0.03971593375 | AD12: 0.03707341727 | AF12: 463290.3113 | AG12: 1550.026448 | AH12: -0.02522027975 | AI12: -0.02522027975
A13: 00L | B13: NHS Northumberland CCG | C13: 491193 | D13: 370.3388329 | E13: 491563.3388 | F13: 325474.5938 | G13: 1510.297112 | H13: 0.001011592837 | J13: 491437.4203 | K13: 325564.0625 | L13: 1509.495294 | M13: 0.0002748870472 | O13: 0.0002562250443 | P13: 0.0005311825244 | Q13: 0.03328395832 | R13: 0.033 | S13: 507924.5125 | T13: 0 | U13: 0.03328395832 | V13: 0.033 | W13: 507924.5125 | X13: 0.03328395832 | Y13: 0.033 | Z13: 507924.5125 | AA13: 507925 | AB13: 1560.138414 | AC13: 0.03328495002 | AD13: 0.03300099143 | AF13: 512191.827 | AG13: 1573.244366 | AH13: -0.008330525272 | AI13: -0.008330525272
A14: 00M | B14: NHS South Tees CCG | C14: 451372 | D14: 301.9685869 | E14: 451673.9686 | F14: 297279.8125 | G14: 1519.356342 | H14: -0.01812959823 | J14: 458179.0428 | K14: 297414.375 | L14: 1540.541014 | M14: 0.0004526459394 | O14: -0.01419766854 | P14: -0.01375144912 | Q14: 0.03346758326 | R14: 0.033 | S14: 466790.4047 | T14: 0.2978115672 | U14: 0.03621823722 | V14: 0.03574940946 | W14: 468032.8035 | X14: 0.03621823722 | Y14: 0.03574940946 | Z14: 468032.8035 | AA14: 468033 | AB14: 1573.673095 | AC14: 0.03621867221 | AD14: 0.03574984425 | AF14: 477528.8802 | AG14: 1605.601209 | AH14: -0.01988545741 | AI14: -0.01988545741
A15: 00N | B15: NHS South Tyneside CCG | C15: 263465 | D15: 176.6231357 | E15: 263641.6231 | F15: 157356.1406 | G15: 1675.445407 | H15: 0.03919540763 | J15: 253087.2202 | K15: 157527.4219 | L15: 1606.623261 | M15: 0.001088494223 | O15: 0.04170263103 | P15: 0.04283651832 | Q15: 0.03412441453 | R15: 0.033 | S15: 272638.2392 | T15: 0 | U15: 0.03412441453 | V15: 0.033 | W15: 272638.2392 | X15: 0.03412441453 | Y15: 0.033 | Z15: 272638.2392 | AA15: 272638 | AB15: 1730.733588 | AC15: 0.03412350735 | AD15: 0.0329990938 | AF15: 263775.6108 | AG15: 1674.474245 | AH15: 0.0335982133 | AI15: 0.0335982133
A16: 00P | B16: NHS Sunderland CCG | C16: 469621 | D16: 296.2710663 | E16: 469917.2711 | F16: 284309.3125 | G16: 1652.838125 | H16: 0.0669694255 | J16: 439397.1353 | K16: 284521.125 | L16: 1544.339231 | M16: 0.0007450072533 | O16: 0.06945911409 | P16: 0.07025586888 | Q16: 0.02892059112 | R16: 0.02815460848 | S16: 483507.5563 | T16: 0 | U16: 0.02892059112 | V16: 0.02815460848 | W16: 483507.5563 | X16: 0.02892059112 | Y16: 0.02815460848 | Z16: 483507.5563 | AA16: 483508 | AB16: 1699.374695 | AC16: 0.02892153528 | AD16: 0.02815555194 | AF16: 457953.7744 | AG16: 1609.559833 | AH16: 0.0558008843 | AI16: 0.0558008843
A17: 00Q | B17: NHS Blackburn with Darwen CCG | C17: 241524 | D17: 208.4594183 | E17: 241732.4594 | F17: 175157.5156 | G17: 1380.086139 | H17: -0.04020471545 | J17: 250573.1827 | K17: 175171.625 | L17: 1430.443901 | M17: 8.055249556e-05 | O17: -0.0352820009 | P17: -0.03520429046 | Q17: 0.03308321073 | R17: 0.033 | S17: 249729.7453 | T17: 0.7624101886 | U17: 0.04012238203 | V17: 0.04003860432 | W17: 251431.3415 | X17: 0.04012238203 | Y17: 0.04003860432 | Z17: 251431.3415 | AA17: 251431 | AB17: 1435.340912 | AC17: 0.04012096929 | AD17: 0.0400371917 | AF17: 261155.4003 | AG17: 1490.854471 | AH17: -0.0372360683 | AI17: -0.0372360683
A18: 00R | B18: NHS Blackpool CCG | C18: 295684 | D18: 238.1182787 | E18: 295922.1183 | F18: 173096.5469 | G18: 1709.578404 | H18: -0.04990085835 | J18: 308779.0859 | K18: 172778.25 | L18: 1787.14095 | M18: -0.00183884012 | O18: -0.04163807785 | P18: -0.0434003522 | Q18: 0.03110047816 | R18: 0.033 | S18: 305125.4377 | T18: 0.9399101722 | U18: 0.03976181396 | V18: 0.04167729196 | W18: 307688.5185 | X18: 0.03976181396 | Y18: 0.04167729196 | Z18: 307688.5185 | AA18: 307689 | AB18: 1780.831789 | AC18: 0.0397634411 | AD18: 0.0416789221 | AF18: 321819.4578 | AG18: 1862.615565 | AH18: -0.04390802812 | AI18: -0.04390802812
A19: 00T | B19: NHS Bolton CCG | C19: 434793 | D19: 272.861515 | E19: 435065.8615 | F19: 310601.6875 | G19: 1400.719568 | H19: -0.009472620882 | J19: 438238.7197 | K19: 311766.75 | L19: 1405.662149 | M19: 0.003750985738 | O19: -0.007240022411 | P19: -0.003516193894 | Q19: 0.03687476827 | R19: 0.033 | S19: 451108.8143 | T19: 0.07614929927 | U19: 0.03758041893 | V19: 0.03370301367 | W19: 451415.8189 | X19: 0.03758041893 | Y19: 0.03370301367 | Z19: 451415.8189 | AA19: 451416 | AB19: 1447.92862 | AC19: 0.0375808353 | AD19: 0.03370342848 | AF19: 456746.4365 | AG19: 1465.026134 | AH19: -0.01167045013 | AI19: -0.01167045013
A20: 00V | B20: NHS Bury CCG | C20: 276738 | D20: 214.3911904 | E20: 276952.3912 | F20: 204868.2812 | G20: 1351.855883 | H20: -0.02558278498 | J20: 283603.082 | K20: 205557.6562 | L20: 1379.676569 | M20: 0.003364966972 | O20: -0.02345070007 | P20: -0.02016464393 | Q20: 0.03647601088 | R20: 0.033 | S20: 287054.5096 | T20: 0.4367004642 | U20: 0.04052121506 | V20: 0.03703163785 | W20: 288174.8386 | X20: 0.04052121506 | Y20: 0.03703163785 | Z20: 288174.8386 | AA20: 288175 | AB20: 1401.918105 | AC20: 0.04052179785 | AD20: 0.03703221868 | AF20: 295580.2198 | AG20: 1437.943131 | AH20: -0.02505316431 | AI20: -0.02505316431
A21: 00X | B21: NHS Chorley and South Ribble CCG | C21: 256031 | D21: 171.1739939 | E21: 256202.174 | F21: 184909.5625 | G21: 1385.553946 | H21: 0.01620407676 | J21: 253144.2992 | K21: 186178.5312 | L21: 1359.685767 | M21: 0.006862645354 | O21: 0.01207957221 | P21: 0.01902511539 | Q21: 0.04008911265 | R21: 0.033 | S21: 266473.0918 | T21: 0 | U21: 0.04008911265 | V21: 0.033 | W21: 266473.0918 | X21: 0.04008911265 | Y21: 0.033 | Z21: 266473.0918 | AA21: 266473 | AB21: 1431.276733 | AC21: 0.04008875431 | AD21: 0.0329996441 | AF21: 263835.1003 | AG21: 1417.108076 | AH21: 0.009998289436 | AI21: 0.009998289436
A22: 00Y | B22: NHS Oldham CCG | C22: 360783 | D22: 264.3875549 | E22: 361047.3876 | F22: 256758.2344 | G22: 1406.17647 | H22: 0.01215284768 | J22: 356339.311 | K22: 258134.7344 | L22: 1380.439218 | M22: 0.005361074411 | O22: 0.01321234129 | P22: 0.01864424804 | Q22: 0.03853798987 | R22: 0.033 | S22: 374961.4281 | T22: 0 | U22: 0.03853798987 | V22: 0.033 | W22: 374961.4281 | X22: 0.03853798987 | Y22: 0.033 | Z22: 374961.4281 | AA22: 374961 | AB22: 1452.578635 | AC22: 0.0385368041 | AD22: 0.03299882056 | AF22: 371388.2484 | AG22: 1438.737988 | AH22: 0.009619991024 | AI22: 0.009619991024
A23: 01A | B23: NHS East Lancashire CCG | C23: 579151 | D23: 480.4735374 | E23: 579631.4735 | F23: 382499.5625 | G23: 1515.378135 | H23: 0.02816746123 | J23: 561917.5159 | K23: 382833.375 | L23: 1467.786125 | M23: 0.0008727134165 | O23: 0.03152412435 | P23: 0.0324243493 | Q23: 0.03390151296 | R23: 0.033 | S23: 599281.8574 | T23: 0 | U23: 0.03390151296 | V23: 0.033 | W23: 599281.8574 | X23: 0.03390151296 | Y23: 0.033 | Z23: 599281.8574 | AA23: 599282 | AB23: 1565.385985 | AC23: 0.03390175889 | AD23: 0.03300024572 | AF23: 585648.4411 | AG23: 1529.773733 | AH23: 0.02327942493 | AI23: 0.02327942493
A24: 01C | B24: NHS Eastern Cheshire CCG | C24: 270154 | D24: 210.1542103 | E24: 270364.1542 | F24: 209256.7656 | G24: 1292.021089 | H24: -0.003112067298 | J24: 271505.3376 | K24: 209983.75 | L24: 1292.982612 | M24: 0.003474126023 | O24: -0.004203171028 | P24: -0.0007436473502 | Q24: 0.03658877218 | R24: 0.033 | S24: 280256.4467 | T24: 0.01610497781 | U24: 0.03673797058 | V24: 0.03314868186 | W24: 280296.7846 | X24: 0.03673797058 | Y24: 0.03314868186 | Z24: 280296.7846 | AA24: 280297 | AB24: 1334.850911 | AC24: 0.03673876745 | AD24: 0.03314947597 | AF24: 282971.5629 | AG24: 1347.587911 | AH24: -0.009451702086 | AI24: -0.009451702086
A25: 01D | B25: NHS Heywood, Middleton and Rochdale CCG | C25: 341670 | D25: 239.8130707 | E25: 341909.8131 | F25: 234477.7031 | G25: 1458.17623 | H25: -0.02033018304 | J25: 348437.1461 | K25: 235364.3906 | L25: 1480.41573 | M25: 0.003781542928 | O25: -0.01873317216 | P25: -0.01502246952 | Q25: 0.03690633384 | R25: 0.033 | S25: 354528.4508 | T25: 0.3253377265 | U25: 0.039921224 | V25: 0.03600353217 | W25: 355559.2713 | X25: 0.039921224 | Y25: 0.03600353217 | Z25: 355559.2713 | AA25: 355559 | AB25: 1510.674572 | AC25: 0.0399204305 | AD25: 0.03600274166 | AF25: 363152.359 | AG25: 1542.936712 | AH25: -0.02090956805 | AI25: -0.02090956805
A26: 01E | B26: NHS Greater Preston CCG | C26: 279286 | D26: 225.4073385 | E26: 279511.4073 | F26: 209249.0156 | G26: 1335.783619 | H26: -0.007971044676 | J26: 280425.8675 | K26: 209231.7188 | L26: 1340.264608 | M26: -8.266167919e-05 | O26: -0.003260969215 | P26: -0.003343361337 | Q26: 0.03291461049 | R26: 0.033 | S26: 288711.4164 | T26: 0.07240630941 | U26: 0.03358301346 | V26: 0.03366845823 | W26: 288898.2427 | X26: 0.03358301346 | Y26: 0.03366845823 | Z26: 288898.2427 | AA26: 288898 | AB26: 1380.756234 | AC26: 0.03358214518 | AD26: 0.03366758988 | AF26: 292268.825 | AG26: 1396.866721 | AH26: -0.01153330329 | AI26: -0.01153330329
A27: 01F | B27: NHS Halton CCG | C27: 212344 | D27: 143.2099256 | E27: 212487.2099 | F27: 131605.6875 | G27: 1614.574673 | H27: 0.03753381616 | J27: 204349.6906 | K27: 131833.6406 | L27: 1550.057251 | M27: 0.001732091746 | O27: 0.03982153977 | P27: 0.04162260608 | Q27: 0.03478925077 | R27: 0.033 | S27: 219879.4808 | T27: 0 | U27: 0.03478925077 | V27: 0.033 | W27: 219879.4808 | X27: 0.03478925077 | Y27: 0.033 | Z27: 219879.4808 | AA27: 219879 | AB27: 1667.851991 | AC27: 0.03478698825 | AD27: 0.03299774139 | AF27: 212979.7957 | AG27: 1615.519337 | AH27: 0.03239370327 | AI27: 0.03239370327
A28: 01G | B28: NHS Salford CCG | C28: 418831 | D28: 268.624535 | E28: 419099.6245 | F28: 275610.5 | G28: 1520.622852 | H28: 0.023595916 | J28: 409403.0143 | K28: 278114.5 | L28: 1472.066413 | M28: 0.009085285212 | O28: 0.02368475539 | P28: 0.03298522336 | Q28: 0.04238509962 | R28: 0.033 | S28: 436863.2039 | T28: 0 | U28: 0.04238509962 | V28: 0.033 | W28: 436863.2039 | X28: 0.04238509962 | Y28: 0.033 | Z28: 436863.2039 | AA28: 436863 | AB28: 1570.802673 | AC28: 0.04238461317 | AD28: 0.03299951792 | AF28: 426692.9404 | AG28: 1534.234786 | AH28: 0.02383460958 | AI28: 0.02383460958
A29: 01H | B29: NHS Cumbria CCG | C29: 480262 | D29: 535.554278 | E29: 480797.5543 | F29: 323764.0625 | G29: 1485.024467 | H29: 0.00780955435 | J29: 476294.7371 | K29: 323354.9062 | L29: 1472.978229 | M29: -0.001263748196 | O29: 0.009453846253 | P29: 0.008178150776 | Q29: 0.03169454811 | R29: 0.033 | S29: 496036.2155 | T29: 0 | U29: 0.03169454811 | V29: 0.033 | W29: 496036.2155 | X29: 0.03169454811 | Y29: 0.033 | Z29: 496036.2155 | AA29: 496036 | AB29: 1534.029608 | AC29: 0.03169409991 | AD29: 0.03299955123 | AF29: 496409.6373 | AG29: 1535.18511 | AH29: -0.0007526793874 | AI29: -0.0007526793874
A30: 01J | B30: NHS Knowsley CCG | C30: 288479 | D30: 180.49535 | E30: 288659.4954 | F30: 165618.9688 | G30: 1742.913252 | H30: 0.04798850923 | J30: 274436.6814 | K30: 166135.6719 | L30: 1651.882936 | M30: 0.00311983059 | O30: 0.05182548445 | P30: 0.05510700177 | Q30: 0.03499733154 | R30: 0.03177835786 | S30: 298761.8074 | T30: 0 | U30: 0.03499733154 | V30: 0.03177835786 | W30: 298761.8074 | X30: 0.03499733154 | Y30: 0.03177835786 | Z30: 298761.8074 | AA30: 298762 | AB30: 1798.301332 | AC30: 0.03499799872 | AD30: 0.03177902297 | AF30: 286026.7034 | AG30: 1721.645328 | AH30: 0.04452485202 | AI30: 0.04452485202
A31: 01K | B31: NHS Morecambe Bay CCG | C31: 513282 | D31: 482.621431 | E31: 513764.6214 | F31: 346843 | G31: 1481.259883 | H31: -0.005368889058 | J31: 514979.0783 | K31: 347573.9375 | L31: 1481.638934 | M31: 0.00210740162 | O31: -0.002358264544 | P31: -0.0002558327352 | Q31: 0.03517694587 | R31: 0.033 | S31: 531837.2917 | T31: 0.005540503198 | U31: 0.03522820384 | V31: 0.03305115017 | W31: 531863.6262 | X31: 0.03522820384 | Y31: 0.03305115017 | Z31: 531863.6262 | AA31: 531864 | AB31: 1530.218301 | AC31: 0.03522893133 | AD31: 0.03305187613 | AF31: 536727.6974 | AG31: 1544.211575 | AH31: -0.009061759611 | AI31: -0.009061759611
A32: 01R | B32: NHS South Cheshire CCG | C32: 242954 | D32: 202.5276463 | E32: 243156.5276 | F32: 186311.0625 | G32: 1305.11052 | H32: -0.03822195816 | J32: 252502.1542 | K32: 186706.9688 | L32: 1352.398124 | M32: 0.002124974463 | O32: -0.03701206679 | P32: -0.03496574202 | Q32: 0.03519509862 | R32: 0.033 | S32: 251714.4456 | T32: 0.7572440069 | U32: 0.04220086403 | V32: 0.03999090991 | W32: 253417.9432 | X32: 0.04220086403 | Y32: 0.03999090991 | Z32: 253417.9432 | AA32: 253418 | AB32: 1357.303381 | AC32: 0.04220109759 | AD32: 0.03999114297 | AF32: 263165.8363 | AG32: 1409.512661 | AH32: -0.03704066014 | AI32: -0.03704066014
A33: 01T | B33: NHS South Sefton CCG | C33: 255747 | D33: 177.105766 | E33: 255924.1058 | F33: 155182.25 | G33: 1649.184142 | H33: 0.04420766088 | J33: 243908.4128 | K33: 155277.4375 | L33: 1570.791074 | M33: 0.0006133916733 | O33: 0.04926313479 | P33: 0.04990674406 | Q33: 0.0336336336 | R33: 0.033 | S33: 264531.7634 | T33: 0 | U33: 0.0336336336 | V33: 0.033 | W33: 264531.7634 | X33: 0.0336336336 | Y33: 0.033 | Z33: 264531.7634 | AA33: 264532 | AB33: 1703.608742 | AC33: 0.03363455822 | AD33: 0.03300092405 | AF33: 254209.1635 | AG33: 1637.128791 | AH33: 0.04060764888 | AI33: 0.04060764888
A34: 01V | B34: NHS Southport and Formby CCG | C34: 193240 | D34: 139.8203416 | E34: 193379.8203 | F34: 125268.4766 | G34: 1543.722935 | H34: 0.01063935921 | J34: 190855.2327 | K34: 125542.4844 | L34: 1520.244192 | M34: 0.002187364451 | O34: 0.01322776209 | P34: 0.01544406048 | Q34: 0.03525954748 | R34: 0.033 | S34: 200198.3053 | T34: 0 | U34: 0.03525954748 | V34: 0.033 | W34: 200198.3053 | X34: 0.03525954748 | Y34: 0.033 | Z34: 200198.3053 | AA34: 200198 | AB34: 1594.66336 | AC34: 0.03525796873 | AD34: 0.0329984247 | AF34: 198915.4393 | AG34: 1584.447212 | AH34: 0.00644776851 | AI34: 0.00644776851
A35: 01W | B35: NHS Stockport CCG | C35: 435354 | D35: 290.6568312 | E35: 435644.6568 | F35: 313465.75 | G35: 1389.767963 | H35: -0.01956801677 | J35: 443395.253 | K35: 314968.75 | L35: 1407.743635 | M35: 0.004794782205 | O35: -0.0174801064 | P35: -0.0127691375 | Q35: 0.03795301002 | R35: 0.033 | S35: 452178.6829 | T35: 0.2765378992 | U35: 0.04051826117 | V35: 0.03555301002 | W35: 453296.2208 | X35: 0.04051826117 | Y35: 0.03555301002 | Z35: 453296.2208 | AA35: 453296 | AB35: 1439.177696 | AC35: 0.0405177543 | AD35: 0.03555250558 | AF35: 462120.7408 | AG35: 1467.195526 | AH35: -0.01909617993 | AI35: -0.01909617993
A36: 01X | B36: NHS St Helens CCG | C36: 317484 | D36: 198.2906662 | E36: 317682.2907 | F36: 198154.4375 | G36: 1603.205533 | H36: 0.008311586973 | J36: 314350.9621 | K36: 198715.8594 | L36: 1581.911797 | M36: 0.002833254113 | O36: 0.01059748154 | P36: 0.01346076101 | Q36: 0.0359267515 | R36: 0.033 | S36: 329095.5834 | T36: 0 | U36: 0.0359267515 | V36: 0.033 | W36: 329095.5834 | X36: 0.0359267515 | Y36: 0.033 | Z36: 329095.5834 | AA36: 329096 | AB36: 1656.113413 | AC36: 0.03592806294 | AD36: 0.03300130774 | AF36: 327626.6458 | AG36: 1648.719165 | AH36: 0.004484843469 | AI36: 0.004484843469
A37: 01Y | B37: NHS Tameside and Glossop CCG | C37: 373507 | D37: 274.5563071 | E37: 373781.5563 | F37: 248556.2812 | G37: 1503.810543 | H37: 0.004699069003 | J37: 371054.0811 | K37: 249223.8125 | L37: 1488.838797 | M37: 0.002685634202 | O37: 0.007350613673 | P37: 0.01005598893 | Q37: 0.03577426013 | R37: 0.033 | S37: 387153.3149 | T37: 0 | U37: 0.03577426013 | V37: 0.033 | W37: 387153.3149 | X37: 0.03577426013 | Y37: 0.033 | Z37: 387153.3149 | AA37: 387153 | AB37: 1553.435027 | AC37: 0.03577341757 | AD37: 0.03299915969 | AF37: 386724.4533 | AG37: 1551.715502 | AH37: 0.001108144709 | AI37: 0.001108144709
A38: 02A | B38: NHS Trafford CCG | C38: 325563 | D38: 190.6641021 | E38: 325753.6641 | F38: 243556.875 | G38: 1337.484988 | H38: 0.03179944281 | J38: 315507.2523 | K38: 245133.5625 | L38: 1287.083046 | M38: 0.006473590614 | O38: 0.03247599467 | P38: 0.03915982158 | Q38: 0.0396872191 | R38: 0.033 | S38: 338681.9211 | T38: 0 | U38: 0.0396872191 | V38: 0.033 | W38: 338681.9211 | X38: 0.0396872191 | Y38: 0.033 | Z38: 338681.9211 | AA38: 338682 | AB38: 1381.622315 | AC38: 0.03968746118 | AD38: 0.03300024052 | AF38: 328831.7684 | AG38: 1341.439194 | AH38: 0.02995523111 | AI38: 0.02995523111
A39: 02D | B39: NHS Vale Royal CCG | C39: 141357 | D39: 106.7718972 | E39: 141463.7719 | F39: 107292.4375 | G39: 1318.487819 | H39: -0.02969069773 | J39: 145418.6298 | K39: 107566.4219 | L39: 1351.896133 | M39: 0.00255362243 | O39: -0.02719636313 | P39: -0.02471218995 | Q39: 0.03563789197 | R39: 0.033 | S39: 146505.2425 | T39: 0.5351854888 | U39: 0.04059136497 | V39: 0.03794085592 | W39: 147205.9795 | X39: 0.04059136497 | Y39: 0.03794085592 | Z39: 147205.9795 | AA39: 147206 | AB39: 1368.512566 | AC39: 0.04059150994 | AD39: 0.03794100052 | AF39: 151559.9557 | AG39: 1408.98947 | AH39: -0.02872761273 | AI39: -0.02872761273
A40: 02E | B40: NHS Warrington CCG | C40: 298398 | D40: 216.9333784 | E40: 298614.9334 | F40: 219281.6562 | G40: 1361.787112 | H40: -0.01253911255 | J40: 302734.273 | K40: 220369.6406 | L40: 1373.756713 | M40: 0.004961584081 | O40: -0.01360711368 | P40: -0.008713042442 | Q40: 0.03812531636 | R40: 0.033 | S40: 309999.7222 | T40: 0.1886961005 | U40: 0.03987601037 | V40: 0.03474205068 | W40: 310522.5056 | X40: 0.03987601037 | Y40: 0.03474205068 | Z40: 310522.5056 | AA40: 310523 | AB40: 1409.100633 | AC40: 0.03987766615 | AD40: 0.03474369829 | AF40: 315519.3602 | AG40: 1431.773266 | AH40: -0.01583535207 | AI40: -0.01583535207
A41: 02F | B41: NHS West Cheshire CCG | C41: 364927 | D41: 260.1505749 | E41: 365187.1506 | F41: 264776.8438 | G41: 1379.226164 | H41: 0.008813178382 | J41: 362053.2058 | K41: 265597.6875 | L41: 1363.163999 | M41: 0.003100134205 | O41: 0.00865603384 | P41: 0.01178300291 | Q41: 0.03620243863 | R41: 0.033 | S41: 378407.816 | T41: 0 | U41: 0.03620243863 | V41: =MAX(R41,NewMinGrowthPerHead(P41,$P$2,$L$1,$U$1,$T$2,AG41,G41,T41, $P$1)) -> 0.033 | W41: 378407.816 | X41: 0.03620243863 | Y41: 0.033 | Z41: 378407.816 | AA41: 378408 | AB41: =AA41/K41*1000 -> 1424.74132 | AC41: =AA41/E41-1 -> 0.03620294253 | AD41: =AB41/G41-1 -> 0.03300050234 | AF41: 377343.4526 | AG41: =AF41/K41*1000 -> 1420.733201 | AH41: 0.002821162902 | AI41: 0.002821162902
A42: 02G | B42: NHS West Lancashire CCG | C42: 160160 | D42: 108.4666892 | E42: 160268.4667 | F42: 113720.625 | G42: 1409.317498 | H42: -0.007815725324 | J42: 161317.6428 | K42: 113877.375 | L42: 1416.590809 | M42: 0.001378377933 | O42: -0.006503790012 | P42: -0.00513437676 | Q42: 0.0344238644 | R42: 0.033 | S42: 165785.5267 | T42: 0.111193866 | U42: 0.03545182602 | V42: 0.03402654665 | W42: 165950.2765 | X42: 0.03545182602 | Y42: 0.03402654665 | Z42: 165950.2765 | AA42: 165950 | AB42: 1457.269278 | AC42: 0.03545010087 | AD42: 0.03402482387 | AF42: 168130.4165 | AG42: 1476.416334 | AH42: -0.01296860245 | AI42: -0.01296860245
A43: 02H | B43: NHS Wigan Borough CCG | C43: 489882 | D43: 305.9099594 | E43: 490187.91 | F43: 328789.4375 | G43: 1490.887036 | H43: -0.008613087818 | J43: 494401.9502 | K43: 329583.8125 | L43: 1500.07959 | M43: 0.002416059975 | O43: -0.008523510572 | P43: -0.00612804391 | Q43: 0.03549578995 | R43: 0.033 | S43: 507587.517 | T43: 0.1327134577 | U43: 0.03672396662 | V43: 0.03422521647 | W43: 508189.5544 | X43: 0.03672396662 | Y43: 0.03422521647 | Z43: 508189.5544 | AA43: 508190 | AB43: 1541.91432 | AC43: 0.03672487565 | AD43: 0.03422612331 | AF43: 515281.5551 | AG43: 1563.431017 | AH43: -0.01376248577 | AI43: -0.01376248577
A44: 02M | B44: NHS Fylde & Wyre CCG | C44: 276848 | D44: 199.1380622 | E44: 277047.1381 | F44: 178249.3125 | G44: 1554.267639 | H44: 0.0183628827 | J44: 272175.4273 | K44: 178955.0312 | L44: 1520.915201 | M44: 0.003959166743 | O44: 0.01789915732 | P44: 0.02192918981 | Q44: 0.03708981925 | R44: 0.033 | S44: 287322.7663 | T44: 0 | U44: 0.03708981925 | V44: 0.033 | W44: 287322.7663 | X44: 0.03708981925 | Y44: 0.033 | Z44: 287322.7663 | AA44: 287323 | AB44: 1605.559777 | AC44: 0.03709066266 | AD44: 0.03300084008 | AF44: 283669.9519 | AG44: 1585.146558 | AH44: 0.0128778114 | AI44: 0.0128778114
A45: 02N | B45: NHS Airedale, Wharfedale and Craven CCG | C45: 221769 | D45: 109.5165413 | E45: 221878.5165 | F45: 159702.5 | G45: 1389.324003 | H45: -0.003191830682 | J45: 222175.2316 | K45: 160223.2188 | L45: 1386.660644 | M45: 0.003260554782 | O45: -0.001335500352 | P45: 0.001920699957 | Q45: 0.03636815309 | R45: 0.033 | S45: 229947.8284 | T45: 0 | U45: 0.03636815309 | V45: 0.033 | W45: 229947.8284 | X45: 0.03636815309 | Y45: 0.033 | Z45: 229947.8284 | AA45: 229948 | AB45: 1435.172766 | AC45: 0.03636892649 | AD45: 0.03300077089 | AF45: 231558.1458 | AG45: 1445.222157 | AH45: -0.006953526811 | AI45: -0.006953526811
A46: 02P | B46: NHS Barnsley CCG | C46: 399162 | D46: 149.8647407 | E46: 399311.8647 | F46: 262230.9375 | G46: 1522.748874 | H46: 0.04204394697 | J46: 383951.5144 | K46: 264060.1562 | L46: 1454.030475 | M46: 0.006975602373 | O46: 0.04000596364 | P46: 0.04726063171 | Q46: 0.04020579725 | R46: 0.033 | S46: 415366.5166 | T46: 0 | U46: 0.04020579725 | V46: 0.033 | W46: 415366.5166 | X46: 0.04020579725 | Y46: 0.033 | Z46: 415366.5166 | AA46: 415367 | AB46: 1573.001417 | AC46: 0.0402070078 | AD46: 0.03300120216 | AF46: 400166.5716 | AG46: 1515.437154 | AH46: 0.03798525278 | AI46: 0.03798525278
A47: 02Q | B47: NHS Bassetlaw CCG | C47: 168373 | D47: 139.8015239 | E47: 168512.8015 | F47: 117732.3672 | G47: 1431.320932 | H47: 0.0003560571509 | J47: 168719.301 | K47: 118099.2578 | L47: 1428.622873 | M47: 0.00311631061 | O47: -0.001223923373 | P47: 0.001888573112 | Q47: 0.03621914886 | R47: 0.033 | S47: 174616.1918 | T47: 0 | U47: 0.03621914886 | V47: 0.033 | W47: 174616.1918 | X47: 0.03621914886 | Y47: 0.033 | Z47: 174616.1918 | AA47: 174616 | AB47: 1478.552899 | AC47: 0.03621801086 | AD47: 0.03299886554 | AF47: 175844.6619 | AG47: 1488.956537 | AH47: -0.006987200701 | AI47: -0.006987200701
A48: 02R | B48: NHS Bradford Districts CCG | C48: 464197 | D48: 240.1678537 | E48: 464437.1679 | F48: 334130.3125 | G48: 1389.988129 | H48: 0.002736620878 | J48: 461579.8436 | K48: 334984.2188 | L48: 1377.915191 | M48: 0.00255560845 | O48: 0.006190314158 | P48: 0.008761742627 | Q48: 0.03563994353 | R48: 0.033 | S48: 480989.6823 | T48: 0 | U48: 0.03563994353 | V48: 0.033 | W48: 480989.6823 | X48: 0.03563994353 | Y48: 0.033 | Z48: 480989.6823 | AA48: 480990 | AB48: 1435.858686 | AC48: 0.03564062761 | AD48: 0.03300068233 | AF48: 481073.3038 | AG48: 1436.107365 | AH48: -0.0001731624375 | AI48: -0.0001731624375
A49: 02T | B49: NHS Calderdale CCG | C49: 300756 | D49: 155.6287692 | E49: 300911.6288 | F49: 221396.0625 | G49: 1359.155287 | H49: 0.03547751884 | J49: 290134.4333 | K49: 222195.1562 | L49: 1305.763988 | M49: 0.003609340387 | O49: 0.03714552383 | P49: 0.04088893506 | Q49: 0.03672844862 | R49: 0.033 | S49: 311963.6461 | T49: 0 | U49: 0.03672844862 | V49: 0.033 | W49: 311963.6461 | X49: 0.03672844862 | Y49: 0.033 | Z49: 311963.6461 | AA49: 311964 | AB49: 1404.009004 | AC49: 0.03672962483 | AD49: 0.03300117198 | AF49: 302387.4034 | AG49: 1360.90907 | AH49: 0.03166995884 | AI49: 0.03166995884
A50: 02W | B50: NHS Bradford City CCG | C50: 169066 | D50: 76.85371319 | E50: 169142.8537 | F50: 140352.5781 | G50: 1205.128228 | H50: -0.03898432043 | J50: 174795.0849 | K50: 140252.5469 | L50: 1246.288133 | M50: -0.0007127140188 | O50: -0.03233632773 | P50: -0.03302599519 | Q50: 0.03226376642 | R50: 0.033 | S50: 174600.0392 | T50: 0.7152354129 | U50: 0.03886214503 | V50: 0.03960308472 | W50: 175716.1078 | X50: 0.03886214503 | Y50: 0.03960308472 | Z50: 175716.1078 | AA50: 175716 | AB50: 1252.854254 | AC50: 0.03886150755 | AD50: 0.03960244679 | AF50: 182177.0386 | AG50: 1298.921429 | AH50: -0.03546571296 | AI50: -0.03546571296
A51: 02X | B51: NHS Doncaster CCG | C51: 475253 | D51: 188.2915973 | E51: 475441.2916 | F51: 321430.5625 | G51: 1479.141523 | H51: 0.02686758609 | J51: 462453.7596 | K51: 322119.4688 | L51: 1435.65914 | M51: 0.002143250613 | O51: 0.02808395813 | P51: 0.03028739971 | Q51: 0.03521397788 | R51: 0.033 | S51: 492183.4707 | T51: 0 | U51: 0.03521397788 | V51: 0.033 | W51: 492183.4707 | X51: 0.03521397788 | Y51: 0.033 | Z51: 492183.4707 | AA51: 492183 | AB51: 1527.951731 | AC51: 0.0352129878 | AD51: 0.03299901204 | AF51: 481984.127 | AG51: 1496.28996 | AH51: 0.02116018429 | AI51: 0.02116018429
A52: 02Y | B52: NHS East Riding of Yorkshire CCG | C52: 412107 | D52: 238.2465109 | E52: 412345.2465 | F52: 304863.6562 | G52: 1352.556259 | H52: -0.02564104807 | J52: 423744.3857 | K52: 305466.3438 | L52: 1387.204824 | M52: 0.001976908325 | O52: -0.02690097994 | P52: -0.02497725239 | Q52: 0.0350421463 | R52: 0.033 | S52: 426794.709 | T52: 0.5409258773 | U52: 0.04004587013 | V52: 0.03799385144 | W52: 428857.9707 | X52: 0.04004587013 | Y52: 0.03799385144 | Z52: 428857.9707 | AA52: 428858 | AB52: 1403.945177 | AC52: 0.04004594118 | AD52: 0.03799392236 | AF52: 441639.9772 | AG52: 1445.789319 | AH52: -0.02894207473 | AI52: -0.02894207473
A53: 03A | B53: NHS Greater Huddersfield CCG | C53: 319421 | D53: 170.9995119 | E53: 319591.9995 | F53: 249965.9375 | G53: 1278.542199 | H53: 0.02125100119 | J53: 312467.4778 | K53: 251006.7812 | L53: 1244.856718 | M53: 0.004163942337 | O53: 0.02280084235 | P53: 0.02705972608 | Q53: 0.03730135243 | R53: 0.033 | S53: 331513.2133 | T53: 0 | U53: 0.03730135243 | V53: 0.033 | W53: 331513.2133 | X53: 0.03730135243 | Y53: 0.033 | Z53: 331513.2133 | AA53: 331513 | AB53: 1320.733242 | AC53: 0.03730068496 | AD53: 0.03299933529 | AF53: 325663.618 | AG53: 1297.429561 | AH53: 0.01796142286 | AI53: 0.01796142286
A54: 03D | B54: NHS Hambleton, Richmondshire and Whitby CCG | C54: 197838 | D54: 124.8872839 | E54: 197962.8873 | F54: 144023.375 | G54: 1374.519152 | H54: 0.03497232475 | J54: 191422.8728 | K54: 144107.0938 | L54: 1328.337612 | M54: 0.0005812858503 | O54: 0.03416527209 | P54: 0.03476641773 | Q54: 0.03360046828 | R54: 0.033 | S54: 204614.533 | T54: 0 | U54: 0.03360046828 | V54: 0.033 | W54: 204614.533 | X54: 0.03360046828 | Y54: 0.033 | Z54: 204614.533 | AA54: 204615 | AB54: 1419.881525 | AC54: 0.03360282731 | AD54: 0.03300235766 | AF54: 199507.0519 | AG54: 1384.436024 | AH54: 0.02560284479 | AI54: 0.02560284479
A55: 03E | B55: NHS Harrogate and Rural District CCG | C55: 207241 | D55: 128.7299696 | E55: 207369.73 | F55: 163245.0625 | G55: 1270.297103 | H55: 0.02206062954 | J55: 203072.0874 | K55: 163361.4375 | L55: 1243.084601 | M55: 0.0007128852672 | O55: 0.02116313773 | P55: 0.02189110989 | Q55: 0.03373641048 | R55: 0.033 | S55: 214365.6403 | T55: 0 | U55: 0.03373641048 | V55: 0.033 | W55: 214365.6403 | X55: 0.03373641048 | Y55: 0.033 | Z55: 214365.6403 | AA55: 214366 | AB55: 1312.219109 | AC55: 0.03373814506 | AD55: 0.03300173334 | AF55: 211648.2367 | AG55: 1295.582605 | AH55: 0.01284094458 | AI55: 0.01284094458
A56: 03F | B56: NHS Hull CCG | C56: 421810 | D56: 201.7409971 | E56: 422011.741 | F56: 299668.0312 | G56: 1408.264136 | H56: -0.01065363046 | J56: 424742.3802 | K56: 300221.8125 | L56: 1414.761894 | M56: 0.001847982408 | O56: -0.006428930432 | P56: -0.004592828574 | Q56: 0.03490896583 | R56: 0.033 | S56: 436743.7344 | T56: 0.09946569733 | U56: 0.03582893446 | V56: 0.03391827168 | W56: 437131.972 | X56: 0.03582893446 | Y56: 0.03391827168 | Z56: 437131.972 | AA56: 437132 | AB56: 1456.030114 | AC56: 0.03582900079 | AD56: 0.03391833789 | AF56: 442680.1191 | AG56: 1474.510181 | AH56: -0.0125330206 | AI56: -0.0125330206
A57: 03H | B57: NHS North East Lincolnshire CCG | C57: 241591 | D57: 188.5694974 | E57: 241779.5695 | F57: 169562.0781 | G57: 1425.905911 | H57: 0.0006787335841 | J57: 240865.431 | K57: 169500.1562 | L57: 1421.033681 | M57: -0.0003651870494 | O57: 0.003795224888 | P57: 0.003428651872 | Q57: 0.03262276178 | R57: 0.033 | S57: 249667.0868 | T57: 0 | U57: 0.03262276178 | V57: 0.033 | W57: 249667.0868 | X57: 0.03262276178 | Y57: 0.033 | Z57: 249667.0868 | AA57: 249667 | AB57: 1472.960294 | AC57: 0.03262240279 | AD57: 0.03299964088 | AF57: 251037.6705 | AG57: 1481.046838 | AH57: -0.005460019089 | AI57: -0.005460019089
A58: 03J | B58: NHS North Kirklees CCG | C58: 261178 | D58: 134.4939981 | E58: 261312.494 | F58: 194611.9688 | G58: 1342.735987 | H58: 0.02762624162 | J58: 254201.9545 | K58: 195498.4375 | L58: 1300.276144 | M58: 0.004555057717 | O58: 0.02797200945 | P58: 0.03265448128 | Q58: 0.03770537462 | R58: 0.033 | S58: 271165.3795 | T58: 0 | U58: 0.03770537462 | V58: 0.033 | W58: 271165.3795 | X58: 0.03770537462 | Y58: 0.033 | Z58: 271165.3795 | AA58: 271165 | AB58: 1387.044334 | AC58: 0.03770392242 | AD58: 0.03299855439 | AF58: 264937.4226 | AG58: 1355.189463 | AH58: 0.02350584268 | AI58: 0.02350584268
A59: 03K | B59: NHS North Lincolnshire CCG | C59: 242651 | D59: 198.3230921 | E59: 242849.3231 | F59: 177652.9844 | G59: 1366.987017 | H59: -0.0003598224672 | J59: 243221.0109 | K59: 178117.2188 | L59: 1365.510941 | M59: 0.002613152696 | O59: -0.001528189731 | P59: 0.001080969572 | Q59: 0.03569938673 | R59: 0.033 | S59: 251518.895 | T59: 0 | U59: 0.03569938673 | V59: 0.033 | W59: 251518.895 | X59: 0.03569938673 | Y59: 0.033 | Z59: 251518.895 | AA59: 251519 | AB59: 1412.098178 | AC59: 0.03569981912 | AD59: 0.03300043126 | AF59: 253492.7314 | AG59: 1423.179259 | AH59: -0.007786145746 | AI59: -0.007786145746
A60: 03L | B60: NHS Rotherham CCG | C60: 383197 | D60: 147.9433979 | E60: 383344.9434 | F60: 263993.0938 | G60: 1452.102167 | H60: 0.03110779515 | J60: 371715.1409 | K60: 264819.25 | L60: 1403.656044 | M60: 0.003129461602 | O60: 0.03128686779 | P60: 0.03451424045 | Q60: 0.03623273383 | R60: 0.033 | S60: 397234.5787 | T60: 0 | U60: 0.03623273383 | V60: 0.033 | W60: 397234.5787 | X60: 0.03623273383 | Y60: 0.033 | Z60: 397234.5787 | AA60: 397235 | AB60: 1500.023129 | AC60: 0.03623383285 | AD60: 0.03300109558 | AF60: 387413.4311 | AG60: 1462.935308 | AH60: 0.02535164798 | AI60: 0.02535164798
A61: 03M | B61: NHS Scarborough and Ryedale CCG | C61: 172327 | D61: 109.5165413 | E61: 172436.5165 | F61: 120626.7188 | G61: 1429.505157 | H61: -0.01910527198 | J61: 175175.3313 | K61: 120801.6562 | L61: 1450.107033 | M61: 0.001450238403 | O61: -0.01563470572 | P61: -0.01420714137 | Q61: 0.03449809627 | R61: 0.033 | S61: 178385.2481 | T61: 0.3076803762 | U61: 0.03734273444 | V61: 0.03584051874 | W61: 178875.7676 | X61: 0.03734273444 | Y61: 0.03584051874 | Z61: 178875.7676 | AA61: 178876 | AB61: 1480.741287 | AC61: 0.03734408226 | AD61: 0.03584186461 | AF61: 182573.3436 | AG61: 1511.348017 | AH61: -0.02025127822 | AI61: -0.02025127822
A62: 03N | B62: NHS Sheffield CCG | C62: 805733 | D62: 343.9203665 | E62: 806076.9204 | F62: 604647.125 | G62: 1333.136117 | H62: 0.0489410275 | J62: 768170.5971 | K62: 607792.6875 | L62: 1263.869429 | M62: 0.005202311183 | O62: 0.04934623042 | P62: 0.05480525605 | Q62: 0.03721854582 | R62: 0.03185053823 | S62: 836077.9312 | T62: 0 | U62: 0.03721854582 | V62: 0.03185053823 | W62: 836077.9312 | X62: 0.03721854582 | Y62: 0.03185053823 | Z62: 836077.9312 | AA62: 836078 | AB62: 1375.597333 | AC62: 0.03721863122 | AD62: 0.03185062318 | AF62: 800612.0114 | AG62: 1317.245219 | AH62: 0.04429859663 | AI62: 0.04429859663
A63: 03Q | B63: NHS Vale of York CCG | C63: 434439 | D63: 247.853225 | E63: 434686.8532 | F63: 358916.4375 | G63: 1211.108792 | H63: 0.02209660107 | J63: 425252.7456 | K63: 360500 | L63: 1179.619267 | M63: 0.004412064577 | O63: 0.02218470713 | P63: 0.02669465206 | Q63: 0.03755766271 | R63: 0.033 | S63: 451012.6754 | T63: 0 | U63: 0.03755766271 | V63: 0.033 | W63: 451012.6754 | X63: 0.03755766271 | Y63: 0.033 | Z63: 451012.6754 | AA63: 451013 | AB63: 1251.076283 | AC63: 0.03755840936 | AD63: 0.03300074337 | AF63: 443212.0382 | AG63: 1229.436999 | AH63: 0.01760096997 | AI63: 0.01760096997
A64: 03R | B64: NHS Wakefield CCG | C64: 540204 | D64: 286.2800816 | E64: 540490.2801 | F64: 375745.5312 | G64: 1438.44766 | H64: 0.0008035603862 | J64: 540003.2704 | K64: 377694.125 | L64: 1429.737014 | M64: 0.005185939919 | O64: 0.0009018643344 | P64: 0.006092481268 | Q64: 0.03835707594 | R64: 0.033 | S64: 561221.9068 | T64: 0 | U64: 0.03835707594 | V64: 0.033 | W64: 561221.9068 | X64: 0.03835707594 | Y64: 0.033 | Z64: 561221.9068 | AA64: 561222 | AB64: 1485.916679 | AC64: 0.03835724838 | AD64: 0.03300017155 | AF64: 562808.7122 | AG64: 1490.11773 | AH64: -0.002819274421 | AI64: -0.002819274421
A65: 03T | B65: NHS Lincolnshire East CCG | C65: 369604 | D65: 325.1198231 | E65: 369929.1198 | F65: 251486.8125 | G65: 1470.968263 | H65: -0.02617915807 | J65: 380339.8549 | K65: 252526.2969 | L65: 1506.139597 | M65: 0.004133355402 | O65: -0.02737219085 | P65: -0.02335197444 | Q65: 0.03726975613 | R65: 0.033 | S65: 383716.2879 | T65: 0.5057276544 | U65: 0.04195795425 | V65: 0.0376688999 | W65: 385450.5889 | X65: 0.04195795425 | Y65: 0.0376688999 | Z65: 385450.5889 | AA65: 385451 | AB65: 1526.379647 | AC65: 0.04195906552 | AD65: 0.03767000659 | AF65: 396402.3844 | AG65: 1569.74695 | AH65: -0.02762693868 | AI65: -0.02762693868
A66: 03V | B66: NHS Corby CCG | C66: 106278 | D66: 81.27995577 | E66: 106359.28 | F66: 79913.375 | G66: 1330.932149 | H66: 0.00237121202 | J66: 107064.699 | K66: 81145.17188 | L66: 1319.421681 | M66: 0.01541415157 | O66: -0.006588717817 | P66: 0.008723874261 | Q66: 0.04892281858 | R66: 0.033 | S66: 111562.6757 | T66: 0 | U66: 0.04892281858 | V66: 0.033 | W66: 111562.6757 | X66: 0.04892281858 | Y66: 0.033 | Z66: 111562.6757 | AA66: 111563 | AB66: 1374.856907 | AC66: 0.04892586755 | AD66: 0.03300300269 | AF66: 111586.2601 | AG66: 1375.143555 | AH66: -0.0002084496325 | AI66: -0.0002084496325
A67: 03W | B67: NHS East Leicestershire and Rutland CCG | C67: 393963 | D67: 276.3518496 | E67: 394239.3518 | F67: 333199 | G67: 1183.194883 | H67: -0.01688862412 | J67: 402011.8491 | K67: 335015.1875 | L67: 1199.980968 | M67: 0.005450759156 | O67: -0.0193340005 | P67: -0.01398862633 | Q67: 0.03863063421 | R67: 0.033 | S67: 409469.068 | T67: 0.3029480526 | U67: 0.04144270877 | V67: 0.03579682972 | W67: 410577.6985 | X67: 0.04144270877 | Y67: 0.03579682972 | Z67: 410577.6985 | AA67: 410578 | AB67: 1225.550409 | AC67: 0.04144347355 | AD67: 0.03579759035 | AF67: 418989.6312 | AG67: 1250.658617 | AH67: -0.02007598893 | AI67: -0.02007598893
A68: 04C | B68: NHS Leicester City CCG | C68: 474842 | D68: 396.6461841 | E68: 475238.6462 | F68: 409607.5625 | G68: 1160.22918 | H68: -0.008699145437 | J68: 479451.8427 | K68: 412727.875 | L68: 1161.665765 | M68: 0.007617809791 | O68: -0.008787527973 | P68: -0.001236659899 | Q68: 0.04086919751 | R68: 0.033 | S68: 494661.2683 | T68: 0.02678202272 | U68: 0.04111833385 | V68: 0.03324725281 | W68: 494779.6675 | X68: 0.04111833385 | Y68: 0.03324725281 | Z68: 494779.6675 | AA68: 494780 | AB68: 1198.804418 | AC68: 0.04111903351 | AD68: 0.03324794718 | AF68: 499700.0739 | AG68: 1210.725285 | AH68: -0.009846054026 | AI68: -0.009846054026
A69: 04D | B69: NHS Lincolnshire West CCG | C69: 299877 | D69: 253.593462 | E69: 300130.5935 | F69: 238697.6562 | G69: 1257.367157 | H69: -0.01142352504 | J69: 304262.3638 | K69: 239817.1719 | L69: 1268.726345 | M69: 0.004690098942 | O69: -0.01357963013 | P69: -0.008953220993 | Q69: 0.03784487221 | R69: 0.033 | S69: 311488.9974 | T69: 0.1938975851 | U69: 0.03964333883 | V69: 0.03479007102 | W69: 312028.7723 | X69: 0.03964333883 | Y69: 0.03479007102 | Z69: 312028.7723 | AA69: 312029 | AB69: 1301.111999 | AC69: 0.03964409759 | AD69: 0.03479082623 | AF69: 317111.9853 | AG69: 1322.307251 | AH69: -0.01602899153 | AI69: -0.01602899153
A70: 04E | B70: NHS Mansfield and Ashfield CCG | C70: 282023 | D70: 237.3374708 | E70: 282260.3375 | F70: 195172.625 | G70: 1446.208645 | H70: -0.006070041662 | J70: 284450.659 | K70: 196347.5 | L70: 1448.710368 | M70: 0.006019671048 | O70: -0.007700181058 | P70: -0.001726862567 | Q70: 0.03921832019 | R70: 0.033 | S70: 293330.1138 | T70: 0.03739821478 | U70: 0.03956566052 | V70: 0.03334526196 | W70: 293428.1542 | X70: 0.03956566052 | Y70: 0.03334526196 | Z70: 293428.1542 | AA70: 293428 | AB70: 1494.432066 | AC70: 0.03956511435 | AD70: 0.03334471906 | AF70: 296463.5918 | AG70: 1509.892368 | AH70: -0.01023934085 | AI70: -0.01023934085
A71: 04F | B71: NHS Milton Keynes CCG | C71: 337491 | D71: 255.4372363 | E71: 337746.4372 | F71: 297252.1875 | G71: 1136.228601 | H71: -0.03547742818 | J71: 351534.5265 | K71: 300121.75 | L71: 1171.3064 | M71: 0.009653629546 | O71: -0.03922257477 | P71: -0.02994758543 | Q71: 0.04297219932 | R71: 0.033 | S71: 352260.1445 | T71: 0.648567091 | U71: 0.04901760124 | V71: 0.03898759985 | W71: 354301.9574 | X71: 0.04901760124 | Y71: 0.03898759985 | Z71: 354301.9574 | AA71: 354302 | AB71: 1180.527569 | AC71: 0.04901772732 | AD71: 0.03898772472 | AF71: 366380.548 | AG71: 1220.773063 | AH71: -0.03296721974 | AI71: -0.03296721974
A72: 04G | B72: NHS Nene CCG | C72: 846248 | D72: 656.7420426 | E72: 846904.742 | F72: 691032.875 | G72: 1225.563606 | H72: -0.008807803014 | J72: 857336.9585 | K72: 695931.1875 | L72: 1231.927774 | M72: 0.007088392864 | O72: -0.01216816375 | P72: -0.005166023606 | Q72: 0.04032230983 | R72: 0.033 | S72: 881053.8974 | T72: 0.1118792335 | U72: 0.04136250524 | V72: 0.03403287399 | W72: 881934.8439 | X72: 0.04136250524 | Y72: 0.03403287399 | Z72: 881934.8439 | AA72: 881935 | AB72: 1267.273282 | AC72: 0.04136268959 | AD72: 0.03403305705 | AF72: 893544.0506 | AG72: 1283.954602 | AH72: -0.01299214134 | AI72: -0.01299214134
A73: 04H | B73: NHS Newark & Sherwood CCG | C73: 184157 | D73: 139.8015239 | E73: 184296.8015 | F73: 136000.9688 | G73: 1355.113888 | H73: -0.008099708123 | J73: 186372.723 | K73: 136950.875 | L73: 1360.872817 | M73: 0.006984555027 | O73: -0.01113854771 | P73: -0.004231790482 | Q73: 0.04021504534 | R73: 0.033 | S73: 191708.3058 | T73: 0.09164678901 | U73: 0.04106704206 | V73: =MAX(R73,NewMinGrowthPerHead(P73,$P$2,$L$1,$U$1,$T$2,AG73,G73,T73, $P$1)) -> 0.03384608718 | W73: 191865.326 | X73: 0.04106704206 | Y73: 0.03384608718 | Z73: 191865.326 | AA73: 191865 | AB73: =AA73/K73*1000 -> 1400.97681 | AC73: =AA73/E73-1 -> 0.04106527305 | AD73: =AB73/G73-1 -> 0.03384433043 | AF73: 194243.624 | AG73: =AF73/K73*1000 -> 1418.345257 | AH73: -0.01224557058 | AI73: -0.01224557058
A74: 04K | B74: NHS Nottingham City CCG | C74: 464461 | D74: 399.8973824 | E74: =C74+D74 -> 464860.8974 | F74: 381504.375 | G74: =E74/F74*1000 -> 1218.494276 | H74: -0.03399809275 | J74: 480240.4599 | K74: 383184.875 | L74: =J74/K74*1000 -> 1253.286576 | M74: =K74/F74-1 -> 0.004404929826 | O74: =E74/J74-1 -> -0.03202471217 | P74: =G74/L74-1 -> -0.02776084895 | Q74: =(1+M74)*(1+R74)-1 -> 0.03755029251 | R74: =MinGrowthPerHead(P74,0,1,$Q$1,$Q$2,$R$1,$R$2) -> 0.033 | S74: =(1+IF($S$2=1,Q74,0))*$E74 -> 482316.5601 | T74: =MinMaxRamp(P74,0,1,$P$2,$T$2) -> 0.6012095063 | U74: =(1+M74)*(1+V74)-1 -> 0.04312513415 | V74: 0.03855039255 | W74: =(1+IF($S$2=1,U74,0))*$E74 -> 484908.0859 | X74: =MAX(U74,$X$1) -> 0.04312513415 | Y74: =(1+X74)/(1+M74) - 1 -> 0.03855039255 | Z74: =(1+IF($Z$2=1,X74,0))*$E74 -> 484908.0859 | AA74: =IF(ROUND(Z74,0)/E74>$AA$1,ROUND(Z74,0),ROUNDUP(Z74,0)) -> 484908 | AB74: 1265.467485 | AC74: 0.04312494927 | AD74: 0.03855020848 | AF74: 500521.9961 | AG74: 1306.215429 | AH74: =AA74/AF74-1 -> -0.03119542434 | AI74: -0.03119542434
A75: 04L | B75: NHS Nottingham North and East CCG | C75: 199556 | D75: 143.0527222 | E75: 199699.0527 | F75: 153479.5469 | G75: 1301.144399 | H75: -0.02995649881 | J75: 206189.5817 | K75: 154496.7812 | L75: 1334.588203 | M75: 0.006627817163 | O75: -0.03147845241 | P75: -0.02505926867 | Q75: 0.03984653513 | R75: 0.033 | S75: 207656.368 | T75: 0.5427020828 | U75: 0.04488999159 | V75: 0.03801024945 | W75: 208663.5415 | X75: 0.04488999159 | Y75: 0.03801024945 | Z75: 208663.5415 | AA75: 208664 | AB75: 1350.604189 | AC75: 0.04489228745 | AD75: 0.03801253018 | AF75: 214897.3891 | AG75: 1390.950591 | AH75: -0.02900635109 | AI75: -0.02900635109
A76: 04M | B76: NHS Nottingham West CCG | C76: 126270 | D76: 100.7871452 | E76: 126370.7871 | F76: 94623.32812 | G76: 1335.514081 | H76: 0.02113552551 | J76: 123885.8054 | K76: 95121.66406 | L76: 1302.393168 | M76: 0.005266523038 | O76: 0.02005864792 | P76: 0.02543081029 | Q76: 0.0384403183 | R76: 0.033 | S76: 131228.5204 | T76: 0 | U76: 0.0384403183 | V76: 0.033 | W76: 131228.5204 | X76: 0.0384403183 | Y76: 0.033 | Z76: 131228.5204 | AA76: 131229 | AB76: 1379.591088 | AC76: 0.03844411327 | AD76: 0.03300377509 | AF76: 129117.7562 | AG76: 1357.395893 | AH76: 0.0163513052 | AI76: 0.0163513052
A77: 04N | B77: NHS Rushcliffe CCG | C77: 154278 | D77: 94.28474869 | E77: 154372.2847 | F77: 128001.9531 | G77: 1206.015072 | H77: 0.02226185762 | J77: 151690.5915 | K77: 128916.7656 | L77: 1176.655269 | M77: 0.007146863604 | O77: 0.0176787053 | P77: 0.0249519162 | Q77: 0.0403827101 | R77: 0.033 | S77: 160606.256 | T77: 0 | U77: 0.0403827101 | V77: 0.033 | W77: 160606.256 | X77: 0.0403827101 | Y77: 0.033 | Z77: 160606.256 | AA77: 160606 | AB77: 1245.811584 | AC77: 0.04038105196 | AD77: 0.03299835362 | AF77: 158096.7952 | AG77: 1226.347826 | AH77: 0.01587131981 | AI77: 0.01587131981
A78: 04Q | B78: NHS South West Lincolnshire CCG | C78: 172077 | D78: 130.0479292 | E78: 172207.0479 | F78: 134597.2812 | G78: 1279.424416 | H78: -0.001164129348 | J78: 173419.3502 | K78: 135580.4688 | L78: 1279.087997 | M78: 0.007304660918 | O78: -0.006990582576 | P78: 0.0002630145062 | Q78: 0.04054571473 | R78: 0.033 | S78: 179189.3058 | T78: 0 | U78: 0.04054571473 | V78: 0.033 | W78: 179189.3058 | X78: 0.04054571473 | Y78: 0.033 | Z78: 179189.3058 | AA78: 179189 | AB78: 1321.643166 | AC78: 0.04054393914 | AD78: 0.03299823729 | AF78: 180743.2038 | AG78: 1333.106498 | AH78: -0.008598961365 | AI78: -0.008598961365
A79: 04V | B79: NHS West Leicestershire CCG | C79: 457437 | D79: 334.8734178 | E79: 457771.8734 | F79: 396364.25 | G79: 1154.92725 | H79: -0.01995368884 | J79: 468952.393 | K79: 399689.625 | L79: 1173.291383 | M79: 0.00838969458 | O79: -0.02384148094 | P79: -0.0156518091 | Q79: 0.0416665545 | R79: 0.033 | S79: 476845.6501 | T79: 0.3389671706 | U79: 0.04482216867 | V79: 0.0361293598 | W79: 478290.2015 | X79: 0.04482216867 | Y79: 0.0361293598 | Z79: 478290.2015 | AA79: 478290 | AB79: 1196.653528 | AC79: 0.04482172841 | AD79: 0.03612892319 | AF79: 488757.211 | AG79: 1222.841876 | AH79: -0.02141597251 | AI79: -0.02141597251
A80: 04Y | B80: NHS Cannock Chase CCG | C80: 180255 | D80: 170.274529 | E80: 180425.2745 | F80: 133391.125 | G80: 1352.60329 | H80: -0.02449961971 | J80: 184801.3143 | K80: 133519.9062 | L80: 1384.073128 | M80: 0.0009654409167 | O80: -0.02367970046 | P80: -0.0227371209 | Q80: 0.03399730047 | R80: 0.033 | S80: 186559.2468 | T80: 0.4924119307 | U80: 0.03854765789 | V80: 0.03754596855 | W80: 187380.2463 | X80: 0.03854765789 | Y80: 0.03754596855 | Z80: 187380.2463 | AA80: 187380 | AB80: 1403.386246 | AC80: 0.03854629286 | AD80: 0.03754460484 | AF80: 192605.8515 | AG80: 1442.525365 | AH80: -0.0271323611 | AI80: -0.0271323611
A81: 05A | B81: NHS Coventry and Rugby CCG | C81: 641970 | D81: 520.723269 | E81: 642490.7233 | F81: 521674.4062 | G81: 1231.593338 | H81: -0.01424291362 | J81: 653660.7254 | K81: 528344.125 | L81: 1237.187459 | M81: 0.01278521367 | O81: -0.01708837887 | P81: -0.004521643775 | Q81: 0.04620712572 | R81: 0.033 | S81: 672178.3729 | T81: 0.09792406661 | U81: 0.04712272334 | V81: 0.03390403928 | W81: 672766.6359 | X81: 0.04712272334 | Y81: 0.03390403928 | Z81: 672766.6359 | AA81: 672767 | AB81: 1273.350016 | AC81: 0.04712329009 | AD81: 0.03390459888 | AF81: 681266.1538 | AG81: 1289.436414 | AH81: -0.01247552633 | AI81: -0.01247552633
A82: 05C | B82: NHS Dudley CCG | C82: 449511 | D82: 340.549058 | E82: 449851.5491 | F82: 320331.8125 | G82: 1404.329921 | H82: -0.013179472 | J82: 454398.5855 | K82: 321186.375 | L82: 1414.750503 | M82: 0.002667741594 | O82: -0.01000671341 | P82: -0.00736566714 | Q82: 0.03575577707 | R82: 0.033 | S82: 465936.3408 | T82: 0.159516343 | U82: 0.03723236763 | V82: 0.03447266188 | W82: 466600.5873 | X82: 0.03723236763 | Y82: 0.03447266188 | Z82: 466600.5873 | AA82: 466601 | AB82: 1452.742197 | AC82: 0.03723328502 | AD82: 0.03447357683 | AF82: 473588.7665 | AG82: 1474.498308 | AH82: -0.01475492447 | AI82: -0.01475492447
A83: 05D | B83: NHS East Staffordshire CCG | C83: 173114 | D83: 140.5754833 | E83: 173254.5755 | F83: 142623.875 | G83: 1214.765589 | H83: -0.04467633482 | J83: 181715.5764 | K83: 143146.2188 | L83: 1269.440282 | M83: 0.003662386469 | O83: -0.04656178104 | P83: -0.0430699218 | Q83: 0.03678324522 | R83: 0.033 | S83: 179627.441 | T83: 0.9327541268 | U83: 0.0454260099 | V83: 0.04161122703 | W83: 181124.8395 | X83: 0.0454260099 | Y83: 0.04161122703 | Z83: 181124.8395 | AA83: 181125 | AB83: 1265.314596 | AC83: 0.04542693603 | AD83: 0.04161214978 | AF83: 189389.7966 | AG83: 1323.05134 | AH83: -0.04363908039 | AI83: -0.04363908039
A84: 05F | B84: NHS Herefordshire CCG | C84: 252582 | D84: 275.2111574 | E84: 252857.2112 | F84: 188340.4375 | G84: 1342.554018 | H84: 0.003920382175 | J84: 251820.1547 | K84: 189233.0781 | L84: 1330.740678 | M84: 0.004739505954 | O84: 0.004118242521 | P84: 0.008877266911 | Q84: 0.03789590965 | R84: 0.033 | S84: 262439.4652 | T84: 0 | U84: 0.03789590965 | V84: 0.033 | W84: 262439.4652 | X84: 0.03789590965 | Y84: 0.033 | Z84: 262439.4652 | AA84: 262439 | AB84: 1386.855843 | AC84: 0.03789406993 | AD84: 0.03299816896 | AF84: 262455.0345 | AG84: 1386.940577 | AH84: -6.109432506e-05 | AI84: -6.109432506e-05
A85: 05G | B85: NHS North Staffordshire CCG | C85: 304489 | D85: 249.4719844 | E85: 304738.472 | F85: 218799.0938 | G85: 1392.777579 | H85: 0.0284512961 | J85: 296074.4986 | K85: 219545.2812 | L85: 1348.580561 | M85: 0.003410377471 | O85: 0.02926281546 | P85: 0.03277299017 | Q85: 0.03652291993 | R85: 0.033 | S85: 315868.4108 | T85: 0 | U85: 0.03652291993 | V85: 0.033 | W85: 315868.4108 | X85: 0.03652291993 | Y85: 0.033 | Z85: 315868.4108 | AA85: 315868 | AB85: 1438.737368 | AC85: 0.0365215719 | AD85: 0.03299865656 | AF85: 308578.3298 | AG85: 1405.533875 | AH85: 0.0236234029 | AI85: 0.0236234029
A86: 05H | B86: NHS Warwickshire North CCG | C86: 251503 | D86: 235.6124297 | E86: 251738.6124 | F86: 192349.4375 | G86: 1308.756686 | H86: -0.01913124282 | J86: 256574.5952 | K86: 193056.6562 | L86: 1329.011909 | M86: 0.003676739372 | O86: -0.01884825253 | P86: -0.01524081327 | Q86: 0.03679807177 | R86: 0.033 | S86: 261002.108 | T86: 0.3300663404 | U86: 0.03985646242 | V86: 0.03604718694 | W86: 261772.023 | X86: 0.03985646242 | Y86: 0.03604718694 | Z86: 261772.023 | AA86: 261772 | AB86: 1355.933564 | AC86: 0.03985637115 | AD86: 0.036047096 | AF86: 267410.2648 | AG86: 1385.138798 | AH86: -0.02108469831 | AI86: -0.02108469831
A87: 05J | B87: NHS Redditch and Bromsgrove CCG | C87: 217945 | D87: 237.5923661 | E87: 218182.5924 | F87: 178487.7656 | G87: 1222.395225 | H87: -0.04191611331 | J87: 227961.896 | K87: 179143.1562 | L87: 1272.512446 | M87: 0.003671907835 | O87: -0.04289885183 | P87: -0.03938446463 | Q87: 0.03679308079 | R87: 0.033 | S87: 226210.2021 | T87: 0.8529391366 | U87: 0.0446963663 | V87: 0.04087437154 | W87: 227934.5614 | X87: 0.0446963663 | Y87: 0.04087437154 | Z87: 227934.5614 | AA87: 227935 | AB87: 1272.362309 | AC87: 0.04469837638 | AD87: 0.04087637427 | AF87: 237589.1928 | AG87: 1326.253248 | AH87: -0.04063397265 | AI87: -0.04063397265
A88: 05L | B88: NHS Sandwell and West Birmingham CCG | C88: 734420 | D88: 671.1984342 | E88: 735091.1984 | F88: 575628.9375 | G88: 1277.022663 | H88: -0.04990000949 | J88: 774063.5724 | K88: 579789.375 | L88: 1335.077195 | M88: 0.007227637857 | O88: -0.05034776904 | P88: -0.04348402663 | Q88: 0.04046614991 | R88: 0.033 | S88: 764837.5091 | T88: 0.9417222875 | U88: 0.04922300863 | V88: 0.04169402149 | W88: 771274.5988 | X88: 0.04922300863 | Y88: 0.04169402149 | Z88: 771274.5988 | AA88: 771275 | AB88: 1330.267565 | AC88: 0.04922355436 | AD88: 0.0416945633 | AF88: 806753.8592 | AG88: 1391.460234 | AH88: -0.04397730331 | AI88: -0.04397730331
A89: 05N | B89: NHS Shropshire CCG | C89: 414885 | D89: 419.7465134 | E89: 415304.7465 | F89: 311223.875 | G89: 1334.424445 | H89: -0.0309561974 | J89: 430317.8614 | K89: 312527.375 | L89: 1376.89654 | M89: 0.004188303356 | O89: -0.03488843068 | P89: -0.03084625065 | Q89: 0.03732651737 | R89: 0.033 | S89: 430806.6263 | T89: 0.6680292507 | U89: 0.04351962315 | V89: 0.03916727536 | W89: 433378.6526 | X89: 0.04351962315 | Y89: 0.03916727536 | Z89: 433378.6526 | AA89: 433379 | AB89: 1386.691326 | AC89: 0.04352045971 | AD89: 0.03916810843 | AF89: 448491.0642 | AG89: 1435.045695 | AH89: -0.03369535182 | AI89: -0.03369535182
A90: 05Q | B90: NHS South East Staffordshire and Seisdon Peninsula CCG | C90: 274711 | D90: 257.3917299 | E90: 274968.3917 | F90: 218123.3281 | G90: 1260.609739 | H90: -0.04989922475 | J90: 290024.5956 | K90: 218447.4062 | L90: 1327.66326 | M90: 0.001485756374 | O90: -0.05191354141 | P90: -0.05050491591 | Q90: 0.03453478633 | R90: 0.033 | S90: 284464.3664 | T90: 1 | U90: 0.04854042609 | V90: 0.04698486165 | W90: 288315.4746 | X90: 0.04854042609 | Y90: 0.04698486165 | Z90: 288315.4746 | AA90: 288315 | AB90: 1319.83714 | AC90: 0.04853869998 | AD90: 0.04698313811 | AF90: 302272.927 | AG90: 1383.733193 | AH90: -0.04617657019 | AI90: -0.04617657019
A91: 05R | B91: NHS South Warwickshire CCG | C91: 353359 | D91: 312.8299487 | E91: 353671.8299 | F91: 288329.125 | G91: 1226.625406 | H91: -0.02185224177 | J91: 361958.8664 | K91: 289400.875 | L91: 1250.717941 | M91: 0.003717106276 | O91: -0.0228949675 | P91: -0.01926296425 | Q91: 0.03683977078 | R91: 0.033 | S91: 366701.0191 | T91: 0.4171730211 | U91: 0.04070544634 | V91: 0.03685135964 | W91: 368068.1996 | X91: 0.04070544634 | Y91: 0.03685135964 | Z91: 368068.1996 | AA91: 368068 | AB91: 1271.82753 | AC91: 0.04070488185 | AD91: 0.03685079724 | AF91: 377245.1292 | AG91: 1303.538316 | AH91: -0.02432670021 | AI91: -0.02432670021
A92: 05T | B92: NHS South Worcestershire CCG | C92: 383568 | D92: 392.027404 | E92: 383960.0274 | F92: 313593.1875 | G92: 1224.38893 | H92: -0.04990100913 | J92: 405507.0196 | K92: 315466.2812 | L92: 1285.421117 | M92: 0.005973005233 | O92: -0.05313592894 | P92: -0.04748030489 | Q92: 0.03917011441 | R92: 0.033 | S92: 398999.7856 | T92: 1 | U92: 0.04989407629 | V92: 0.04366028793 | W92: 403117.3583 | X92: 0.04989407629 | Y92: 0.04366028793 | Z92: 403117.3583 | AA92: 403117 | AB92: 1277.844968 | AC92: 0.04989314311 | AD92: 0.04365936029 | AF92: 422632.4098 | AG92: 1339.707078 | AH92: -0.04617584779 | AI92: -0.04617584779
A93: 05V | B93: NHS Stafford and Surrounds CCG | C93: 186558 | D93: 213.8331295 | E93: 186771.8331 | F93: 149500.5 | G93: 1249.305742 | H93: -0.0435236451 | J93: 195339.4546 | K93: 150004.2344 | L93: 1302.22627 | M93: 0.003369449433 | O93: -0.04386016891 | P93: -0.0406385041 | Q93: 0.03648064126 | R93: 0.033 | S93: 193585.3894 | T93: 0.8800975442 | U93: 0.04463311753 | V93: 0.04112509915 | W93: 195108.0423 | X93: 0.04463311753 | Y93: 0.04112509915 | Z93: 195108.0423 | AA93: 195108 | AB93: 1300.683283 | AC93: 0.044632891 | AD93: 0.04112487339 | AF93: 203589.039 | AG93: 1357.221947 | AH93: -0.04165764063 | AI93: -0.04165764063
A94: 05W | B94: NHS Stoke on Trent CCG | C94: 418751 | D94: 409.8468315 | E94: 419160.8468 | F94: 292240 | G94: 1434.303473 | H94: -0.004397342352 | J94: 419895.761 | K94: 293148.125 | L94: 1432.367207 | M94: 0.003107463044 | O94: -0.001750230135 | P94: 0.001351794133 | Q94: 0.03621000932 | R94: 0.033 | S94: 434338.665 | T94: 0 | U94: 0.03621000932 | V94: 0.033 | W94: 434338.665 | X94: 0.03621000932 | Y94: 0.033 | Z94: 434338.665 | AA94: 434339 | AB94: 1481.63663 | AC94: 0.03621080853 | AD94: 0.03300079673 | AF94: 437628.8173 | AG94: 1492.859002 | AH94: -0.007517368887 | AI94: -0.007517368887
A95: 05X | B95: NHS Telford and Wrekin CCG | C95: 229538 | D95: 207.8933203 | E95: 229745.8933 | F95: 187726.6094 | G95: 1223.832328 | H95: -0.04532988099 | J95: 241763.6079 | K95: 188812.2188 | L95: 1280.444716 | M95: 0.005782927517 | O95: -0.04970853426 | P95: -0.04421306759 | Q95: 0.03897376412 | R95: 0.033 | S95: 238699.9556 | T95: 0.9575109386 | U95: 0.04786466696 | V95: 0.04183978301 | W95: 240742.604 | X95: 0.04786466696 | Y95: 0.04183978301 | Z95: 240742.604 | AA95: 240743 | AB95: 1275.039304 | AC95: 0.04786639065 | AD95: 0.04184149679 | AF95: 251973.7792 | AG95: 1334.520514 | AH95: -0.04457122182 | AI95: -0.04457122182
A96: 05Y | B96: NHS Walsall CCG | C96: 411102 | D96: 362.3283583 | E96: 411464.3284 | F96: 287643.6875 | G96: 1430.465351 | H96: 0.02152466657 | J96: 402228.4961 | K96: 289358.9375 | L96: 1390.067642 | M96: 0.005963106699 | O96: 0.02296165578 | P96: 0.02906168529 | Q96: 0.03915988922 | R96: 0.033 | S96: 427577.2259 | T96: 0 | U96: 0.03915988922 | V96: 0.033 | W96: 427577.2259 | X96: 0.03915988922 | Y96: 0.033 | Z96: 427577.2259 | AA96: 427577 | AB96: 1477.669927 | AC96: 0.03915934027 | AD96: 0.0329994543 | AF96: 419215.4276 | AG96: 1448.77304 | AH96: 0.01994576503 | AI96: 0.01994576503
A97: 06A | B97: NHS Wolverhampton CCG | C97: 381997 | D97: 366.288231 | E97: 382363.2882 | F97: 282238.0625 | G97: 1354.754511 | H97: -0.04577213687 | J97: 399640.7276 | K97: 283758.125 | L97: 1408.385144 | M97: 0.005385745943 | O97: -0.04323242905 | P97: -0.03807952199 | Q97: 0.03856347556 | R97: 0.033 | S97: 397108.5456 | T97: 0.8246783322 | U97: 0.04621794631 | V97: 0.04061346656 | W97: 400035.3342 | X97: 0.04621794631 | Y97: 0.04061346656 | Z97: 400035.3342 | AA97: 400035 | AB97: 1409.77461 | AC97: 0.04621707238 | AD97: 0.04061259731 | AF97: 416518.3724 | AG97: 1467.864127 | AH97: -0.03957417842 | AI97: -0.03957417842
A98: 06D | B98: NHS Wyre Forest CCG | C98: 154701 | D98: 134.6356741 | E98: 154835.6357 | F98: 116725.7969 | G98: 1326.490286 | H98: -0.04990072325 | J98: 163152.1665 | K98: 117143.3125 | L98: 1392.756983 | M98: 0.003576892479 | O98: -0.05097407542 | P98: -0.04757951173 | Q98: 0.03669492993 | R98: 0.033 | S98: 160517.3185 | T98: 1 | U98: 0.04750244805 | V98: 0.04376899857 | W98: 162190.7074 | X98: 0.04750244805 | Y98: 0.04376899857 | Z98: 162190.7074 | AA98: 162191 | AB98: 1384.551935 | AC98: 0.04750433771 | AD98: 0.04377088149 | AF98: 170042.416 | AG98: 1451.575957 | AH98: -0.04617327933 | AI98: -0.04617327933
A99: 06F | B99: NHS Bedfordshire CCG | C99: 604626 | D99: 261.0229341 | E99: 604887.0229 | F99: 486320.9688 | G99: 1243.80206 | H99: 0.0002089814952 | J99: 606926.1724 | K99: 492199.875 | L99: 1233.088839 | M99: 0.01208853129 | O99: -0.003359798145 | P99: 0.008688118124 | Q99: 0.04548745283 | R99: 0.033 | S99: 632401.7929 | T99: 0 | U99: 0.04548745283 | V99: 0.033 | W99: 632401.7929 | X99: 0.04548745283 | Y99: 0.033 | Z99: 632401.7929 | AA99: 632402 | AB99: 1284.847949 | AC99: 0.04548779528 | AD99: 0.03300033836 | AF99: 632557.9051 | AG99: 1285.164701 | AH99: -0.0002464677288 | AI99: -0.0002464677288
A100: 06H | B100: NHS Cambridgeshire and Peterborough CCG | C100: 1092562 | D100: 629.5259 | E100: 1093191.526 | F100: 973472.4375 | G100: 1122.981487 | H100: -0.03706529333 | J100: 1136056.977 | K100: 978624.0625 | L100: 1160.871698 | M100: 0.005292009102 | O100: -0.03773177912 | P100: -0.03263944694 | Q100: 0.0384666454 | R100: 0.033 | S100: 1135242.937 | T100: 0.7068640377 | U100: 0.04502697981 | V100: 0.03952579982 | W100: 1142414.639 | X100: 0.04502697981 | Y100: 0.03952579982 | Z100: 1142414.639 | AA100: 1142415 | AB100: 1167.368598 | AC100: 0.04502731034 | AD100: 0.03952612861 | AF100: 1184034.985 | AG100: 1209.897682 | AH100: -0.03515097565 | AI100: -0.03515097565
A101: 06K | B101: NHS East and North Hertfordshire CCG | C101: 776279 | D101: 361.6788368 | E101: 776640.6788 | F101: 603318.875 | G101: 1287.280592 | H101: 0.02708952713 | J101: 754094.0778 | K101: 608245.0625 | L101: 1239.7866 | M101: 0.008165147328 | O101: 0.02989892335 | P101: 0.03830819979 | Q101: 0.04143459719 | R101: 0.033 | S101: 808820.4725 | T101: 0 | U101: 0.04143459719 | V101: 0.033 | W101: 808820.4725 | X101: 0.04143459719 | Y101: 0.033 | Z101: 808820.4725 | AA101: 808820 | AB101: 1329.760075 | AC101: 0.04143398877 | AD101: 0.03299939651 | AF101: 785941.012 | AG101: 1292.145322 | AH101: 0.02911031191 | AI101: 0.02911031191
A102: 06L | B102: NHS Ipswich and East Suffolk CCG | C102: 510117 | D102: 266.1410309 | E102: 510383.141 | F102: 409731.9062 | G102: 1245.651445 | H102: -0.03227216326 | J102: 528618.7937 | K102: 411776.5312 | L102: 1283.751631 | M102: 0.004990153241 | O102: -0.03449679215 | P102: -0.02967878319 | Q102: 0.0381548283 | R102: 0.033 | S102: 529856.7221 | T102: 0.6427457106 | U102: 0.04411829576 | V102: 0.03893385661 | W102: 532900.3754 | X102: 0.04411829576 | Y102: 0.03893385661 | Z102: 532900.3754 | AA102: 532900 | AB102: 1294.148548 | AC102: 0.04411756024 | AD102: 0.03893312474 | AF102: 550943.4458 | AG102: 1337.967086 | AH102: -0.03275008699 | AI102: -0.03275008699
A103: 06M | B103: NHS Great Yarmouth and Waveney CCG | C103: 348843 | D103: 233.7264181 | E103: 349076.7264 | F103: 240583.375 | G103: 1450.959471 | H103: -0.02027694506 | J103: 356695.6563 | K103: 241371.125 | L103: 1477.78926 | M103: 0.003274332651 | O103: -0.02135974947 | P103: -0.01815535574 | Q103: 0.03638238563 | R103: 0.033 | S103: 361776.9705 | T103: 0.3931858309 | U103: 0.04002418 | V103: 0.03662990885 | W103: 363048.2362 | X103: 0.04002418 | Y103: 0.03662990885 | Z103: 363048.2362 | AA103: 363048 | AB103: 1504.107005 | AC103: 0.0400235035 | AD103: 0.03662923455 | AF103: 371759.6429 | AG103: 1540.199321 | AH103: -0.02343353575 | AI103: -0.02343353575
A104: 06N | B104: NHS Herts Valleys CCG | C104: 823449 | D104: 337.7943854 | E104: 823786.7944 | F104: 651355.75 | G104: 1264.726372 | H104: 0.02668267258 | J104: 798033.7156 | K104: 656279.25 | L104: 1215.997177 | M104: 0.007558849369 | O104: 0.03227066514 | P104: 0.04007344361 | Q104: 0.0408082914 | R104: 0.033 | S104: 857404.1259 | T104: 0 | U104: 0.0408082914 | V104: 0.033 | W104: 857404.1259 | X104: 0.0408082914 | Y104: 0.033 | Z104: 857404.1259 | AA104: 857404 | AB104: 1306.46215 | AC104: 0.04080813852 | AD104: 0.03299984827 | AF104: 831736.3105 | AG104: 1267.351224 | AH104: 0.03086036909 | AI104: 0.03086036909
A105: 06P | B105: NHS Luton CCG | C105: 295132 | D105: 156.9549669 | E105: 295288.955 | F105: 236174.5938 | G105: 1250.299409 | H105: -0.02522283512 | J105: 302319.6901 | K105: 238103.2969 | L105: 1269.699723 | M105: 0.008166429311 | O105: -0.02325596175 | P105: -0.01527945061 | Q105: 0.04143592148 | R105: 0.033 | S105: 307524.5249 | T105: 0.3309030993 | U105: 0.04451578114 | V105: =MAX(R105,NewMinGrowthPerHead(P105,$P$2,$L$1,$U$1,$T$2,AG105,G105,T105, $P$1)) -> 0.03605491193 | W105: 308433.9735 | X105: 0.04451578114 | Y105: 0.03605491193 | Z105: 308433.9735 | AA105: 308434 | AB105: =AA105/K105*1000 -> 1295.378955 | AC105: =AA105/E105-1 -> 0.04451587102 | AD105: =AB105/G105-1 -> 0.03605500109 | AF105: 315087.2685 | AG105: =AF105/K105*1000 -> 1323.321738 | AH105: -0.02111563748 | AI105: -0.02111563748
A106: 06Q | B106: NHS Mid Essex CCG | C106: 488168 | D106: 281.4953211 | E106: 488449.4953 | F106: 393605.25 | G106: 1240.962856 | H106: 0.0009781696095 | J106: 486783.7485 | K106: 395722.8125 | L106: 1230.11293 | M106: 0.005379914267 | O106: 0.003421944266 | P106: 0.008820268299 | Q106: 0.03855745144 | R106: 0.033 | S106: 507282.863 | T106: 0 | U106: 0.03855745144 | V106: 0.033 | W106: 507282.863 | X106: 0.03855745144 | Y106: 0.033 | Z106: 507282.863 | AA106: 507283 | AB106: 1281.914977 | AC106: 0.03855773188 | AD106: 0.03300027894 | AF106: 507341.6211 | AG106: 1282.063114 | AH106: -0.0001155456029 | AI106: -0.0001155456029
A107: 06T | B107: NHS North East Essex CCG | C107: 496951 | D107: 266.1410309 | E107: 497217.141 | F107: 355431.3125 | G107: 1398.912036 | H107: -0.007872214514 | J107: 502822.859 | K107: 359002.8125 | L107: 1400.609804 | M107: 0.01004835498 | O107: -0.01114849472 | P107: -0.001212163769 | Q107: 0.0433799507 | R107: 0.033 | S107: 518786.3961 | T107: 0.02625151639 | U107: 0.04362474112 | V107: 0.03324235515 | W107: 518908.1101 | X107: 0.04362474112 | Y107: 0.03324235515 | Z107: 518908.1101 | AA107: 518908 | AB107: 1445.41486 | AC107: 0.04362451971 | AD107: 0.03324213594 | AF107: 524058.0961 | AG107: 1459.760419 | AH107: -0.009827338053 | AI107: -0.009827338053
A108: 06V | B108: NHS North Norfolk CCG | C108: 246739 | D108: 139.8946444 | E108: 246878.8946 | F108: 174474.5469 | G108: 1414.98516 | H108: -0.01304310956 | J108: 250806.3099 | K108: 175179.875 | L108: 1431.707323 | M108: 0.00404258465 | O108: -0.01565915639 | P108: -0.01167987521 | Q108: 0.03717598994 | R108: 0.033 | S108: 256056.8619 | T108: 0.2529480283 | U108: 0.0395206576 | V108: 0.0353352273 | W108: 256635.7109 | X108: 0.0395206576 | Y108: 0.0353352273 | Z108: 256635.7109 | AA108: 256636 | AB108: 1464.985633 | AC108: 0.03952182859 | AD108: 0.03533639357 | AF108: 261398.373 | AG108: 1492.171249 | AH108: -0.01821883169 | AI108: -0.01821883169
A109: 06W | B109: NHS Norwich CCG | C109: 279620 | D109: 182.5454507 | E109: 279802.5455 | F109: 237093.5156 | G109: 1180.135799 | H109: -0.009487014225 | J109: 282660.0242 | K109: 238141.7188 | L109: 1186.940388 | M109: 0.004421053533 | O109: -0.01010924242 | P109: -0.00573288239 | Q109: 0.0375669483 | R109: 0.033 | S109: 290313.8732 | T109: 0.1241555472 | U109: 0.03871822521 | V109: 0.03414620946 | W109: 290636.0034 | X109: 0.03871822521 | Y109: 0.03414620946 | Z109: 290636.0034 | AA109: 290636 | AB109: 1220.432949 | AC109: 0.03871821299 | AD109: 0.03414619729 | AF109: 294597.3347 | AG109: 1237.067307 | AH109: -0.01344660741 | AI109: -0.01344660741
A110: 06Y | B110: NHS South Norfolk CCG | C110: 278061 | D110: 177.4273539 | E110: 278238.4274 | F110: 230298.2812 | G110: 1208.165453 | H110: -0.03693229898 | J110: 290990.1982 | K110: 232384.4688 | L110: 1252.19297 | M110: 0.009058632521 | O110: -0.04382199446 | P110: -0.03516032929 | Q110: 0.04235756739 | R110: 0.033 | S110: 290023.9303 | T110: 0.7614581329 | U110: 0.04945106281 | V110: 0.0400298149 | W110: 291997.6133 | X110: 0.04945106281 | Y110: 0.0400298149 | Z110: 291997.6133 | AA110: 291998 | AB110: 1256.529757 | AC110: 0.04945245262 | AD110: 0.04003119224 | AF110: 303279.309 | AG110: 1305.075639 | AH110: -0.03719775367 | AI110: -0.03719775367
A111: 07G | B111: NHS Thurrock CCG | C111: 224492 | D111: 100.6559027 | E111: 224592.6559 | F111: 178554.9375 | G111: 1257.835034 | H111: 0.02324087733 | J111: 219158.8573 | K111: 180604.5625 | L111: 1213.473537 | M111: 0.01147896008 | O111: 0.02479388076 | P111: 0.03655744881 | Q111: 0.04485776576 | R111: 0.033 | S111: 234667.3807 | T111: 0 | U111: 0.04485776576 | V111: 0.033 | W111: 234667.3807 | X111: 0.04485776576 | Y111: 0.033 | Z111: 234667.3807 | AA111: 234667 | AB111: 1299.341483 | AC111: 0.0448560709 | AD111: 0.03299832437 | AF111: 228414.3838 | AG111: 1264.721005 | AH111: 0.02737400372 | AI111: 0.02737400372
A112: 07H | B112: NHS West Essex CCG | C112: 415977 | D112: 214.9600634 | E112: 416191.9601 | F112: 316014.2812 | G112: 1317.003644 | H112: 0.009836310196 | J112: 411076.4031 | K112: 318751.0938 | L112: 1289.647035 | M112: 0.008660407654 | O112: 0.0124442973 | P112: 0.02121247764 | Q112: 0.04194620111 | R112: 0.033 | S112: 433649.6317 | T112: 0 | U112: 0.04194620111 | V112: 0.033 | W112: 433649.6317 | X112: 0.04194620111 | Y112: 0.033 | Z112: 433649.6317 | AA112: 433650 | AB112: 1360.46592 | AC112: 0.04194708599 | AD112: 0.03300087728 | AF112: 428436.9998 | AG112: 1344.111466 | AH112: 0.0121674837 | AI112: 0.0121674837
A113: 07J | B113: NHS West Norfolk CCG | C113: 259198 | D113: 163.7790959 | E113: 259361.7791 | F113: 176762.8125 | G113: 1467.287013 | H113: -0.02886673148 | J113: 267663.0108 | K113: 177701.8125 | L113: 1506.248063 | M113: 0.005312203323 | O113: -0.03101374258 | P113: -0.02586629056 | Q113: 0.03848750603 | R113: 0.033 | S113: 269343.9671 | T113: 0.5601795465 | U113: 0.04368658079 | V113: 0.03817160216 | W113: 270692.4084 | X113: 0.04368658079 | Y113: 0.03817160216 | Z113: 270692.4084 | AA113: 270692 | AB113: 1523.29341 | AC113: 0.04368500611 | AD113: 0.03817003579 | AF113: 278966.9668 | AG113: 1569.859997 | AH113: -0.02966289136 | AI113: -0.02966289136
A114: 07K | B114: NHS West Suffolk CCG | C114: 324848 | D114: 165.4851282 | E114: 325013.4851 | F114: 252258.1562 | G114: 1288.41616 | H114: -0.0224937806 | J114: 333731.5339 | K114: 253729.0469 | L114: 1315.306773 | M114: 0.005830894219 | O114: -0.02612293985 | P114: -0.02044436573 | Q114: 0.03902331373 | R114: 0.033 | S114: 337696.5883 | T114: 0.4427583267 | U114: 0.04313471219 | V114: 0.0370875643 | W114: 339032.8483 | X114: 0.04313471219 | Y114: 0.0370875643 | Z114: 339032.8483 | AA114: 339033 | AB114: 1336.200976 | AC114: 0.04313517904 | AD114: 0.03708802845 | AF114: 347825.6987 | AG114: 1370.854867 | AH114: -0.02527903699 | AI114: -0.02527903699
A115: 07L | B115: NHS Barking and Dagenham CCG | C115: 301668 | D115: 347.7147451 | E115: 302015.7147 | F115: 227890.2969 | G115: 1325.267986 | H115: 0.05004889004 | J115: 288130.1268 | K115: 231530.3125 | L115: 1244.459629 | M115: 0.01597266612 | O115: 0.04819207259 | P115: 0.0649344946 | Q115: 0.04587023276 | R115: 0.02942753052 | S115: 315869.2459 | T115: 0 | U115: 0.04587023276 | V115: 0.02942753052 | W115: 315869.2459 | X115: 0.04587023276 | Y115: 0.02942753052 | Z115: 315869.2459 | AA115: 315869 | AB115: 1364.266288 | AC115: 0.04586941864 | AD115: 0.02942672919 | AF115: 300298.4509 | AG115: 1297.015703 | AH115: 0.05185024775 | AI115: 0.05185024775
A116: 07M | B116: NHS Barnet CCG | C116: 525288 | D116: 531.2908528 | E116: 525819.2909 | F116: 428645.75 | G116: 1226.698949 | H116: 0.02387342819 | J116: 512466.7586 | K116: 433326.5312 | L116: 1182.634161 | M116: 0.01091992922 | O116: 0.02605541146 | P116: 0.03725986393 | Q116: 0.04428028688 | R116: 0.033 | S116: 549102.7199 | T116: 0 | U116: 0.04428028688 | V116: 0.033 | W116: 549102.7199 | X116: 0.04428028688 | Y116: 0.033 | Z116: 549102.7199 | AA116: 549103 | AB116: 1267.18066 | AC116: 0.04428081957 | AD116: 0.03300052694 | AF116: 534109.2772 | AG116: 1232.579218 | AH116: 0.0280723878 | AI116: 0.0280723878
A117: 07N | B117: NHS Bexley CCG | C117: 327611 | D117: 358.5133397 | E117: 327969.5133 | F117: 243943.6875 | G117: 1344.447633 | H117: 0.0079293806 | J117: 323836.5336 | K117: 246476.6406 | L117: 1313.86298 | M117: 0.01038335179 | O117: 0.01276254946 | P117: 0.02327841929 | Q117: 0.0437260024 | R117: 0.033 | S117: 342310.3091 | T117: 0 | U117: 0.0437260024 | V117: 0.033 | W117: 342310.3091 | X117: 0.0437260024 | Y117: 0.033 | Z117: 342310.3091 | AA117: 342310 | AB117: 1388.813151 | AC117: 0.04372506003 | AD117: 0.03299906732 | AF117: 337512.8123 | AG117: 1369.350099 | AH117: 0.01421335003 | AI117: 0.01421335003
A118: 07P | B118: NHS Brent CCG | C118: 452771 | D118: 498.8950691 | E118: 453269.8951 | F118: 383764.3438 | G118: 1181.115188 | H118: -0.04606601085 | J118: 472566.9027 | K118: 385367 | L118: 1226.277555 | M118: 0.004176146836 | O118: -0.04083444587 | P118: -0.03682882968 | Q118: 0.03731395968 | R118: 0.033 | S118: 470183.1897 | T118: 0.7975924132 | U118: 0.04470811852 | V118: 0.04036340816 | W118: 473534.7393 | X118: 0.04470811852 | Y118: 0.04036340816 | Z118: 473534.7393 | AA118: 473535 | AB118: 1228.789699 | AC118: 0.04470869376 | AD118: 0.04036398102 | AF118: 492524.3689 | AG118: 1278.065763 | AH118: -0.03855518641 | AI118: -0.03855518641
A119: 07Q | B119: NHS Bromley CCG | C119: 466885 | D119: 455.7006908 | E119: 467340.7007 | F119: 353043.375 | G119: 1323.748677 | H119: 0.0217302325 | J119: 454805.8219 | K119: 356784.1875 | L119: 1274.736487 | M119: 0.01059590057 | O119: 0.02756094629 | P119: 0.03844887991 | Q119: 0.04394556529 | R119: 0.033 | S119: 487878.252 | T119: 0 | U119: 0.04394556529 | V119: 0.033 | W119: 487878.252 | X119: 0.04394556529 | Y119: 0.033 | Z119: 487878.252 | AA119: 487878 | AB119: 1367.431677 | AC119: 0.04394502614 | AD119: 0.0329994665 | AF119: 474013.2013 | AG119: 1328.571214 | AH119: 0.02924981556 | AI119: 0.02924981556
A120: 07R | B120: NHS Camden CCG | C120: 381741 | D120: 438.4229395 | E120: 382179.4229 | F120: 287746.6562 | G120: 1328.18024 | H120: 0.1098880592 | J120: 343433.7331 | K120: 290829.9062 | L120: 1180.874888 | M120: 0.01071515492 | O120: 0.1128185327 | P120: 0.1247425557 | Q120: 0.03198013354 | R120: 0.02103953673 | S120: 394401.5719 | T120: 0 | U120: 0.03198013354 | V120: 0.02103953673 | W120: 394401.5719 | X120: 0.03198013354 | Y120: 0.02103953673 | Z120: 394401.5719 | AA120: 394402 | AB120: 1356.126009 | AC120: 0.03198125364 | AD120: 0.02104064495 | AF120: 357937.6416 | AG120: 1230.745649 | AH120: 0.1018734946 | AI120: 0.1018734946
A121: 07T | B121: NHS City and Hackney CCG | C121: 420105 | D121: 460.0201286 | E121: 420565.0201 | F121: 323519.0625 | G121: 1299.969828 | H121: 0.04356630919 | J121: 403460.9233 | K121: 327826.5 | L121: 1230.714794 | M121: 0.01331432363 | O121: 0.0423934409 | P121: 0.05627220453 | Q121: 0.04523335047 | R121: 0.03149963056 | S121: 439588.5851 | T121: 0 | U121: 0.04523335047 | V121: 0.03149963056 | W121: 439588.5851 | X121: 0.04523335047 | Y121: 0.03149963056 | Z121: 439588.5851 | AA121: 439589 | AB121: 1340.919663 | AC121: 0.04523433705 | AD121: 0.03150060418 | AF121: 420499.9027 | AG121: 1282.690395 | AH121: 0.04539619899 | AI121: 0.04539619899
A122: 07V | B122: NHS Croydon CCG | C122: 530116 | D122: 609.0407337 | E122: 530725.0407 | F122: 415648.125 | G122: 1276.861385 | H122: -0.03581439799 | J122: 548573.8746 | K122: 418991.6875 | L122: 1309.271499 | M122: 0.008044214081 | O122: -0.0325367917 | P122: -0.02475431053 | Q122: 0.04130967315 | R122: 0.033 | S122: 552649.1187 | T122: 0.5360976835 | U122: 0.04629876353 | V122: 0.03794927734 | W122: 555296.9539 | X122: 0.04629876353 | Y122: 0.03794927734 | Z122: 555296.9539 | AA122: 555297 | AB122: 1325.317462 | AC122: 0.0462988504 | AD122: 0.03794936352 | AF122: 571741.2706 | AG122: 1364.56471 | AH122: -0.0287617344 | AI122: -0.0287617344
A123: 07W | B123: NHS Ealing CCG | C123: 522214 | D123: 501.054788 | E123: 522715.0548 | F123: 438184.875 | G123: 1192.909853 | H123: -0.02528858979 | J123: 531998.8912 | K123: 438781.7188 | L123: 1212.445434 | M123: 0.001362082044 | O123: -0.01745085676 | P123: -0.01611254421 | Q123: 0.03440703075 | R123: 0.033 | S123: 540700.1278 | T123: 0.3489451914 | U123: 0.03763289599 | V123: 0.03622147732 | W123: 542386.3361 | X123: 0.03763289599 | Y123: 0.03622147732 | Z123: 542386.3361 | AA123: 542386 | AB123: 1236.118044 | AC123: 0.03763225304 | AD123: 0.03622083525 | AF123: 554466.2918 | AG123: 1263.649482 | AH123: -0.02178724286 | AI123: -0.02178724286
A124: 07X | B124: NHS Enfield CCG | C124: 436688 | D124: 496.7353502 | E124: 437184.7354 | F124: 343347.5625 | G124: 1273.300827 | H124: -0.01181155363 | J124: 440711.3305 | K124: 346657 | L124: 1271.318134 | M124: 0.00963873888 | O124: -0.008002052377 | P124: 0.00155955681 | Q124: 0.04295681726 | R124: 0.033 | S124: 455964.8001 | T124: 0 | U124: 0.04295681726 | V124: 0.033 | W124: 455964.8001 | X124: 0.04295681726 | Y124: 0.033 | Z124: 455964.8001 | AA124: 455965 | AB124: 1315.320331 | AC124: 0.04295727442 | AD124: 0.0330004528 | AF124: 459323.4708 | AG124: 1325.008498 | AH124: -0.007311776918 | AI124: -0.007311776918
A125: 07Y | B125: NHS Hounslow CCG | C125: 370638 | D125: 410.3465936 | E125: 371048.3466 | F125: 318917.875 | G125: 1163.460488 | H125: -0.01747515471 | J125: 375359.6 | K125: 320845.8125 | L125: 1169.906495 | M125: 0.006045247542 | O125: -0.01148566176 | P125: -0.005509847883 | Q125: 0.03924474071 | R125: 0.033 | S125: 385610.0427 | T125: 0.1193253467 | U125: 0.0403530171 | V125: 0.03410161684 | W125: 386021.2669 | X125: 0.0403530171 | Y125: 0.03410161684 | Z125: 386021.2669 | AA125: 386021 | AB125: 1203.13554 | AC125: 0.04035229787 | AD125: 0.03410090194 | AF125: 391211.8031 | AG125: 1219.314038 | AH125: -0.01326852374 | AI125: -0.01326852374
A126: 08A | B126: NHS Greenwich CCG | C126: 402379 | D126: 412.5063125 | E126: 402791.5063 | F126: 300540.5 | G126: 1340.223718 | H126: 0.03436498418 | J126: 389399.8847 | K126: 304522.375 | L126: 1278.723393 | M126: 0.0132490463 | O126: 0.03439040979 | P126: 0.04809509623 | Q126: 0.04668626483 | R126: 0.033 | S126: 421596.3372 | T126: 0 | U126: 0.04668626483 | V126: 0.033 | W126: 421596.3372 | X126: 0.04668626483 | Y126: 0.033 | Z126: 421596.3372 | AA126: 421596 | AB126: 1384.449993 | AC126: 0.04668542755 | AD126: 0.03299917367 | AF126: 405845.0377 | AG126: 1332.726496 | AH126: 0.03881028671 | AI126: 0.03881028671
A127: 08C | B127: NHS Hammersmith and Fulham CCG | C127: 278407 | D127: 293.7217723 | E127: 278700.7218 | F127: 239545.8438 | G127: 1163.454633 | H127: -0.03424502818 | J127: 284962.0269 | K127: 239128.8906 | L127: 1191.66708 | M127: -0.001740598453 | O127: -0.0219724193 | P127: -0.0236747726 | Q127: 0.0312019618 | R127: 0.033 | S127: 287396.731 | T127: 0.5127184104 | U127: 0.03592716165 | V127: 0.03773343887 | W127: 288713.6477 | X127: 0.03592716165 | Y127: 0.03773343887 | Z127: 288713.6477 | AA127: 288714 | AB127: 1207.357251 | AC127: 0.03592842589 | AD127: 0.03773470531 | AF127: 296996.5557 | AG127: 1241.993617 | AH127: -0.02788771647 | AI127: -0.02788771647
A128: 08D | B128: NHS Haringey CCG | C128: 387514 | D128: 423.3049071 | E128: 387937.3049 | F128: 321680.5625 | G128: 1205.970612 | H128: -0.04031443616 | J128: 403329.2785 | K128: 324594.0625 | L128: 1242.565176 | M128: 0.00905712169 | O128: -0.03816230169 | P128: -0.02945082061 | Q128: 0.04235600671 | R128: 0.033 | S128: 404368.78 | T128: 0.6378087842 | U128: 0.04829761625 | V128: 0.03888827869 | W128: 406673.752 | X128: 0.04829761625 | Y128: 0.03888827869 | Z128: 406673.752 | AA128: 406674 | AB128: 1252.869498 | AC128: 0.04829825556 | AD128: 0.03888891226 | AF128: 420362.6983 | AG128: 1295.041243 | AH128: -0.0325640176 | AI128: -0.0325640176
A129: 08E | B129: NHS Harrow CCG | C129: 315824 | D129: 310.9995236 | E129: 316134.9995 | F129: 268365.625 | G129: 1178.001093 | H129: -0.01102969467 | J129: 317555.6886 | K129: 269424.5 | L129: 1178.644439 | M129: 0.003945643187 | O129: -0.004473826529 | P129: -0.000545835465 | Q129: 0.03707584941 | R129: 0.033 | S129: 327855.9732 | T129: 0.01182101711 | U129: 0.03718541216 | V129: 0.03310913215 | W129: 327890.6098 | X129: 0.03718541216 | Y129: 0.03310913215 | Z129: 327890.6098 | AA129: 327891 | AB129: 1217.005135 | AC129: 0.03718664651 | AD129: 0.03311036165 | AF129: 330966.7144 | AG129: 1228.421002 | AH129: -0.009293122938 | AI129: -0.009293122938
A130: 08F | B130: NHS Havering CCG | C130: 391916 | D130: 397.3882801 | E130: 392313.3883 | F130: 281514.6562 | G130: 1393.580688 | H130: 0.01422560219 | J130: 385794.5232 | K130: 284984.5 | L130: 1353.738618 | M130: 0.01232562381 | O130: 0.01689724625 | P130: 0.02943113916 | Q130: 0.0457323694 | R130: 0.033 | S130: 410254.8091 | T130: 0 | U130: 0.0457323694 | V130: 0.033 | W130: 410254.8091 | X130: 0.0457323694 | Y130: 0.033 | Z130: 410254.8091 | AA130: 410255 | AB130: 1439.56952 | AC130: 0.04573285607 | AD130: 0.03300048075 | AF130: 402087.4145 | AG130: 1410.909767 | AH130: 0.02031295994 | AI130: 0.02031295994
A131: 08G | B131: NHS Hillingdon CCG | C131: 389989 | D131: 535.6102906 | E131: 390524.6103 | F131: 316898.25 | G131: 1232.334386 | H131: -0.01659783627 | J131: 396274.6028 | K131: 320584.9375 | L131: 1236.098632 | M131: 0.01163366317 | O131: -0.01451012126 | P131: -0.003045263949 | Q131: 0.04501757406 | R131: 0.033 | S131: 408105.0809 | T131: 0.06595049159 | U131: 0.04563351514 | V131: 0.03360885783 | W131: 408345.621 | X131: 0.04563351514 | Y131: 0.03360885783 | Z131: 408345.621 | AA131: 408346 | AB131: 1273.752919 | AC131: 0.04563448561 | AD131: 0.03360981715 | AF131: 413010.0892 | AG131: 1288.301604 | AH131: -0.01129291843 | AI131: -0.01129291843
A132: 08H | B132: NHS Islington CCG | C132: 371367 | D132: 390.9091234 | E132: 371757.9091 | F132: 255947.1875 | G132: 1452.478977 | H132: 0.07300520223 | J132: 345234.1733 | K132: 259082.2812 | L132: 1332.527148 | M132: 0.01224898691 | O132: 0.07682824564 | P132: 0.09001830073 | Q132: 0.03596319869 | R132: 0.02342725168 | S132: 385127.5127 | T132: 0 | U132: 0.03596319869 | V132: 0.02342725168 | W132: 385127.5127 | X132: 0.03596319869 | Y132: 0.02342725168 | Z132: 385127.5127 | AA132: 385128 | AB132: 1486.508449 | AC132: 0.03596450956 | AD132: 0.02342854669 | AF132: 359814.118 | AG132: 1388.802493 | AH132: 0.07035266467 | AI132: 0.07035266467
A133: 08J | B133: NHS Kingston CCG | C133: 246457 | D133: 237.5690805 | E133: 246694.5691 | F133: 212189.8125 | G133: 1162.612692 | H133: 0.07686685856 | J133: 228636.0874 | K133: 214617.5625 | L133: 1065.318629 | M133: 0.01144140697 | O133: 0.07898351434 | P133: 0.09132860384 | Q133: 0.03481967657 | R133: 0.02311381503 | S133: 255284.3942 | T133: 0 | U133: 0.03481967657 | V133: 0.02311381503 | W133: 255284.3942 | X133: 0.03481967657 | Y133: 0.02311381503 | Z133: 255284.3942 | AA133: 255284 | AB133: 1189.48327 | AC133: 0.03481807869 | AD133: 0.02311223523 | AF133: 238291.8567 | AG133: 1110.309212 | AH133: 0.07130811588 | AI133: 0.07130811588
A134: 08K | B134: NHS Lambeth CCG | C134: 500202 | D134: 535.6102906 | E134: 500737.6103 | F134: 416706.75 | G134: 1201.654666 | H134: -0.0347450397 | J134: 514848.3093 | K134: 419431.375 | L134: 1227.49117 | M134: 0.006538470999 | O134: -0.02740748822 | P134: -0.02104822028 | Q134: 0.03975424054 | R134: 0.033 | S134: 520644.0537 | T134: 0.455835848 | U134: 0.04399005292 | V134: 0.03720829655 | W134: 522765.0843 | X134: 0.04399005292 | Y134: 0.03720829655 | Z134: 522765.0843 | AA134: 522765 | AB134: 1246.365988 | AC134: 0.04398988464 | AD134: 0.03720812936 | AF134: 536591.4057 | AG134: 1279.330631 | AH134: -0.02576710232 | AI134: -0.02576710232
A135: 08L | B135: NHS Lewisham CCG | C135: 451617 | D135: 442.7423773 | E135: 452059.7424 | F135: 334478.8438 | G135: 1351.534636 | H135: 0.02769804259 | J135: 438549.5972 | K135: 338397.0625 | L135: 1295.961596 | M135: 0.01171439935 | O135: 0.0308064247 | P135: 0.04288170281 | Q135: 0.04510097453 | R135: 0.033 | S135: 472448.0773 | T135: 0 | U135: 0.04510097453 | V135: 0.033 | W135: 472448.0773 | X135: 0.04510097453 | Y135: 0.033 | Z135: 472448.0773 | AA135: 472448 | AB135: 1396.135051 | AC135: 0.04510080353 | AD135: 0.03299983098 | AF135: 457070.4431 | AG135: 1350.692703 | AH135: 0.03364373515 | AI135: 0.03364373515
A136: 08M | B136: NHS Newham CCG | C136: 470118 | D136: 509.6936637 | E136: 470627.6937 | F136: 405949.8125 | G136: 1159.324821 | H136: 0.003548002488 | J136: 469566.3001 | K136: 410601.9375 | L136: 1143.604687 | M136: 0.01145985256 | O136: 0.002260370027 | P136: 0.0137461261 | Q136: 0.0448380277 | R136: 0.033 | S136: 491729.7112 | T136: 0 | U136: 0.0448380277 | V136: 0.033 | W136: 491729.7112 | X136: 0.0448380277 | Y136: 0.033 | Z136: 491729.7112 | AA136: 491730 | AB136: 1197.583243 | AC136: 0.04483864129 | AD136: 0.03300060664 | AF136: 489397.0447 | AG136: 1191.90145 | AH136: 0.004766999228 | AI136: 0.004766999228
A137: 08N | B137: NHS Redbridge CCG | C137: 380374 | D137: 410.3465936 | E137: 380784.3466 | F137: 324502.875 | G137: 1173.439054 | H137: 0.005228668196 | J137: 378475.7598 | K137: 328112.0938 | L137: 1153.495305 | M137: 0.0111223013 | O137: 0.006099695208 | P137: 0.01728983916 | Q137: 0.04448933725 | R137: 0.033 | S137: 397725.1898 | T137: 0 | U137: 0.04448933725 | V137: =MAX(R137,NewMinGrowthPerHead(P137,$P$2,$L$1,$U$1,$T$2,AG137,G137,T137, $P$1)) -> 0.033 | W137: 397725.1898 | X137: 0.04448933725 | Y137: 0.033 | Z137: 397725.1898 | AA137: 397725 | AB137: =AA137/K137*1000 -> 1212.161964 | AC137: =AA137/E137-1 -> 0.04448883878 | AD137: =AB137/G137-1 -> 0.03299950702 | AF137: 394459.5647 | AG137: =AF137/K137*1000 -> 1202.20977 | AH137: 0.008278251 | AI137: 0.008278251
A138: 08P | B138: NHS Richmond CCG | C138: 252806 | D138: 248.3676751 | E138: =C138+D138 -> 253054.3677 | F138: 219498.4375 | G138: =E138/F138*1000 -> 1152.875485 | H138: 0.05724808213 | J138: 238352.0282 | K138: 221206 | L138: =J138/K138*1000 -> 1077.511588 | M138: =K138/F138-1 -> 0.007779383395 | O138: =E138/J138-1 -> 0.06168329908 | P138: =G138/L138-1 -> 0.06994254051 | Q138: =(1+M138)*(1+R138)-1 -> 0.03622855149 | R138: =MinGrowthPerHead(P138,0,1,$Q$1,$Q$2,$R$1,$R$2) -> 0.02822955953 | S138: =(1+IF($S$2=1,Q138,0))*$E138 -> 262222.1609 | T138: =MinMaxRamp(P138,0,1,$P$2,$T$2) -> 0 | U138: =(1+M138)*(1+V138)-1 -> 0.03622855149 | V138: 0.02822955953 | W138: =(1+IF($S$2=1,U138,0))*$E138 -> 262222.1609 | X138: =MAX(U138,$X$1) -> 0.03622855149 | Y138: =(1+X138)/(1+M138) - 1 -> 0.02822955953 | Z138: =(1+IF($Z$2=1,X138,0))*$E138 -> 262222.1609 | AA138: =IF(ROUND(Z138,0)/E138>$AA$1,ROUND(Z138,0),ROUNDUP(Z138,0)) -> 262222 | AB138: 1185.419925 | AC138: 0.0362279158 | AD138: 0.02822892874 | AF138: 248418.1215 | AG138: 1123.017104 | AH138: =AA138/AF138-1 -> 0.0555671155 | AI138: 0.0555671155
A139: 08Q | B139: NHS Southwark CCG | C139: 439773 | D139: 529.1311339 | E139: 440302.1311 | F139: 334416.6875 | G139: 1316.627272 | H139: 0.01747795082 | J139: 430572.1171 | K139: 337654.8125 | L139: 1275.184304 | M139: 0.009682904954 | O139: 0.02259787299 | P139: 0.032499591 | Q139: 0.04300244082 | R139: 0.033 | S139: 459236.1975 | T139: 0 | U139: 0.04300244082 | V139: 0.033 | W139: 459236.1975 | X139: 0.04300244082 | Y139: 0.033 | Z139: 459236.1975 | AA139: 459236 | AB139: 1360.075388 | AC139: 0.04300199233 | AD139: 0.03299955581 | AF139: 448756.0577 | AG139: 1329.037944 | AH139: 0.0233533167 | AI139: 0.0233533167
A140: 08R | B140: NHS Merton CCG | C140: 270852 | D140: 285.0828966 | E140: 271137.0829 | F140: 226818.9688 | G140: 1195.389805 | H140: 0.0539947491 | J140: 255607.1793 | K140: 228194.5625 | L140: 1120.128265 | M140: 0.006064720943 | O140: 0.06075691458 | P140: 0.06719010925 | Q140: 0.03512788499 | R140: 0.02888796659 | S140: 280661.5552 | T140: 0 | U140: 0.03512788499 | V140: 0.02888796659 | W140: 280661.5552 | X140: 0.03512788499 | Y140: 0.02888796659 | Z140: 280661.5552 | AA140: 280662 | AB140: 1229.924135 | AC140: 0.03512952563 | AD140: 0.02888959734 | AF140: 266401.993 | AG140: 1167.433571 | AH140: 0.05352815454 | AI140: 0.05352815454
A141: 08T | B141: NHS Sutton CCG | C141: 265771 | D141: 285.0828966 | E141: 266056.0829 | F141: 198247.3125 | G141: 1342.04131 | H141: 0.05017466544 | J141: 252480.4464 | K141: 200119.25 | L141: 1261.649973 | M141: 0.009442435695 | O141: 0.05376906079 | P141: 0.06371920738 | Q141: 0.03944128673 | R141: 0.02971823848 | S141: 276549.6771 | T141: 0 | U141: 0.03944128673 | V141: 0.02971823848 | W141: 276549.6771 | X141: 0.03944128673 | Y141: 0.02971823848 | Z141: 276549.6771 | AA141: 276550 | AB141: 1381.926027 | AC141: 0.0394425002 | AD141: 0.0297194406 | AF141: 263143.2117 | AG141: 1314.93203 | AH141: 0.05094863817 | AI141: 0.05094863817
A142: 08V | B142: NHS Tower Hamlets CCG | C142: 400656 | D142: 423.3049071 | E142: 401079.3049 | F142: 331104.6875 | G142: 1211.336837 | H142: 0.06496887448 | J142: 378733.1321 | K142: 336755.5625 | L142: 1124.652936 | M142: 0.0170667321 | O142: 0.05900242391 | P142: 0.07707613458 | Q142: 0.04404253313 | R142: 0.02652313774 | S142: 418743.8535 | T142: 0 | U142: 0.04404253313 | V142: 0.02652313774 | W142: 418743.8535 | X142: 0.04404253313 | Y142: 0.02652313774 | Z142: 418743.8535 | AA142: 418744 | AB142: 1243.465726 | AC142: 0.04404289844 | AD142: 0.02652349692 | AF142: 394727.8064 | AG142: 1172.149328 | AH142: 0.06084241662 | AI142: 0.06084241662
A143: 08W | B143: NHS Waltham Forest CCG | C143: 378599 | D143: 397.3882801 | E143: 378996.3883 | F143: 314321.0938 | G143: 1205.761865 | H143: -0.04904755222 | J143: 396863.2376 | K143: 316882.375 | L143: 1252.399215 | M143: 0.008148613952 | O143: -0.04502016718 | P143: -0.03723840519 | Q143: 0.04141751821 | R143: 0.033 | S143: 394693.4781 | T143: 0.8064624839 | U143: 0.04892348411 | V143: 0.04044529704 | W143: 397538.2121 | X143: 0.04892348411 | Y143: 0.04044529704 | Z143: 397538.2121 | AA143: 397538 | AB143: 1254.528593 | AC143: 0.04892292458 | AD143: 0.04044474204 | AF143: 413623.5833 | AG143: 1305.290593 | AH143: -0.03888942484 | AI143: -0.03888942484
A144: 08X | B144: NHS Wandsworth CCG | C144: 456386 | D144: 406.0271558 | E144: 456792.0272 | F144: 406574.1875 | G144: 1123.514579 | H144: 0.04857954335 | J144: 432674.1346 | K144: 408998 | L144: 1057.888143 | M144: 0.005961550375 | O144: 0.05574147055 | P144: 0.06203532651 | Q144: 0.03626215685 | R144: 0.03012103839 | S144: 473356.2913 | T144: 0 | U144: 0.03626215685 | V144: 0.03012103839 | W144: 473356.2913 | X144: 0.03626215685 | Y144: 0.03012103839 | Z144: 473356.2913 | AA144: 473356 | AB144: 1157.355293 | AC144: 0.03626151916 | AD144: 0.03012040447 | AF144: 450946.8477 | AG144: 1102.564921 | AH144: 0.04969355579 | AI144: 0.04969355579
A145: 08Y | B145: NHS West London CCG | C145: 374980 | D145: 369.3119343 | E145: 375349.3119 | F145: 250446.0938 | G145: 1498.722964 | H145: 0.1961207583 | J145: 310852.4763 | K145: 250522.5625 | L145: 1240.816289 | M145: 0.0003053301765 | O145: 0.2074837442 | P145: 0.2078524254 | Q145: 0.02135129091 | R145: 0.02103953673 | S145: 383363.5043 | T145: 0 | U145: 0.02135129091 | V145: 0.02103953673 | W145: 383363.5043 | X145: 0.02135129091 | Y145: 0.02103953673 | Z145: 383363.5043 | AA145: 383364 | AB145: 1530.25738 | AC145: 0.02135261158 | AD145: 0.021040857 | AF145: 323980.4117 | AG145: 1293.218497 | AH145: 0.1832937615 | AI145: 0.1832937615
A146: 09A | B146: NHS Central London (Westminster) CCG | C146: 284363 | D146: 466.4992854 | E146: 284829.4993 | F146: 231308.875 | G146: 1231.381629 | H146: 0.069988829 | J146: 264660.8536 | K146: 232909.4062 | L146: 1136.325311 | M146: 0.00691945456 | O146: 0.07620562474 | P146: 0.08365238066 | Q146: 0.03204213396 | R146: 0.02495003874 | S146: 293956.0443 | T146: 0 | U146: 0.03204213396 | V146: 0.02495003874 | W146: 293956.0443 | X146: 0.03204213396 | Y146: 0.02495003874 | Z146: 293956.0443 | AA146: 293956 | AB146: 1262.104458 | AC146: 0.03204197858 | AD146: 0.02494988443 | AF146: 275838.0224 | AG146: 1184.314652 | AH146: 0.06568339443 | AI146: 0.06568339443
A147: 09C | B147: NHS Ashford CCG | C147: 159003 | D147: 141.0132263 | E147: 159144.0132 | F147: 134913.2812 | G147: 1179.602273 | H147: 0.0002585782874 | J147: 159887.5955 | K147: 136241.8438 | L147: 1173.557191 | M147: 0.009847529374 | O147: -0.004650656336 | P147: 0.005151075562 | Q147: 0.04317249784 | R147: 0.033 | S147: 166014.6578 | T147: 0 | U147: 0.04317249784 | V147: 0.033 | W147: 166014.6578 | X147: 0.04317249784 | Y147: 0.033 | Z147: 166014.6578 | AA147: 166015 | AB147: 1218.53166 | AC147: 0.04317464813 | AD147: 0.03300212932 | AF147: 166639.9754 | AG147: 1223.11891 | AH147: -0.003750453235 | AI147: -0.003750453235
A148: 09D | B148: NHS Brighton and Hove CCG | C148: 395680 | D148: 390.3044656 | E148: 396070.3045 | F148: 319712.5625 | G148: 1238.832473 | H148: 0.05017867705 | J148: 376115.7837 | K148: 321566 | L148: 1169.637909 | M148: 0.005797199477 | O148: 0.05305419662 | P148: 0.05915896186 | Q148: 0.03678489739 | R148: 0.03080909146 | S148: 410639.71 | T148: 0 | U148: 0.03678489739 | V148: 0.03080909146 | W148: 410639.71 | X148: 0.03678489739 | Y148: 0.03080909146 | Z148: 410639.71 | AA148: 410640 | AB148: 1277.000678 | AC148: 0.03678562965 | AD148: 0.0308098195 | AF148: 391999.922 | AG148: 1219.034108 | AH148: 0.04755122883 | AI148: 0.04755122883
A149: 09E | B149: NHS Canterbury and Coastal CCG | C149: 285501 | D149: 259.3636126 | E149: 285760.3636 | F149: 227708.875 | G149: 1254.937312 | H149: -0.002384461192 | J149: 287076.8942 | K149: 229538.9375 | L149: 1250.667522 | M149: 0.008036851879 | O149: -0.004585986021 | P149: 0.003414008968 | Q149: 0.04130206799 | R149: 0.033 | S149: 297562.8576 | T149: 0 | U149: 0.04130206799 | V149: 0.033 | W149: 297562.8576 | X149: 0.04130206799 | Y149: 0.033 | Z149: 297562.8576 | AA149: 297563 | AB149: 1296.350864 | AC149: 0.04130256638 | AD149: 0.03300049442 | AF149: 299200.7382 | AG149: 1303.485768 | AH149: -0.005473710535 | AI149: -0.005473710535
A150: 09F | B150: NHS Eastbourne, Hailsham and Seaford CCG | C150: 288462 | D150: 317.2797591 | E150: 288779.2798 | F150: 198129.1094 | G150: 1457.530802 | H150: 0.0003105993785 | J150: 289375.4813 | K150: 199789.375 | L150: 1448.402756 | M150: 0.008379715783 | O150: -0.002060304281 | P150: 0.006302146739 | Q150: 0.0416562464 | R150: 0.033 | S150: 300808.7406 | T150: 0 | U150: 0.0416562464 | V150: 0.033 | W150: 300808.7406 | X150: 0.0416562464 | Y150: 0.033 | Z150: 300808.7406 | AA150: 300809 | AB150: 1505.630617 | AC150: 0.04165714469 | AD150: 0.03300089082 | AF150: 301596.3993 | AG150: 1509.571764 | AH150: -0.002610771647 | AI150: -0.002610771647
A151: 09G | B151: NHS Coastal West Sussex CCG | C151: 752824 | D151: 679.8851981 | E151: 753503.8852 | F151: 519346.125 | G151: 1450.870333 | H151: -0.005837207052 | J151: 755748.8439 | K151: 523524.9688 | L151: 1443.577459 | M151: 0.008046355886 | O151: -0.002970508896 | P151: 0.005051945218 | Q151: 0.04131188563 | R151: 0.033 | S151: 784632.5515 | T151: 0 | U151: 0.04131188563 | V151: 0.033 | W151: 784632.5515 | X151: 0.04131188563 | Y151: 0.033 | Z151: 784632.5515 | AA151: 784633 | AB151: 1498.74991 | AC151: 0.04131248082 | AD151: 0.03300059043 | AF151: 787665.6622 | AG151: 1504.542685 | AH151: -0.00385018968 | AI151: -0.00385018968
A152: 09H | B152: NHS Crawley CCG | C152: 175886 | D152: 161.1579729 | E152: 176047.158 | F152: 134315.8281 | G152: 1310.695548 | H152: 0.05412544596 | J152: 165900.0713 | K152: 135115.5156 | L152: 1227.83879 | M152: 0.005953784533 | O152: 0.06116384781 | P152: 0.06748178871 | Q152: 0.03494355601 | R152: 0.02881819416 | S152: 182198.8717 | T152: 0 | U152: 0.03494355601 | V152: 0.02881819416 | W152: 182198.8717 | X152: 0.03494355601 | Y152: 0.02881819416 | Z152: 182198.8717 | AA152: 182199 | AB152: 1348.468377 | AC152: 0.0349442848 | AD152: 0.02881891864 | AF152: 172906.3704 | AG152: 1279.692932 | AH152: 0.05374370897 | AI152: 0.05374370897
A153: 09J | B153: NHS Dartford, Gravesham and Swanley CCG | C153: 345664 | D153: 299.6531059 | E153: 345963.6531 | F153: 271700.1875 | G153: 1273.328724 | H153: -0.03705571544 | J153: 359351.9573 | K153: 274235.25 | L153: 1310.378433 | M153: 0.009330367135 | O153: -0.03725680044 | P153: -0.02827405293 | Q153: 0.04263826925 | R153: 0.033 | S153: 360714.9445 | T153: 0.6123238318 | U153: 0.04834401431 | V153: 0.03865300049 | W153: 362688.9249 | X153: 0.04834401431 | Y153: 0.03865300049 | Z153: 362688.9249 | AA153: 362689 | AB153: 1322.546974 | AC153: 0.04834423138 | AD153: 0.03865321555 | AF153: 374528.1249 | AG153: 1365.718393 | AH153: -0.03161077663 | AI153: -0.03161077663
A154: 09L | B154: NHS East Surrey CCG | C154: 240915 | D154: 196.4112795 | E154: 241111.4113 | F154: 183940.0312 | G154: 1310.815322 | H154: 0.02309619631 | J154: 234733.8388 | K154: 185280.125 | L154: 1266.913215 | M154: 0.007285492673 | O154: 0.02716937852 | P154: 0.03465281351 | Q154: 0.04052591393 | R154: 0.033 | S154: 250882.6716 | T154: 0 | U154: 0.04052591393 | V154: 0.033 | W154: 250882.6716 | X154: 0.04052591393 | Y154: 0.033 | Z154: 250882.6716 | AA154: 250883 | AB154: 1354.074 | AC154: 0.04052727604 | AD154: 0.03300135225 | AF154: 244647.1285 | AG154: 1320.417549 | AH154: 0.02548924851 | AI154: 0.02548924851
A155: 09N | B155: NHS Guildford and Waverley CCG | C155: 269607 | D155: 209.0017461 | E155: 269816.0017 | F155: 226834.0312 | G155: 1189.486429 | H155: 0.01700071738 | J155: 263649.0901 | K155: 227948 | L155: 1156.619449 | M155: 0.004910941907 | O155: 0.02339060466 | P155: 0.02841641647 | Q155: 0.03807300299 | R155: 0.033 | S155: 280088.7072 | T155: 0 | U155: 0.03807300299 | V155: 0.033 | W155: 280088.7072 | X155: 0.03807300299 | Y155: 0.033 | Z155: 280088.7072 | AA155: 280089 | AB155: 1228.740765 | AC155: 0.03807408822 | AD155: 0.03300107993 | AF155: 274783.5301 | AG155: 1205.465852 | AH155: 0.01930781639 | AI155: 0.01930781639
A156: 09P | B156: NHS Hastings and Rother CCG | C156: 294637 | D156: 274.4721726 | E156: 294911.4722 | F156: 189923.25 | G156: 1552.79289 | H156: 0.03703855125 | J156: 284601.5401 | K156: 191177.5625 | L156: 1488.676477 | M156: 0.006604312532 | O156: 0.03622584764 | P156: 0.04306940699 | Q156: 0.03982225485 | R156: 0.033 | S156: 306655.512 | T156: 0 | U156: 0.03982225485 | V156: 0.033 | W156: 306655.512 | X156: 0.03982225485 | Y156: 0.033 | Z156: 306655.512 | AA156: 306656 | AB156: 1604.037608 | AC156: 0.03982390967 | AD156: 0.03300164396 | AF156: 296620.8449 | AG156: 1551.546327 | AH156: 0.03383159106 | AI156: 0.03383159106
A157: 09W | B157: NHS Medway CCG | C157: 394683 | D157: 334.9064124 | E157: 395017.9064 | F157: 302095.9375 | G157: 1307.590925 | H157: 0.006336266675 | J157: 391428.8003 | K157: 304682.5625 | L157: 1284.710215 | M157: 0.008562263437 | O157: 0.009169243905 | P157: 0.01781001682 | Q157: 0.04184481813 | R157: 0.033 | S157: 411547.3589 | T157: 0 | U157: 0.04184481813 | V157: 0.033 | W157: 411547.3589 | X157: 0.04184481813 | Y157: 0.033 | Z157: 411547.3589 | AA157: 411547 | AB157: 1350.740248 | AC157: 0.04184390965 | AD157: 0.03299909924 | AF157: 407959.6385 | AG157: 1338.966153 | AH157: 0.00879342248 | AI157: 0.00879342248
A158: 09X | B158: NHS Horsham and Mid Sussex CCG | C158: 289030 | D158: 239.218866 | E158: 289269.2189 | F158: 242897.75 | G158: 1190.909421 | H158: -0.01259327799 | J158: 293185.9217 | K158: 244893.8438 | L158: 1197.195966 | M158: 0.008217835488 | O158: -0.01335910956 | P158: -0.005251057033 | Q158: 0.04148902406 | R158: 0.033 | S158: 301270.7164 | T158: 0.1137207804 | U158: 0.042547527 | V158: 0.03404987524 | W158: 301576.9088 | X158: 0.042547527 | Y158: 0.03404987524 | Z158: 301576.9088 | AA158: 301577 | AB158: 1231.460111 | AC158: 0.04254784239 | AD158: 0.03405018806 | AF158: 305567.7624 | AG158: 1247.755998 | AH158: -0.01306015529 | AI158: -0.01306015529
A159: 09Y | B159: NHS North West Surrey CCG | C159: 468036 | D159: 395.3406523 | E159: 468431.3407 | F159: 374092.875 | G159: 1252.179263 | H159: 0.009166633796 | J159: 461952.5382 | K159: 375978.375 | L159: 1228.667841 | M159: 0.005040192225 | O159: 0.01402482278 | P159: 0.0191357028 | Q159: 0.03820651857 | R159: 0.033 | S159: 486328.4714 | T159: 0 | U159: 0.03820651857 | V159: 0.033 | W159: 486328.4714 | X159: 0.03820651857 | Y159: 0.033 | Z159: 486328.4714 | AA159: 486328 | AB159: 1293.499925 | AC159: 0.0382055123 | AD159: 0.03299899878 | AF159: 481461.738 | AG159: 1280.556995 | AH159: 0.01010726622 | AI159: 0.01010726622
A160: 10A | B160: NHS South Kent Coast CCG | C160: 303625 | D160: 299.6531059 | E160: 303924.6531 | F160: 207538.2344 | G160: 1464.427285 | H160: 0.02561887367 | J160: 296699.8095 | K160: 208628.875 | L160: 1422.141636 | M160: 0.005255131076 | O160: 0.02435068488 | P160: 0.029733782 | Q160: 0.0384285504 | R160: 0.033 | S160: 315604.037 | T160: 0 | U160: 0.0384285504 | V160: 0.033 | W160: 315604.037 | X160: 0.0384285504 | Y160: 0.033 | Z160: 315604.037 | AA160: 315604 | AB160: 1512.753208 | AC160: 0.03842842881 | AD160: 0.03299987904 | AF160: 309230.0489 | AG160: 1482.201584 | AH160: 0.02061232763 | AI160: 0.02061232763
A161: 10C | B161: NHS Surrey Heath CCG | C161: 125574 | D161: 95.68754641 | E161: 125669.6875 | F161: 97135.19531 | G161: 1293.760589 | H161: 0.02604864299 | J161: 122034.7673 | K161: 97507.04688 | L161: 1251.548182 | M161: 0.003828185667 | O161: 0.0297859403 | P161: 0.03372815208 | Q161: 0.03695451579 | R161: 0.033 | S161: 130313.75 | T161: 0 | U161: 0.03695451579 | V161: 0.033 | W161: 130313.75 | X161: 0.03695451579 | Y161: 0.033 | Z161: 130313.75 | AA161: 130314 | AB161: 1336.457253 | AC161: 0.03695650514 | AD161: 0.03300198176 | AF161: 127188.5449 | AG161: 1304.40362 | AH161: 0.02457340086 | AI161: 0.02457340086
A162: 10D | B162: NHS Swale CCG | C162: 157216 | D162: 151.0855996 | E162: 157367.0856 | F162: 114335.75 | G162: 1376.359412 | H162: 0.002960600847 | J162: 157132.6991 | K162: 115515.5312 | L162: 1360.273354 | M162: 0.01031856834 | O162: 0.001491646759 | P162: 0.01182560676 | Q162: 0.04365908109 | R162: 0.033 | S162: 164237.588 | T162: 0 | U162: 0.04365908109 | V162: 0.033 | W162: 164237.588 | X162: 0.04365908109 | Y162: 0.033 | Z162: 164237.588 | AA162: 164238 | AB162: 1421.782839 | AC162: 0.04366169949 | AD162: 0.03300259165 | AF162: 163768.7342 | AG162: 1417.720478 | AH162: 0.002865417742 | AI162: 0.002865417742
A163: 10E | B163: NHS Thanet CCG | C163: 228927 | D163: 226.6283994 | E163: 229153.6284 | F163: 146794.5625 | G163: 1561.049841 | H163: 0.01254883524 | J163: 226907.2077 | K163: 148125.1719 | L163: 1531.861228 | M163: 0.009064432308 | O163: 0.009900173171 | P163: 0.01905434493 | Q163: 0.04236355857 | R163: 0.033 | S163: 238861.3916 | T163: 0 | U163: 0.04236355857 | V163: 0.033 | W163: 238861.3916 | X163: 0.04236355857 | Y163: 0.033 | Z163: 238861.3916 | AA163: 238861 | AB163: 1612.561842 | AC163: 0.04236184986 | AD163: 0.03299830663 | AF163: 236489.9629 | AG163: 1596.554859 | AH163: 0.01002595233 | AI163: 0.01002595233
A164: 10J | B164: NHS North Hampshire CCG | C164: 275803 | D164: 171.3298536 | E164: 275974.3299 | F164: 227382.6875 | G164: 1213.699833 | H164: -0.006659978728 | J164: 278195.8353 | K164: 228530.7031 | L164: 1217.323675 | M164: 0.005048826002 | O164: -0.007985401619 | P164: -0.00297689252 | Q164: 0.03821543726 | R164: 0.033 | S164: 286520.8095 | T164: 0.06446978929 | U164: 0.03881363018 | V164: 0.03359518792 | W164: 286685.8954 | X164: 0.03881363018 | Y164: 0.03359518792 | Z164: 286685.8954 | AA164: 286686 | AB164: 1254.474765 | AC164: 0.03881400909 | AD164: 0.03359556492 | AF164: 289944.6141 | AG164: 1268.733742 | AH164: -0.01123874663 | AI164: -0.01123874663
A165: 10K | B165: NHS Fareham and Gosport CCG | C165: 260032 | D165: 193.1354714 | E165: 260225.1355 | F165: 205878.6875 | G165: 1263.973161 | H165: -0.03907220229 | J165: 270269.0879 | K165: 206927.4688 | L165: 1306.105417 | M165: 0.005094171052 | O165: -0.03716278641 | P165: -0.03225792895 | Q165: 0.0382622787 | R165: 0.033 | S165: 270181.9421 | T165: 0.6986016015 | U165: 0.0447446543 | V165: 0.03944952065 | W165: 271868.8192 | X165: 0.0447446543 | Y165: 0.03944952065 | Z165: 271868.8192 | AA165: 271869 | AB165: 1313.83717 | AC165: 0.04474534909 | AD165: 0.03945021191 | AF165: 281683.1038 | AG165: 1361.264918 | AH165: -0.034840939 | AI165: -0.034840939
A166: 10L | B166: NHS Isle of Wight CCG | C166: 221595 | D166: 215.2669705 | E166: 221810.267 | F166: 145043.375 | G166: 1529.268517 | H166: 0.0253202933 | J166: 216002.4363 | K166: 145597.1562 | L166: 1483.562192 | M166: 0.003818038914 | O166: 0.02688780172 | P166: 0.03080849931 | Q166: 0.0369440342 | R166: 0.033 | S166: 230004.8331 | T166: 0 | U166: 0.0369440342 | V166: 0.033 | W166: 230004.8331 | X166: 0.0369440342 | Y166: 0.033 | Z166: 230004.8331 | AA166: 230005 | AB166: 1579.735525 | AC166: 0.03694478683 | AD166: 0.03300074977 | AF166: 225124.6607 | AG166: 1546.216056 | AH166: 0.0216783862 | AI166: 0.0216783862
A167: 10Q | B167: NHS Oxfordshire CCG | C167: 816037 | D167: 601.2120319 | E167: 816638.212 | F167: 747848.3125 | G167: 1091.98376 | H167: -0.04025975048 | J167: 851169.5898 | K167: 750273.75 | L167: 1134.478702 | M167: 0.003243221198 | O167: -0.04056932741 | P167: -0.03745768152 | Q167: 0.0363502475 | R167: 0.033 | S167: 846323.2132 | T167: 0.8112112944 | U167: 0.0438636747 | V167: 0.04048913827 | W167: 852458.9649 | X167: 0.0438636747 | Y167: 0.04048913827 | Z167: 852458.9649 | AA167: 852459 | AB167: 1136.197288 | AC167: 0.04386371767 | AD167: 0.0404891811 | AF167: 887116.2213 | AG167: 1182.390056 | AH167: -0.03906728391 | AI167: -0.03906728391
A168: 10R | B168: NHS Portsmouth CCG | C168: 296032 | D168: 208.7109126 | E168: 296240.7109 | F168: 231311.25 | G168: 1280.701699 | H168: 0.005317127529 | J168: 292974.8113 | K168: 232324.75 | L168: 1261.057254 | M168: 0.004381542186 | O168: 0.01114737327 | P168: 0.01557775814 | Q168: 0.03752613308 | R168: 0.033 | S168: 307357.4793 | T168: 0 | U168: 0.03752613308 | V168: 0.033 | W168: 307357.4793 | X168: 0.03752613308 | Y168: 0.033 | Z168: 307357.4793 | AA168: 307357 | AB168: 1322.962792 | AC168: 0.03752451529 | AD168: 0.03299838927 | AF168: 305347.7364 | AG168: 1314.31428 | AH168: 0.006580247165 | AI168: 0.006580247165
A169: 10V | B169: NHS South Eastern Hampshire CCG | C169: 283080 | D169: 199.3656479 | E169: 283279.3656 | F169: 216374.5938 | G169: 1309.208076 | H169: -0.0277588864 | J169: 290658.0371 | K169: 217457.1406 | L169: 1336.622179 | M169: 0.005003114535 | O169: -0.0253860912 | P169: -0.02050998618 | Q169: 0.03816821731 | R169: 0.033 | S169: 294091.634 | T169: 0.4441794517 | U169: 0.0422894177 | V169: =MAX(R169,NewMinGrowthPerHead(P169,$P$2,$L$1,$U$1,$T$2,AG169,G169,T169, $P$1)) -> 0.03710068419 | W169: 295259.0851 | X169: 0.0422894177 | Y169: 0.03710068419 | Z169: 295259.0851 | AA169: 295259 | AB169: =AA169/K169*1000 -> 1357.780201 | AC169: =AA169/E169-1 -> 0.0422891174 | AD169: =AB169/G169-1 -> 0.03710038539 | AF169: 302933.1201 | AG169: =AF169/K169*1000 -> 1393.070465 | AH169: -0.02533272051 | AI169: -0.02533272051
A170: 10X | B170: NHS Southampton CCG | C170: 356866 | D170: 242.9768833 | E170: 357108.9769 | F170: 288342.1875 | G170: 1238.490212 | H170: -0.03011297447 | J170: 367506.1864 | K170: 289813.3125 | L170: 1268.079038 | M170: 0.005102010957 | O170: -0.02829125038 | P170: -0.02333358169 | Q170: 0.03827037732 | R170: 0.033 | S170: 370775.6722 | T170: 0.5053293273 | U170: 0.04295940186 | V170: 0.03766522253 | W170: 372450.1649 | X170: 0.04295940186 | Y170: 0.03766522253 | Z170: 372450.1649 | AA170: 372450 | AB170: 1285.137652 | AC170: 0.04295894001 | AD170: 0.03766476302 | AF170: 383026.7238 | AG170: 1321.632607 | AH170: -0.02761354014 | AI170: -0.02761354014
A171: 11A | B171: NHS West Hampshire CCG | C171: 719753 | D171: 510.8744727 | E171: 720263.8745 | F171: 566415.25 | G171: 1271.618083 | H171: -0.027683289 | J171: 741960.4745 | K171: 569597.25 | L171: 1302.605437 | M171: 0.005617786597 | O171: -0.02924225859 | P171: -0.02378874876 | Q171: 0.03880317356 | R171: 0.033 | S171: 748212.3986 | T171: 0.5151867625 | U171: 0.04358611982 | V171: 0.0377562268 | W171: 751657.382 | X171: 0.04358611982 | Y171: 0.0377562268 | Z171: 751657.382 | AA171: 751657 | AB171: 1319.628913 | AC171: 0.04358558945 | AD171: 0.03775569939 | AF171: 773294.9819 | AG171: 1357.617127 | AH171: -0.02798153662 | AI171: -0.02798153662
A172: 11E | B172: NHS Bath and North East Somerset CCG | C172: 249764 | D172: 269.0550879 | E172: 250033.0551 | F172: 209078.4688 | G172: 1195.881415 | H172: 0.0004662904298 | J172: 249096.2118 | K172: 210293.5781 | L172: 1184.516494 | M172: 0.005811738446 | O172: 0.003760969568 | P172: 0.009594565785 | Q172: 0.03900352581 | R172: 0.033 | S172: 259785.2258 | T172: 0 | U172: 0.03900352581 | V172: 0.033 | W172: 259785.2258 | X172: 0.03900352581 | Y172: 0.033 | Z172: 259785.2258 | AA172: 259785 | AB172: 1235.344428 | AC172: 0.03900262271 | AD172: 0.03299910211 | AF172: 259616.054 | AG172: 1234.541046 | AH172: 0.0006507534182 | AI172: 0.0006507534182
A173: 11J | B173: NHS Dorset CCG | C173: 1111094 | D173: 1023.464452 | E173: 1112117.464 | F173: 804863.5625 | G173: 1381.746567 | H173: -0.0034759189 | J173: 1113562.237 | K173: 808390.5625 | L173: 1377.505241 | M173: 0.004382109173 | O173: -0.001297433119 | P173: 0.00307899056 | Q173: 0.03752671878 | R173: 0.033 | S173: 1153851.584 | T173: 0 | U173: 0.03752671878 | V173: 0.033 | W173: 1153851.584 | X173: 0.03752671878 | Y173: 0.033 | Z173: 1153851.584 | AA173: 1153852 | AB173: 1427.344719 | AC173: 0.03752709303 | AD173: 0.03300037262 | AF173: 1160590.246 | AG173: 1435.680103 | AH173: -0.005805878744 | AI173: -0.005805878744
A174: 11M | B174: NHS Gloucestershire CCG | C174: 805047 | D174: 968.0707574 | E174: 806015.0708 | F174: 651781.125 | G174: 1236.634569 | H174: -0.02249321614 | J174: 826894.7099 | K174: 656479.25 | L174: 1259.590017 | M174: 0.007208132945 | O174: -0.02525066238 | P174: -0.01822453957 | Q174: 0.04044600133 | R174: 0.033 | S174: 838615.1574 | T174: 0.3946841271 | U174: 0.04411600709 | V174: 0.03664374118 | W174: 841573.2373 | X174: 0.04411600709 | Y174: 0.03664374118 | Z174: 841573.2373 | AA174: 841573 | AB174: 1281.949125 | AC174: 0.04411571264 | AD174: 0.03664344884 | AF174: 861816.1636 | AG174: 1312.785078 | AH174: -0.0234889579 | AI174: -0.0234889579
A175: 11N | B175: NHS Kernow CCG | C175: 815379 | D175: 1010.275477 | E175: 816389.2755 | F175: 579195.75 | G175: 1409.522213 | H175: -0.01697039357 | J175: 834679.1491 | K175: 583022.5625 | L175: 1431.641248 | M175: 0.006607114261 | O175: -0.02191246017 | P175: -0.01545012403 | Q175: 0.03982514903 | R175: 0.033 | S175: 848902.1 | T175: 0.3345993293 | U175: 0.04293459434 | V175: 0.03608903569 | W175: 851440.6178 | X175: 0.04293459434 | Y175: 0.03608903569 | Z175: 851440.6178 | AA175: 851441 | AB175: 1460.391166 | AC175: 0.04293506245 | AD175: 0.03608950073 | AF175: 869929.3555 | AG175: 1492.102384 | AH175: -0.02125270911 | AI175: -0.02125270911
A176: 11X | B176: NHS Somerset CCG | C176: 772773 | D176: 865.1967532 | E176: 773638.1968 | F176: 578764.8125 | G176: 1336.705653 | H176: -0.03007925527 | J176: 801723.3718 | K176: 582469.875 | L176: 1376.42032 | M176: 0.006401672009 | O176: -0.03503100445 | P176: -0.02885358944 | Q176: 0.03961292719 | R176: 0.033 | S176: 804284.2703 | T176: 0.6248747036 | U176: 0.04541872829 | V176: 0.03876887069 | W176: 808775.8598 | X176: 0.04541872829 | Y176: 0.03876887069 | Z176: 808775.8598 | AA176: 808776 | AB176: 1388.528463 | AC176: 0.0454189095 | AD176: 0.03876905075 | AF176: 835581.7884 | AG176: 1434.549363 | AH176: -0.03208038848 | AI176: -0.03208038848
A177: 12D | B177: NHS Swindon CCG | C177: 290423 | D177: 290.1574477 | E177: 290713.1574 | F177: 239149.6562 | G177: 1215.611856 | H177: 0.0007506349483 | J177: 290374.7363 | K177: 240568.4688 | L177: 1207.035726 | M177: 0.005932739031 | O177: 0.001165463483 | P177: 0.007105116905 | Q177: 0.03912851942 | R177: 0.033 | S177: 302088.3329 | T177: 0 | U177: 0.03912851942 | V177: 0.033 | W177: 302088.3329 | X177: 0.03912851942 | Y177: 0.033 | Z177: 302088.3329 | AA177: 302088 | AB177: 1255.725663 | AC177: 0.03912737439 | AD177: 0.03299886173 | AF177: 302637.8549 | AG177: 1258.011312 | AH177: -0.001816874176 | AI177: -0.001816874176
A178: 12F | B178: NHS Wirral CCG | C178: 541630 | D178: 387.2599763 | E178: 542017.26 | F178: 336757.8125 | G178: 1609.516513 | H178: 0.009400034787 | J178: 535140.5527 | K178: 337197.9688 | L178: 1587.021875 | M178: 0.001307040947 | O178: 0.01285028241 | P178: 0.0141741192 | Q178: 0.0343501733 | R178: 0.033 | S178: 560635.6468 | T178: 0 | U178: 0.0343501733 | V178: 0.033 | W178: 560635.6468 | X178: 0.0343501733 | Y178: 0.033 | Z178: 560635.6468 | AA178: 560636 | AB178: 1662.631605 | AC178: 0.03435082496 | AD178: 0.03300065081 | AF178: 557740.6321 | AG178: 1654.045053 | AH178: 0.005191244419 | AI178: 0.005191244419
A179: 13T | B179: NHS Newcastle Gateshead CCG | C179: 769411 | D179: 529.8694071 | E179: 769940.8694 | F179: 527745.75 | G179: 1458.923865 | H179: 0.02413559865 | J179: 750708.6456 | K179: 529457.6875 | L179: 1417.882228 | M179: 0.003243867904 | O179: 0.02561875888 | P179: 0.02894573066 | Q179: 0.03635091555 | R179: 0.033 | S179: 797928.9249 | T179: 0 | U179: 0.03635091555 | V179: 0.033 | W179: 797928.9249 | X179: 0.03635091555 | Y179: 0.033 | Z179: 797928.9249 | AA179: 797929 | AB179: 1507.068494 | AC179: 0.03635101305 | AD179: 0.03300009719 | AF179: 782412.6061 | AG179: 1477.762293 | AH179: 0.01983147228 | AI179: 0.01983147228
A180: 14L | B180: NHS Manchester CCG | C180: 866092 | D180: 650.8001353 | E180: 866742.8001 | F180: 647873.9375 | G180: 1337.826312 | H180: -0.01358494545 | J180: 879286.9787 | K180: 653890.9375 | L180: 1344.699748 | M180: 0.009287300587 | O180: -0.01426630765 | P180: -0.005111502553 | Q180: 0.04259378151 | R180: 0.033 | S180: 903660.6536 | T180: 0.1106984852 | U180: 0.04362524615 | V180: 0.03402197327 | W180: 904554.6681 | X180: 0.04362524615 | Y180: 0.03402197327 | Z180: 904554.6681 | AA180: 904555 | AB180: 1383.34231 | AC180: 0.04362562903 | AD180: 0.03402235263 | AF180: 916421.065 | AG180: 1401.489166 | AH180: -0.01294826736 | AI180: -0.01294826736
A181: 14Y | B181: NHS Buckinghamshire CCG | C181: 647876 | D181: 482.8386784 | E181: 648358.8387 | F181: 563792.625 | G181: 1149.995246 | H181: -0.0261480009 | J181: 665224.3116 | K181: 568164.25 | L181: 1170.83099 | M181: 0.00775395918 | O181: -0.02535306151 | P181: -0.01779568893 | Q181: 0.04100983983 | R181: 0.033 | S181: 674947.9308 | T181: 0.3853966201 | U181: 0.04459542692 | V181: 0.03655799851 | W181: 677272.6779 | X181: 0.04459542692 | Y181: 0.03655799851 | Z181: 677272.6779 | AA181: 677273 | AB181: 1192.037338 | AC181: 0.04459592373 | AD181: 0.0365584915 | AF181: 693318.0939 | AG181: 1220.277576 | AH181: -0.02314247101 | AI181: -0.02314247101
A182: 15A | B182: NHS Berkshire West CCG | C182: 609929 | D182: 426.76709 | E182: 610355.7671 | F182: 547396.375 | G182: 1115.016092 | H182: 0.008063232434 | J182: 605554.9229 | K182: 550345.9375 | L182: 1100.316876 | M182: 0.005388348617 | O182: 0.007928007828 | P182: 0.01335907532 | Q182: 0.03856616412 | R182: 0.033 | S182: 633894.8478 | T182: 0 | U182: 0.03856616412 | V182: 0.033 | W182: 633894.8478 | X182: 0.03856616412 | Y182: 0.033 | Z182: 633894.8478 | AA182: 633895 | AB182: 1151.8119 | AC182: 0.03856641352 | AD182: 0.03300024807 | AF182: 631128.745 | AG182: 1146.785507 | AH182: 0.004383028059 | AI182: 0.004383028059
A183: 15C | B183: NHS Bristol, North Somerset and South Gloucestershire CCG | C183: 1240467 | D183: 1276.69277 | E183: 1241743.693 | F183: 1017741.5 | G183: 1220.097336 | H183: -0.02040169021 | J183: 1268270.83 | K183: 1026830 | L183: 1235.132232 | M183: 0.008930067213 | O183: -0.0209159877 | P183: -0.01217270166 | Q183: 0.04222475943 | R183: 0.033 | S183: 1294176.021 | T183: 0.2636210431 | U183: 0.04468025412 | V183: 0.03543376104 | W183: 1297225.117 | X183: 0.04468025412 | Y183: 0.03543376104 | Z183: 1297225.117 | AA183: 1297225 | AB183: 1263.32986 | AC183: 0.04468016029 | AD183: 0.03543366804 | AF183: 1321832.499 | AG183: 1287.294391 | AH183: -0.01861620077 | AI183: -0.01861620077
A184: 15D | B184: NHS East Berkshire CCG | C184: 547913 | D184: 383.2859643 | E184: 548296.286 | F184: 462630.3438 | G184: 1185.171473 | H184: 0.03282119859 | J184: 529250.5163 | K184: 465062.5 | L184: 1138.020194 | M184: 0.0052572346 | O184: 0.03598630343 | P184: 0.04143272647 | Q184: 0.03843072334 | R184: 0.033 | S184: 569367.7088 | T184: 0 | U184: 0.03843072334 | V184: 0.033 | W184: 569367.7088 | X184: 0.03843072334 | Y184: 0.033 | Z184: 569367.7088 | AA184: 569368 | AB184: 1224.282758 | AC184: 0.03843125437 | AD184: 0.03300052825 | AF184: 551601.8473 | AG184: 1186.081112 | AH184: 0.03220829074 | AI184: 0.03220829074
A185: 15E | B185: NHS Birmingham and Solihull CCG | C185: 1706826 | D185: 1427.534133 | E185: 1708253.534 | F185: 1320167.625 | G185: 1293.967146 | H185: -0.02226707874 | J185: 1749156.072 | K185: 1329445 | L185: 1315.703976 | M185: 0.007027421991 | O185: -0.02338415568 | P185: -0.01652106402 | Q185: 0.04025932692 | R185: 0.033 | S185: 1777026.672 | T185: 0.3577923989 | U185: 0.04358569471 | V185: 0.03630315513 | W185: 1782708.951 | X185: 0.04358569471 | Y185: 0.03630315513 | Z185: 1782708.951 | AA185: 1782709 | AB185: 1340.942273 | AC185: 0.0435857233 | AD185: 0.03630318352 | AF185: 1823026.508 | AG185: 1371.268844 | AH185: -0.02211570038 | AI185: -0.02211570038
A186: 15F | B186: NHS Leeds CCG | C186: 1146178 | D186: 559.1107635 | E186: 1146737.111 | F186: 884667.0625 | G186: 1296.235792 | H186: 2.6081422e-05 | J186: 1144361.415 | K186: 888936.5 | L186: 1287.337639 | M186: 0.004826038722 | O186: 0.002076001251 | P186: 0.006912058836 | Q186: 0.037985298 | R186: 0.033 | S186: 1190296.262 | T186: 0 | U186: 0.037985298 | V186: 0.033 | W186: 1190296.262 | X186: 0.037985298 | Y186: 0.033 | Z186: 1190296.262 | AA186: 1190296 | AB186: 1339.011279 | AC186: 0.03798506984 | AD186: 0.03299977293 | AF186: 1192690.137 | AG186: 1341.704539 | AH186: -0.002007341608 | AI186: -0.002007341608
A187: 15M | B187: NHS Derby and Derbyshire CCG | C187: 1452682 | D187: 1102.1562 | E187: 1453784.156 | F187: 1053807.5 | G187: 1379.553814 | H187: 0.02755193305 | J187: 1416318.686 | K187: 1058006.75 | L187: 1338.666966 | M187: 0.00398483594 | O187: 0.02645271172 | P187: 0.03054295738 | Q187: 0.03711633553 | R187: 0.033 | S187: 1507743.297 | T187: 0 | U187: 0.03711633553 | V187: 0.033 | W187: 1507743.297 | X187: 0.03711633553 | Y187: 0.033 | Z187: 1507743.297 | AA187: 1507743 | AB187: 1425.07881 | AC187: 0.03711613142 | AD187: 0.03299979671 | AF187: 1476132.719 | AG187: 1395.201608 | AH187: 0.02141425387 | AI187: 0.02141425387
A188: 99A | B188: NHS Liverpool CCG | C188: 846846 | D188: 633.0048191 | E188: 847479.0048 | F188: 536622.875 | G188: 1579.282294 | H188: 0.01811142243 | J188: 831181.1387 | K188: 540072.5 | L188: 1539.017704 | M188: 0.006428397224 | O188: 0.01960807981 | P188: 0.02616252556 | Q188: 0.03964053433 | R188: 0.033 | S188: 881073.5254 | T188: 0 | U188: 0.03964053433 | V188: 0.033 | W188: 881073.5254 | X188: 0.03964053433 | Y188: 0.033 | Z188: 881073.5254 | AA188: 881074 | AB188: 1631.399488 | AC188: 0.03964109434 | AD188: 0.03300055643 | AF188: 866283.617 | AG188: 1604.013567 | AH188: 0.01707337259 | AI188: 0.01707337259
A189: 99C | B189: NHS North Tyneside CCG | C189: 338607 | D189: 205.1107382 | E189: 338812.1107 | F189: 219720.4375 | G189: 1542.014546 | H189: 0.03703818429 | J189: 326545.0272 | K189: 220334 | L189: 1482.045564 | M189: 0.002792468953 | O189: 0.03756628484 | P189: 0.04046365648 | Q189: 0.03588462043 | R189: 0.033 | S189: 350970.2547 | T189: 0 | U189: 0.03588462043 | V189: 0.033 | W189: 350970.2547 | X189: 0.03588462043 | Y189: 0.033 | Z189: 350970.2547 | AA189: 350970 | AB189: 1592.89987 | AC189: 0.0358838686 | AD189: 0.03299925027 | AF189: 340335.6912 | AG189: 1544.635377 | AH189: 0.03124652842 | AI189: 0.03124652842
A190: 99D | B190: NHS South Lincolnshire CCG | C190: 218375 | D190: 152.8063168 | E190: 218527.8063 | F190: 168384.8125 | G190: 1297.788103 | H190: -0.01855129072 | J190: 222922.7814 | K190: 169595.8125 | L190: 1314.435646 | M190: 0.007191860014 | O190: -0.01971523506 | P190: -0.01266516426 | Q190: 0.04042919139 | R190: 0.033 | S190: 227362.7088 | T190: 0.2742861777 | U190: 0.04297962481 | V190: 0.03553222203 | W190: 227920.0494 | X190: 0.04297962481 | Y190: 0.03553222203 | Z190: 227920.0494 | AA190: 227920 | AB190: 1343.901106 | AC190: 0.04297939856 | AD190: 0.03553199739 | AF190: 232337.266 | AG190: 1369.94695 | AH190: -0.01901230101 | AI190: -0.01901230101
A191: 99E | B191: NHS Basildon and Brentwood CCG | C191: 368996 | D191: 180.8394184 | E191: 369176.8394 | F191: 281462.125 | G191: 1311.639495 | H191: 0.01708536134 | J191: 361305.7417 | K191: 283903.5 | L191: 1272.635743 | M191: 0.008673902395 | O191: 0.02178514421 | P191: 0.03064800882 | Q191: 0.04196014117 | R191: 0.033 | S191: 384667.5517 | T191: 0 | U191: 0.04196014117 | V191: 0.033 | W191: 384667.5517 | X191: 0.04196014117 | Y191: 0.033 | Z191: 384667.5517 | AA191: 384668 | AB191: 1354.925177 | AC191: 0.04196135545 | AD191: 0.03300120383 | AF191: 376564.4217 | AG191: 1326.381752 | AH191: 0.02151976623 | AI191: 0.02151976623
A192: 99F | B192: NHS Castle Point and Rochford CCG | C192: 246451 | D192: 117.7162252 | E192: 246568.7162 | F192: 186162.3125 | G192: 1324.482453 | H192: 0.008516321927 | J192: 243772.6122 | K192: 187122.9688 | L192: 1302.740192 | M192: 0.00516031541 | O192: 0.01147013197 | P192: 0.01668963687 | Q192: 0.03833060582 | R192: 0.033 | S192: 256019.8445 | T192: 0 | U192: 0.03833060582 | V192: 0.033 | W192: 256019.8445 | X192: 0.03833060582 | Y192: 0.033 | Z192: 256019.8445 | AA192: 256020 | AB192: 1368.191204 | AC192: 0.0383312365 | AD192: 0.03300062744 | AF192: 254067.6279 | AG192: 1357.757573 | AH192: 0.007684458528 | AI192: 0.007684458528
A193: 99G | B193: NHS Southend CCG | C193: 260050 | D193: 158.6609992 | E193: 260208.661 | F193: 189659.2812 | G193: 1371.97958 | H193: -0.01258693865 | J193: 263140.4806 | K193: 191002.9062 | L193: 1377.677889 | M193: 0.0070844147 | O193: -0.01114165173 | P193: -0.00413616911 | Q193: 0.04031820038 | R193: 0.033 | S193: 270699.8059 | T193: 0.08957594174 | U193: 0.041151028 | V193: 0.03382696903 | W193: 270916.5149 | X193: 0.041151028 | Y193: 0.03382696903 | Z193: 270916.5149 | AA193: 270917 | AB193: 1418.39203 | AC193: 0.0411528923 | AD193: 0.03382882021 | AF193: 274253.4409 | AG193: 1435.860042 | AH193: -0.01216553894 | AI193: -0.01216553894
A194: 99H | B194: NHS Surrey Downs CCG | C194: 389888 | D194: 299.6531059 | E194: 390187.6531 | F194: 309493.5 | G194: 1260.729718 | H194: 0.01086467972 | J194: 384220.9644 | K194: 311412.7812 | L194: 1233.799598 | M194: 0.006201362064 | O194: 0.01552931575 | P194: 0.02182698072 | Q194: 0.03940600701 | R194: 0.033 | S194: 405563.3905 | T194: 0 | U194: 0.03940600701 | V194: 0.033 | W194: 405563.3905 | X194: 0.03940600701 | Y194: 0.033 | Z194: 405563.3905 | AA194: 405563 | AB194: 1302.332545 | AC194: 0.03940500621 | AD194: 0.03299900537 | AF194: 400447.4011 | AG194: 1285.905477 | AH194: 0.01277470879 | AI194: 0.01277470879
A195: 99J | B195: NHS West Kent CCG | C195: 607301 | D195: 498.5824786 | E195: 607799.5825 | F195: 496486.1875 | G195: 1224.2024 | H195: 0.001301177111 | J195: 605242.4515 | K195: 500118.6875 | L195: 1210.197632 | M195: 0.007316417035 | O195: 0.004224969694 | P195: 0.01157229837 | Q195: 0.0405578588 | R195: 0.033 | S195: 632450.6321 | T195: 0 | U195: 0.0405578588 | V195: 0.033 | W195: 632450.6321 | X195: 0.0405578588 | Y195: 0.033 | Z195: 632450.6321 | AA195: 632451 | AB195: 1264.601815 | AC195: 0.04055846406 | AD195: 0.03300060087 | AF195: 630803.0772 | AG195: 1261.306752 | AH195: 0.002612420299 | AI195: 0.002612420299
A196: 99K | B196: NHS High Weald Lewes Havens CCG | C196: 222126 | D196: 181.3027195 | E196: 222307.3027 | F196: 171932.0312 | G196: 1292.995267 | H196: 0.001033074997 | J196: 222390.45 | K196: 173388.3438 | L196: 1282.614766 | M196: 0.008470280316 | O196: -0.0003738796103 | P196: 0.008093233841 | Q196: 0.04174979957 | R196: 0.033 | S196: 231588.5881 | T196: 0 | U196: 0.04174979957 | V196: 0.033 | W196: 231588.5881 | X196: 0.04174979957 | Y196: 0.033 | Z196: 231588.5881 | AA196: 231589 | AB196: 1335.666487 | AC196: 0.04175165263 | AD196: 0.0330018375 | AF196: 231782.4532 | AG196: 1336.782209 | AH196: -0.0008346327132 | AI196: -0.0008346327132
A197: 99M | B197: NHS North East Hampshire and Farnham CCG | C197: 286443 | D197: 188.8569995 | E197: 286631.857 | F197: 227991 | G197: 1257.206894 | H197: -0.001637019732 | J197: 285928.642 | K197: 228523.125 | L197: 1251.202223 | M197: 0.002333973709 | O197: 0.002459407161 | P197: 0.004799121063 | Q197: 0.03541099484 | R197: 0.033 | S197: 296781.7762 | T197: 0 | U197: 0.03541099484 | V197: 0.033 | W197: 296781.7762 | X197: 0.03541099484 | Y197: 0.033 | Z197: 296781.7762 | AA197: 296782 | AB197: 1298.695701 | AC197: 0.0354117756 | AD197: 0.03300077894 | AF197: 298003.993 | AG197: 1304.04305 | AH197: -0.004100592737 | AI197: -0.004100592737
A198: 99N | B198: NHS Wiltshire CCG | C198: 638219 | D198: 720.1180293 | E198: 638939.118 | F198: 495483.4688 | G198: 1289.526611 | H198: -0.0220281143 | J198: 655937.6816 | K198: 501744.0312 | L198: 1307.315366 | M198: 0.01263526009 | O198: -0.02591490634 | P198: -0.01360708782 | Q198: 0.04605222368 | R198: 0.033 | S198: 668363.6852 | T198: 0.2946851721 | U198: 0.04880714493 | V198: 0.03572054644 | W198: 670123.9122 | X198: 0.04880714493 | Y198: 0.03572054644 | Z198: 670123.9122 | AA198: 670124 | AB198: 1335.589381 | AC198: 0.0488072824 | AD198: 0.0357206822 | AF198: 683639.2706 | AG198: 1362.525965 | AH198: -0.01976959363 | AI198: -0.01976959363
A199: 99P | B199: NHS Northern, Eastern and Western Devon CCG | C199: 1257424 | D199: 1361.102209 | E199: 1258785.102 | F199: 936391.5 | G199: 1344.293602 | H199: -0.005026232217 | J199: 1266353.766 | K199: 941125.25 | L199: 1345.574105 | M199: 0.005055310733 | O199: -0.005976737492 | P199: -0.0009516410244 | Q199: 0.03822213599 | R199: 0.033 | S199: 1306898.558 | T199: 0.02060944287 | U199: 0.03841336513 | V199: 0.03319026728 | W199: 1307139.274 | X199: 0.03841336513 | Y199: 0.03319026728 | Z199: 1307139.274 | AA199: 1307139 | AB199: 1388.910775 | AC199: 0.03841314749 | AD199: 0.03319005074 | AF199: 1319834.474 | AG199: 1402.40045 | AH199: -0.009618989597 | AI199: -0.009618989597
A200: 99Q | B200: NHS South Devon and Torbay CCG | C200: 433048 | D200: 474.8030963 | E200: 433522.8031 | F200: 295595.9375 | G200: 1466.606093 | H200: 0.01804798 | J200: 426123.2874 | K200: 297486.0625 | L200: 1432.414291 | M200: 0.006394286119 | O200: 0.01736472967 | P200: 0.02387005084 | Q200: 0.03960529756 | R200: 0.033 | S200: 450692.6027 | T200: 0 | U200: 0.03960529756 | V200: 0.033 | W200: 450692.6027 | X200: 0.03960529756 | Y200: 0.033 | Z200: 450692.6027 | AA200: 450693 | AB200: 1515.00543 | AC200: 0.03960621398 | AD200: 0.03300091059 | AF200: 444119.3448 | AG200: 1492.908075 | AH200: 0.0148015512 | AI200: 0.0148015512

Sheet Core 2021-22
A1: NHS England - 2019-20 to 2023-24 Allocations | E1: 2020-21 | J1: 2021-22 | L1: 0.03995957536 | P1: -0.04710325187 | Q1: 0.05 | R1: 0.032 | T1: -0.04710325187 | U1: 0.032 | X1: 0.01925030241 | AA1: 1.019250302 | AI1: -0.04245050887
A2: Minimum allocations for CCG core services | P2: -0.04245 | Q2: 0.1 | R2: 0.01916849306 | S2: 1 | T2: 0 | U2: 0.0407 | Z2: 1 | AI2: 0.1699814299
A3: Pace of change calculations 2021-22 | U3: 0.0087 | AI3: 0
L4: 1412.706176 | AA4: 87767.18095 | AI4: 37
B5: England | E5: 81683723 | F5: 59802739.78 | G5: 1365.885966 | J5: 81692393.81 | K5: 60137620.02 | L5: 1358.424124 | M5: 0.005599747363 | AA5: 84869020 | AF5: 84956787.18 | AH5: -0.001033080274
E6: Baseline | J6: Opening Target | O6: Distance from Target | Q6: Minimum per capita growth | T6: Per capita pace of change | X6: Minimum programme | AF6: Closing target
A7: CCG | B7: CCG name | E7: Baseline £000 | F7: Estimated Population | G7: Allocation per capita £ | H7: Closing DfT | J7: Opening Target £000 | K7: Estimated Population | L7: Opening Target per capita £ | M7: population growth rate % | O7: DFT (total allocation) | P7: DFT (per capita) | Q7: Apply minimum per capita growth [programme] | R7: Apply minimum per capita growth [per capita] | S7: Allocation after min per capita growth £000 | T7: First Transition position | U7: Growth on per capita parameters [programme] | V7: Growth on per capita parameters [per capita] | W7: Allocation after per capita p-o-c | X7: Apply minimum programme growth [programme] | Y7: Apply minimum programme growth [per capita] | Z7: Allocation after minimum programme growth | AA7: Minimum allocation £000 | AB7: Minimum allocation per head £ | AC7: Growth after rounding | AD7: Per capita growth after rounding | AF7: Target allocations from the fair shares formula £000 | AG7: Target per head | AH7: DFT (total allocation) | AI7: DFT (per capita)
A9: 00C | B9: NHS Darlington CCG | E9: 163964 | F9: 108449.6406 | G9: =E9/F9*1000 -> 1511.890672 | H9: 0.007440965996 | J9: 163031.1526 | K9: 108477.0781 | L9: =J9/K9*1000 -> 1502.908775 | M9: =K9/F9-1 -> 0.0002529976111 | O9: =E9/J9-1 -> 0.005721896882 | P9: =G9/L9-1 -> 0.005976342119 | Q9: =(1+M9)*(1+R9)-1 -> 0.03226109353 | R9: =MinGrowthPerHead(P9,0,1,$Q$1,$Q$2,$R$1,$R$2) -> 0.032 | S9: =(1+IF($S$2=1,Q9,0))*$E9 -> 169253.6579 | T9: =MinMaxRamp(P9,0,1,$P$2,$T$2) -> 0 | U9: =(1+M9)*(1+V9)-1 -> 0.03226109353 | V9: =MAX(R9,NewMinGrowthPerHead(P9,$P$2,$L$1,$U$1,$T$2,AG9,G9,T9, $P$1)) -> 0.032 | W9: =(1+IF($S$2=1,U9,0))*$E9 -> 169253.6579 | X9: =MAX(U9,$X$1) -> 0.03226109353 | Y9: =(1+X9)/(1+M9) - 1 -> 0.032 | Z9: =(1+IF($Z$2=1,X9,0))*$E9 -> 169253.6579 | AA9: =IF(ROUND(Z9,0)/E9>$AA$1,ROUND(Z9,0),ROUNDUP(Z9,0)) -> 169254 | AB9: =AA9/K9*1000 -> 1560.274326 | AC9: =AA9/E9-1 -> 0.03226317972 | AD9: =AB9/G9-1 -> 0.03200208566 | AF9: 169545.8082 | AG9: =AF9/K9*1000 -> 1562.964371 | AH9: =AA9/AF9-1 -> -0.001721117057 | AI9: =AB9/AG9-1 -> -0.001721117057
A10: 00D | B10: NHS Durham Dales, Easington and Sedgefield CCG | E10: 502477 | F10: 294087.8125 | G10: =E10/F10*1000 -> 1708.595116 | H10: 0.03439309623 | J10: 486954.5502 | K10: 295084.125 | L10: =J10/K10*1000 -> 1650.222797 | M10: =K10/F10-1 -> 0.003387806151 | O10: =E10/J10-1 -> 0.03187658853 | P10: =G10/L10-1 -> 0.03537238638 | Q10: =(1+M10)*(1+R10)-1 -> 0.03549621595 | R10: =MinGrowthPerHead(P10,0,1,$Q$1,$Q$2,$R$1,$R$2) -> 0.032 | S10: =(1+IF($S$2=1,Q10,0))*$E10 -> 520313.0321 | T10: =MinMaxRamp(P10,0,1,$P$2,$T$2) -> 0 | U10: =(1+M10)*(1+V10)-1 -> 0.03549621595 | V10: 0.032 | W10: =(1+IF($S$2=1,U10,0))*$E10 -> 520313.0321 | X10: =MAX(U10,$X$1) -> 0.03549621595 | Y10: =(1+X10)/(1+M10) - 1 -> 0.032 | Z10: =(1+IF($Z$2=1,X10,0))*$E10 -> 520313.0321 | AA10: =IF(ROUND(Z10,0)/E10>$AA$1,ROUND(Z10,0),ROUNDUP(Z10,0)) -> 520313 | AB10: 1763.270051 | AC10: 0.03549615206 | AD10: 0.03199993633 | AF10: 506413.0472 | AG10: 1716.164999 | AH10: =AA10/AF10-1 -> 0.02744785677 | AI10: 0.02744785677
A11: 00J | B11: NHS North Durham CCG | E11: 387036 | F11: 260704.7812 | G11: 1484.575765 | H11: 0.03489229395 | J11: 374591.8042 | K11: 261174 | L11: 1434.261466 | M11: 0.001799808764 | O11: 0.03322068354 | P11: 0.03508028318 | Q11: 0.03385740264 | R11: 0.032 | S11: 400140.0337 | T11: 0 | U11: 0.03385740264 | V11: 0.032 | W11: 400140.0337 | X11: 0.03385740264 | Y11: 0.032 | Z11: 400140.0337 | AA11: 400140 | AB11: 1532.08206 | AC11: 0.0338573156 | AD11: 0.03199991311 | AF11: 389560.3336 | AG11: 1491.573946 | AH11: 0.02715796615 | AI11: 0.02715796615
A12: 00K | B12: NHS Hartlepool and Stockton-on-Tees CCG | E12: 452680 | F12: 298891.875 | G12: 1514.52762 | H12: -0.02290207888 | J12: 463057.133 | K12: 299587.75 | L12: 1545.647754 | M12: 0.00232818306 | O12: -0.02241004893 | P12: -0.02013404057 | Q12: 0.03440268492 | R12: 0.032 | S12: 468253.4074 | T12: 0.4743001312 | U12: 0.03818670197 | V12: 0.03577522764 | W12: 469966.3562 | X12: 0.03818670197 | Y12: 0.03577522764 | Z12: 469966.3562 | AA12: 469966 | AB12: 1568.709001 | AC12: 0.038185915 | AD12: 0.03577444248 | AF12: 481560.6994 | AG12: 1607.411182 | AH12: -0.02407733734 | AI12: -0.02407733734
A13: 00L | B13: NHS Northumberland CCG | E13: 509487 | F13: 325564.0625 | G13: 1564.93624 | H13: -0.005280886606 | J13: 512838.4215 | K13: 325652.125 | L13: 1574.804468 | M13: 0.0002704920787 | O13: -0.00653504376 | P13: -0.006266319359 | Q13: 0.03227914783 | R13: 0.032 | S13: 525932.8062 | T13: 0.1476164749 | U13: 0.0334544301 | V13: 0.03317496446 | W13: 526531.5972 | X13: 0.0334544301 | Y13: 0.03317496446 | Z13: 526531.5972 | AA13: 526532 | AB13: 1616.854181 | AC13: 0.03345522064 | AD13: 0.03317575479 | AF13: 533331.2271 | AG13: 1637.732986 | AH13: -0.01274860112 | AI13: -0.01274860112
A14: 00M | B14: NHS South Tees CCG | E14: 468708 | F14: 297414.375 | G14: 1575.942656 | H14: -0.01847193034 | J14: 476256.7914 | K14: 297457.0312 | L14: 1601.094415 | M14: 0.0001434236324 | O14: -0.01585025457 | P14: -0.01570910424 | Q14: 0.03214801319 | R14: 0.032 | S14: 483776.031 | T14: 0.3700613484 | U14: 0.03509396684 | V14: 0.03494553119 | W14: 485156.823 | X14: 0.03509396684 | Y14: 0.03494553119 | Z14: 485156.823 | AA14: 485157 | AB14: 1631.015404 | AC14: 0.03509434445 | AD14: 0.03494590875 | AF14: 495287.8105 | AG14: 1665.073468 | AH14: -0.02045439099 | AI14: -0.02045439099
A15: 00N | B15: NHS South Tyneside CCG | E15: 273196 | F15: 157527.4219 | G15: 1734.275828 | H15: 0.0357136477 | J15: 263383.387 | K15: 157706.6562 | L15: 1670.08415 | M15: 0.001137797933 | O15: 0.03725600573 | P15: 0.03843619347 | Q15: 0.03317420747 | R15: 0.032 | S15: 282259.0608 | T15: 0 | U15: 0.03317420747 | V15: 0.032 | W15: 282259.0608 | X15: 0.03317420747 | Y15: 0.032 | Z15: 282259.0608 | AA15: 282259 | AB15: 1789.772269 | AC15: 0.03317398498 | AD15: 0.03199977776 | AF15: 273908.0753 | AG15: 1736.820004 | AH15: 0.03048805577 | AI15: 0.03048805577
A16: 00P | B16: NHS Sunderland CCG | E16: 486387 | F16: 284521.125 | G16: 1709.493451 | H16: 0.06208754501 | J16: 457409.4981 | K16: 284736.6562 | L16: 1606.42997 | M16: 0.0007575228377 | O16: 0.06335133408 | P16: 0.064156847 | Q16: 0.02914593782 | R16: 0.02836692639 | S16: 500563.2053 | T16: 0 | U16: 0.02914593782 | V16: 0.02836692639 | W16: 500563.2053 | X16: 0.02914593782 | Y16: 0.02836692639 | Z16: 500563.2053 | AA16: 500563 | AB16: 1757.985806 | AC16: 0.02914551581 | AD16: 0.0283665047 | AF16: 475687.3874 | AG16: 1670.622229 | AH16: 0.05229403444 | AI16: 0.05229403444
A17: 00Q | B17: NHS Blackburn with Darwen CCG | E17: 251935 | F17: 175171.625 | G17: 1438.21809 | H17: -0.03530618287 | J17: 260057.5054 | K17: 175123.5469 | L17: 1484.994508 | M17: -0.0002744629731 | O17: -0.0312334973 | P17: -0.03149938783 | Q17: 0.03171675421 | R17: 0.032 | S17: 259925.5605 | T17: 0.7420350491 | U17: 0.03762141704 | V17: 0.03790628389 | W17: 261413.1517 | X17: 0.03762141704 | Y17: 0.03790628389 | Z17: 261413.1517 | AA17: 261413 | AB17: 1492.734727 | AC17: 0.03762081489 | AD17: 0.03790568157 | AF17: 270449.2929 | AG17: 1544.334258 | AH17: -0.03341215198 | AI17: -0.03341215198
A18: 00R | B18: NHS Blackpool CCG | E18: 307689 | F18: 172778.25 | G18: 1780.831789 | H18: -0.04390802812 | J18: 319676.7747 | K18: 172451.375 | L18: 1853.721229 | M18: -0.001891875858 | O18: -0.03749967371 | P18: -0.03932060484 | Q18: 0.03004758411 | R18: 0.032 | S18: 316934.3111 | T18: 0.9262804438 | U18: 0.03740643469 | V18: 0.03937279899 | W18: 319198.5485 | X18: 0.03740643469 | Y18: 0.03937279899 | Z18: 319198.5485 | AA18: 319199 | AB18: 1850.950739 | AC18: 0.03740790213 | AD18: 0.03937426922 | AF18: 332450.9229 | AG18: 1927.795142 | AH18: -0.0398612908 | AI18: -0.0398612908
A19: 00T | B19: NHS Bolton CCG | E19: 451593 | F19: 311766.75 | G19: 1448.496352 | H19: -0.01128292658 | J19: 456027.5692 | K19: 312848.8125 | L19: 1457.66118 | M19: 0.003470743753 | O19: -0.009724344629 | P19: -0.006287351584 | Q19: 0.03558180755 | R19: 0.032 | S19: 467661.4952 | T19: 0.1481119337 | U19: 0.03676480734 | V19: 0.0331789081 | W19: 468195.7296 | X19: 0.03676480734 | Y19: 0.0331789081 | Z19: 468195.7296 | AA19: 468196 | AB19: 1496.556743 | AC19: 0.03676540602 | AD19: 0.03317950471 | AF19: 474250.2373 | AG19: 1515.908702 | AH19: -0.01276591298 | AI19: -0.01276591298
A20: 00V | B20: NHS Bury CCG | E20: 288175 | F20: 205557.6562 | G20: 1401.918105 | H20: -0.02505316431 | J20: 295180.0463 | K20: 206201.6875 | L20: 1431.511303 | M20: 0.003133092981 | O20: -0.02373143587 | P20: -0.02067269568 | Q20: 0.03523335196 | R20: 0.032 | S20: 298328.3712 | T20: 0.4869892976 | U20: 0.03912172455 | V20: 0.03587622801 | W20: 299448.903 | X20: 0.03912172455 | Y20: 0.03587622801 | Z20: 299448.903 | AA20: 299449 | AB20: 1452.21411 | AC20: 0.03912206125 | AD20: 0.03587656366 | AF20: 306975.3156 | AG20: 1488.713887 | AH20: -0.02451765748 | AI20: -0.02451765748
A21: 00X | B21: NHS Chorley and South Ribble CCG | E21: 266556 | F21: 186178.5312 | G21: 1431.722542 | H21: 0.01031287988 | J21: 265061.0339 | K21: 187455.0625 | L21: 1413.997736 | M21: 0.006856490066 | O21: 0.005640082481 | P21: 0.01253524372 | Q21: 0.03907589775 | R21: 0.032 | S21: 276971.915 | T21: 0 | U21: 0.03907589775 | V21: 0.032 | W21: 276971.915 | X21: 0.03907589775 | Y21: 0.032 | Z21: 276971.915 | AA21: 276972 | AB21: 1477.538117 | AC21: 0.03907621663 | AD21: 0.03200031671 | AF21: 275652.7603 | AG21: 1470.500485 | AH21: 0.004785875296 | AI21: 0.004785875296
A22: 00Y | B22: NHS Oldham CCG | E22: 375558 | F22: 258134.7344 | G22: 1454.89138 | H22: 0.01122747323 | J22: 371152.1958 | K22: 259393.0625 | L22: 1430.848583 | M22: 0.004874695101 | O22: 0.0118706133 | P22: 0.01680317402 | Q22: 0.03703068534 | R22: 0.032 | S22: 389465.1701 | T22: 0 | U22: 0.03703068534 | V22: 0.032 | W22: 389465.1701 | X22: 0.03703068534 | Y22: 0.032 | Z22: 389465.1701 | AA22: 389465 | AB22: 1501.447249 | AC22: 0.03703023235 | AD22: 0.0319995492 | AF22: 385983.2799 | AG22: 1488.024684 | AH22: 0.009020390871 | AI22: 0.009020390871
A23: 01A | B23: NHS East Lancashire CCG | E23: 599282 | F23: 382833.375 | G23: 1565.385985 | H23: 0.02327942493 | J23: 584721.6652 | K23: 383179.6562 | L23: 1525.972623 | M23: 0.0009045221044 | O23: 0.02490130895 | P23: 0.02582835484 | Q23: 0.03293346681 | R23: 0.032 | S23: 619018.4339 | T23: 0 | U23: 0.03293346681 | V23: 0.032 | W23: 619018.4339 | X23: 0.03293346681 | Y23: 0.032 | Z23: 619018.4339 | AA23: 619018 | AB23: 1615.477205 | AC23: 0.03293274285 | AD23: 0.03199927669 | AF23: 608086.8946 | AG23: 1586.949841 | AH23: 0.01797622263 | AI23: 0.01797622263
A24: 01C | B24: NHS Eastern Cheshire CCG | E24: 280608 | F24: 209983.75 | G24: 1336.331978 | H24: -0.008352651719 | J24: 283453.0873 | K24: 210671.9062 | L24: 1345.471697 | M24: 0.003277188116 | O24: -0.01003724209 | P24: -0.006792947903 | Q24: 0.03538205814 | R24: 0.032 | S24: 290536.4886 | T24: 0.1600223299 | U24: 0.03665994212 | V24: 0.03327370979 | W24: 290895.073 | X24: 0.03665994212 | Y24: 0.03327370979 | Z24: 290895.073 | AA24: 290895 | AB24: 1380.796354 | AC24: 0.03665968183 | AD24: 0.03327345036 | AF24: 294779.7523 | AG24: 1399.236175 | AH24: -0.01317849081 | AI24: -0.01317849081
A25: 01D | B25: NHS Heywood, Middleton and Rochdale CCG | E25: 355559 | F25: 235364.3906 | G25: 1510.674572 | H25: -0.02090956805 | J25: 362779.2378 | K25: 236209.7969 | L25: 1535.834849 | M25: 0.003591903804 | O25: -0.0199025663 | P25: -0.0163821506 | Q25: 0.03570684473 | R25: 0.032 | S25: 368254.89 | T25: 0.3859163863 | U25: 0.03878960864 | V25: 0.03507173056 | W25: 369350.9945 | X25: 0.03878960864 | Y25: 0.03507173056 | Z25: 369350.9945 | AA25: 369351 | AB25: 1563.656567 | AC25: 0.03878962423 | AD25: 0.03507174608 | AF25: 377275.7421 | AG25: 1597.206158 | AH25: -0.02100517271 | AI25: -0.02100517271
A26: 01E | B26: NHS Greater Preston CCG | E26: 288982 | F26: 209231.7188 | G26: 1381.157703 | H26: -0.01124589665 | J26: 291129.5621 | K26: 209111.4844 | L26: 1392.221776 | M26: -0.0005746469786 | O26: -0.007376654202 | P26: -0.007947062208 | Q26: 0.03140696432 | R26: 0.032 | S26: 298058.0474 | T26: 0.187209946 | U26: 0.0328962197 | V26: 0.03349011167 | W26: 298488.4154 | X26: 0.0328962197 | Y26: 0.03349011167 | Z26: 298488.4154 | AA26: 298488 | AB26: 1427.410842 | AC26: 0.03289478237 | AD26: 0.03348867352 | AF26: 302762.9758 | AG26: 1447.854367 | AH26: -0.01411987635 | AI26: -0.01411987635
A27: 01F | B27: NHS Halton CCG | E27: 220215 | F27: 131833.6406 | G27: 1670.400658 | H27: 0.0339713177 | J27: 212882.5819 | K27: 132053.2031 | L27: 1612.09707 | M27: 0.001665451238 | O27: 0.03444348539 | P27: 0.03616630057 | Q27: 0.03371874568 | R27: 0.032 | S27: 227640.3736 | T27: 0 | U27: 0.03371874568 | V27: 0.032 | W27: 227640.3736 | X27: 0.03371874568 | Y27: 0.032 | Z27: 227640.3736 | AA27: 227640 | AB27: 1723.85065 | AC27: 0.03371704925 | AD27: 0.03199830639 | AF27: 221389.2795 | AG27: 1676.515785 | AH27: 0.02823407051 | AI27: 0.02823407051
A28: 01G | B28: NHS Salford CCG | E28: 437240 | F28: 278114.5 | G28: 1572.15823 | H28: 0.02471814893 | J28: 427099.18 | K28: 280451.75 | L28: 1522.897183 | M28: 0.008403912777 | O28: 0.02374347809 | P28: 0.03234692899 | Q28: 0.04067283799 | R28: 0.032 | S28: 455023.7917 | T28: 0 | U28: 0.04067283799 | V28: 0.032 | W28: 455023.7917 | X28: 0.04067283799 | Y28: 0.032 | Z28: 455023.7917 | AA28: 455024 | AB28: 1622.468036 | AC28: 0.04067331443 | AD28: 0.03200047247 | AF28: 444165.8818 | AG28: 1583.751508 | AH28: 0.02444608783 | AI28: 0.02444608783
A29: 01H | B29: NHS Cumbria CCG | E29: 496945 | F29: 323354.9062 | G29: 1536.84076 | H29: 0.001078469591 | J29: 496326.4366 | K29: 322940.9375 | L29: 1536.895385 | M29: -0.001280230304 | O29: 0.001246283373 | P29: -3.554246137e-05 | Q29: 0.03067880233 | R29: 0.032 | S29: 512190.6774 | T29: 0.0008372782419 | U29: 0.03068545817 | V29: 0.03200666438 | W29: 512193.985 | X29: 0.03068545817 | Y29: 0.03200666438 | Z29: 512193.985 | AA29: 512194 | AB29: 1586.029953 | AC29: 0.03068548833 | AD29: 0.03200669458 | AF29: 516159.4303 | AG29: 1598.309072 | AH29: -0.007682568654 | AI29: -0.007682568654
A30: 01J | B30: NHS Knowsley CCG | E30: 298967 | F30: 166135.6719 | G30: 1799.535263 | H30: 0.04524156831 | J30: 285302.969 | K30: 166636.7812 | L30: 1712.124819 | M30: 0.003016265979 | O30: 0.04789305584 | P30: 0.05105378001 | Q30: 0.03484153909 | R30: 0.03172956829 | S30: 309383.4704 | T30: 0 | U30: 0.03484153909 | V30: 0.03172956829 | W30: 309383.4704 | X30: 0.03484153909 | Y30: 0.03172956829 | Z30: 309383.4704 | AA30: 309383 | AB30: 1856.630917 | AC30: 0.03483996561 | AD30: 0.03172799955 | AF30: 296703.5545 | AG30: 1780.5406 | AH30: 0.04273439042 | AI30: 0.04273439042
A31: 01K | B31: NHS Morecambe Bay CCG | E31: 533289 | F31: 347573.9375 | G31: 1534.318148 | H31: -0.006406782036 | J31: 535729.0392 | K31: 348167.625 | L31: 1538.710094 | M31: 0.001708089808 | O31: -0.004554614333 | P31: -0.002854304216 | Q31: 0.03376274868 | R31: 0.032 | S31: 551294.3025 | T31: 0.06723920414 | U31: 0.03429885836 | V31: 0.03253519551 | W31: 551580.2039 | X31: 0.03429885836 | Y31: 0.03253519551 | Z31: 551580.2039 | AA31: 551580 | AB31: 1584.236903 | AC31: 0.03429847606 | AD31: 0.03253481387 | AF31: 557136.5441 | AG31: 1600.196296 | AH31: -0.009973397239 | AI31: -0.009973397239
A32: 01R | B32: NHS South Cheshire CCG | E32: 253418 | F32: 186706.9688 | G32: 1357.303381 | H32: -0.03704066014 | J32: 263203.5331 | K32: 187151.7188 | L32: 1406.364499 | M32: 0.002382074986 | O32: -0.03717857814 | P32: -0.03488506531 | Q32: 0.03445830139 | R32: 0.032 | S32: 262150.3538 | T32: 0.8217918801 | U32: 0.04101499721 | V32: 0.0385411144 | W32: 263811.9386 | X32: 0.04101499721 | Y32: 0.0385411144 | Z32: 263811.9386 | AA32: 263812 | AB32: 1409.615694 | AC32: 0.04101523964 | AD32: 0.03854135626 | AF32: 273721.0345 | AG32: 1462.562227 | AH32: -0.03620121689 | AI32: -0.03620121689
A33: 01T | B33: NHS South Sefton CCG | E33: 264532 | F33: 155277.4375 | G33: 1703.608742 | H33: 0.04060764888 | J33: 253464.3454 | K33: 155438.5156 | L33: 1630.640542 | M33: 0.001037356924 | O33: 0.04366552856 | P33: 0.04474818223 | Q33: 0.03307055235 | R33: 0.032 | S33: 273280.2194 | T33: 0 | U33: 0.03307055235 | V33: 0.032 | W33: 273280.2194 | X33: 0.03307055235 | Y33: 0.032 | Z33: 273280.2194 | AA33: 273280 | AB33: 1758.122811 | AC33: 0.03306972313 | AD33: 0.03199917165 | AF33: 263592.673 | AG33: 1695.800246 | AH33: 0.03675112398 | AI33: 0.03675112398
A34: 01V | B34: NHS Southport and Formby CCG | E34: 200439 | F34: 125542.4844 | G34: 1596.583029 | H34: 0.007659338617 | J34: 198665.3253 | K34: 125805.1562 | L34: 1579.150897 | M34: 0.002092294703 | O34: 0.008927952818 | P34: 0.01103892743 | Q34: 0.03415924813 | R34: 0.032 | S34: 207285.8455 | T34: 0 | U34: 0.03415924813 | V34: 0.032 | W34: 207285.8455 | X34: 0.03415924813 | Y34: 0.032 | Z34: 207285.8455 | AA34: 207286 | AB34: 1647.674914 | AC34: 0.03416001876 | AD34: 0.03200076902 | AF34: 206603.9074 | AG34: 1642.253096 | AH34: 0.00330145069 | AI34: 0.00330145069
A35: 01W | B35: NHS Stockport CCG | E35: 453296 | F35: 314968.75 | G35: 1439.177696 | H35: -0.01909617993 | J35: 461316.7555 | K35: 316512.0625 | L35: 1457.501341 | M35: 0.004899890862 | O35: -0.01738665555 | P35: -0.0125719574 | Q35: 0.03705668737 | R35: 0.032 | S35: 470093.6482 | T35: 0.296159185 | U35: 0.03942553924 | V35: 0.03435730135 | W35: 471167.4392 | X35: 0.03942553924 | Y35: 0.03435730135 | Z35: 471167.4392 | AA35: 471167 | AB35: 1488.62257 | AC35: 0.03942457026 | AD35: 0.03435633709 | AF35: 479750.7772 | AG35: 1515.742476 | AH35: -0.017892159 | AI35: -0.017892159
A36: 01X | B36: NHS St Helens CCG | E36: 329715 | F36: 198715.8594 | G36: 1659.228413 | H36: 0.006374189187 | J36: 327280.0705 | K36: 199263.5469 | L36: 1642.448283 | M36: 0.002756133817 | O36: 0.007439895431 | P36: 0.0102165346 | Q36: 0.0348443301 | R36: 0.032 | S36: 341203.6983 | T36: 0 | U36: 0.0348443301 | V36: 0.032 | W36: 341203.6983 | X36: 0.0348443301 | Y36: 0.032 | Z36: 341203.6983 | AA36: 341204 | AB36: 1712.325236 | AC36: 0.03484524514 | AD36: 0.03200091252 | AF36: 340358.0431 | AG36: 1708.079819 | AH36: 0.002485491026 | AI36: 0.002485491026
A37: 01Y | B37: NHS Tameside and Glossop CCG | E37: 387153 | F37: 249223.8125 | G37: 1553.435027 | H37: 0.001108144709 | J37: 386123.0212 | K37: 249879.5625 | L37: 1545.236502 | M37: 0.002631169122 | O37: 0.002667488771 | P37: 0.005305676507 | Q37: 0.03471536653 | R37: 0.032 | S37: 400593.1583 | T37: 0 | U37: 0.03471536653 | V37: 0.032 | W37: 400593.1583 | X37: 0.03471536653 | Y37: 0.032 | Z37: 400593.1583 | AA37: 400593 | AB37: 1603.144315 | AC37: 0.03471495765 | AD37: 0.03199959219 | AF37: 401552.3331 | AG37: 1606.983497 | AH37: -0.002389061297 | AI37: -0.002389061297
A38: 02A | B38: NHS Trafford CCG | E38: 338682 | F38: 245133.5625 | G38: 1381.622315 | H38: 0.02995523111 | J38: 328792.7562 | K38: 246695.3125 | L38: 1332.788827 | M38: 0.006371016617 | O38: 0.03007743814 | P38: 0.03664007862 | Q38: 0.03857488915 | R38: 0.032 | S38: 351746.6206 | T38: 0 | U38: 0.03857488915 | V38: 0.032 | W38: 351746.6206 | X38: 0.03857488915 | Y38: 0.032 | Z38: 351746.6206 | AA38: 351747 | AB38: 1425.835767 | AC38: 0.03857600935 | AD38: 0.03200111311 | AF38: 341931.1751 | AG38: 1386.046503 | AH38: 0.02870701937 | AI38: 0.02870701937
A39: 02D | B39: NHS Vale Royal CCG | E39: 147280 | F39: 107566.4219 | G39: 1369.200513 | H39: -0.02823935711 | J39: 151375.7065 | K39: 107859.3906 | L39: 1403.454123 | M39: 0.002723607841 | O39: -0.027056564 | P39: -0.02440664763 | Q39: 0.03481076329 | R39: 0.032 | S39: 152406.9292 | T39: 0.5749504742 | U39: 0.03939958913 | V39: 0.03657636162 | W39: 153082.7715 | X39: 0.03939958913 | Y39: 0.03657636162 | Z39: 153082.7715 | AA39: 153083 | AB39: 1419.283005 | AC39: 0.03940114068 | AD39: 0.03657790896 | AF39: 157424.6154 | AG39: 1459.535554 | AH39: -0.02757901253 | AI39: -0.02757901253
A40: 02E | B40: NHS Warrington CCG | E40: 310523 | F40: 220369.6406 | G40: 1409.100633 | H40: -0.01583535207 | J40: 316137.6573 | K40: 221421.6875 | L40: 1427.76284 | M40: 0.004774010032 | O40: -0.017760166 | P40: -0.01307094318 | Q40: 0.03692677835 | R40: 0.032 | S40: 321989.614 | T40: 0.3079138558 | U40: 0.03938934234 | V40: 0.03445086354 | W40: 322754.2968 | X40: 0.03938934234 | Y40: 0.03445086354 | Z40: 322754.2968 | AA40: 322754 | AB40: 1457.644026 | AC40: 0.03938838669 | AD40: 0.03444991243 | AF40: 328770.3838 | AG40: 1484.815636 | AH40: -0.0182996526 | AI40: -0.0182996526
A41: 02F | B41: NHS West Cheshire CCG | E41: 378987 | F41: 265597.6875 | G41: 1426.921309 | H41: 0.004355574049 | J41: 377669.4245 | K41: 266357.6875 | L41: 1417.903226 | M41: 0.002861470697 | O41: 0.003488700503 | P41: 0.006360154015 | Q41: 0.03495303776 | R41: 0.032 | S41: 392233.7469 | T41: 0 | U41: 0.03495303776 | V41: =MAX(R41,NewMinGrowthPerHead(P41,$P$2,$L$1,$U$1,$T$2,AG41,G41,T41, $P$1)) -> 0.032 | W41: 392233.7469 | X41: 0.03495303776 | Y41: 0.032 | Z41: 392233.7469 | AA41: 392234 | AB41: =AA41/K41*1000 -> 1472.583741 | AC41: =AA41/E41-1 -> 0.03495370554 | AD41: =AB41/G41-1 -> 0.03200066587 | AF41: 392760.9343 | AG41: =AF41/K41*1000 -> 1474.562037 | AH41: -0.001341615904 | AI41: -0.001341615904
A42: 02G | B42: NHS West Lancashire CCG | E42: 165950 | F42: 113877.375 | G42: 1457.269278 | H42: -0.01296860245 | J42: 168026.9189 | K42: 114012.5312 | L42: 1473.758341 | M42: 0.001186857793 | O42: -0.01236063168 | P42: -0.0111884442 | Q42: 0.03322483724 | R42: 0.032 | S42: 171463.6617 | T42: 0.26356759 | U42: 0.03532521323 | V42: 0.03409788609 | W42: 171812.2191 | X42: 0.03532521323 | Y42: 0.03409788609 | Z42: 171812.2191 | AA42: 171812 | AB42: 1506.957157 | AC42: 0.03532389274 | AD42: 0.03409656717 | AF42: 174741.2032 | AG42: 1532.649098 | AH42: -0.01676309381 | AI42: -0.01676309381
A43: 02H | B43: NHS Wigan Borough CCG | E43: 508568 | F43: 329583.8125 | G43: 1543.061221 | H43: -0.01302890624 | J43: 515273.3061 | K43: 330294.3125 | L43: 1560.042927 | M43: 0.002155749078 | O43: -0.01301310589 | P43: -0.01088540981 | Q43: 0.03422473305 | R43: 0.032 | S43: 525973.604 | T43: 0.2564289707 | U43: 0.03627019879 | V43: 0.03404106572 | W43: 527013.8625 | X43: 0.03627019879 | Y43: 0.03404106572 | Z43: 527013.8625 | AA43: 527014 | AB43: 1595.589085 | AC43: 0.03627046924 | AD43: 0.03404133558 | AF43: 535863.4086 | AG43: 1622.38158 | AH43: -0.01651429909 | AI43: -0.01651429909
A44: 02M | B44: NHS Fylde & Wyre CCG | E44: 288121 | F44: 178955.0312 | G44: 1610.018997 | H44: 0.01569093981 | J44: 283925.6671 | K44: 179679.0625 | L44: 1580.18226 | M44: 0.004045883734 | O44: 0.01477616639 | P44: 0.01888183278 | Q44: 0.03617535201 | R44: 0.032 | S44: 298543.8786 | T44: 0 | U44: 0.03617535201 | V44: 0.032 | W44: 298543.8786 | X44: 0.03617535201 | Y44: 0.032 | Z44: 298543.8786 | AA44: 298544 | AB44: 1661.540281 | AC44: 0.03617577337 | AD44: 0.03200041966 | AF44: 295271.2162 | AG44: 1643.325672 | AH44: 0.01108399204 | AI44: 0.01108399204
A45: 02N | B45: NHS Airedale, Wharfedale and Craven CCG | E45: 230483 | F45: 160223.2188 | G45: 1438.511857 | H45: -0.004643092003 | J45: 231258.6335 | K45: 160710.5312 | L45: 1438.976224 | M45: 0.003041459932 | O45: -0.00335396542 | P45: -0.0003227064391 | Q45: 0.03513878665 | R45: 0.032 | S45: 238581.893 | T45: 0.007602036257 | U45: 0.03519947967 | V45: 0.03206050898 | W45: 238595.8817 | X45: 0.03519947967 | Y45: 0.03206050898 | Z45: 238595.8817 | AA45: 238596 | AB45: 1484.632016 | AC45: 0.03519999306 | AD45: 0.03206102082 | AF45: 240499.6302 | AG45: 1496.477103 | AH45: -0.007915314663 | AI45: -0.007915314663
A46: 02P | B46: NHS Barnsley CCG | E46: 416113 | F46: 264060.1562 | G46: 1575.826531 | H46: 0.03984947646 | J46: 401213.783 | K46: 265800.3438 | L46: 1509.455471 | M46: 0.006590117664 | O46: 0.03713535685 | P46: 0.04397020088 | Q46: 0.03880100143 | R46: 0.032 | S46: 432258.6011 | T46: 0 | U46: 0.03880100143 | V46: 0.032 | W46: 432258.6011 | X46: 0.03880100143 | Y46: 0.032 | Z46: 432258.6011 | AA46: 432259 | AB46: 1626.254481 | AC46: 0.03880196004 | AD46: 0.03200095234 | AF46: 417246.1154 | AG46: 1569.77267 | AH46: 0.03598088527 | AI46: 0.03598088527
A47: 02Q | B47: NHS Bassetlaw CCG | E47: 175206 | F47: 118099.2578 | G47: 1483.548697 | H47: -0.003631966636 | J47: 176163.2898 | K47: 118456.6719 | L47: 1487.153801 | M47: 0.003026387033 | O47: -0.005434105064 | P47: -0.002424163736 | Q47: 0.03512323142 | R47: 0.032 | S47: 181359.8009 | T47: 0.05710633064 | U47: 0.03557914918 | V47: 0.03245454214 | W47: 181439.6804 | X47: 0.03557914918 | Y47: 0.03245454214 | Z47: 181439.6804 | AA47: 181440 | AB47: 1531.699288 | AC47: 0.03558097325 | AD47: 0.03245636071 | AF47: 183202.7001 | AG47: 1546.579835 | AH47: -0.00962158352 | AI47: -0.00962158352
A48: 02R | B48: NHS Bradford Districts CCG | E48: 482521 | F48: 334984.2188 | G48: 1440.42905 | H48: 0.003009304741 | J48: 479660.4164 | K48: 335719.3125 | L48: 1428.754315 | M48: 0.002194413076 | O48: 0.005963768259 | P48: 0.008171268307 | Q48: 0.03426463429 | R48: 0.032 | S48: 499054.4056 | T48: 0 | U48: 0.03426463429 | V48: 0.032 | W48: 499054.4056 | X48: 0.03426463429 | Y48: 0.032 | Z48: 499054.4056 | AA48: 499054 | AB48: 1486.521571 | AC48: 0.0342637937 | AD48: 0.03199916125 | AF48: 498827.443 | AG48: 1485.846731 | AH48: 0.0004541791248 | AI48: 0.0004541791248
A49: 02T | B49: NHS Calderdale CCG | E49: 312497 | F49: 222195.1562 | G49: 1406.407796 | H49: 0.0334325984 | J49: 302160.157 | K49: 222935.9062 | L49: 1355.367837 | M49: 0.003333781044 | O49: 0.03420981488 | P49: 0.03765764395 | Q49: 0.03544046204 | R49: 0.032 | S49: 323572.0381 | T49: 0 | U49: 0.03544046204 | V49: 0.032 | W49: 323572.0381 | X49: 0.03544046204 | Y49: 0.032 | Z49: 323572.0381 | AA49: 323572 | AB49: 1451.412675 | AC49: 0.03544034023 | AD49: 0.03199987859 | AF49: 314234.3485 | AG49: 1409.52776 | AH49: 0.02971556584 | AI49: 0.02971556584
A50: 02W | B50: NHS Bradford City CCG | E50: 176303 | F50: 140252.5469 | G50: 1257.039561 | H50: -0.03224357254 | J50: 181041.1679 | K50: 140106.9844 | L50: 1292.163761 | M50: -0.001037859941 | O50: -0.02617177041 | P50: -0.02718246772 | Q50: 0.03092892854 | R50: 0.032 | S50: 181755.8629 | T50: 0.6403408179 | U50: 0.03602047973 | V50: 0.03709684099 | W50: 182653.5186 | X50: 0.03602047973 | Y50: 0.03709684099 | Z50: 182653.5186 | AA50: 182654 | AB50: 1303.675194 | AC50: 0.03602321004 | AD50: 0.03709957414 | AF50: 188275.4961 | AG50: 1343.798076 | AH50: -0.02985782106 | AI50: -0.02985782106
A51: 02X | B51: NHS Doncaster CCG | E51: 493117 | F51: 322119.4688 | G51: 1530.851277 | H51: 0.02309800745 | J51: 481664.189 | K51: 322742.1875 | L51: 1492.411614 | M51: 0.001933191907 | O51: 0.0237775845 | P51: 0.02575674304 | Q51: 0.03399505405 | R51: 0.032 | S51: 509880.5391 | T51: 0 | U51: 0.03399505405 | V51: 0.032 | W51: 509880.5391 | X51: 0.03399505405 | Y51: 0.032 | Z51: 509880.5391 | AA51: 509881 | AB51: 1579.839946 | AC51: 0.03399598878 | AD51: 0.03200093293 | AF51: 500911.2855 | AG51: 1552.047749 | AH51: 0.01790679259 | AI51: 0.01790679259
A52: 02Y | B52: NHS East Riding of Yorkshire CCG | E52: 429312 | F52: 305466.3438 | G52: 1405.431429 | H52: -0.02791408808 | J52: 442426.6967 | K52: 306030.75 | L52: 1445.6936 | M52: 0.001847687189 | O52: -0.02964264319 | P52: -0.02784972633 | Q52: 0.03390681318 | R52: 0.032 | S52: 443868.6018 | T52: 0.656059513 | U52: 0.03913841685 | V52: 0.03722195513 | W52: 446114.592 | X52: 0.03913841685 | Y52: 0.03722195513 | Z52: 446114.592 | AA52: 446115 | AB52: 1457.745668 | AC52: 0.03913936717 | AD52: 0.0372229037 | AF52: 460105.8796 | AG52: 1503.462902 | AH52: -0.03040795663 | AI52: -0.03040795663
A53: 03A | B53: NHS Greater Huddersfield CCG | E53: 332333 | F53: 251006.7812 | G53: 1324.000086 | H53: 0.02047935841 | J53: 325367.8235 | K53: 251959.5156 | L53: 1291.349615 | M53: 0.003795651935 | O53: 0.02140708458 | P53: 0.02528399036 | Q53: 0.0359171128 | R53: 0.032 | S53: 344269.4418 | T53: 0 | U53: 0.0359171128 | V53: 0.032 | W53: 344269.4418 | X53: 0.0359171128 | Y53: 0.032 | Z53: 344269.4418 | AA53: 344269 | AB53: 1366.366335 | AC53: 0.03591578327 | AD53: 0.0319986755 | AF53: 338369.3835 | AG53: 1342.951397 | AH53: 0.01743543223 | AI53: 0.01743543223
A54: 03D | B54: NHS Hambleton, Richmondshire and Whitby CCG | E54: 204885 | F54: 144107.0938 | G54: 1421.755131 | H54: 0.02695618041 | J54: 199742.4664 | K54: 144141.25 | L54: 1385.741184 | M54: 0.0002370199073 | O54: 0.02574582019 | P54: 0.02598894237 | Q54: 0.03224460454 | R54: 0.032 | S54: 211491.4358 | T54: 0 | U54: 0.03224460454 | V54: 0.032 | W54: 211491.4358 | X54: 0.03224460454 | Y54: 0.032 | Z54: 211491.4358 | AA54: 211491 | AB54: 1467.248272 | AC54: 0.03224247749 | AD54: 0.03199787345 | AF54: 207724.0905 | AG54: 1441.114813 | AH54: 0.01813419656 | AI54: 0.01813419656
A55: 03E | B55: NHS Harrogate and Rural District CCG | E55: 214739 | F55: 163361.4375 | G55: 1314.50239 | H55: 0.01460330275 | J55: 211942.0117 | K55: 163420 | L55: 1296.915994 | M55: 0.0003584842353 | O55: 0.01319695097 | P55: 0.01356016611 | Q55: 0.03236995573 | R55: 0.032 | S55: 221690.0919 | T55: 0 | U55: 0.03236995573 | V55: 0.032 | W55: 221690.0919 | X55: 0.03236995573 | Y55: 0.032 | Z55: 221690.0919 | AA55: 221690 | AB55: 1356.565904 | AC55: 0.03236952766 | AD55: 0.03199957208 | AF55: 220411.1244 | AG55: 1348.740206 | AH55: 0.00580222779 | AI55: 0.00580222779
A56: 03F | B56: NHS Hull CCG | E56: 437939 | F56: 300221.8125 | G56: 1458.718127 | H56: -0.01071003383 | J56: 441637.8619 | K56: 300771.9062 | L56: 1468.348116 | M56: 0.001832291083 | O56: -0.008375327884 | P56: -0.006558382839 | Q56: 0.0338909244 | R56: 0.032 | S56: 452781.1575 | T56: 0.1544966511 | U56: 0.03512290535 | V56: 0.03322972774 | W56: 453320.69 | X56: 0.03512290535 | Y56: 0.03322972774 | Z56: 453320.69 | AA56: 453321 | AB56: 1507.191964 | AC56: 0.03512361311 | AD56: 0.03323043419 | AF56: 459285.5233 | AG56: 1527.022683 | AH56: -0.01298652585 | AI56: -0.01298652585
A57: 03H | B57: NHS North East Lincolnshire CCG | E57: 250382 | F57: 169500.1562 | G57: 1477.178579 | H57: -0.00261184097 | J57: 250380.9765 | K57: 169391.1875 | L57: 1478.122801 | M57: -0.0006428828882 | O57: 4.087738413e-06 | P57: -0.0006387977777 | Q57: 0.03133654486 | R57: 0.032 | S57: 258228.1068 | T57: 0.01504823976 | U57: 0.03145624545 | V57: 0.0321197776 | W57: 258258.0776 | X57: 0.03145624545 | Y57: 0.0321197776 | Z57: 258258.0776 | AA57: 258258 | AB57: 1524.624768 | AC57: 0.03145593533 | AD57: 0.03211946727 | AF57: 260386.094 | AG57: 1537.18796 | AH57: -0.008172840468 | AI57: -0.008172840468
A58: 03J | B58: NHS North Kirklees CCG | E58: 271702 | F58: 195498.4375 | G58: 1389.791159 | H58: 0.02553273641 | J58: 264884.3735 | K58: 196266.0469 | L58: 1349.618937 | M58: 0.003926422046 | O58: 0.02573812269 | P58: 0.02976560347 | Q58: 0.03605206755 | R58: 0.032 | S58: 281497.4189 | T58: 0 | U58: 0.03605206755 | V58: 0.032 | W58: 281497.4189 | X58: 0.03605206755 | Y58: 0.032 | Z58: 281497.4189 | AA58: 281497 | AB58: 1434.262342 | AC58: 0.03605052594 | AD58: 0.03199846442 | AF58: 275469.0406 | AG58: 1403.549136 | AH58: 0.02188252955 | AI58: 0.02188252955
A59: 03K | B59: NHS North Lincolnshire CCG | E59: 252608 | F59: 178117.2188 | G59: 1418.212129 | H59: -0.003490164579 | J59: 253907.341 | K59: 178564.7188 | L59: 1421.934539 | M59: 0.002512390454 | O59: -0.005117382483 | P59: -0.002617848892 | Q59: 0.03459278695 | R59: 0.032 | S59: 261346.4147 | T59: 0.06166899628 | U59: 0.0350848792 | V59: 0.03249085902 | W59: 261470.7212 | X59: 0.0350848792 | Y59: 0.03249085902 | Z59: 261470.7212 | AA59: 261471 | AB59: 1464.292621 | AC59: 0.03508598303 | AD59: 0.03249196008 | AF59: 264053.3705 | AG59: 1478.754439 | AH59: -0.009779729375 | AI59: -0.009779729375
A60: 03L | B60: NHS Rotherham CCG | E60: 397956 | F60: 264819.25 | G60: 1502.745741 | H60: 0.02721270891 | J60: 387426.9293 | K60: 265637.2812 | L60: 1458.481007 | M60: 0.00308901732 | O60: 0.02717691998 | P60: 0.03034988728 | Q60: 0.03518786587 | R60: 0.032 | S60: 411959.2224 | T60: 0 | U60: 0.03518786587 | V60: 0.032 | W60: 411959.2224 | X60: 0.03518786587 | Y60: 0.032 | Z60: 411959.2224 | AA60: 411959 | AB60: 1550.832767 | AC60: 0.03518730714 | AD60: 0.03199944299 | AF60: 402908.3449 | AG60: 1516.761288 | AH60: 0.02246331007 | AI60: 0.02246331007
A61: 03M | B61: NHS Scarborough and Ryedale CCG | E61: 179044 | F61: 120801.6562 | G61: 1482.131997 | H61: -0.01933110007 | J61: 182158.4925 | K61: 120953.375 | L61: 1506.022404 | M61: 0.001255932698 | O61: -0.01709770708 | P61: -0.01586324796 | Q61: 0.03329612254 | R61: 0.032 | S61: 185005.471 | T61: 0.3736925314 | U61: 0.0362742921 | V61: 0.03497443386 | W61: 185538.6944 | X61: 0.0362742921 | Y61: 0.03497443386 | Z61: 185538.6944 | AA61: 185539 | AB61: 1533.971251 | AC61: 0.0362759992 | AD61: 0.03497613882 | AF61: 189437.4686 | AG61: 1566.202419 | AH61: -0.02057918419 | AI61: -0.02057918419
A62: 03N | B62: NHS Sheffield CCG | E62: 836616 | F62: 607792.6875 | G62: 1376.482503 | H62: 0.04497058255 | J62: 800391.8113 | K62: 610593 | L62: 1310.843412 | M62: 0.004607348126 | O62: 0.04525807005 | P62: 0.05007393786 | Q62: 0.03673572116 | R62: 0.03198102532 | S62: 867349.6921 | T62: 0 | U62: 0.03673572116 | V62: 0.03198102532 | W62: 867349.6921 | X62: 0.03673572116 | Y62: 0.03198102532 | Z62: 867349.6921 | AA62: 867350 | AB62: 1420.504329 | AC62: 0.0367360892 | AD62: 0.03198139167 | AF62: 832375.1282 | AG62: 1363.224158 | AH62: 0.04201816054 | AI62: 0.04201816054
A63: 03Q | B63: NHS Vale of York CCG | E63: 451108 | F63: 360500 | G63: 1251.339806 | H63: 0.01781531433 | J63: 443180.6688 | K63: 361942.9062 | L63: 1224.449108 | M63: 0.00400251387 | O63: 0.01788735789 | P63: 0.02196146616 | Q63: 0.03613059431 | R63: 0.032 | S63: 467406.8001 | T63: 0 | U63: 0.03613059431 | V63: 0.032 | W63: 467406.8001 | X63: 0.03613059431 | Y63: 0.032 | Z63: 467406.8001 | AA63: 467407 | AB63: 1291.383232 | AC63: 0.03613103736 | AD63: 0.03200044128 | AF63: 460889.9801 | AG63: 1273.377575 | AH63: 0.01414007721 | AI63: 0.01414007721
A64: 03R | B64: NHS Wakefield CCG | E64: 562967 | F64: 377694.125 | G64: 1490.53682 | H64: 0.0002812461682 | J64: 563149.2808 | K64: 379592.1875 | L64: 1483.563939 | M64: 0.005025395881 | O64: -0.0003236811635 | P64: 0.004700088091 | Q64: 0.03718620855 | R64: 0.032 | S64: 583901.6083 | T64: 0 | U64: 0.03718620855 | V64: 0.032 | W64: 583901.6083 | X64: 0.03718620855 | Y64: 0.032 | Z64: 583901.6083 | AA64: 583902 | AB64: 1538.23503 | AC64: 0.03718690438 | AD64: 0.03200069235 | AF64: 585652.4869 | AG64: 1542.846524 | AH64: -0.002988951599 | AI64: -0.002988951599
A65: 03T | B65: NHS Lincolnshire East CCG | E65: 386534 | F65: 252526.2969 | G65: 1530.66831 | H65: -0.02489486632 | J65: 397340.7991 | K65: 253605.7031 | L65: 1566.766024 | M65: 0.004274431073 | O65: -0.02719780883 | P65: -0.02303963292 | Q65: 0.03641121287 | R65: 0.032 | S65: 400608.1718 | T65: 0.5427475364 | U65: 0.04074971849 | V65: 0.03632003991 | W65: 402285.1517 | X65: 0.04074971849 | Y65: 0.03632003991 | Z65: 402285.1517 | AA65: 402285 | AB65: 1586.261646 | AC65: 0.04074932606 | AD65: 0.03631964915 | AF65: 413218.3687 | AG65: 1629.373329 | AH65: -0.02645905779 | AI65: -0.02645905779
A66: 03V | B66: NHS Corby CCG | E66: 111795 | F66: 81145.17188 | G66: 1377.71598 | H66: 0.001870659388 | J66: 112745.7622 | K66: 82345.01562 | L66: 1369.187453 | M66: 0.01478638497 | O66: -0.008432797626 | P66: 0.006228896754 | Q66: 0.04725954929 | R66: 0.032 | S66: 117078.3813 | T66: 0 | U66: 0.04725954929 | V66: 0.032 | W66: 117078.3813 | X66: 0.04725954929 | Y66: 0.032 | Z66: 117078.3813 | AA66: 117078 | AB66: 1421.798261 | AC66: 0.04725613847 | AD66: 0.03199663888 | AF66: 117251.035 | AG66: 1423.899602 | AH66: -0.001475765022 | AI66: -0.001475765022
A67: 03W | B67: NHS East Leicestershire and Rutland CCG | E67: 410806 | F67: 335015.1875 | G67: 1226.230975 | H67: -0.01953182272 | J67: 420290.2297 | K67: 336898.3438 | L67: 1247.528335 | M67: 0.005621107103 | O67: -0.02256590571 | P67: -0.01707164398 | Q67: 0.03780098253 | R67: 0.032 | S67: 426334.8704 | T67: 0.4021588688 | U67: 0.04101998959 | V67: 0.03520101382 | W67: 427657.2578 | X67: 0.04101998959 | Y67: 0.03520101382 | Z67: 427657.2578 | AA67: 427657 | AB67: 1269.394783 | AC67: 0.04101936194 | AD67: 0.03520038967 | AF67: 437084.8488 | AG67: 1297.379037 | AH67: -0.02156983667 | AI67: -0.02156983667
A68: 04C | B68: NHS Leicester City CCG | E68: 496191 | F68: 412727.875 | G68: 1202.223136 | H68: -0.007022360227 | J68: 500195.863 | K68: 415521.0625 | L68: 1203.779804 | M68: 0.006767625036 | O68: -0.008006589702 | P68: -0.001293150263 | Q68: 0.03898418904 | R68: 0.032 | S68: 515534.6037 | T68: 0.03046290371 | U68: 0.03922830177 | V68: 0.03224247178 | W68: 515655.7303 | X68: 0.03922830177 | Y68: 0.03224247178 | Z68: 515655.7303 | AA68: 515656 | AB68: 1240.98643 | AC68: 0.03922884534 | AD68: 0.03224301169 | AF68: 520183.4773 | AG68: 1251.882333 | AH68: -0.008703616176 | AI68: -0.008703616176
A69: 04D | B69: NHS Lincolnshire West CCG | E69: 312440 | F69: 239817.1719 | G69: 1302.825805 | H69: -0.01473291942 | J69: 317897.5799 | K69: 240844.4375 | L69: 1319.929093 | M69: 0.004283536566 | O69: -0.01716773014 | P69: -0.01295773217 | Q69: 0.03642060974 | R69: 0.032 | S69: 323819.2553 | T69: 0.3052469299 | U69: 0.03886065311 | V69: 0.03442963594 | W69: 324581.6225 | X69: 0.03886065311 | Y69: 0.03442963594 | Z69: 324581.6225 | AA69: 324582 | AB69: 1347.683191 | AC69: 0.03886186148 | AD69: 0.03443083915 | AF69: 330600.6322 | AG69: 1372.672899 | AH69: -0.01820514414 | AI69: -0.01820514414
A70: 04E | B70: NHS Mansfield and Ashfield CCG | E70: 294245 | F70: 196347.5 | G70: 1498.593056 | H70: -0.007483521842 | J70: 297161.6717 | K70: 197463.0625 | L70: 1504.897513 | M70: 0.005681572213 | O70: -0.009815100482 | P70: -0.004189293472 | Q70: 0.03786338252 | R70: 0.032 | S70: 305386.111 | T70: 0.0986877143 | U70: 0.03865335777 | V70: 0.0327855123 | W70: 305618.5573 | X70: 0.03865335777 | Y70: 0.0327855123 | Z70: 305618.5573 | AA70: 305619 | AB70: 1547.727439 | AC70: 0.03865486244 | AD70: 0.03278700848 | AF70: 309036.1259 | AG70: 1565.032579 | AH70: -0.01105736706 | AI70: -0.01105736706
A71: 04F | B71: NHS Milton Keynes CCG | E71: 354302 | F71: 300121.75 | G71: 1180.527569 | H71: -0.03296721974 | J71: 368323.4344 | K71: 302910.25 | L71: 1215.949062 | M71: 0.009291229309 | O71: -0.03806826591 | P71: -0.02913073759 | Q71: 0.04158854865 | R71: 0.032 | S71: 369036.906 | T71: 0.6862364567 | U71: 0.04710144953 | V71: 0.03746215079 | W71: 370990.1378 | X71: 0.04710144953 | Y71: 0.03746215079 | Z71: 370990.1378 | AA71: 370990 | AB71: 1224.752216 | AC71: 0.04710106068 | AD71: 0.03746176551 | AF71: 383041.4825 | AG71: 1264.53787 | AH71: -0.031462604 | AI71: -0.031462604
A72: 04G | B72: NHS Nene CCG | E72: 883120 | F72: 695931.1875 | G72: 1268.976037 | H72: -0.01166596162 | J72: 897364.5565 | K72: 700670.125 | L72: 1280.723303 | M72: 0.006809491492 | O72: -0.01587376773 | P72: -0.009172368528 | Q72: 0.03902739522 | R72: 0.032 | S72: 917585.8733 | T72: 0.2160746414 | U72: 0.040758969 | V72: 0.03371986239 | W72: 919115.0607 | X72: 0.040758969 | Y72: 0.03371986239 | Z72: 919115.0607 | AA72: 919115 | AB72: 1311.765647 | AC72: 0.04075890026 | AD72: 0.03371979412 | AF72: 933222.8632 | AG72: 1331.900462 | AH72: -0.01511735698 | AI72: -0.01511735698
A73: 04H | B73: NHS Newark & Sherwood CCG | E73: 192299 | F73: 136950.875 | G73: 1404.14583 | H73: -0.01001126301 | J73: 195039.5381 | K73: 137881.5625 | L73: 1414.544009 | M73: 0.006795776223 | O73: -0.01405119277 | P73: -0.00735090531 | Q73: 0.03901324106 | R73: 0.032 | S73: 199801.2072 | T73: 0.1731662028 | U73: 0.04040093732 | V73: =MAX(R73,NewMinGrowthPerHead(P73,$P$2,$L$1,$U$1,$T$2,AG73,G73,T73, $P$1)) -> 0.03337832944 | W73: 200068.0598 | X73: 0.04040093732 | Y73: 0.03337832944 | Z73: 200068.0598 | AA73: 200068 | AB73: =AA73/K73*1000 -> 1451.013438 | AC73: =AA73/E73-1 -> 0.04040062611 | AD73: =AB73/G73-1 -> 0.03337802033 | AF73: 202833.2353 | AG73: =AF73/K73*1000 -> 1471.068587 | AH73: -0.01363304819 | AI73: -0.01363304819
A74: 04K | B74: NHS Nottingham City CCG | E74: 484908 | F74: 383184.875 | G74: =E74/F74*1000 -> 1265.467485 | H74: -0.03119542434 | J74: 499849.1885 | K74: 384540.0625 | L74: =J74/K74*1000 -> 1299.862452 | M74: =K74/F74-1 -> 0.003536641419 | O74: =E74/J74-1 -> -0.02989139285 | P74: =G74/L74-1 -> -0.02646046657 | Q74: =(1+M74)*(1+R74)-1 -> 0.03564981394 | R74: =MinGrowthPerHead(P74,0,1,$Q$1,$Q$2,$R$1,$R$2) -> 0.032 | S74: =(1+IF($S$2=1,Q74,0))*$E74 -> 502194.88 | T74: =MinMaxRamp(P74,0,1,$P$2,$T$2) -> 0.6233325458 | U74: =(1+M74)*(1+V74)-1 -> 0.04062882323 | V74: 0.03696146237 | W74: =(1+IF($S$2=1,U74,0))*$E74 -> 504609.2414 | X74: =MAX(U74,$X$1) -> 0.04062882323 | Y74: =(1+X74)/(1+M74) - 1 -> 0.03696146237 | Z74: =(1+IF($Z$2=1,X74,0))*$E74 -> 504609.2414 | AA74: =IF(ROUND(Z74,0)/E74>$AA$1,ROUND(Z74,0),ROUNDUP(Z74,0)) -> 504609 | AB74: 1312.240386 | AC74: 0.04062832537 | AD74: 0.03696096627 | AF74: 519822.9498 | AG74: 1351.804403 | AH74: =AA74/AF74-1 -> -0.02926756077 | AI74: -0.02926756077
A75: 04L | B75: NHS Nottingham North and East CCG | E75: 208664 | F75: 154496.7812 | G75: 1350.604189 | H75: -0.02900635109 | J75: 215436.3867 | K75: 155536.7344 | L75: 1385.11579 | M75: 0.006731228422 | O75: -0.03143566799 | P75: -0.02491604023 | Q75: 0.03894662773 | R75: 0.032 | S75: 216790.7591 | T75: 0.5869502998 | U75: 0.04364995033 | V75: 0.03667187514 | W75: 217772.1732 | X75: 0.04364995033 | Y75: 0.03667187514 | Z75: 217772.1732 | AA75: 217772 | AB75: 1400.132264 | AC75: 0.04364912012 | AD75: 0.03667105048 | AF75: 224045.1333 | AG75: 1440.464429 | AH75: -0.02799941763 | AI75: -0.02799941763
A76: 04M | B76: NHS Nottingham West CCG | E76: 131406 | F76: 95121.66406 | G76: 1381.451863 | H76: 0.01772214687 | J76: 129327.5624 | K76: 95606.65625 | L76: 1352.704587 | M76: 0.005098651209 | O76: 0.01607111066 | P76: 0.02125170286 | Q76: 0.03726180805 | R76: 0.032 | S76: 136302.4251 | T76: 0 | U76: 0.03726180805 | V76: 0.032 | W76: 136302.4251 | X76: 0.03726180805 | Y76: 0.032 | Z76: 136302.4251 | AA76: 136302 | AB76: 1425.653875 | AC76: 0.03725857267 | AD76: 0.03199678103 | AF76: 134495.4369 | AG76: 1406.758088 | AH76: 0.01343215154 | AI76: 0.01343215154
A77: 04N | B77: NHS Rushcliffe CCG | E77: 160776 | F77: 128916.7656 | G77: 1247.130264 | H77: 0.01694661043 | J77: 158830.3129 | K77: 129817.625 | L77: 1223.48805 | M77: 0.006987914804 | O77: 0.01225009952 | P77: 0.01932361697 | Q77: 0.03921152808 | R77: 0.032 | S77: 167080.2726 | T77: 0 | U77: 0.03921152808 | V77: 0.032 | W77: 167080.2726 | X77: 0.03921152808 | Y77: 0.032 | Z77: 167080.2726 | AA77: 167080 | AB77: 1287.036333 | AC77: 0.03920983231 | AD77: 0.031998316 | AF77: 165177.1047 | AG77: 1272.378113 | AH77: 0.0115203332 | AI77: 0.0115203332
A78: 04Q | B78: NHS South West Lincolnshire CCG | E78: 179683 | F78: 135580.4688 | G78: 1325.286759 | H78: -0.00586580189 | J78: 181892.6803 | K78: 136527.4062 | L78: 1332.279615 | M78: 0.006984320889 | O78: -0.01214826387 | P78: -0.005248790351 | Q78: 0.03920781916 | R78: 0.032 | S78: 186727.9786 | T78: 0.1236464158 | U78: 0.0401988659 | V78: 0.03298417296 | W78: 186906.0528 | X78: 0.0401988659 | Y78: 0.03298417296 | Z78: 186906.0528 | AA78: 186906 | AB78: 1368.99986 | AC78: 0.04019857193 | AD78: 0.03298388103 | AF78: 189161.0345 | AG78: 1385.516943 | AH78: -0.01192124237 | AI78: -0.01192124237
A79: 04V | B79: NHS West Leicestershire CCG | E79: 478909 | F79: 399689.625 | G79: 1198.20223 | H79: -0.02014949504 | J79: 491004.5444 | K79: 402919.5625 | L79: 1218.616791 | M79: 0.00808111419 | O79: -0.024634282 | P79: -0.01675224025 | Q79: 0.04033970984 | R79: 0.032 | S79: 498228.0501 | T79: 0.3946346349 | U79: 0.04350621774 | V79: 0.03514112411 | W79: 499744.5192 | X79: 0.04350621774 | Y79: 0.03514112411 | Z79: 499744.5192 | AA79: 499745 | AB79: 1240.309597 | AC79: 0.04350722162 | AD79: 0.03514211995 | AF79: 510624.8775 | AG79: 1267.312201 | AH79: -0.02130698675 | AI79: -0.02130698675
